Workbook

Sheet metadata
A1: sheet | B1: sheet description | D1: column | E1: sheet | F1: column description
A2: DADA2 | B2: track reads via the DADA2 pipeline for the different datasets | D2: asv_number | E2: …_rps | F2: identifier number of the ASV in this dataset. OBS: ASV1 in "earth" dataset is not identical to ASV1 in "miseq" or "combined" dataset*
A3: ASV_Earth_rps | B3: reads per sample for each ASV as determined by running DADA2 pipeline on the earth dataset | D3: source | E3: …_rps | F3: source indicates whether the ASV was derived from samples, from the mock community, or occurs in both.
A4: ASV_Miseq_rps | B4: reads per sample for each ASV as determined by running DADA2 pipeline on the miseq dataset | D4: mock | E4: …_rps | F4: mock community standard
A5: ASV_Combo_rps | B5: reads per sample for each ASV as determined by running DADA2 pipeline on the combined earth-miseq dataset | D5: sample01 | E5: …_rps | F5: Farm A, tank biofilm
A6: ASV_Earth_TaxaAnalysis | B6: congregated taxonomic information (summary terms) for the earth dataset | D6: sample02 | E6: …_rps | F6: Farm A, tank biofilm
A7: ASV_Miseq_TaxaAnalysis | B7: congregated taxonomic information (summary terms) for the miseq dataset | D7: sample20 | E7: …_rps | F7: a sequencing replicate of sample 02
A8: ASV_Combo_TaxaAnalysis | B8: congregated taxonomic information (summary terms) for the combined earth-miseq dataset | D8: sample21 | E8: …_rps | F8: another sequencing replicate of sample 02
A9: Comparison | B9: comparison graphs of ASVs, reads, and reads associated with taxonomic categories between the earth, miseq, and combined datasets | D9: sample03 | E9: …_rps | F9: Farm A, tank biofilm
D10: sample04 | E10: …_rps | F10: Farm A, tank biofilm
D11: sample05 | E11: …_rps | F11: Farm A, tank biofilm
D12: sample06 | E12: …_rps | F12: Farm A, tank biofilm
D13: sample07 | E13: …_rps | F13: Farm A, tank water
D14: sample08 | E14: …_rps | F14: Farm A, tank water
D15: sample09 | E15: …_rps | F15: Farm A, tank water
D16: sample10 | E16: …_rps | F16: Farm A, biofilter water
D17: sample11 | E17: …_rps | F17: Farm A, biofilter water
D18: sample12 | E18: …_rps | F18: Farm A, biofilter water
D19: sample13 | E19: …_rps | F19: Farm B, tank biofilm
D20: sample14 | E20: …_rps | F20: Farm B, tank biofilm
D21: sample15 | E21: …_rps | F21: Farm B, tank biofilm
D22: sample16 | E22: …_rps | F22: Farm B, tank biofilm
D23: sample17 | E23: …_rps | F23: Farm B, tank biofilm
D24: sample18 | E24: …_rps | F24: Farm B, tank biofilm
D25: reads | E25: …_rps | F25: number of reads assigned to this ASV, including the mock community
D26: kingdom | E26: …_rps | F26: kingdom assigned to this ASV
D27: phylum | E27: …_rps | F27: phylum assigned to this ASV
D28: class | E28: …_rps | F28: class assigned to this ASV
D29: order | E29: …_rps | F29: order assigned to this ASV
D30: family | E30: …_rps | F30: family assigned to this ASV
D31: genus | E31: …_rps | F31: genus assigned to this ASV
D32: asv_counts | E32: …_taxanalysis | F32: number of ASVs assigned to the categories indicated in the row names in this dataset
D33: read_counts | E33: …_taxanalysis | F33: number of reads assigned to the categories indicated in the row names in this dataset
D34: kingdom_categories | E34: …_taxanalysis | F34: number of kingdoms detected in this dataset
D35: kingdom_counts | E35: …_taxanalysis | F35: number of ASVs assigned to each kingdom
D36: kingdom_reads | E36: …_taxanalysis | F36: number of reads assigned to each kingdom
D37: phylum_categories | E37: …_taxanalysis | F37: number of phyla detected in this dataset
D38: phylum_counts | E38: …_taxanalysis | F38: number of ASVs assigned to each phylum
D39: phylum_reads | E39: …_taxanalysis | F39: number of reads assigned to each phylum
D40: class_categories | E40: …_taxanalysis | F40: number of classes detected in this dataset
D41: class_counts | E41: …_taxanalysis | F41: number of ASVs assigned to each class
D42: class_reads | E42: …_taxanalysis | F42: number of reads assigned to each class
D43: order_categories | E43: …_taxanalysis | F43: number of orders detected in this dataset
D44: order_counts | E44: …_taxanalysis | F44: number of ASVs assigned to each order
D45: order_reads | E45: …_taxanalysis | F45: number of reads assigned to each order
D46: family_categories | E46: …_taxanalysis | F46: number of families detected in this dataset
D47: family_counts | E47: …_taxanalysis | F47: number of ASVs assigned to each family
D48: family_reads | E48: …_taxanalysis | F48: number of reads assigned to each family
D49: genus_categories | E49: …_taxanalysis | F49: number of genuses detected in this dataset
D50: genus_counts | E50: …_taxanalysis | F50: number of ASVs assigned to each genus
D51: genus_reads | E51: …_taxanalysis | F51: number of reads assigned to each genus

Sheet ASV_Earth_rps
A1: asv_number | B1: source | C1: mock | D1: sample01 | E1: sample02 | F1: sample20 | G1: sample21 | H1: sample03 | I1: sample04 | J1: sample05 | K1: sample06 | L1: sample07 | M1: sample08 | N1: sample09 | O1: sample10 | P1: sample11 | Q1: sample12 | R1: sample13 | S1: sample14 | T1: sample15 | U1: sample16 | V1: sample17 | W1: sample18 | X1: reads | Y1: kingdom | Z1: phylum | AA1: class | AB1: order | AC1: family | AD1: genus
A2: 1 | B2: sample | C2: 0 | D2: 1382 | E2: 1038 | F2: 909 | G2: 822 | H2: 975 | I2: 9792 | J2: 8360 | K2: 6736 | L2: 1345 | M2: 999 | N2: 1186 | O2: 281 | P2: 178 | Q2: 242 | R2: 0 | S2: 0 | T2: 0 | U2: 0 | V2: 0 | W2: 0 | X2: =SUM(C2:W2) -> 34245 | Y2: Bacteria | Z2: Proteobacteria | AA2: Alphaproteobacteria | AB2: Rhizobiales | AC2: NA | AD2: NA
A3: 2 | B3: sample | C3: 0 | D3: 1444 | E3: 978 | F3: 864 | G3: 863 | H3: 937 | I3: 10120 | J3: 7935 | K3: 6480 | L3: 1315 | M3: 1059 | N3: 1253 | O3: 176 | P3: 175 | Q3: 164 | R3: 0 | S3: 0 | T3: 0 | U3: 0 | V3: 0 | W3: 0 | X3: =SUM(C3:W3) -> 33763 | Y3: Bacteria | Z3: Proteobacteria | AA3: Alphaproteobacteria | AB3: Rhizobiales | AC3: NA | AD3: NA
A4: 3 | B4: sample | C4: 0 | D4: 4919 | E4: 3407 | F4: 3203 | G4: 3090 | H4: 3498 | I4: 2732 | J4: 2940 | K4: 2687 | L4: 889 | M4: 1055 | N4: 894 | O4: 200 | P4: 139 | Q4: 144 | R4: 239 | S4: 432 | T4: 289 | U4: 287 | V4: 945 | W4: 545 | X4: 32534 | Y4: Bacteria | Z4: Proteobacteria | AA4: Gammaproteobacteria | AB4: Burkholderiales | AC4: Comamonadaceae | AD4: Sphaerotilus
A5: 4 | B5: sample | C5: 0 | D5: 4680 | E5: 3224 | F5: 3436 | G5: 3235 | H5: 3612 | I5: 2584 | J5: 2988 | K5: 2743 | L5: 879 | M5: 1103 | N5: 863 | O5: 123 | P5: 105 | Q5: 75 | R5: 282 | S5: 433 | T5: 236 | U5: 305 | V5: 1039 | W5: 501 | X5: 32446 | Y5: Bacteria | Z5: Proteobacteria | AA5: Gammaproteobacteria | AB5: Burkholderiales | AC5: Comamonadaceae | AD5: Sphaerotilus
A6: 5 | B6: sample | C6: 0 | D6: 3906 | E6: 2941 | F6: 2717 | G6: 2621 | H6: 3038 | I6: 1123 | J6: 968 | K6: 955 | L6: 316 | M6: 301 | N6: 271 | O6: 136 | P6: 193 | Q6: 174 | R6: 169 | S6: 231 | T6: 50 | U6: 49 | V6: 155 | W6: 61 | X6: 20375 | Y6: Bacteria | Z6: Proteobacteria | AA6: Gammaproteobacteria | AB6: Burkholderiales | AC6: Comamonadaceae | AD6: Ideonella
A7: 6 | B7: sample | C7: 0 | D7: 4168 | E7: 3005 | F7: 2627 | G7: 2462 | H7: 2941 | I7: 1100 | J7: 929 | K7: 901 | L7: 309 | M7: 292 | N7: 283 | O7: 191 | P7: 211 | Q7: 256 | R7: 0 | S7: 218 | T7: 127 | U7: 84 | V7: 153 | W7: 116 | X7: =SUM(C7:W7) -> 20373 | Y7: Bacteria | Z7: Proteobacteria | AA7: Gammaproteobacteria | AB7: Burkholderiales | AC7: Comamonadaceae | AD7: Ideonella
A8: 7 | B8: sample | C8: 0 | D8: 830 | E8: 500 | F8: 426 | G8: 401 | H8: 596 | I8: 4658 | J8: 4272 | K8: 3510 | L8: 663 | M8: 824 | N8: 618 | O8: 0 | P8: 0 | Q8: 0 | R8: 110 | S8: 234 | T8: 0 | U8: 101 | V8: 159 | W8: 124 | X8: 18026 | Y8: Bacteria | Z8: Bacteroidota | AA8: Bacteroidia | AB8: Flavobacteriales | AC8: Flavobacteriaceae | AD8: Flavobacterium
A9: 8 | B9: sample | C9: 0 | D9: 843 | E9: 559 | F9: 425 | G9: 406 | H9: 567 | I9: 4374 | J9: 4142 | K9: 3723 | L9: 628 | M9: 792 | N9: 647 | O9: 0 | P9: 0 | Q9: 0 | R9: 0 | S9: 160 | T9: 213 | U9: 0 | V9: 146 | W9: 68 | X9: 17693 | Y9: Bacteria | Z9: Bacteroidota | AA9: Bacteroidia | AB9: Flavobacteriales | AC9: Flavobacteriaceae | AD9: Flavobacterium
A10: 9 | B10: sample | C10: 0 | D10: 1683 | E10: 1606 | F10: 1368 | G10: 1285 | H10: 1556 | I10: 0 | J10: 184 | K10: 213 | L10: 792 | M10: 779 | N10: 981 | O10: 1494 | P10: 1572 | Q10: 1134 | R10: 145 | S10: 235 | T10: 271 | U10: 240 | V10: 254 | W10: 221 | X10: 16013 | Y10: Bacteria | Z10: Bacteroidota | AA10: Bacteroidia | AB10: Chitinophagales | AC10: Saprospiraceae | AD10: Haliscomenobacter
A11: 10 | B11: sample | C11: 0 | D11: 1692 | E11: 1658 | F11: 1374 | G11: 1313 | H11: 1547 | I11: 133 | J11: 0 | K11: 108 | L11: 749 | M11: 788 | N11: 955 | O11: 1470 | P11: 1509 | Q11: 1124 | R11: 129 | S11: 214 | T11: 186 | U11: 181 | V11: 131 | W11: 228 | X11: 15489 | Y11: Bacteria | Z11: Bacteroidota | AA11: Bacteroidia | AB11: Chitinophagales | AC11: Saprospiraceae | AD11: Haliscomenobacter
A12: 11 | B12: sample | C12: 0 | D12: 611 | E12: 465 | F12: 385 | G12: 395 | H12: 437 | I12: 4236 | J12: 3345 | K12: 2875 | L12: 574 | M12: 478 | N12: 561 | O12: 150 | P12: 74 | Q12: 123 | R12: 0 | S12: 0 | T12: 0 | U12: 0 | V12: 0 | W12: 0 | X12: 14709 | Y12: Bacteria | Z12: Proteobacteria | AA12: Alphaproteobacteria | AB12: Rhizobiales | AC12: Rhizobiaceae | AD12: NA
A13: 12 | B13: sample | C13: 0 | D13: 1982 | E13: 1449 | F13: 1421 | G13: 1443 | H13: 1565 | I13: 1157 | J13: 1224 | K13: 1165 | L13: 394 | M13: 464 | N13: 389 | O13: 0 | P13: 0 | Q13: 0 | R13: 178 | S13: 268 | T13: 155 | U13: 169 | V13: 421 | W13: 250 | X13: 14094 | Y13: Bacteria | Z13: Proteobacteria | AA13: Gammaproteobacteria | AB13: Burkholderiales | AC13: Comamonadaceae | AD13: Sphaerotilus
A14: 13 | B14: sample | C14: 0 | D14: 577 | E14: 403 | F14: 398 | G14: 396 | H14: 407 | I14: 3742 | J14: 3128 | K14: 2591 | L14: 541 | M14: 451 | N14: 475 | O14: 95 | P14: 45 | Q14: 60 | R14: 0 | S14: 0 | T14: 0 | U14: 0 | V14: 0 | W14: 0 | X14: 13309 | Y14: Bacteria | Z14: Proteobacteria | AA14: Alphaproteobacteria | AB14: Rhizobiales | AC14: NA | AD14: NA
A15: 14 | B15: sample | C15: 0 | D15: 505 | E15: 396 | F15: 347 | G15: 321 | H15: 346 | I15: 3686 | J15: 2991 | K15: 2556 | L15: 490 | M15: 385 | N15: 447 | O15: 81 | P15: 145 | Q15: 0 | R15: 0 | S15: 0 | T15: 0 | U15: 0 | V15: 0 | W15: 0 | X15: 12696 | Y15: Bacteria | Z15: Proteobacteria | AA15: Alphaproteobacteria | AB15: Rhizobiales | AC15: Rhizobiaceae | AD15: NA
A16: 15 | B16: sample | C16: 0 | D16: 1850 | E16: 1269 | F16: 1366 | G16: 1316 | H16: 1357 | I16: 1000 | J16: 1158 | K16: 1023 | L16: 357 | M16: 459 | N16: 334 | O16: 0 | P16: 0 | Q16: 0 | R16: 96 | S16: 234 | T16: 104 | U16: 116 | V16: 388 | W16: 208 | X16: 12635 | Y16: Bacteria | Z16: Proteobacteria | AA16: Gammaproteobacteria | AB16: Burkholderiales | AC16: Comamonadaceae | AD16: Sphaerotilus
A17: 16 | B17: sample | C17: 0 | D17: 1713 | E17: 1266 | F17: 1218 | G17: 1212 | H17: 1327 | I17: 1055 | J17: 1150 | K17: 1074 | L17: 353 | M17: 389 | N17: 348 | O17: 0 | P17: 0 | Q17: 0 | R17: 221 | S17: 287 | T17: 184 | U17: 231 | V17: 361 | W17: 171 | X17: 12560 | Y17: Bacteria | Z17: Proteobacteria | AA17: Gammaproteobacteria | AB17: Burkholderiales | AC17: Comamonadaceae | AD17: Sphaerotilus
A18: 17 | B18: sample | C18: 0 | D18: 537 | E18: 415 | F18: 335 | G18: 335 | H18: 360 | I18: 3517 | J18: 2940 | K18: 2430 | L18: 501 | M18: 409 | N18: 487 | O18: 78 | P18: 85 | Q18: 112 | R18: 0 | S18: 0 | T18: 0 | U18: 0 | V18: 0 | W18: 0 | X18: 12541 | Y18: Bacteria | Z18: Proteobacteria | AA18: Alphaproteobacteria | AB18: Rhizobiales | AC18: Rhizobiaceae | AD18: NA
A19: 18 | B19: sample | C19: 0 | D19: 18 | E19: 0 | F19: 0 | G19: 0 | H19: 0 | I19: 0 | J19: 0 | K19: 0 | L19: 260 | M19: 269 | N19: 254 | O19: 73 | P19: 47 | Q19: 0 | R19: 5671 | S19: 187 | T19: 4994 | U19: 309 | V19: 84 | W19: 191 | X19: 12357 | Y19: Bacteria | Z19: Proteobacteria | AA19: Gammaproteobacteria | AB19: Aeromonadales | AC19: Aeromonadaceae | AD19: Aeromonas
A20: 19 | B20: sample | C20: 0 | D20: 1770 | E20: 1233 | F20: 1271 | G20: 1229 | H20: 1357 | I20: 1016 | J20: 1117 | K20: 975 | L20: 318 | M20: 398 | N20: 339 | O20: 0 | P20: 0 | Q20: 0 | R20: 113 | S20: 247 | T20: 129 | U20: 165 | V20: 393 | W20: 225 | X20: 12295 | Y20: Bacteria | Z20: Proteobacteria | AA20: Gammaproteobacteria | AB20: Burkholderiales | AC20: Comamonadaceae | AD20: Sphaerotilus
A21: 20 | B21: sample | C21: 0 | D21: 0 | E21: 0 | F21: 17 | G21: 0 | H21: 0 | I21: 0 | J21: 0 | K21: 0 | L21: 174 | M21: 158 | N21: 230 | O21: 0 | P21: 0 | Q21: 0 | R21: 5881 | S21: 89 | T21: 5300 | U21: 297 | V21: 0 | W21: 0 | X21: 12146 | Y21: Bacteria | Z21: Proteobacteria | AA21: Gammaproteobacteria | AB21: Aeromonadales | AC21: Aeromonadaceae | AD21: Aeromonas
A22: 21 | B22: sample | C22: 0 | D22: 227 | E22: 229 | F22: 336 | G22: 163 | H22: 235 | I22: 2407 | J22: 2606 | K22: 1653 | L22: 744 | M22: 726 | N22: 736 | O22: 254 | P22: 195 | Q22: 189 | R22: 195 | S22: 307 | T22: 163 | U22: 178 | V22: 251 | W22: 197 | X22: 11991 | Y22: Bacteria | Z22: Bacteroidota | AA22: Bacteroidia | AB22: Cytophagales | AC22: Spirosomaceae | AD22: Emticicia
A23: 22 | B23: sample | C23: 0 | D23: 193 | E23: 224 | F23: 216 | G23: 241 | H23: 265 | I23: 2453 | J23: 2207 | K23: 2346 | L23: 1074 | M23: 1322 | N23: 908 | O23: 0 | P23: 0 | Q23: 123 | R23: 0 | S23: 0 | T23: 0 | U23: 0 | V23: 0 | W23: 0 | X23: 11572 | Y23: Bacteria | Z23: Proteobacteria | AA23: Gammaproteobacteria | AB23: Burkholderiales | AC23: Comamonadaceae | AD23: NA
A24: 23 | B24: mock | C24: 11457 | D24: 0 | E24: 0 | F24: 0 | G24: 0 | H24: 0 | I24: 0 | J24: 0 | K24: 0 | L24: 0 | M24: 0 | N24: 0 | O24: 0 | P24: 0 | Q24: 0 | R24: 0 | S24: 0 | T24: 0 | U24: 0 | V24: 0 | W24: 0 | X24: 11457 | Y24: Bacteria | Z24: Firmicutes | AA24: Bacilli | AB24: Bacillales | AC24: Bacillaceae | AD24: Bacillus
A25: 24 | B25: sample | C25: 0 | D25: 154 | E25: 160 | F25: 117 | G25: 190 | H25: 224 | I25: 2254 | J25: 2253 | K25: 2244 | L25: 1043 | M25: 1256 | N25: 953 | O25: 159 | P25: 147 | Q25: 0 | R25: 0 | S25: 0 | T25: 0 | U25: 0 | V25: 0 | W25: 0 | X25: 11154 | Y25: Bacteria | Z25: Proteobacteria | AA25: Gammaproteobacteria | AB25: Burkholderiales | AC25: Comamonadaceae | AD25: NA
A26: 25 | B26: sample | C26: 0 | D26: 159 | E26: 210 | F26: 170 | G26: 142 | H26: 203 | I26: 2516 | J26: 2504 | K26: 1685 | L26: 747 | M26: 716 | N26: 701 | O26: 122 | P26: 111 | Q26: 141 | R26: 87 | S26: 190 | T26: 115 | U26: 88 | V26: 165 | W26: 179 | X26: 10951 | Y26: Bacteria | Z26: Bacteroidota | AA26: Bacteroidia | AB26: Cytophagales | AC26: Spirosomaceae | AD26: Emticicia
A27: 26 | B27: sample | C27: 0 | D27: 453 | E27: 316 | F27: 300 | G27: 283 | H27: 296 | I27: 3100 | J27: 2535 | K27: 2078 | L27: 468 | M27: 323 | N27: 384 | O27: 0 | P27: 94 | Q27: 107 | R27: 0 | S27: 0 | T27: 0 | U27: 0 | V27: 0 | W27: 0 | X27: 10737 | Y27: Bacteria | Z27: Proteobacteria | AA27: Alphaproteobacteria | AB27: Rhizobiales | AC27: Rhizobiaceae | AD27: NA
A28: 27 | B28: mock | C28: 10364 | D28: 0 | E28: 0 | F28: 0 | G28: 0 | H28: 0 | I28: 0 | J28: 0 | K28: 0 | L28: 0 | M28: 0 | N28: 0 | O28: 0 | P28: 0 | Q28: 0 | R28: 0 | S28: 0 | T28: 0 | U28: 0 | V28: 0 | W28: 0 | X28: 10364 | Y28: Bacteria | Z28: Firmicutes | AA28: Bacilli | AB28: Bacillales | AC28: Bacillaceae | AD28: Bacillus
A29: 28 | B29: sample | C29: 0 | D29: 1541 | E29: 966 | F29: 1086 | G29: 1046 | H29: 1122 | I29: 779 | J29: 972 | K29: 818 | L29: 284 | M29: 318 | N29: 312 | O29: 0 | P29: 0 | Q29: 0 | R29: 102 | S29: 119 | T29: 103 | U29: 148 | V29: 291 | W29: 163 | X29: 10170 | Y29: Bacteria | Z29: Proteobacteria | AA29: Gammaproteobacteria | AB29: Burkholderiales | AC29: Comamonadaceae | AD29: Sphaerotilus
A30: 29 | B30: sample | C30: 0 | D30: 0 | E30: 159 | F30: 154 | G30: 160 | H30: 279 | I30: 935 | J30: 838 | K30: 426 | L30: 2402 | M30: 2374 | N30: 2282 | O30: 0 | P30: 16 | Q30: 0 | R30: 0 | S30: 0 | T30: 0 | U30: 0 | V30: 0 | W30: 0 | X30: 10025 | Y30: Bacteria | Z30: Bacteroidota | AA30: Bacteroidia | AB30: Flavobacteriales | AC30: Weeksellaceae | AD30: Chryseobacterium
A31: 30 | B31: sample | C31: 0 | D31: 147 | E31: 84 | F31: 87 | G31: 81 | H31: 152 | I31: 939 | J31: 834 | K31: 417 | L31: 2305 | M31: 2305 | N31: 2459 | O31: 0 | P31: 0 | Q31: 0 | R31: 0 | S31: 0 | T31: 0 | U31: 0 | V31: 0 | W31: 0 | X31: 9810 | Y31: Bacteria | Z31: Bacteroidota | AA31: Bacteroidia | AB31: Flavobacteriales | AC31: Weeksellaceae | AD31: Chryseobacterium
A32: 31 | B32: sample | C32: 0 | D32: 292 | E32: 372 | F32: 346 | G32: 362 | H32: 311 | I32: 0 | J32: 0 | K32: 0 | L32: 533 | M32: 441 | N32: 629 | O32: 1750 | P32: 1555 | Q32: 1775 | R32: 253 | S32: 225 | T32: 217 | U32: 196 | V32: 300 | W32: 165 | X32: 9722 | Y32: Bacteria | Z32: Chloroflexi | AA32: Anaerolineae | AB32: RBG-13-54-9 | AC32: NA | AD32: NA
A33: 32 | B33: sample | C33: 0 | D33: 403 | E33: 312 | F33: 231 | G33: 250 | H33: 267 | I33: 2883 | J33: 2277 | K33: 1940 | L33: 364 | M33: 312 | N33: 313 | O33: 0 | P33: 49 | Q33: 0 | R33: 0 | S33: 0 | T33: 0 | U33: 0 | V33: 0 | W33: 0 | X33: 9601 | Y33: Bacteria | Z33: Proteobacteria | AA33: Alphaproteobacteria | AB33: Rhizobiales | AC33: NA | AD33: NA
A34: 33 | B34: sample | C34: 0 | D34: 278 | E34: 374 | F34: 361 | G34: 341 | H34: 310 | I34: 29 | J34: 35 | K34: 43 | L34: 468 | M34: 485 | N34: 682 | O34: 1687 | P34: 1490 | Q34: 1767 | R34: 169 | S34: 143 | T34: 162 | U34: 178 | V34: 304 | W34: 192 | X34: 9498 | Y34: Bacteria | Z34: Chloroflexi | AA34: Anaerolineae | AB34: RBG-13-54-9 | AC34: NA | AD34: NA
A35: 34 | B35: sample | C35: 0 | D35: 336 | E35: 270 | F35: 311 | G35: 321 | H35: 321 | I35: 0 | J35: 55 | K35: 0 | L35: 207 | M35: 153 | N35: 230 | O35: 375 | P35: 479 | Q35: 535 | R35: 458 | S35: 673 | T35: 594 | U35: 1082 | V35: 1349 | W35: 1582 | X35: 9331 | Y35: Bacteria | Z35: Acidobacteriota | AA35: Vicinamibacteria | AB35: Vicinamibacterales | AC35: Vicinamibacteraceae | AD35: NA
A36: 35 | B36: sample | C36: 0 | D36: 1302 | E36: 883 | F36: 909 | G36: 926 | H36: 989 | I36: 731 | J36: 862 | K36: 804 | L36: 244 | M36: 323 | N36: 272 | O36: 0 | P36: 0 | Q36: 0 | R36: 102 | S36: 200 | T36: 74 | U36: 124 | V36: 272 | W36: 160 | X36: 9177 | Y36: Bacteria | Z36: Proteobacteria | AA36: Gammaproteobacteria | AB36: Burkholderiales | AC36: Comamonadaceae | AD36: Sphaerotilus
A37: 36 | B37: sample | C37: 0 | D37: 1992 | E37: 1779 | F37: 1381 | G37: 1275 | H37: 1597 | I37: 0 | J37: 0 | K37: 0 | L37: 0 | M37: 0 | N37: 0 | O37: 0 | P37: 0 | Q37: 0 | R37: 169 | S37: 155 | T37: 157 | U37: 172 | V37: 204 | W37: 178 | X37: 9059 | Y37: Bacteria | Z37: Bacteroidota | AA37: Bacteroidia | AB37: Chitinophagales | AC37: Saprospiraceae | AD37: NA
A38: 37 | B38: sample | C38: 0 | D38: 887 | E38: 766 | F38: 669 | G38: 694 | H38: 842 | I38: 1544 | J38: 1294 | K38: 1021 | L38: 267 | M38: 212 | N38: 276 | O38: 198 | P38: 124 | Q38: 122 | R38: 0 | S38: 0 | T38: 0 | U38: 0 | V38: 0 | W38: 0 | X38: 8916 | Y38: Bacteria | Z38: Proteobacteria | AA38: Alphaproteobacteria | AB38: Rhodobacterales | AC38: Rhodobacteraceae | AD38: Pseudorhodobacter
A39: 38 | B39: sample | C39: 0 | D39: 279 | E39: 275 | F39: 269 | G39: 281 | H39: 301 | I39: 72 | J39: 0 | K39: 0 | L39: 171 | M39: 155 | N39: 155 | O39: 363 | P39: 459 | Q39: 496 | R39: 453 | S39: 649 | T39: 594 | U39: 1229 | V39: 1226 | W39: 1477 | X39: 8904 | Y39: Bacteria | Z39: Acidobacteriota | AA39: Vicinamibacteria | AB39: Vicinamibacterales | AC39: Vicinamibacteraceae | AD39: NA
A40: 39 | B40: sample | C40: 0 | D40: 925 | E40: 707 | F40: 778 | G40: 712 | H40: 890 | I40: 1471 | J40: 1308 | K40: 924 | L40: 276 | M40: 222 | N40: 261 | O40: 149 | P40: 89 | Q40: 136 | R40: 0 | S40: 0 | T40: 0 | U40: 0 | V40: 0 | W40: 0 | X40: 8848 | Y40: Bacteria | Z40: Proteobacteria | AA40: Alphaproteobacteria | AB40: Rhodobacterales | AC40: Rhodobacteraceae | AD40: Pseudorhodobacter
A41: 40 | B41: sample | C41: 0 | D41: 1529 | E41: 1006 | F41: 778 | G41: 811 | H41: 974 | I41: 250 | J41: 193 | K41: 550 | L41: 256 | M41: 271 | N41: 232 | O41: 305 | P41: 250 | Q41: 192 | R41: 179 | S41: 170 | T41: 197 | U41: 209 | V41: 141 | W41: 166 | X41: 8659 | Y41: Bacteria | Z41: Bacteroidota | AA41: Bacteroidia | AB41: Chitinophagales | AC41: Chitinophagaceae | AD41: Sediminibacterium
A42: 41 | B42: sample | C42: 0 | D42: 1811 | E42: 1237 | F42: 1186 | G42: 1154 | H42: 1329 | I42: 480 | J42: 392 | K42: 361 | L42: 165 | M42: 156 | N42: 168 | O42: 76 | P42: 67 | Q42: 0 | R42: 0 | S42: 0 | T42: 0 | U42: 0 | V42: 0 | W42: 0 | X42: 8582 | Y42: Bacteria | Z42: Proteobacteria | AA42: Gammaproteobacteria | AB42: Burkholderiales | AC42: Comamonadaceae | AD42: NA
A43: 42 | B43: sample | C43: 0 | D43: 1891 | E43: 1686 | F43: 1486 | G43: 1417 | H43: 1631 | I43: 0 | J43: 0 | K43: 0 | L43: 0 | M43: 0 | N43: 0 | O43: 0 | P43: 0 | Q43: 0 | R43: 0 | S43: 143 | T43: 51 | U43: 0 | V43: 126 | W43: 92 | X43: 8523 | Y43: Bacteria | Z43: Bacteroidota | AA43: Bacteroidia | AB43: Chitinophagales | AC43: Saprospiraceae | AD43: NA
A44: 43 | B44: sample | C44: 0 | D44: 1484 | E44: 1039 | F44: 941 | G44: 897 | H44: 1000 | I44: 209 | J44: 180 | K44: 597 | L44: 271 | M44: 292 | N44: 236 | O44: 261 | P44: 252 | Q44: 209 | R44: 195 | S44: 156 | T44: 140 | U44: 0 | V44: 85 | W44: 0 | X44: 8444 | Y44: Bacteria | Z44: Bacteroidota | AA44: Bacteroidia | AB44: Chitinophagales | AC44: Chitinophagaceae | AD44: Sediminibacterium
A45: 44 | B45: sample | C45: 0 | D45: 186 | E45: 195 | F45: 253 | G45: 159 | H45: 242 | I45: 449 | J45: 296 | K45: 295 | L45: 956 | M45: 953 | N45: 1077 | O45: 384 | P45: 377 | Q45: 303 | R45: 279 | S45: 225 | T45: 383 | U45: 332 | V45: 275 | W45: 275 | X45: 7894 | Y45: Bacteria | Z45: Proteobacteria | AA45: Alphaproteobacteria | AB45: Rhodobacterales | AC45: Rhodobacteraceae | AD45: Pseudorhodobacter
A46: 45 | B46: mock | C46: 7852 | D46: 0 | E46: 0 | F46: 0 | G46: 0 | H46: 0 | I46: 0 | J46: 0 | K46: 0 | L46: 0 | M46: 0 | N46: 0 | O46: 0 | P46: 0 | Q46: 0 | R46: 0 | S46: 0 | T46: 0 | U46: 0 | V46: 0 | W46: 0 | X46: 7852 | Y46: Bacteria | Z46: Firmicutes | AA46: Bacilli | AB46: Lactobacillales | AC46: Lactobacillaceae | AD46: Lactobacillus
A47: 46 | B47: sample | C47: 0 | D47: 367 | E47: 237 | F47: 259 | G47: 233 | H47: 247 | I47: 2224 | J47: 1839 | K47: 1546 | L47: 294 | M47: 256 | N47: 288 | O47: 49 | P47: 0 | Q47: 0 | R47: 0 | S47: 0 | T47: 0 | U47: 0 | V47: 0 | W47: 0 | X47: 7839 | Y47: Bacteria | Z47: Proteobacteria | AA47: Alphaproteobacteria | AB47: Rhizobiales | AC47: NA | AD47: NA
A48: 47 | B48: sample | C48: 0 | D48: 1602 | E48: 1151 | F48: 1145 | G48: 1087 | H48: 1181 | I48: 421 | J48: 376 | K48: 372 | L48: 106 | M48: 111 | N48: 109 | O48: 38 | P48: 0 | Q48: 0 | R48: 0 | S48: 0 | T48: 40 | U48: 0 | V48: 0 | W48: 0 | X48: 7739 | Y48: Bacteria | Z48: Proteobacteria | AA48: Gammaproteobacteria | AB48: Burkholderiales | AC48: Comamonadaceae | AD48: NA
A49: 48 | B49: sample | C49: 0 | D49: 1491 | E49: 1132 | F49: 997 | G49: 946 | H49: 1117 | I49: 397 | J49: 371 | K49: 346 | L49: 195 | M49: 184 | N49: 211 | O49: 0 | P49: 86 | Q49: 0 | R49: 36 | S49: 0 | T49: 0 | U49: 0 | V49: 72 | W49: 0 | X49: 7581 | Y49: Bacteria | Z49: Proteobacteria | AA49: Gammaproteobacteria | AB49: Burkholderiales | AC49: Comamonadaceae | AD49: Ideonella
A50: 49 | B50: sample | C50: 0 | D50: 1081 | E50: 761 | F50: 799 | G50: 813 | H50: 834 | I50: 624 | J50: 709 | K50: 640 | L50: 221 | M50: 249 | N50: 212 | O50: 0 | P50: 0 | Q50: 0 | R50: 0 | S50: 109 | T50: 76 | U50: 81 | V50: 229 | W50: 111 | X50: 7549 | Y50: Bacteria | Z50: Proteobacteria | AA50: Gammaproteobacteria | AB50: Burkholderiales | AC50: Comamonadaceae | AD50: Sphaerotilus
A51: 50 | B51: sample | C51: 0 | D51: 1526 | E51: 1123 | F51: 1102 | G51: 961 | H51: 1136 | I51: 409 | J51: 326 | K51: 335 | L51: 123 | M51: 155 | N51: 171 | O51: 106 | P51: 0 | Q51: 0 | R51: 0 | S51: 0 | T51: 0 | U51: 0 | V51: 0 | W51: 0 | X51: 7473 | Y51: Bacteria | Z51: Proteobacteria | AA51: Gammaproteobacteria | AB51: Burkholderiales | AC51: Comamonadaceae | AD51: Ideonella
A52: 51 | B52: mock | C52: 7442 | D52: 0 | E52: 0 | F52: 0 | G52: 0 | H52: 0 | I52: 0 | J52: 0 | K52: 0 | L52: 0 | M52: 0 | N52: 0 | O52: 0 | P52: 0 | Q52: 0 | R52: 0 | S52: 0 | T52: 0 | U52: 0 | V52: 0 | W52: 0 | X52: 7442 | Y52: Bacteria | Z52: Firmicutes | AA52: Bacilli | AB52: Lactobacillales | AC52: Lactobacillaceae | AD52: Lactobacillus
A53: 52 | B53: sample | C53: 0 | D53: 369 | E53: 214 | F53: 187 | G53: 159 | H53: 269 | I53: 1916 | J53: 1773 | K53: 1491 | L53: 282 | M53: 381 | N53: 242 | O53: 0 | P53: 0 | Q53: 0 | R53: 0 | S53: 76 | T53: 0 | U53: 0 | V53: 0 | W53: 0 | X53: 7359 | Y53: Bacteria | Z53: Bacteroidota | AA53: Bacteroidia | AB53: Flavobacteriales | AC53: Flavobacteriaceae | AD53: Flavobacterium
A54: 53 | B54: sample | C54: 0 | D54: 129 | E54: 154 | F54: 193 | G54: 137 | H54: 209 | I54: 384 | J54: 269 | K54: 231 | L54: 1105 | M54: 1004 | N54: 1068 | O54: 404 | P54: 346 | Q54: 317 | R54: 176 | S54: 303 | T54: 202 | U54: 341 | V54: 200 | W54: 181 | X54: 7353 | Y54: Bacteria | Z54: Proteobacteria | AA54: Alphaproteobacteria | AB54: Rhodobacterales | AC54: Rhodobacteraceae | AD54: Pseudorhodobacter
A55: 54 | B55: sample | C55: 0 | D55: 360 | E55: 280 | F55: 236 | G55: 260 | H55: 295 | I55: 1469 | J55: 1268 | K55: 1122 | L55: 223 | M55: 290 | N55: 247 | O55: 153 | P55: 156 | Q55: 0 | R55: 0 | S55: 230 | T55: 218 | U55: 156 | V55: 183 | W55: 178 | X55: 7324 | Y55: Bacteria | Z55: Bacteroidota | AA55: Bacteroidia | AB55: Flavobacteriales | AC55: Flavobacteriaceae | AD55: Flavobacterium
A56: 55 | B56: sample | C56: 0 | D56: 0 | E56: 0 | F56: 0 | G56: 0 | H56: 0 | I56: 1126 | J56: 1354 | K56: 1761 | L56: 980 | M56: 993 | N56: 960 | O56: 0 | P56: 0 | Q56: 19 | R56: 0 | S56: 0 | T56: 0 | U56: 0 | V56: 0 | W56: 0 | X56: 7193 | Y56: Bacteria | Z56: Bacteroidota | AA56: Bacteroidia | AB56: Cytophagales | AC56: Spirosomaceae | AD56: Flectobacillus
A57: 56 | B57: sample | C57: 0 | D57: 0 | E57: 0 | F57: 0 | G57: 0 | H57: 0 | I57: 1056 | J57: 1277 | K57: 1779 | L57: 948 | M57: 986 | N57: 898 | O57: 67 | P57: 46 | Q57: 0 | R57: 0 | S57: 0 | T57: 0 | U57: 0 | V57: 0 | W57: 0 | X57: 7057 | Y57: Bacteria | Z57: Bacteroidota | AA57: Bacteroidia | AB57: Cytophagales | AC57: Spirosomaceae | AD57: Flectobacillus
A58: 57 | B58: sample | C58: 0 | D58: 305 | E58: 213 | F58: 155 | G58: 167 | H58: 240 | I58: 1795 | J58: 1757 | K58: 1382 | L58: 261 | M58: 301 | N58: 236 | O58: 0 | P58: 0 | Q58: 0 | R58: 0 | S58: 84 | T58: 0 | U58: 0 | V58: 75 | W58: 0 | X58: 6971 | Y58: Bacteria | Z58: Bacteroidota | AA58: Bacteroidia | AB58: Flavobacteriales | AC58: Flavobacteriaceae | AD58: Flavobacterium
A59: 58 | B59: sample | C59: 0 | D59: 230 | E59: 280 | F59: 215 | G59: 230 | H59: 279 | I59: 1009 | J59: 835 | K59: 817 | L59: 1147 | M59: 894 | N59: 963 | O59: 0 | P59: 65 | Q59: 0 | R59: 0 | S59: 0 | T59: 0 | U59: 0 | V59: 0 | W59: 0 | X59: 6964 | Y59: Bacteria | Z59: Bacteroidota | AA59: Bacteroidia | AB59: Cytophagales | AC59: Spirosomaceae | AD59: Arcicella
A60: 59 | B60: mock | C60: 6952 | D60: 0 | E60: 0 | F60: 0 | G60: 0 | H60: 0 | I60: 0 | J60: 0 | K60: 0 | L60: 0 | M60: 0 | N60: 0 | O60: 0 | P60: 0 | Q60: 0 | R60: 0 | S60: 0 | T60: 0 | U60: 0 | V60: 0 | W60: 0 | X60: 6952 | Y60: Bacteria | Z60: Firmicutes | AA60: Bacilli | AB60: Staphylococcales | AC60: Staphylococcaceae | AD60: Staphylococcus
A61: 60 | B61: sample | C61: 0 | D61: 178 | E61: 368 | F61: 355 | G61: 365 | H61: 381 | I61: 176 | J61: 121 | K61: 152 | L61: 411 | M61: 456 | N61: 544 | O61: 616 | P61: 667 | Q61: 546 | R61: 307 | S61: 241 | T61: 284 | U61: 271 | V61: 230 | W61: 278 | X61: 6947 | Y61: Bacteria | Z61: Proteobacteria | AA61: Alphaproteobacteria | AB61: Rhodobacterales | AC61: Rhodobacteraceae | AD61: NA
A62: 61 | B62: mock | C62: 6889 | D62: 0 | E62: 0 | F62: 0 | G62: 0 | H62: 0 | I62: 0 | J62: 0 | K62: 0 | L62: 0 | M62: 0 | N62: 0 | O62: 0 | P62: 0 | Q62: 0 | R62: 0 | S62: 0 | T62: 0 | U62: 0 | V62: 0 | W62: 0 | X62: 6889 | Y62: Bacteria | Z62: Firmicutes | AA62: Bacilli | AB62: Staphylococcales | AC62: Staphylococcaceae | AD62: Staphylococcus
A63: 62 | B63: sample | C63: 0 | D63: 227 | E63: 405 | F63: 408 | G63: 413 | H63: 413 | I63: 0 | J63: 123 | K63: 101 | L63: 464 | M63: 423 | N63: 543 | O63: 702 | P63: 696 | Q63: 559 | R63: 227 | S63: 184 | T63: 215 | U63: 236 | V63: 207 | W63: 327 | X63: 6873 | Y63: Bacteria | Z63: Proteobacteria | AA63: Alphaproteobacteria | AB63: Rhodobacterales | AC63: Rhodobacteraceae | AD63: Tabrizicola
A64: 63 | B64: sample | C64: 0 | D64: 651 | E64: 777 | F64: 701 | G64: 622 | H64: 914 | I64: 268 | J64: 220 | K64: 235 | L64: 267 | M64: 160 | N64: 253 | O64: 226 | P64: 215 | Q64: 194 | R64: 177 | S64: 181 | T64: 117 | U64: 174 | V64: 205 | W64: 214 | X64: 6771 | Y64: Bacteria | Z64: Proteobacteria | AA64: Gammaproteobacteria | AB64: Burkholderiales | AC64: Comamonadaceae | AD64: NA
A65: 64 | B65: sample | C65: 0 | D65: 373 | E65: 283 | F65: 261 | G65: 257 | H65: 260 | I65: 1384 | J65: 1295 | K65: 1173 | L65: 254 | M65: 251 | N65: 208 | O65: 0 | P65: 0 | Q65: 0 | R65: 146 | S65: 147 | T65: 150 | U65: 142 | V65: 90 | W65: 67 | X65: 6741 | Y65: Bacteria | Z65: Bacteroidota | AA65: Bacteroidia | AB65: Flavobacteriales | AC65: Flavobacteriaceae | AD65: Flavobacterium
A66: 65 | B66: mock | C66: 6716 | D66: 0 | E66: 0 | F66: 0 | G66: 0 | H66: 0 | I66: 0 | J66: 0 | K66: 0 | L66: 0 | M66: 0 | N66: 0 | O66: 0 | P66: 0 | Q66: 0 | R66: 0 | S66: 0 | T66: 0 | U66: 0 | V66: 0 | W66: 0 | X66: 6716 | Y66: Bacteria | Z66: Firmicutes | AA66: Bacilli | AB66: Lactobacillales | AC66: Listeriaceae | AD66: Listeria
A67: 66 | B67: sample | C67: 0 | D67: 757 | E67: 715 | F67: 608 | G67: 601 | H67: 737 | I67: 0 | J67: 0 | K67: 0 | L67: 362 | M67: 315 | N67: 373 | O67: 640 | P67: 690 | Q67: 482 | R67: 79 | S67: 142 | T67: 0 | U67: 0 | V67: 0 | W67: 119 | X67: =SUM(C67:W67) -> 6620 | Y67: Bacteria | Z67: Bacteroidota | AA67: Bacteroidia | AB67: Chitinophagales | AC67: Saprospiraceae | AD67: Haliscomenobacter
A68: 67 | B68: sample | C68: 0 | D68: 225 | E68: 283 | F68: 281 | G68: 282 | H68: 265 | I68: 0 | J68: 59 | K68: 0 | L68: 447 | M68: 351 | N68: 472 | O68: 1053 | P68: 1067 | Q68: 944 | R68: 0 | S68: 196 | T68: 74 | U68: 229 | V68: 116 | W68: 196 | X68: 6540 | Y68: Bacteria | Z68: Bacteroidota | AA68: Bacteroidia | AB68: Chitinophagales | AC68: Saprospiraceae | AD68: NA
A69: 68 | B69: sample | C69: 0 | D69: 186 | E69: 226 | F69: 115 | G69: 270 | H69: 179 | I69: 0 | J69: 0 | K69: 0 | L69: 747 | M69: 936 | N69: 653 | O69: 91 | P69: 83 | Q69: 0 | R69: 398 | S69: 558 | T69: 271 | U69: 542 | V69: 632 | W69: 636 | X69: 6523 | Y69: Bacteria | Z69: Proteobacteria | AA69: Gammaproteobacteria | AB69: Burkholderiales | AC69: Comamonadaceae | AD69: Limnohabitans
A70: 69 | B70: sample | C70: 0 | D70: 322 | E70: 195 | F70: 255 | G70: 200 | H70: 247 | I70: 1540 | J70: 1579 | K70: 1309 | L70: 229 | M70: 266 | N70: 285 | O70: 0 | P70: 0 | Q70: 0 | R70: 0 | S70: 0 | T70: 0 | U70: 0 | V70: 85 | W70: 0 | X70: 6512 | Y70: Bacteria | Z70: Bacteroidota | AA70: Bacteroidia | AB70: Flavobacteriales | AC70: Flavobacteriaceae | AD70: Flavobacterium
A71: 70 | B71: sample | C71: 0 | D71: 210 | E71: 313 | F71: 249 | G71: 228 | H71: 258 | I71: 69 | J71: 0 | K71: 89 | L71: 439 | M71: 383 | N71: 455 | O71: 1066 | P71: 1137 | Q71: 998 | R71: 0 | S71: 0 | T71: 0 | U71: 252 | V71: 145 | W71: 214 | X71: 6505 | Y71: Bacteria | Z71: Bacteroidota | AA71: Bacteroidia | AB71: Chitinophagales | AC71: Saprospiraceae | AD71: NA
A72: 71 | B72: sample | C72: 0 | D72: 130 | E72: 158 | F72: 191 | G72: 191 | H72: 146 | I72: 0 | J72: 6 | K72: 78 | L72: 299 | M72: 435 | N72: 279 | O72: 1703 | P72: 1648 | Q72: 1114 | R72: 0 | S72: 76 | T72: 29 | U72: 18 | V72: 0 | W72: 0 | X72: 6501 | Y72: Bacteria | Z72: Bacteroidota | AA72: Bacteroidia | AB72: Chitinophagales | AC72: 37-13 | AD72: NA
A73: 72 | B73: sample | C73: 0 | D73: 106 | E73: 103 | F73: 71 | G73: 95 | H73: 0 | I73: 80 | J73: 0 | K73: 81 | L73: 204 | M73: 186 | N73: 211 | O73: 501 | P73: 655 | Q73: 560 | R73: 406 | S73: 545 | T73: 346 | U73: 680 | V73: 682 | W73: 956 | X73: 6468 | Y73: Bacteria | Z73: Nitrospirota | AA73: Nitrospiria | AB73: Nitrospirales | AC73: Nitrospiraceae | AD73: Nitrospira
A74: 73 | B74: mock | C74: 6451 | D74: 0 | E74: 0 | F74: 0 | G74: 0 | H74: 0 | I74: 0 | J74: 0 | K74: 0 | L74: 0 | M74: 0 | N74: 0 | O74: 0 | P74: 0 | Q74: 0 | R74: 0 | S74: 0 | T74: 0 | U74: 0 | V74: 0 | W74: 0 | X74: 6451 | Y74: Bacteria | Z74: Firmicutes | AA74: Bacilli | AB74: Lactobacillales | AC74: Listeriaceae | AD74: Listeria
A75: 74 | B75: sample | C75: 0 | D75: 272 | E75: 197 | F75: 161 | G75: 173 | H75: 212 | I75: 1614 | J75: 1543 | K75: 1356 | L75: 241 | M75: 312 | N75: 216 | O75: 0 | P75: 0 | Q75: 0 | R75: 0 | S75: 0 | T75: 0 | U75: 0 | V75: 0 | W75: 0 | X75: 6297 | Y75: Bacteria | Z75: Bacteroidota | AA75: Bacteroidia | AB75: Flavobacteriales | AC75: Flavobacteriaceae | AD75: Flavobacterium
A76: 75 | B76: sample | C76: 0 | D76: 186 | E76: 177 | F76: 181 | G76: 145 | H76: 194 | I76: 988 | J76: 779 | K76: 802 | L76: 1064 | M76: 870 | N76: 860 | O76: 0 | P76: 0 | Q76: 47 | R76: 0 | S76: 0 | T76: 0 | U76: 0 | V76: 0 | W76: 0 | X76: 6293 | Y76: Bacteria | Z76: Bacteroidota | AA76: Bacteroidia | AB76: Cytophagales | AC76: Spirosomaceae | AD76: Arcicella
A77: 76 | B77: sample | C77: 0 | D77: 0 | E77: 0 | F77: 0 | G77: 0 | H77: 0 | I77: 0 | J77: 0 | K77: 0 | L77: 81 | M77: 0 | N77: 53 | O77: 0 | P77: 0 | Q77: 8 | R77: 1256 | S77: 1893 | T77: 1232 | U77: 556 | V77: 366 | W77: 812 | X77: 6257 | Y77: Bacteria | Z77: Bacteroidota | AA77: Bacteroidia | AB77: Cytophagales | AC77: Spirosomaceae | AD77: Flectobacillus
A78: 77 | B78: sample | C78: 0 | D78: 0 | E78: 0 | F78: 0 | G78: 0 | H78: 0 | I78: 0 | J78: 0 | K78: 0 | L78: 0 | M78: 121 | N78: 0 | O78: 0 | P78: 0 | Q78: 0 | R78: 1276 | S78: 1884 | T78: 1201 | U78: 561 | V78: 387 | W78: 791 | X78: 6221 | Y78: Bacteria | Z78: Bacteroidota | AA78: Bacteroidia | AB78: Cytophagales | AC78: Spirosomaceae | AD78: Flectobacillus
A79: 78 | B79: sample | C79: 0 | D79: 114 | E79: 140 | F79: 246 | G79: 149 | H79: 113 | I79: 0 | J79: 0 | K79: 0 | L79: 713 | M79: 941 | N79: 729 | O79: 67 | P79: 0 | Q79: 0 | R79: 399 | S79: 516 | T79: 235 | U79: 479 | V79: 668 | W79: 699 | X79: 6208 | Y79: Bacteria | Z79: Proteobacteria | AA79: Gammaproteobacteria | AB79: Burkholderiales | AC79: Comamonadaceae | AD79: NA
A80: 79 | B80: sample | C80: 0 | D80: 641 | E80: 600 | F80: 515 | G80: 490 | H80: 555 | I80: 0 | J80: 0 | K80: 88 | L80: 349 | M80: 311 | N80: 354 | O80: 609 | P80: 554 | Q80: 434 | R80: 109 | S80: 162 | T80: 151 | U80: 109 | V80: 0 | W80: 165 | X80: 6196 | Y80: Bacteria | Z80: Bacteroidota | AA80: Bacteroidia | AB80: Chitinophagales | AC80: Saprospiraceae | AD80: Haliscomenobacter
A81: 80 | B81: sample | C81: 0 | D81: 483 | E81: 665 | F81: 538 | G81: 496 | H81: 592 | I81: 173 | J81: 161 | K81: 225 | L81: 197 | M81: 222 | N81: 218 | O81: 193 | P81: 217 | Q81: 203 | R81: 297 | S81: 174 | T81: 200 | U81: 317 | V81: 172 | W81: 428 | X81: 6171 | Y81: Bacteria | Z81: Bacteroidota | AA81: Bacteroidia | AB81: Chitinophagales | AC81: Saprospiraceae | AD81: NA
A82: 81 | B82: sample | C82: 0 | D82: 1256 | E82: 951 | F82: 879 | G82: 782 | H82: 921 | I82: 359 | J82: 267 | K82: 292 | L82: 130 | M82: 112 | N82: 126 | O82: 94 | P82: 0 | Q82: 0 | R82: 0 | S82: 0 | T82: 0 | U82: 0 | V82: 0 | W82: 0 | X82: 6169 | Y82: Bacteria | Z82: Proteobacteria | AA82: Gammaproteobacteria | AB82: Burkholderiales | AC82: Comamonadaceae | AD82: Ideonella
A83: 82 | B83: sample | C83: 0 | D83: 143 | E83: 217 | F83: 244 | G83: 170 | H83: 267 | I83: 1459 | J83: 1413 | K83: 1428 | L83: 177 | M83: 206 | N83: 167 | O83: 0 | P83: 165 | Q83: 106 | R83: 0 | S83: 0 | T83: 0 | U83: 0 | V83: 0 | W83: 0 | X83: 6162 | Y83: Bacteria | Z83: Bacteroidota | AA83: Bacteroidia | AB83: Chitinophagales | AC83: Saprospiraceae | AD83: NA
A84: 83 | B84: sample | C84: 0 | D84: 215 | E84: 308 | F84: 167 | G84: 225 | H84: 231 | I84: 1319 | J84: 1475 | K84: 1343 | L84: 248 | M84: 230 | N84: 206 | O84: 131 | P84: 0 | Q84: 0 | R84: 0 | S84: 0 | T84: 0 | U84: 0 | V84: 0 | W84: 0 | X84: 6098 | Y84: Bacteria | Z84: Bacteroidota | AA84: Bacteroidia | AB84: Chitinophagales | AC84: Saprospiraceae | AD84: NA
A85: 84 | B85: sample | C85: 0 | D85: 253 | E85: 197 | F85: 189 | G85: 157 | H85: 161 | I85: 1766 | J85: 1517 | K85: 1174 | L85: 243 | M85: 210 | N85: 187 | O85: 0 | P85: 0 | Q85: 0 | R85: 0 | S85: 0 | T85: 0 | U85: 0 | V85: 0 | W85: 0 | X85: 6054 | Y85: Bacteria | Z85: Proteobacteria | AA85: Alphaproteobacteria | AB85: Rhizobiales | AC85: NA | AD85: NA
A86: 85 | B86: sample | C86: 0 | D86: 655 | E86: 655 | F86: 519 | G86: 547 | H86: 582 | I86: 0 | J86: 0 | K86: 78 | L86: 333 | M86: 341 | N86: 347 | O86: 524 | P86: 537 | Q86: 457 | R86: 51 | S86: 128 | T86: 121 | U86: 0 | V86: 81 | W86: 77 | X86: 6033 | Y86: Bacteria | Z86: Bacteroidota | AA86: Bacteroidia | AB86: Chitinophagales | AC86: Saprospiraceae | AD86: Haliscomenobacter
A87: 86 | B87: sample | C87: 0 | D87: 0 | E87: 0 | F87: 0 | G87: 0 | H87: 130 | I87: 0 | J87: 61 | K87: 0 | L87: 217 | M87: 197 | N87: 226 | O87: 491 | P87: 687 | Q87: 548 | R87: 358 | S87: 515 | T87: 320 | U87: 717 | V87: 712 | W87: 854 | X87: 6033 | Y87: Bacteria | Z87: Nitrospirota | AA87: Nitrospiria | AB87: Nitrospirales | AC87: Nitrospiraceae | AD87: Nitrospira
A88: 87 | B88: sample | C88: 0 | D88: 680 | E88: 634 | F88: 573 | G88: 515 | H88: 559 | I88: 0 | J88: 0 | K88: 49 | L88: 304 | M88: 274 | N88: 368 | O88: 541 | P88: 564 | Q88: 478 | R88: 92 | S88: 150 | T88: 63 | U88: 0 | V88: 97 | W88: 77 | X88: 6018 | Y88: Bacteria | Z88: Bacteroidota | AA88: Bacteroidia | AB88: Chitinophagales | AC88: Saprospiraceae | AD88: Haliscomenobacter
A89: 88 | B89: sample | C89: 0 | D89: 0 | E89: 0 | F89: 0 | G89: 0 | H89: 0 | I89: 64 | J89: 0 | K89: 0 | L89: 317 | M89: 441 | N89: 260 | O89: 2001 | P89: 1620 | Q89: 1210 | R89: 0 | S89: 0 | T89: 0 | U89: 0 | V89: 29 | W89: 26 | X89: 5968 | Y89: Bacteria | Z89: Bacteroidota | AA89: Bacteroidia | AB89: Chitinophagales | AC89: 37-13 | AD89: NA
A90: 89 | B90: sample | C90: 0 | D90: 598 | E90: 658 | F90: 644 | G90: 571 | H90: 633 | I90: 275 | J90: 188 | K90: 228 | L90: 171 | M90: 154 | N90: 207 | O90: 250 | P90: 268 | Q90: 298 | R90: 0 | S90: 200 | T90: 155 | U90: 120 | V90: 143 | W90: 206 | X90: 5967 | Y90: Bacteria | Z90: Verrucomicrobiota | AA90: Verrucomicrobiae | AB90: Verrucomicrobiales | AC90: Verrucomicrobiaceae | AD90: NA
A91: 90 | B91: sample | C91: 0 | D91: 953 | E91: 675 | F91: 599 | G91: 531 | H91: 629 | I91: 728 | J91: 651 | K91: 424 | L91: 228 | M91: 232 | N91: 217 | O91: 0 | P91: 49 | Q91: 0 | R91: 0 | S91: 0 | T91: 0 | U91: 0 | V91: 0 | W91: 0 | X91: 5916 | Y91: Bacteria | Z91: Patescibacteria | AA91: Gracilibacteria | AB91: NA | AC91: NA | AD91: NA
A92: 91 | B92: sample | C92: 0 | D92: 0 | E92: 0 | F92: 0 | G92: 0 | H92: 0 | I92: 1127 | J92: 956 | K92: 874 | L92: 775 | M92: 776 | N92: 756 | O92: 164 | P92: 0 | Q92: 157 | R92: 118 | S92: 148 | T92: 0 | U92: 0 | V92: 42 | W92: 0 | X92: 5893 | Y92: Bacteria | Z92: Bacteroidota | AA92: Bacteroidia | AB92: Cytophagales | AC92: Spirosomaceae | AD92: Emticicia
A93: 92 | B93: sample | C93: 0 | D93: 238 | E93: 144 | F93: 210 | G93: 167 | H93: 189 | I93: 1720 | J93: 1392 | K93: 1209 | L93: 229 | M93: 194 | N93: 193 | O93: 0 | P93: 0 | Q93: 0 | R93: 0 | S93: 0 | T93: 0 | U93: 0 | V93: 0 | W93: 0 | X93: 5885 | Y93: Bacteria | Z93: Proteobacteria | AA93: Alphaproteobacteria | AB93: Rhizobiales | AC93: Rhizobiaceae | AD93: NA
A94: 93 | B94: sample | C94: 0 | D94: 816 | E94: 567 | F94: 589 | G94: 600 | H94: 670 | I94: 504 | J94: 510 | K94: 510 | L94: 181 | M94: 185 | N94: 188 | O94: 0 | P94: 0 | Q94: 0 | R94: 0 | S94: 103 | T94: 66 | U94: 90 | V94: 175 | W94: 114 | X94: 5868 | Y94: Bacteria | Z94: Proteobacteria | AA94: Gammaproteobacteria | AB94: Burkholderiales | AC94: Comamonadaceae | AD94: Sphaerotilus
A95: 94 | B95: sample | C95: 0 | D95: 671 | E95: 796 | F95: 709 | G95: 728 | H95: 828 | I95: 174 | J95: 125 | K95: 218 | L95: 221 | M95: 154 | N95: 144 | O95: 199 | P95: 194 | Q95: 215 | R95: 0 | S95: 0 | T95: 58 | U95: 113 | V95: 113 | W95: 186 | X95: 5846 | Y95: Bacteria | Z95: Proteobacteria | AA95: Gammaproteobacteria | AB95: Burkholderiales | AC95: Comamonadaceae | AD95: Leptothrix
A96: 95 | B96: sample | C96: 0 | D96: 0 | E96: 0 | F96: 0 | G96: 0 | H96: 0 | I96: 1105 | J96: 979 | K96: 879 | L96: 807 | M96: 769 | N96: 752 | O96: 0 | P96: 189 | Q96: 0 | R96: 0 | S96: 0 | T96: 100 | U96: 57 | V96: 0 | W96: 67 | X96: 5704 | Y96: Bacteria | Z96: Bacteroidota | AA96: Bacteroidia | AB96: Cytophagales | AC96: Spirosomaceae | AD96: Emticicia
A97: 96 | B97: sample | C97: 0 | D97: 853 | E97: 604 | F97: 607 | G97: 565 | H97: 606 | I97: 463 | J97: 490 | K97: 481 | L97: 170 | M97: 180 | N97: 163 | O97: 0 | P97: 0 | Q97: 0 | R97: 64 | S97: 111 | T97: 0 | U97: 60 | V97: 180 | W97: 95 | X97: 5692 | Y97: Bacteria | Z97: Proteobacteria | AA97: Gammaproteobacteria | AB97: Burkholderiales | AC97: Comamonadaceae | AD97: Sphaerotilus
A98: 97 | B98: sample | C98: 0 | D98: 273 | E98: 281 | F98: 264 | G98: 277 | H98: 365 | I98: 308 | J98: 351 | K98: 345 | L98: 321 | M98: 298 | N98: 307 | O98: 322 | P98: 268 | Q98: 245 | R98: 231 | S98: 263 | T98: 217 | U98: 256 | V98: 245 | W98: 237 | X98: 5674 | Y98: Bacteria | Z98: Proteobacteria | AA98: Gammaproteobacteria | AB98: Burkholderiales | AC98: Comamonadaceae | AD98: Curvibacter
A99: 98 | B99: mock | C99: 5674 | D99: 0 | E99: 0 | F99: 0 | G99: 0 | H99: 0 | I99: 0 | J99: 0 | K99: 0 | L99: 0 | M99: 0 | N99: 0 | O99: 0 | P99: 0 | Q99: 0 | R99: 0 | S99: 0 | T99: 0 | U99: 0 | V99: 0 | W99: 0 | X99: 5674 | Y99: Bacteria | Z99: Proteobacteria | AA99: Gammaproteobacteria | AB99: Enterobacterales | AC99: Enterobacteriaceae | AD99: Escherichia-Shigella
A100: 99 | B100: sample | C100: 0 | D100: 1153 | E100: 849 | F100: 799 | G100: 776 | H100: 883 | I100: 318 | J100: 263 | K100: 268 | L100: 101 | M100: 130 | N100: 106 | O100: 0 | P100: 0 | Q100: 0 | R100: 0 | S100: 0 | T100: 0 | U100: 0 | V100: 0 | W100: 0 | X100: 5646 | Y100: Bacteria | Z100: Proteobacteria | AA100: Gammaproteobacteria | AB100: Burkholderiales | AC100: Comamonadaceae | AD100: Ideonella
A101: 100 | B101: sample | C101: 0 | D101: 333 | E101: 384 | F101: 367 | G101: 350 | H101: 390 | I101: 193 | J101: 271 | K101: 235 | L101: 323 | M101: 331 | N101: 231 | O101: 297 | P101: 234 | Q101: 149 | R101: 213 | S101: 276 | T101: 317 | U101: 261 | V101: 207 | W101: 223 | X101: 5585 | Y101: Bacteria | Z101: Proteobacteria | AA101: Gammaproteobacteria | AB101: Burkholderiales | AC101: Comamonadaceae | AD101: NA
A102: 101 | B102: sample | C102: 0 | D102: 502 | E102: 678 | F102: 588 | G102: 539 | H102: 585 | I102: 182 | J102: 165 | K102: 148 | L102: 115 | M102: 165 | N102: 143 | O102: 202 | P102: 200 | Q102: 198 | R102: 249 | S102: 170 | T102: 124 | U102: 172 | V102: 219 | W102: 211 | X102: 5555 | Y102: Bacteria | Z102: Bacteroidota | AA102: Bacteroidia | AB102: Chitinophagales | AC102: Saprospiraceae | AD102: NA
A103: 102 | B103: sample | C103: 0 | D103: 296 | E103: 268 | F103: 272 | G103: 278 | H103: 279 | I103: 310 | J103: 321 | K103: 295 | L103: 326 | M103: 324 | N103: 315 | O103: 309 | P103: 291 | Q103: 235 | R103: 160 | S103: 286 | T103: 173 | U103: 254 | V103: 247 | W103: 254 | X103: 5493 | Y103: Bacteria | Z103: Proteobacteria | AA103: Gammaproteobacteria | AB103: Burkholderiales | AC103: Comamonadaceae | AD103: NA
A104: 103 | B104: sample | C104: 0 | D104: 286 | E104: 149 | F104: 121 | G104: 158 | H104: 191 | I104: 1378 | J104: 1381 | K104: 1162 | L104: 195 | M104: 251 | N104: 188 | O104: 0 | P104: 0 | Q104: 0 | R104: 0 | S104: 0 | T104: 0 | U104: 0 | V104: 0 | W104: 0 | X104: 5460 | Y104: Bacteria | Z104: Bacteroidota | AA104: Bacteroidia | AB104: Flavobacteriales | AC104: Flavobacteriaceae | AD104: Flavobacterium
A105: 104 | B105: mock | C105: 5447 | D105: 0 | E105: 0 | F105: 0 | G105: 0 | H105: 0 | I105: 0 | J105: 0 | K105: 0 | L105: 0 | M105: 0 | N105: 0 | O105: 0 | P105: 0 | Q105: 0 | R105: 0 | S105: 0 | T105: 0 | U105: 0 | V105: 0 | W105: 0 | X105: 5447 | Y105: Bacteria | Z105: Proteobacteria | AA105: Gammaproteobacteria | AB105: Enterobacterales | AC105: Enterobacteriaceae | AD105: Escherichia-Shigella
A106: 105 | B106: sample | C106: 0 | D106: 0 | E106: 0 | F106: 0 | G106: 0 | H106: 0 | I106: 0 | J106: 0 | K106: 0 | L106: 0 | M106: 105 | N106: 135 | O106: 0 | P106: 0 | Q106: 0 | R106: 2591 | S106: 0 | T106: 2317 | U106: 219 | V106: 0 | W106: 0 | X106: 5367 | Y106: Bacteria | Z106: Proteobacteria | AA106: Gammaproteobacteria | AB106: Aeromonadales | AC106: Aeromonadaceae | AD106: Aeromonas
A107: 106 | B107: sample | C107: 0 | D107: 229 | E107: 101 | F107: 160 | G107: 223 | H107: 221 | I107: 1229 | J107: 923 | K107: 809 | L107: 185 | M107: 381 | N107: 219 | O107: 0 | P107: 0 | Q107: 0 | R107: 89 | S107: 0 | T107: 167 | U107: 102 | V107: 118 | W107: 165 | X107: 5321 | Y107: Bacteria | Z107: Proteobacteria | AA107: Alphaproteobacteria | AB107: Sphingomonadales | AC107: Sphingomonadaceae | AD107: Novosphingobium
A108: 107 | B108: sample | C108: 0 | D108: 899 | E108: 618 | F108: 555 | G108: 551 | H108: 536 | I108: 646 | J108: 560 | K108: 394 | L108: 140 | M108: 170 | N108: 182 | O108: 38 | P108: 0 | Q108: 0 | R108: 0 | S108: 0 | T108: 0 | U108: 0 | V108: 0 | W108: 0 | X108: 5289 | Y108: Bacteria | Z108: Patescibacteria | AA108: Gracilibacteria | AB108: NA | AC108: NA | AD108: NA
A109: 108 | B109: sample | C109: 0 | D109: 219 | E109: 278 | F109: 202 | G109: 170 | H109: 219 | I109: 561 | J109: 384 | K109: 267 | L109: 974 | M109: 990 | N109: 943 | O109: 0 | P109: 0 | Q109: 0 | R109: 0 | S109: 0 | T109: 0 | U109: 0 | V109: 65 | W109: 0 | X109: 5272 | Y109: Bacteria | Z109: Bacteroidota | AA109: Bacteroidia | AB109: Flavobacteriales | AC109: Flavobacteriaceae | AD109: Flavobacterium
A110: 109 | B110: sample | C110: 0 | D110: 229 | E110: 266 | F110: 191 | G110: 195 | H110: 201 | I110: 540 | J110: 436 | K110: 301 | L110: 928 | M110: 988 | N110: 995 | O110: 0 | P110: 0 | Q110: 0 | R110: 0 | S110: 0 | T110: 0 | U110: 0 | V110: 0 | W110: 0 | X110: 5270 | Y110: Bacteria | Z110: Bacteroidota | AA110: Bacteroidia | AB110: Flavobacteriales | AC110: Flavobacteriaceae | AD110: Flavobacterium
A111: 110 | B111: sample | C111: 0 | D111: 114 | E111: 231 | F111: 187 | G111: 270 | H111: 271 | I111: 144 | J111: 198 | K111: 851 | L111: 239 | M111: 207 | N111: 302 | O111: 312 | P111: 247 | Q111: 167 | R111: 235 | S111: 239 | T111: 346 | U111: 315 | V111: 158 | W111: 165 | X111: 5198 | Y111: Bacteria | Z111: Proteobacteria | AA111: Alphaproteobacteria | AB111: Rhodobacterales | AC111: Rhodobacteraceae | AD111: Rhodobacter
A112: 111 | B112: sample | C112: 0 | D112: 0 | E112: 0 | F112: 0 | G112: 0 | H112: 0 | I112: 0 | J112: 0 | K112: 0 | L112: 0 | M112: 0 | N112: 0 | O112: 0 | P112: 0 | Q112: 0 | R112: 1075 | S112: 2045 | T112: 1823 | U112: 77 | V112: 0 | W112: 104 | X112: 5124 | Y112: Bacteria | Z112: Bacteroidota | AA112: Bacteroidia | AB112: Chitinophagales | AC112: NA | AD112: NA
A113: 112 | B113: sample | C113: 0 | D113: 234 | E113: 167 | F113: 146 | G113: 126 | H113: 179 | I113: 1289 | J113: 1293 | K113: 1010 | L113: 222 | M113: 235 | N113: 208 | O113: 0 | P113: 0 | Q113: 0 | R113: 0 | S113: 0 | T113: 0 | U113: 0 | V113: 0 | W113: 0 | X113: 5109 | Y113: Bacteria | Z113: Bacteroidota | AA113: Bacteroidia | AB113: Flavobacteriales | AC113: Flavobacteriaceae | AD113: Flavobacterium
A114: 113 | B114: sample | C114: 0 | D114: 178 | E114: 170 | F114: 130 | G114: 0 | H114: 120 | I114: 1352 | J114: 883 | K114: 723 | L114: 125 | M114: 177 | N114: 186 | O114: 215 | P114: 217 | Q114: 181 | R114: 53 | S114: 132 | T114: 96 | U114: 0 | V114: 0 | W114: 149 | X114: 5087 | Y114: Bacteria | Z114: Proteobacteria | AA114: Alphaproteobacteria | AB114: Sphingomonadales | AC114: Sphingomonadaceae | AD114: Novosphingobium
A115: 114 | B115: sample | C115: 0 | D115: 220 | E115: 151 | F115: 133 | G115: 148 | H115: 134 | I115: 1432 | J115: 1188 | K115: 1003 | L115: 192 | M115: 165 | N115: 184 | O115: 0 | P115: 0 | Q115: 0 | R115: 0 | S115: 0 | T115: 0 | U115: 0 | V115: 0 | W115: 0 | X115: 4950 | Y115: Bacteria | Z115: Proteobacteria | AA115: Alphaproteobacteria | AB115: Rhizobiales | AC115: Rhizobiaceae | AD115: NA
A116: 115 | B116: sample | C116: 0 | D116: 297 | E116: 324 | F116: 272 | G116: 297 | H116: 331 | I116: 0 | J116: 35 | K116: 102 | L116: 297 | M116: 216 | N116: 195 | O116: 299 | P116: 387 | Q116: 347 | R116: 279 | S116: 160 | T116: 330 | U116: 225 | V116: 285 | W116: 222 | X116: 4900 | Y116: Bacteria | Z116: Verrucomicrobiota | AA116: Verrucomicrobiae | AB116: Verrucomicrobiales | AC116: Rubritaleaceae | AD116: Luteolibacter
A117: 116 | B117: sample | C117: 0 | D117: 623 | E117: 569 | F117: 641 | G117: 584 | H117: 616 | I117: 147 | J117: 172 | K117: 162 | L117: 202 | M117: 124 | N117: 128 | O117: 147 | P117: 134 | Q117: 179 | R117: 178 | S117: 74 | T117: 0 | U117: 107 | V117: 90 | W117: 0 | X117: 4877 | Y117: Bacteria | Z117: Verrucomicrobiota | AA117: Verrucomicrobiae | AB117: Verrucomicrobiales | AC117: Verrucomicrobiaceae | AD117: NA
A118: 117 | B118: sample | C118: 0 | D118: 645 | E118: 491 | F118: 541 | G118: 513 | H118: 558 | I118: 356 | J118: 464 | K118: 425 | L118: 116 | M118: 159 | N118: 140 | O118: 54 | P118: 0 | Q118: 0 | R118: 61 | S118: 91 | T118: 0 | U118: 0 | V118: 166 | W118: 72 | X118: 4852 | Y118: Bacteria | Z118: Proteobacteria | AA118: Gammaproteobacteria | AB118: Burkholderiales | AC118: Comamonadaceae | AD118: Sphaerotilus
A119: 118 | B119: sample | C119: 0 | D119: 0 | E119: 0 | F119: 0 | G119: 0 | H119: 0 | I119: 0 | J119: 0 | K119: 0 | L119: 0 | M119: 0 | N119: 0 | O119: 0 | P119: 0 | Q119: 0 | R119: 1146 | S119: 1890 | T119: 1770 | U119: 0 | V119: 31 | W119: 0 | X119: 4837 | Y119: Bacteria | Z119: Bacteroidota | AA119: Bacteroidia | AB119: Chitinophagales | AC119: NA | AD119: NA
A120: 119 | B120: mock | C120: 4824 | D120: 0 | E120: 0 | F120: 0 | G120: 0 | H120: 0 | I120: 0 | J120: 0 | K120: 0 | L120: 0 | M120: 0 | N120: 0 | O120: 0 | P120: 0 | Q120: 0 | R120: 0 | S120: 0 | T120: 0 | U120: 0 | V120: 0 | W120: 0 | X120: 4824 | Y120: Bacteria | Z120: Firmicutes | AA120: Bacilli | AB120: Bacillales | AC120: Bacillaceae | AD120: Bacillus
A121: 120 | B121: sample | C121: 0 | D121: 534 | E121: 508 | F121: 445 | G121: 412 | H121: 515 | I121: 0 | J121: 0 | K121: 0 | L121: 235 | M121: 258 | N121: 298 | O121: 480 | P121: 509 | Q121: 366 | R121: 70 | S121: 60 | T121: 0 | U121: 0 | V121: 0 | W121: 74 | X121: 4764 | Y121: Bacteria | Z121: Bacteroidota | AA121: Bacteroidia | AB121: Chitinophagales | AC121: Saprospiraceae | AD121: Haliscomenobacter
A122: 121 | B122: mock | C122: 4742 | D122: 0 | E122: 0 | F122: 0 | G122: 0 | H122: 0 | I122: 0 | J122: 0 | K122: 0 | L122: 0 | M122: 0 | N122: 0 | O122: 0 | P122: 0 | Q122: 0 | R122: 0 | S122: 0 | T122: 0 | U122: 0 | V122: 0 | W122: 0 | X122: 4742 | Y122: Bacteria | Z122: Proteobacteria | AA122: Gammaproteobacteria | AB122: Enterobacterales | AC122: Enterobacteriaceae | AD122: NA
A123: 122 | B123: sample | C123: 0 | D123: 0 | E123: 63 | F123: 74 | G123: 68 | H123: 67 | I123: 0 | J123: 0 | K123: 0 | L123: 259 | M123: 181 | N123: 181 | O123: 277 | P123: 482 | Q123: 469 | R123: 158 | S123: 266 | T123: 212 | U123: 489 | V123: 743 | W123: 732 | X123: 4721 | Y123: Bacteria | Z123: Acidobacteriota | AA123: Blastocatellia | AB123: 45597 | AC123: NA | AD123: NA
A124: 123 | B124: sample | C124: 0 | D124: 0 | E124: 0 | F124: 0 | G124: 0 | H124: 0 | I124: 0 | J124: 0 | K124: 0 | L124: 85 | M124: 112 | N124: 81 | O124: 0 | P124: 0 | Q124: 0 | R124: 2210 | S124: 0 | T124: 2096 | U124: 129 | V124: 0 | W124: 0 | X124: 4713 | Y124: Bacteria | Z124: Proteobacteria | AA124: Gammaproteobacteria | AB124: Aeromonadales | AC124: NA | AD124: NA
A125: 124 | B125: sample | C125: 0 | D125: 0 | E125: 0 | F125: 0 | G125: 0 | H125: 0 | I125: 0 | J125: 0 | K125: 0 | L125: 92 | M125: 151 | N125: 220 | O125: 0 | P125: 0 | Q125: 0 | R125: 2068 | S125: 0 | T125: 1914 | U125: 241 | V125: 0 | W125: 0 | X125: 4686 | Y125: Bacteria | Z125: Proteobacteria | AA125: Gammaproteobacteria | AB125: Aeromonadales | AC125: Aeromonadaceae | AD125: Aeromonas
A126: 125 | B126: mock | C126: 4642 | D126: 0 | E126: 0 | F126: 0 | G126: 0 | H126: 0 | I126: 0 | J126: 0 | K126: 0 | L126: 0 | M126: 0 | N126: 0 | O126: 0 | P126: 0 | Q126: 0 | R126: 0 | S126: 0 | T126: 0 | U126: 0 | V126: 0 | W126: 0 | X126: 4642 | Y126: Bacteria | Z126: Firmicutes | AA126: Bacilli | AB126: Lactobacillales | AC126: Enterococcaceae | AD126: Enterococcus
A127: 126 | B127: sample | C127: 0 | D127: 206 | E127: 134 | F127: 145 | G127: 147 | H127: 148 | I127: 1359 | J127: 1037 | K127: 921 | L127: 182 | M127: 150 | N127: 207 | O127: 0 | P127: 0 | Q127: 0 | R127: 0 | S127: 0 | T127: 0 | U127: 0 | V127: 0 | W127: 0 | X127: 4636 | Y127: Bacteria | Z127: Proteobacteria | AA127: Alphaproteobacteria | AB127: Rhizobiales | AC127: NA | AD127: NA
A128: 127 | B128: mock | C128: 4605 | D128: 0 | E128: 0 | F128: 0 | G128: 0 | H128: 0 | I128: 0 | J128: 0 | K128: 0 | L128: 0 | M128: 0 | N128: 0 | O128: 0 | P128: 0 | Q128: 0 | R128: 0 | S128: 0 | T128: 0 | U128: 0 | V128: 0 | W128: 0 | X128: 4605 | Y128: Bacteria | Z128: Proteobacteria | AA128: Gammaproteobacteria | AB128: Enterobacterales | AC128: Enterobacteriaceae | AD128: NA
A129: 128 | B129: sample | C129: 0 | D129: 123 | E129: 105 | F129: 101 | G129: 0 | H129: 0 | I129: 45 | J129: 38 | K129: 51 | L129: 376 | M129: 345 | N129: 416 | O129: 614 | P129: 626 | Q129: 497 | R129: 177 | S129: 237 | T129: 172 | U129: 232 | V129: 238 | W129: 195 | X129: 4588 | Y129: Bacteria | Z129: Bacteroidota | AA129: Bacteroidia | AB129: Cytophagales | AC129: NA | AD129: NA
A130: 129 | B130: mock | C130: 4573 | D130: 0 | E130: 0 | F130: 0 | G130: 0 | H130: 0 | I130: 0 | J130: 0 | K130: 0 | L130: 0 | M130: 0 | N130: 0 | O130: 0 | P130: 0 | Q130: 0 | R130: 0 | S130: 0 | T130: 0 | U130: 0 | V130: 0 | W130: 0 | X130: 4573 | Y130: Bacteria | Z130: Firmicutes | AA130: Bacilli | AB130: Lactobacillales | AC130: Enterococcaceae | AD130: Enterococcus
A131: 130 | B131: sample | C131: 0 | D131: 0 | E131: 0 | F131: 0 | G131: 0 | H131: 0 | I131: 396 | J131: 270 | K131: 261 | L131: 1225 | M131: 1092 | N131: 1319 | O131: 0 | P131: 0 | Q131: 0 | R131: 0 | S131: 0 | T131: 0 | U131: 0 | V131: 0 | W131: 0 | X131: =SUM(C131:W131) -> 4563 | Y131: Bacteria | Z131: Proteobacteria | AA131: Gammaproteobacteria | AB131: Burkholderiales | AC131: Comamonadaceae | AD131: Hydrogenophaga
A132: 131 | B132: sample | C132: 0 | D132: 0 | E132: 0 | F132: 0 | G132: 0 | H132: 0 | I132: 0 | J132: 0 | K132: 0 | L132: 0 | M132: 85 | N132: 150 | O132: 0 | P132: 0 | Q132: 0 | R132: 2121 | S132: 62 | T132: 1992 | U132: 151 | V132: 0 | W132: 0 | X132: 4561 | Y132: Bacteria | Z132: Proteobacteria | AA132: Gammaproteobacteria | AB132: Aeromonadales | AC132: Aeromonadaceae | AD132: Aeromonas
A133: 132 | B133: sample | C133: 0 | D133: 80 | E133: 89 | F133: 81 | G133: 0 | H133: 0 | I133: 1006 | J133: 962 | K133: 962 | L133: 403 | M133: 557 | N133: 391 | O133: 0 | P133: 0 | Q133: 0 | R133: 0 | S133: 0 | T133: 0 | U133: 0 | V133: 0 | W133: 0 | X133: 4531 | Y133: Bacteria | Z133: Proteobacteria | AA133: Gammaproteobacteria | AB133: Burkholderiales | AC133: Comamonadaceae | AD133: NA
A134: 133 | B134: sample | C134: 0 | D134: 922 | E134: 661 | F134: 639 | G134: 678 | H134: 652 | I134: 238 | J134: 224 | K134: 206 | L134: 74 | M134: 89 | N134: 69 | O134: 0 | P134: 0 | Q134: 0 | R134: 0 | S134: 0 | T134: 0 | U134: 0 | V134: 0 | W134: 0 | X134: 4452 | Y134: Bacteria | Z134: Proteobacteria | AA134: Gammaproteobacteria | AB134: Burkholderiales | AC134: Comamonadaceae | AD134: NA
A135: 134 | B135: sample | C135: 0 | D135: 672 | E135: 462 | F135: 492 | G135: 451 | H135: 481 | I135: 398 | J135: 381 | K135: 393 | L135: 141 | M135: 163 | N135: 125 | O135: 0 | P135: 0 | Q135: 0 | R135: 0 | S135: 80 | T135: 0 | U135: 0 | V135: 130 | W135: 69 | X135: 4438 | Y135: Bacteria | Z135: Proteobacteria | AA135: Gammaproteobacteria | AB135: Burkholderiales | AC135: Comamonadaceae | AD135: Sphaerotilus
A136: 135 | B136: sample | C136: 0 | D136: 173 | E136: 177 | F136: 202 | G136: 200 | H136: 239 | I136: 185 | J136: 219 | K136: 821 | L136: 257 | M136: 204 | N136: 295 | O136: 176 | P136: 195 | Q136: 155 | R136: 111 | S136: 118 | T136: 204 | U136: 124 | V136: 166 | W136: 216 | X136: 4437 | Y136: Bacteria | Z136: Proteobacteria | AA136: Alphaproteobacteria | AB136: Rhodobacterales | AC136: Rhodobacteraceae | AD136: Tabrizicola
A137: 136 | B137: sample | C137: 0 | D137: 274 | E137: 301 | F137: 149 | G137: 228 | H137: 299 | I137: 0 | J137: 0 | K137: 63 | L137: 284 | M137: 220 | N137: 244 | O137: 231 | P137: 288 | Q137: 243 | R137: 180 | S137: 207 | T137: 214 | U137: 301 | V137: 398 | W137: 308 | X137: 4432 | Y137: Bacteria | Z137: Bacteroidota | AA137: Bacteroidia | AB137: Flavobacteriales | AC137: Flavobacteriaceae | AD137: Flavobacterium
A138: 137 | B138: sample | C138: 0 | D138: 493 | E138: 483 | F138: 416 | G138: 406 | H138: 488 | I138: 0 | J138: 0 | K138: 0 | L138: 240 | M138: 217 | N138: 265 | O138: 450 | P138: 420 | Q138: 352 | R138: 55 | S138: 71 | T138: 0 | U138: 0 | V138: 0 | W138: 70 | X138: 4426 | Y138: Bacteria | Z138: Bacteroidota | AA138: Bacteroidia | AB138: Chitinophagales | AC138: Saprospiraceae | AD138: Haliscomenobacter
A139: 138 | B139: sample | C139: 0 | D139: 155 | E139: 197 | F139: 164 | G139: 133 | H139: 121 | I139: 911 | J139: 876 | K139: 668 | L139: 267 | M139: 262 | N139: 294 | O139: 100 | P139: 108 | Q139: 0 | R139: 0 | S139: 0 | T139: 0 | U139: 0 | V139: 143 | W139: 0 | X139: 4399 | Y139: Bacteria | Z139: Bacteroidota | AA139: Bacteroidia | AB139: Cytophagales | AC139: Spirosomaceae | AD139: Emticicia
A140: 139 | B140: sample | C140: 0 | D140: 133 | E140: 0 | F140: 122 | G140: 0 | H140: 0 | I140: 101 | J140: 122 | K140: 194 | L140: 368 | M140: 348 | N140: 360 | O140: 696 | P140: 596 | Q140: 490 | R140: 160 | S140: 210 | T140: 195 | U140: 0 | V140: 157 | W140: 106 | X140: 4358 | Y140: Bacteria | Z140: Verrucomicrobiota | AA140: Verrucomicrobiae | AB140: Verrucomicrobiales | AC140: Rubritaleaceae | AD140: Luteolibacter
A141: 140 | B141: sample | C141: 0 | D141: 289 | E141: 245 | F141: 276 | G141: 265 | H141: 279 | I141: 171 | J141: 159 | K141: 184 | L141: 299 | M141: 200 | N141: 235 | O141: 264 | P141: 242 | Q141: 177 | R141: 149 | S141: 143 | T141: 176 | U141: 168 | V141: 169 | W141: 266 | X141: 4356 | Y141: Bacteria | Z141: Proteobacteria | AA141: Alphaproteobacteria | AB141: Sphingomonadales | AC141: Sphingomonadaceae | AD141: Sphingorhabdus
A142: 141 | B142: sample | C142: 0 | D142: 0 | E142: 0 | F142: 0 | G142: 0 | H142: 0 | I142: 392 | J142: 253 | K142: 170 | L142: 1130 | M142: 1055 | N142: 1342 | O142: 0 | P142: 0 | Q142: 0 | R142: 0 | S142: 0 | T142: 0 | U142: 0 | V142: 0 | W142: 0 | X142: 4342 | Y142: Bacteria | Z142: Proteobacteria | AA142: Gammaproteobacteria | AB142: Burkholderiales | AC142: Comamonadaceae | AD142: Hydrogenophaga
A143: 142 | B143: sample | C143: 0 | D143: 244 | E143: 182 | F143: 169 | G143: 179 | H143: 241 | I143: 0 | J143: 0 | K143: 62 | L143: 98 | M143: 86 | N143: 172 | O143: 204 | P143: 255 | Q143: 215 | R143: 231 | S143: 275 | T143: 222 | U143: 468 | V143: 464 | W143: 568 | X143: 4335 | Y143: Bacteria | Z143: Acidobacteriota | AA143: Vicinamibacteria | AB143: Vicinamibacterales | AC143: Vicinamibacteraceae | AD143: NA
A144: 143 | B144: sample | C144: 0 | D144: 200 | E144: 166 | F144: 155 | G144: 156 | H144: 215 | I144: 0 | J144: 0 | K144: 0 | L144: 83 | M144: 63 | N144: 101 | O144: 194 | P144: 221 | Q144: 254 | R144: 236 | S144: 297 | T144: 279 | U144: 513 | V144: 576 | W144: 618 | X144: 4327 | Y144: Bacteria | Z144: Acidobacteriota | AA144: Vicinamibacteria | AB144: Vicinamibacterales | AC144: Vicinamibacteraceae | AD144: NA
A145: 144 | B145: sample | C145: 0 | D145: 74 | E145: 99 | F145: 0 | G145: 77 | H145: 96 | I145: 1084 | J145: 1071 | K145: 668 | L145: 306 | M145: 319 | N145: 289 | O145: 0 | P145: 85 | Q145: 88 | R145: 0 | S145: 0 | T145: 0 | U145: 0 | V145: 0 | W145: 0 | X145: 4256 | Y145: Bacteria | Z145: Bacteroidota | AA145: Bacteroidia | AB145: Cytophagales | AC145: Spirosomaceae | AD145: Emticicia
A146: 145 | B146: sample | C146: 0 | D146: 319 | E146: 415 | F146: 359 | G146: 346 | H146: 363 | I146: 118 | J146: 0 | K146: 0 | L146: 156 | M146: 172 | N146: 147 | O146: 208 | P146: 204 | Q146: 175 | R146: 197 | S146: 266 | T146: 229 | U146: 184 | V146: 183 | W146: 210 | X146: 4251 | Y146: Bacteria | Z146: Proteobacteria | AA146: Gammaproteobacteria | AB146: Burkholderiales | AC146: Comamonadaceae | AD146: NA
A147: 146 | B147: sample | C147: 0 | D147: 619 | E147: 415 | F147: 431 | G147: 390 | H147: 557 | I147: 204 | J147: 215 | K147: 295 | L147: 219 | M147: 174 | N147: 267 | O147: 137 | P147: 170 | Q147: 153 | R147: 0 | S147: 0 | T147: 0 | U147: 0 | V147: 0 | W147: 0 | X147: 4246 | Y147: Bacteria | Z147: Proteobacteria | AA147: Gammaproteobacteria | AB147: Xanthomonadales | AC147: Xanthomonadaceae | AD147: Pseudoxanthomonas
A148: 147 | B148: sample | C148: 0 | D148: 170 | E148: 196 | F148: 206 | G148: 177 | H148: 135 | I148: 0 | J148: 0 | K148: 0 | L148: 230 | M148: 197 | N148: 305 | O148: 728 | P148: 651 | Q148: 817 | R148: 0 | S148: 78 | T148: 73 | U148: 0 | V148: 179 | W148: 90 | X148: 4232 | Y148: Bacteria | Z148: Chloroflexi | AA148: Anaerolineae | AB148: RBG-13-54-9 | AC148: NA | AD148: NA
A149: 148 | B149: sample | C149: 0 | D149: 549 | E149: 342 | F149: 271 | G149: 270 | H149: 382 | I149: 438 | J149: 459 | K149: 614 | L149: 196 | M149: 337 | N149: 270 | O149: 0 | P149: 93 | Q149: 0 | R149: 0 | S149: 0 | T149: 0 | U149: 0 | V149: 0 | W149: 0 | X149: 4221 | Y149: Bacteria | Z149: Bacteroidota | AA149: Bacteroidia | AB149: Chitinophagales | AC149: NA | AD149: NA
A150: 149 | B150: sample | C150: 0 | D150: 81 | E150: 71 | F150: 114 | G150: 48 | H150: 63 | I150: 967 | J150: 1026 | K150: 661 | L150: 259 | M150: 269 | N150: 279 | O150: 75 | P150: 56 | Q150: 70 | R150: 67 | S150: 0 | T150: 0 | U150: 40 | V150: 73 | W150: 0 | X150: 4219 | Y150: Bacteria | Z150: Bacteroidota | AA150: Bacteroidia | AB150: Cytophagales | AC150: Spirosomaceae | AD150: Emticicia
A151: 150 | B151: sample | C151: 0 | D151: 182 | E151: 212 | F151: 170 | G151: 189 | H151: 224 | I151: 64 | J151: 74 | K151: 246 | L151: 225 | M151: 191 | N151: 204 | O151: 573 | P151: 496 | Q151: 422 | R151: 168 | S151: 227 | T151: 262 | U151: 87 | V151: 0 | W151: 0 | X151: 4216 | Y151: Bacteria | Z151: Myxococcota | AA151: Polyangia | AB151: Haliangiales | AC151: Haliangiaceae | AD151: Haliangium
A152: 151 | B152: sample | C152: 0 | D152: 524 | E152: 397 | F152: 336 | G152: 360 | H152: 349 | I152: 0 | J152: 0 | K152: 93 | L152: 217 | M152: 279 | N152: 237 | O152: 165 | P152: 160 | Q152: 0 | R152: 190 | S152: 243 | T152: 206 | U152: 0 | V152: 221 | W152: 215 | X152: 4192 | Y152: Bacteria | Z152: Proteobacteria | AA152: Alphaproteobacteria | AB152: Rhodobacterales | AC152: Rhodobacteraceae | AD152: Gemmobacter
A153: 152 | B153: sample | C153: 0 | D153: 91 | E153: 79 | F153: 144 | G153: 144 | H153: 0 | I153: 336 | J153: 388 | K153: 436 | L153: 603 | M153: 690 | N153: 580 | O153: 159 | P153: 152 | Q153: 151 | R153: 135 | S153: 0 | T153: 39 | U153: 0 | V153: 0 | W153: 0 | X153: 4127 | Y153: Bacteria | Z153: Bacteroidota | AA153: Bacteroidia | AB153: Flavobacteriales | AC153: Flavobacteriaceae | AD153: Flavobacterium
A154: 153 | B154: mock | C154: 4111 | D154: 0 | E154: 0 | F154: 0 | G154: 0 | H154: 0 | I154: 0 | J154: 0 | K154: 0 | L154: 0 | M154: 0 | N154: 0 | O154: 0 | P154: 0 | Q154: 0 | R154: 0 | S154: 0 | T154: 0 | U154: 0 | V154: 0 | W154: 0 | X154: 4111 | Y154: Bacteria | Z154: Firmicutes | AA154: Bacilli | AB154: Bacillales | AC154: Bacillaceae | AD154: Bacillus
A155: 154 | B155: mock | C155: 4098 | D155: 0 | E155: 0 | F155: 0 | G155: 0 | H155: 0 | I155: 0 | J155: 0 | K155: 0 | L155: 0 | M155: 0 | N155: 0 | O155: 0 | P155: 0 | Q155: 0 | R155: 0 | S155: 0 | T155: 0 | U155: 0 | V155: 0 | W155: 0 | X155: 4098 | Y155: Bacteria | Z155: Firmicutes | AA155: Bacilli | AB155: Bacillales | AC155: Bacillaceae | AD155: Bacillus
A156: 155 | B156: sample | C156: 0 | D156: 283 | E156: 281 | F156: 392 | G156: 387 | H156: 368 | I156: 574 | J156: 529 | K156: 418 | L156: 331 | M156: 232 | N156: 291 | O156: 0 | P156: 0 | Q156: 0 | R156: 0 | S156: 0 | T156: 0 | U156: 0 | V156: 0 | W156: 0 | X156: 4086 | Y156: Bacteria | Z156: Actinobacteriota | AA156: Actinobacteria | AB156: Micrococcales | AC156: Microbacteriaceae | AD156: Microbacterium
A157: 156 | B157: sample | C157: 0 | D157: 216 | E157: 246 | F157: 214 | G157: 153 | H157: 249 | I157: 85 | J157: 0 | K157: 0 | L157: 162 | M157: 152 | N157: 227 | O157: 313 | P157: 379 | Q157: 316 | R157: 85 | S157: 284 | T157: 230 | U157: 213 | V157: 299 | W157: 259 | X157: 4082 | Y157: Bacteria | Z157: Proteobacteria | AA157: Alphaproteobacteria | AB157: Rhodobacterales | AC157: Rhodobacteraceae | AD157: Defluviimonas
A158: 157 | B158: sample | C158: 0 | D158: 155 | E158: 0 | F158: 0 | G158: 97 | H158: 0 | I158: 850 | J158: 868 | K158: 831 | L158: 395 | M158: 527 | N158: 356 | O158: 0 | P158: 0 | Q158: 0 | R158: 0 | S158: 0 | T158: 0 | U158: 0 | V158: 0 | W158: 0 | X158: 4079 | Y158: Bacteria | Z158: Proteobacteria | AA158: Gammaproteobacteria | AB158: Burkholderiales | AC158: Comamonadaceae | AD158: Sphaerotilus
A159: 158 | B159: sample | C159: 0 | D159: 0 | E159: 0 | F159: 0 | G159: 0 | H159: 0 | I159: 380 | J159: 351 | K159: 187 | L159: 1034 | M159: 1093 | N159: 984 | O159: 0 | P159: 0 | Q159: 0 | R159: 0 | S159: 0 | T159: 0 | U159: 0 | V159: 0 | W159: 0 | X159: 4029 | Y159: Bacteria | Z159: Bacteroidota | AA159: Bacteroidia | AB159: Flavobacteriales | AC159: Weeksellaceae | AD159: Chryseobacterium
A160: 159 | B160: sample | C160: 0 | D160: 152 | E160: 108 | F160: 128 | G160: 121 | H160: 149 | I160: 1193 | J160: 965 | K160: 804 | L160: 153 | M160: 100 | N160: 149 | O160: 0 | P160: 0 | Q160: 0 | R160: 0 | S160: 0 | T160: 0 | U160: 0 | V160: 0 | W160: 0 | X160: 4022 | Y160: Bacteria | Z160: Proteobacteria | AA160: Alphaproteobacteria | AB160: Rhizobiales | AC160: Rhizobiaceae | AD160: NA
A161: 160 | B161: sample | C161: 0 | D161: 423 | E161: 272 | F161: 216 | G161: 246 | H161: 261 | I161: 665 | J161: 561 | K161: 563 | L161: 230 | M161: 332 | N161: 251 | O161: 0 | P161: 0 | Q161: 0 | R161: 0 | S161: 0 | T161: 0 | U161: 0 | V161: 0 | W161: 0 | X161: 4020 | Y161: Bacteria | Z161: Bacteroidota | AA161: Bacteroidia | AB161: Cytophagales | AC161: Spirosomaceae | AD161: Emticicia
A162: 161 | B162: sample | C162: 0 | D162: 0 | E162: 0 | F162: 0 | G162: 0 | H162: 98 | I162: 0 | J162: 0 | K162: 160 | L162: 259 | M162: 265 | N162: 230 | O162: 406 | P162: 393 | Q162: 311 | R162: 416 | S162: 503 | T162: 249 | U162: 207 | V162: 270 | W162: 246 | X162: 4013 | Y162: Bacteria | Z162: Verrucomicrobiota | AA162: Verrucomicrobiae | AB162: Verrucomicrobiales | AC162: Rubritaleaceae | AD162: Luteolibacter
A163: 162 | B163: sample | C163: 0 | D163: 626 | E163: 451 | F163: 413 | G163: 392 | H163: 457 | I163: 126 | J163: 120 | K163: 252 | L163: 132 | M163: 163 | N163: 134 | O163: 175 | P163: 163 | Q163: 142 | R163: 73 | S163: 104 | T163: 89 | U163: 0 | V163: 0 | W163: 0 | X163: 4012 | Y163: Bacteria | Z163: Bacteroidota | AA163: Bacteroidia | AB163: Chitinophagales | AC163: Chitinophagaceae | AD163: Sediminibacterium
A164: 163 | B164: sample | C164: 0 | D164: 197 | E164: 118 | F164: 111 | G164: 99 | H164: 143 | I164: 978 | J164: 988 | K164: 878 | L164: 154 | M164: 183 | N164: 151 | O164: 0 | P164: 0 | Q164: 0 | R164: 0 | S164: 0 | T164: 0 | U164: 0 | V164: 0 | W164: 0 | X164: 4000 | Y164: Bacteria | Z164: Bacteroidota | AA164: Bacteroidia | AB164: Flavobacteriales | AC164: Flavobacteriaceae | AD164: Flavobacterium
A165: 164 | B165: sample | C165: 0 | D165: 47 | E165: 0 | F165: 0 | G165: 0 | H165: 0 | I165: 913 | J165: 863 | K165: 892 | L165: 415 | M165: 496 | N165: 374 | O165: 0 | P165: 0 | Q165: 0 | R165: 0 | S165: 0 | T165: 0 | U165: 0 | V165: 0 | W165: 0 | X165: 4000 | Y165: Bacteria | Z165: Proteobacteria | AA165: Gammaproteobacteria | AB165: Burkholderiales | AC165: Comamonadaceae | AD165: Sphaerotilus
A166: 165 | B166: sample | C166: 0 | D166: 97 | E166: 0 | F166: 0 | G166: 0 | H166: 0 | I166: 181 | J166: 234 | K166: 376 | L166: 683 | M166: 733 | N166: 696 | O166: 0 | P166: 0 | Q166: 0 | R166: 198 | S166: 222 | T166: 170 | U166: 196 | V166: 0 | W166: 194 | X166: 3980 | Y166: Bacteria | Z166: Bacteroidota | AA166: Bacteroidia | AB166: Flavobacteriales | AC166: Crocinitomicaceae | AD166: Fluviicola
A167: 166 | B167: sample | C167: 0 | D167: 69 | E167: 0 | F167: 93 | G167: 0 | H167: 0 | I167: 907 | J167: 845 | K167: 849 | L167: 394 | M167: 475 | N167: 345 | O167: 0 | P167: 0 | Q167: 0 | R167: 0 | S167: 0 | T167: 0 | U167: 0 | V167: 0 | W167: 0 | X167: 3977 | Y167: Bacteria | Z167: Proteobacteria | AA167: Gammaproteobacteria | AB167: Burkholderiales | AC167: Comamonadaceae | AD167: NA
A168: 167 | B168: sample | C168: 0 | D168: 571 | E168: 403 | F168: 440 | G168: 396 | H168: 443 | I168: 305 | J168: 356 | K168: 313 | L168: 138 | M168: 128 | N168: 117 | O168: 0 | P168: 0 | Q168: 0 | R168: 0 | S168: 100 | T168: 0 | U168: 0 | V168: 114 | W168: 101 | X168: 3925 | Y168: Bacteria | Z168: Proteobacteria | AA168: Gammaproteobacteria | AB168: Burkholderiales | AC168: Comamonadaceae | AD168: Sphaerotilus
A169: 168 | B169: sample | C169: 0 | D169: 179 | E169: 117 | F169: 113 | G169: 111 | H169: 108 | I169: 1102 | J169: 921 | K169: 794 | L169: 164 | M169: 131 | N169: 157 | O169: 0 | P169: 0 | Q169: 0 | R169: 0 | S169: 0 | T169: 0 | U169: 0 | V169: 0 | W169: 0 | X169: 3897 | Y169: Bacteria | Z169: Proteobacteria | AA169: Alphaproteobacteria | AB169: Rhizobiales | AC169: NA | AD169: NA
A170: 169 | B170: sample | C170: 0 | D170: 0 | E170: 132 | F170: 0 | G170: 0 | H170: 125 | I170: 334 | J170: 417 | K170: 431 | L170: 614 | M170: 673 | N170: 618 | O170: 0 | P170: 0 | Q170: 0 | R170: 117 | S170: 160 | T170: 75 | U170: 75 | V170: 0 | W170: 112 | X170: 3883 | Y170: Bacteria | Z170: Bacteroidota | AA170: Bacteroidia | AB170: Flavobacteriales | AC170: Flavobacteriaceae | AD170: Flavobacterium
A171: 170 | B171: sample | C171: 0 | D171: 480 | E171: 365 | F171: 322 | G171: 274 | H171: 398 | I171: 448 | J171: 506 | K171: 575 | L171: 121 | M171: 214 | N171: 110 | O171: 0 | P171: 0 | Q171: 69 | R171: 0 | S171: 0 | T171: 0 | U171: 0 | V171: 0 | W171: 0 | X171: 3882 | Y171: Bacteria | Z171: Bacteroidota | AA171: Bacteroidia | AB171: Chitinophagales | AC171: NA | AD171: NA
A172: 171 | B172: sample | C172: 0 | D172: 213 | E172: 139 | F172: 201 | G172: 202 | H172: 217 | I172: 0 | J172: 0 | K172: 0 | L172: 251 | M172: 199 | N172: 214 | O172: 550 | P172: 524 | Q172: 551 | R172: 0 | S172: 137 | T172: 100 | U172: 80 | V172: 167 | W172: 133 | X172: 3878 | Y172: Bacteria | Z172: Chloroflexi | AA172: Anaerolineae | AB172: RBG-13-54-9 | AC172: NA | AD172: NA
A173: 172 | B173: sample | C173: 0 | D173: 214 | E173: 272 | F173: 431 | G173: 390 | H173: 303 | I173: 603 | J173: 458 | K173: 379 | L173: 315 | M173: 191 | N173: 312 | O173: 0 | P173: 0 | Q173: 0 | R173: 0 | S173: 0 | T173: 0 | U173: 0 | V173: 0 | W173: 0 | X173: 3868 | Y173: Bacteria | Z173: Actinobacteriota | AA173: Actinobacteria | AB173: Micrococcales | AC173: Microbacteriaceae | AD173: Microbacterium
A174: 173 | B174: sample | C174: 0 | D174: 412 | E174: 365 | F174: 322 | G174: 320 | H174: 340 | I174: 648 | J174: 536 | K174: 423 | L174: 187 | M174: 158 | N174: 109 | O174: 0 | P174: 47 | Q174: 0 | R174: 0 | S174: 0 | T174: 0 | U174: 0 | V174: 0 | W174: 0 | X174: 3867 | Y174: Bacteria | Z174: Proteobacteria | AA174: Alphaproteobacteria | AB174: Rhodobacterales | AC174: Rhodobacteraceae | AD174: Pseudorhodobacter
A175: 174 | B175: mock | C175: 3858 | D175: 0 | E175: 0 | F175: 0 | G175: 0 | H175: 0 | I175: 0 | J175: 0 | K175: 0 | L175: 0 | M175: 0 | N175: 0 | O175: 0 | P175: 0 | Q175: 0 | R175: 0 | S175: 0 | T175: 0 | U175: 0 | V175: 0 | W175: 0 | X175: 3858 | Y175: Bacteria | Z175: Firmicutes | AA175: Bacilli | AB175: Bacillales | AC175: Bacillaceae | AD175: Bacillus
A176: 175 | B176: sample | C176: 0 | D176: 70 | E176: 0 | F176: 0 | G176: 0 | H176: 0 | I176: 0 | J176: 0 | K176: 0 | L176: 0 | M176: 101 | N176: 0 | O176: 160 | P176: 391 | Q176: 404 | R176: 182 | S176: 285 | T176: 183 | U176: 496 | V176: 773 | W176: 807 | X176: 3852 | Y176: Bacteria | Z176: Acidobacteriota | AA176: Blastocatellia | AB176: 45597 | AC176: NA | AD176: NA
A177: 176 | B177: sample | C177: 0 | D177: 0 | E177: 88 | F177: 113 | G177: 109 | H177: 142 | I177: 182 | J177: 186 | K177: 353 | L177: 685 | M177: 742 | N177: 713 | O177: 0 | P177: 0 | Q177: 0 | R177: 152 | S177: 114 | T177: 0 | U177: 0 | V177: 157 | W177: 108 | X177: 3844 | Y177: Bacteria | Z177: Bacteroidota | AA177: Bacteroidia | AB177: Flavobacteriales | AC177: Crocinitomicaceae | AD177: Fluviicola
A178: 177 | B178: sample | C178: 0 | D178: 74 | E178: 91 | F178: 56 | G178: 113 | H178: 90 | I178: 902 | J178: 890 | K178: 608 | L178: 271 | M178: 246 | N178: 269 | O178: 57 | P178: 82 | Q178: 0 | R178: 0 | S178: 0 | T178: 0 | U178: 0 | V178: 92 | W178: 0 | X178: 3841 | Y178: Bacteria | Z178: Bacteroidota | AA178: Bacteroidia | AB178: Cytophagales | AC178: Spirosomaceae | AD178: Emticicia
A179: 178 | B179: sample | C179: 0 | D179: 188 | E179: 158 | F179: 110 | G179: 152 | H179: 188 | I179: 0 | J179: 0 | K179: 146 | L179: 218 | M179: 223 | N179: 213 | O179: 520 | P179: 519 | Q179: 359 | R179: 126 | S179: 225 | T179: 177 | U179: 59 | V179: 0 | W179: 229 | X179: 3810 | Y179: Bacteria | Z179: Myxococcota | AA179: Polyangia | AB179: Haliangiales | AC179: Haliangiaceae | AD179: Haliangium
A180: 179 | B180: sample | C180: 0 | D180: 194 | E180: 138 | F180: 184 | G180: 136 | H180: 134 | I180: 946 | J180: 894 | K180: 723 | L180: 128 | M180: 162 | N180: 128 | O180: 43 | P180: 0 | Q180: 0 | R180: 0 | S180: 0 | T180: 0 | U180: 0 | V180: 0 | W180: 0 | X180: 3810 | Y180: Bacteria | Z180: Proteobacteria | AA180: Alphaproteobacteria | AB180: Rhizobiales | AC180: NA | AD180: NA
A181: 180 | B181: sample | C181: 0 | D181: 590 | E181: 391 | F181: 307 | G181: 338 | H181: 382 | I181: 143 | J181: 200 | K181: 224 | L181: 172 | M181: 122 | N181: 180 | O181: 153 | P181: 128 | Q181: 154 | R181: 103 | S181: 103 | T181: 112 | U181: 0 | V181: 0 | W181: 0 | X181: 3802 | Y181: Bacteria | Z181: Bacteroidota | AA181: Bacteroidia | AB181: Chitinophagales | AC181: Chitinophagaceae | AD181: Sediminibacterium
A182: 181 | B182: sample | C182: 0 | D182: 13 | E182: 0 | F182: 0 | G182: 0 | H182: 0 | I182: 0 | J182: 0 | K182: 0 | L182: 232 | M182: 286 | N182: 284 | O182: 843 | P182: 1171 | Q182: 971 | R182: 0 | S182: 0 | T182: 0 | U182: 0 | V182: 0 | W182: 0 | X182: 3800 | Y182: Bacteria | Z182: Planctomycetota | AA182: Planctomycetes | AB182: Gemmatales | AC182: Gemmataceae | AD182: Telmatocola
A183: 182 | B183: sample | C183: 0 | D183: 172 | E183: 114 | F183: 125 | G183: 89 | H183: 100 | I183: 1141 | J183: 924 | K183: 713 | L183: 158 | M183: 140 | N183: 113 | O183: 0 | P183: 0 | Q183: 0 | R183: 0 | S183: 0 | T183: 0 | U183: 0 | V183: 0 | W183: 0 | X183: 3789 | Y183: Bacteria | Z183: Proteobacteria | AA183: Alphaproteobacteria | AB183: Rhizobiales | AC183: NA | AD183: NA
A184: 183 | B184: sample | C184: 0 | D184: 114 | E184: 254 | F184: 195 | G184: 175 | H184: 155 | I184: 0 | J184: 0 | K184: 0 | L184: 196 | M184: 229 | N184: 258 | O184: 192 | P184: 218 | Q184: 170 | R184: 263 | S184: 272 | T184: 230 | U184: 227 | V184: 225 | W184: 409 | X184: 3782 | Y184: Bacteria | Z184: Verrucomicrobiota | AA184: Verrucomicrobiae | AB184: Pedosphaerales | AC184: Pedosphaeraceae | AD184: NA
A185: 184 | B185: sample | C185: 0 | D185: 293 | E185: 307 | F185: 257 | G185: 257 | H185: 330 | I185: 34 | J185: 0 | K185: 0 | L185: 139 | M185: 154 | N185: 157 | O185: 257 | P185: 351 | Q185: 328 | R185: 177 | S185: 148 | T185: 159 | U185: 140 | V185: 164 | W185: 127 | X185: 3779 | Y185: Bacteria | Z185: Verrucomicrobiota | AA185: Verrucomicrobiae | AB185: Verrucomicrobiales | AC185: Rubritaleaceae | AD185: Luteolibacter
A186: 185 | B186: sample | C186: 0 | D186: 159 | E186: 203 | F186: 334 | G186: 195 | H186: 246 | I186: 489 | J186: 600 | K186: 825 | L186: 243 | M186: 204 | N186: 279 | O186: 0 | P186: 0 | Q186: 0 | R186: 0 | S186: 0 | T186: 0 | U186: 0 | V186: 0 | W186: 0 | X186: 3777 | Y186: Bacteria | Z186: Proteobacteria | AA186: Alphaproteobacteria | AB186: Caulobacterales | AC186: Caulobacteraceae | AD186: Brevundimonas
A187: 186 | B187: sample | C187: 0 | D187: 578 | E187: 396 | F187: 419 | G187: 374 | H187: 438 | I187: 318 | J187: 344 | K187: 308 | L187: 108 | M187: 105 | N187: 98 | O187: 0 | P187: 0 | Q187: 0 | R187: 0 | S187: 70 | T187: 0 | U187: 0 | V187: 119 | W187: 60 | X187: 3735 | Y187: Bacteria | Z187: Proteobacteria | AA187: Gammaproteobacteria | AB187: Burkholderiales | AC187: Comamonadaceae | AD187: Sphaerotilus
A188: 187 | B188: sample | C188: 0 | D188: 340 | E188: 408 | F188: 410 | G188: 365 | H188: 403 | I188: 189 | J188: 113 | K188: 57 | L188: 190 | M188: 155 | N188: 175 | O188: 140 | P188: 123 | Q188: 166 | R188: 163 | S188: 0 | T188: 165 | U188: 0 | V188: 170 | W188: 0 | X188: 3732 | Y188: Bacteria | Z188: Proteobacteria | AA188: Alphaproteobacteria | AB188: Rhodobacterales | AC188: Rhodobacteraceae | AD188: NA
A189: 188 | B189: sample | C189: 0 | D189: 255 | E189: 299 | F189: 244 | G189: 280 | H189: 292 | I189: 173 | J189: 140 | K189: 109 | L189: 0 | M189: 138 | N189: 0 | O189: 198 | P189: 260 | Q189: 271 | R189: 193 | S189: 240 | T189: 186 | U189: 0 | V189: 121 | W189: 330 | X189: 3729 | Y189: Bacteria | Z189: Proteobacteria | AA189: Gammaproteobacteria | AB189: Burkholderiales | AC189: Comamonadaceae | AD189: NA
A190: 189 | B190: sample | C190: 0 | D190: 410 | E190: 475 | F190: 493 | G190: 501 | H190: 362 | I190: 197 | J190: 221 | K190: 383 | L190: 185 | M190: 298 | N190: 195 | O190: 0 | P190: 0 | Q190: 0 | R190: 0 | S190: 0 | T190: 0 | U190: 0 | V190: 0 | W190: 0 | X190: 3720 | Y190: Bacteria | Z190: Proteobacteria | AA190: Alphaproteobacteria | AB190: Rhizobiales | AC190: Rhizobiaceae | AD190: Shinella
A191: 190 | B191: sample | C191: 0 | D191: 0 | E191: 94 | F191: 74 | G191: 90 | H191: 88 | I191: 788 | J191: 869 | K191: 584 | L191: 231 | M191: 295 | N191: 246 | O191: 123 | P191: 108 | Q191: 0 | R191: 0 | S191: 81 | T191: 43 | U191: 0 | V191: 0 | W191: 0 | X191: 3714 | Y191: Bacteria | Z191: Bacteroidota | AA191: Bacteroidia | AB191: Sphingobacteriales | AC191: env.OPS 17 | AD191: NA
A192: 191 | B192: sample | C192: 0 | D192: 196 | E192: 208 | F192: 170 | G192: 107 | H192: 220 | I192: 0 | J192: 0 | K192: 0 | L192: 268 | M192: 243 | N192: 295 | O192: 232 | P192: 157 | Q192: 96 | R192: 130 | S192: 231 | T192: 163 | U192: 319 | V192: 401 | W192: 276 | X192: 3712 | Y192: Bacteria | Z192: Bacteroidota | AA192: Bacteroidia | AB192: Flavobacteriales | AC192: Flavobacteriaceae | AD192: Flavobacterium
A193: 192 | B193: sample | C193: 0 | D193: 198 | E193: 171 | F193: 245 | G193: 158 | H193: 208 | I193: 191 | J193: 174 | K193: 142 | L193: 227 | M193: 224 | N193: 207 | O193: 213 | P193: 210 | Q193: 145 | R193: 162 | S193: 208 | T193: 155 | U193: 101 | V193: 184 | W193: 165 | X193: 3688 | Y193: Bacteria | Z193: Proteobacteria | AA193: Gammaproteobacteria | AB193: Burkholderiales | AC193: Comamonadaceae | AD193: NA
A194: 193 | B194: sample | C194: 0 | D194: 392 | E194: 300 | F194: 245 | G194: 219 | H194: 245 | I194: 659 | J194: 623 | K194: 508 | L194: 153 | M194: 142 | N194: 163 | O194: 0 | P194: 0 | Q194: 0 | R194: 0 | S194: 0 | T194: 0 | U194: 0 | V194: 0 | W194: 0 | X194: 3649 | Y194: Bacteria | Z194: Bacteroidota | AA194: Bacteroidia | AB194: Cytophagales | AC194: Spirosomaceae | AD194: Emticicia
A195: 194 | B195: sample | C195: 0 | D195: 0 | E195: 0 | F195: 0 | G195: 90 | H195: 111 | I195: 0 | J195: 0 | K195: 0 | L195: 346 | M195: 343 | N195: 388 | O195: 582 | P195: 642 | Q195: 495 | R195: 105 | S195: 184 | T195: 109 | U195: 0 | V195: 120 | W195: 133 | X195: =SUM(C195:W195) -> 3648 | Y195: Bacteria | Z195: Bacteroidota | AA195: Bacteroidia | AB195: Cytophagales | AC195: NA | AD195: NA
A196: 195 | B196: sample | C196: 0 | D196: 550 | E196: 427 | F196: 422 | G196: 405 | H196: 576 | I196: 165 | J196: 141 | K196: 247 | L196: 209 | M196: 202 | N196: 194 | O196: 104 | P196: 0 | Q196: 0 | R196: 0 | S196: 0 | T196: 0 | U196: 0 | V196: 0 | W196: 0 | X196: 3642 | Y196: Bacteria | Z196: Proteobacteria | AA196: Gammaproteobacteria | AB196: Xanthomonadales | AC196: Xanthomonadaceae | AD196: Pseudoxanthomonas
A197: 196 | B197: sample | C197: 0 | D197: 0 | E197: 0 | F197: 0 | G197: 0 | H197: 0 | I197: 0 | J197: 0 | K197: 0 | L197: 0 | M197: 0 | N197: 0 | O197: 0 | P197: 0 | Q197: 0 | R197: 384 | S197: 554 | T197: 434 | U197: 689 | V197: 566 | W197: 1013 | X197: 3640 | Y197: Bacteria | Z197: Acidobacteriota | AA197: Blastocatellia | AB197: 45597 | AC197: NA | AD197: NA
A198: 197 | B198: sample | C198: 0 | D198: 361 | E198: 306 | F198: 310 | G198: 255 | H198: 317 | I198: 613 | J198: 513 | K198: 356 | L198: 203 | M198: 173 | N198: 206 | O198: 0 | P198: 0 | Q198: 0 | R198: 0 | S198: 0 | T198: 0 | U198: 0 | V198: 0 | W198: 0 | X198: 3613 | Y198: Bacteria | Z198: Proteobacteria | AA198: Alphaproteobacteria | AB198: Rhodobacterales | AC198: Rhodobacteraceae | AD198: Pseudorhodobacter
A199: 198 | B199: sample | C199: 0 | D199: 523 | E199: 385 | F199: 407 | G199: 395 | H199: 396 | I199: 300 | J199: 340 | K199: 363 | L199: 111 | M199: 110 | N199: 95 | O199: 0 | P199: 0 | Q199: 0 | R199: 0 | S199: 0 | T199: 0 | U199: 0 | V199: 127 | W199: 52 | X199: 3604 | Y199: Bacteria | Z199: Proteobacteria | AA199: Gammaproteobacteria | AB199: Burkholderiales | AC199: Comamonadaceae | AD199: Sphaerotilus
A200: 199 | B200: sample | C200: 0 | D200: 877 | E200: 730 | F200: 613 | G200: 609 | H200: 676 | I200: 0 | J200: 0 | K200: 0 | L200: 0 | M200: 0 | N200: 0 | O200: 0 | P200: 0 | Q200: 0 | R200: 0 | S200: 0 | T200: 0 | U200: 0 | V200: 98 | W200: 0 | X200: 3603 | Y200: Bacteria | Z200: Bacteroidota | AA200: Bacteroidia | AB200: Chitinophagales | AC200: Saprospiraceae | AD200: NA
... 2050 more rows

Sheet ASV_Earth_TaxaAnalysis
B1: asv_counts | C1: read_counts | D1: kingdom_categories | E1: kingdom_counts | F1: kingdom_reads | G1: phylum_categories | H1: phylum_counts | I1: phylum_reads | J1: class_categories | K1: class_counts | L1: class_reads | M1: order_categories | N1: order_counts | O1: order_reads | P1: family_categories | Q1: family_counts | R1: family_reads | S1: genus_categories | T1: genus_counts | U1: genus_reads
A2: sum/total | B2: 10941 | C2: 4751670 | D2: 3 | E2: =SUM(E4:E7) -> 10742 | F2: =SUM(F4:F7) -> 4453157 | G2: 37 | H2: =SUM(H4:H41) -> 10742 | I2: =SUM(I4:I41) -> 4453157 | J2: 70 | K2: =SUM(K4:K74) -> 10742 | L2: =SUM(L4:L74) -> 4453157 | M2: 164 | N2: =SUM(N4:N168) -> 10742 | O2: =SUM(O4:O168) -> 4453157 | P2: 218 | Q2: =SUM(Q4:Q222) -> 10742 | R2: =SUM(R4:R222) -> 4453157 | S2: 372 | T2: =SUM(T4:T375) -> 10742 | U2: =SUM(U4:U375) -> 4453157
A4: mock | B4: 196 | C4: 296454 | D4: NA | E4: 170 | F4: 1923 | G4: NA | H4: 907 | I4: 26275 | J4: NA | K4: 1087 | L4: 37306 | M4: NA | N4: 1670 | O4: 122251 | P4: NA | Q4: 3081 | R4: 614226 | S4: NA | T4: 6179 | U4: 1884556
A5: both | B5: 3 | C5: 2059 | D5: Bacteria | E5: 10501 | F5: 4446493 | G5: Abditibacteriota | H5: 1 | I5: 6 | J5: 028H05-P-BN-P5 | K5: 9 | L5: 4032 | M5: 43831 | N5: 7 | O5: 3237 | P5: 37-13 | Q5: 32 | R5: 35300 | S5: [Agitococcus] lubricus group | T5: 14 | U5: 3217
A6: sample | B6: 10742 | C6: 4453157 | D6: Archaea | E6: 14 | F6: 289 | G6: Acidobacteriota | H6: 261 | I6: 134219 | J6: Abditibacteria | K6: 1 | L6: 6 | M6: 45597 | N6: 68 | O6: 45863 | P6: 67-14 | Q6: 17 | R6: 2736 | S6: [Caedibacter] taeniospiralis group | T6: 4 | U6: 46
D7: Eukaryota | E7: 57 | F7: 4452 | G7: Actinobacteriota | H7: 258 | I7: 63461 | J7: ABY1 | K7: 15 | L7: 420 | M7: 0319-6G20 | N7: 122 | O7: 5323 | P7: A0839 | Q7: 10 | R7: 357 | S7: AAP99 | T7: 7 | U7: 4655
G8: Armatimonadota | H8: 41 | I8: 9292 | J8: Acidimicrobiia | K8: 93 | L8: 9150 | M8: Abditibacteriales | N8: 1 | O8: 6 | P8: A4b | Q8: 103 | R8: 24426 | S8: Abditibacterium | T8: 1 | U8: 6
G9: Bacteroidota | H9: 2084 | I9: 1426913 | J9: Acidobacteriae | K9: 19 | L9: 1372 | M9: Absconditabacteriales (SR1) | N9: 88 | O9: 20928 | P9: AB1 | Q9: 10 | R9: 210 | S9: Acanthopleuribacter | T9: 3 | U9: 118
G10: Bdellovibrionota | H10: 508 | I10: 37700 | J10: Actinobacteria | K10: 137 | L10: 51435 | M10: Acanthopleuribacterales | N10: 3 | O10: 118 | P10: Abditibacteriaceae | Q10: 1 | R10: 6 | S10: Acetobacteroides | T10: 2 | U10: 83
G11: Campilobacterota | H11: 8 | I11: 440 | J11: Alphaproteobacteria | K11: 2123 | L11: 854701 | M11: Acetobacterales | N11: 19 | O11: 1227 | P11: Acanthopleuribacteraceae | Q11: 3 | R11: 118 | S11: Achromobacter | T11: 2 | U11: 247
G12: Chloroflexi | H12: 406 | I12: 179192 | J12: Anaerolineae | K12: 274 | L12: 133450 | M12: Acidaminococcales | N12: 1 | O12: 13 | P12: Acetobacteraceae | Q12: 19 | R12: 1227 | S12: Acidaminobacter | T12: 3 | U12: 45
G13: Crenarchaeota | H13: 3 | I13: 176 | J13: Armatimonadia | K13: 20 | L13: 7478 | M13: Aeromonadales | N13: 26 | O13: 70480 | P13: Acidaminobacteraceae | Q13: 3 | R13: 45 | S13: Acidibacter | T13: 13 | U13: 4434
G14: Cyanobacteria | H14: 62 | I14: 4204 | J14: Babeliae | K14: 11 | L14: 290 | M14: Alphaproteobacteria Incertae Sedis | N14: 8 | O14: 801 | P14: Acidaminococcaceae | Q14: 1 | R14: 13 | S14: Acidiphilium | T14: 1 | U14: 3
G15: Deinococcota | H15: 29 | I15: 6636 | J15: Bacilli | K15: 27 | L15: 1995 | M15: Alteromonadales | N15: 22 | O15: 16459 | P15: AEGEAN-169 marine group | Q15: 1 | R15: 13 | S15: Acidovorax | T15: 7 | U15: 1606
G16: Dependentiae | H16: 11 | I16: 290 | J16: bacteriap25 | K16: 4 | L16: 302 | M16: Anaerolineales | N16: 6 | O16: 223 | P16: Aeromonadaceae | Q16: 23 | R16: 65625 | S16: Acinetobacter | T16: 19 | U16: 7480
G17: Desulfobacterota | H17: 58 | I17: 10044 | J17: Bacteroidia | K17: 2011 | L17: 1410501 | M17: Ardenticatenales | N17: 50 | O17: 15720 | P17: AKYG1722 | Q17: 5 | R17: 547 | S17: Aeromonas | T17: 23 | U17: 65625
G18: Elusimicrobiota | H18: 3 | I18: 22 | J18: BD7-11 | K18: 4 | L18: 366 | M18: Armatimonadales | N18: 20 | O18: 7478 | P18: AKYH767 | Q18: 7 | R18: 124 | S18: Aetherobacter | T18: 4 | U18: 1095
G19: Euryarchaeota | H19: 1 | I19: 3 | J19: Bdellovibrionia | K19: 335 | L19: 30810 | M19: Azospirillales | N19: 22 | O19: 1272 | P19: Alcaligenaceae | Q19: 25 | R19: 6335 | S19: Aggregicoccus | T19: 3 | U19: 36
G20: Fibrobacterota | H20: 3 | I20: 131 | J20: Berkelbacteria | K20: 2 | L20: 100 | M20: Babeliales | N20: 11 | O20: 290 | P20: Alteromonadaceae | Q20: 18 | R20: 15350 | S20: Ahniella | T20: 13 | U20: 4727
G21: Firmicutes | H21: 51 | I21: 2338 | J21: Blastocatellia | K21: 136 | L21: 63267 | M21: Bacillales | N21: 0 | O21: 0 | P21: Amb-16S-1323 | Q21: 3 | R21: 186 | S21: Alishewanella | T21: 1 | U21: 61
G22: Fusobacteriota | H22: 10 | I22: 1166 | J22: Brevinematia | K22: 1 | L22: 5 | M22: Bacteriovoracales | N22: 61 | O22: 3811 | P22: Amoebophilaceae | Q22: 4 | R22: 51 | S22: Alkanindiges | T22: 2 | U22: 146
G23: Gemmatimonadota | H23: 91 | I23: 20818 | J23: Campylobacteria | K23: 8 | L23: 440 | M23: Bacteroidales | N23: 15 | O23: 1036 | P23: Anaerolineaceae | Q23: 6 | R23: 223 | S23: Alloprevotella | T23: 1 | U23: 11
G24: Halobacterota | H24: 1 | I24: 10 | J24: Chitinivibrionia | K24: 1 | L24: 3 | M24: Bacteroidetes VC2.1 Bac22 | N24: 7 | O24: 2929 | P24: Arcobacteraceae | Q24: 7 | R24: 435 | S24: Allorhizobium-Neorhizobium-Pararhizobium-Rhizobium | T24: 18 | U24: 16062
G25: Hydrogenedentes | H25: 13 | I25: 470 | J25: Chlamydiae | K25: 98 | L25: 5937 | M25: BD72BR169 | N25: 2 | O25: 21 | P25: Ardenticatenaceae | Q25: 21 | R25: 4933 | S25: alphaI cluster | T25: 1 | U25: 36
G26: Iainarchaeota | H26: 2 | I26: 61 | J26: Chloroflexia | K26: 112 | L26: 44129 | M26: Bdellovibrionales | N26: 274 | O26: 26999 | P26: Armatimonadaceae | Q26: 14 | R26: 6737 | S26: Aminobacter | T26: 3 | U26: 145
G27: Latescibacterota | H27: 3 | I27: 47 | J27: Chthonomonadetes | K27: 3 | L27: 95 | M27: Beggiatoales | N27: 9 | O27: 3339 | P27: Azospirillaceae | Q27: 1 | R27: 7 | S27: Amphiplicatus | T27: 5 | U27: 828
G28: Margulisbacteria | H28: 2 | I28: 18 | J28: Clostridia | K28: 20 | L28: 304 | M28: Blastocatellales | N28: 61 | O28: 15033 | P28: Azospirillales Incertae Sedis | Q28: 17 | R28: 1200 | S28: Aquicella | T28: 9 | U28: 152
G29: MBNT15 | H29: 8 | I29: 235 | J29: Cyanobacteriia | K29: 20 | L29: 1994 | M29: Blfdi19 | N29: 15 | O29: 1738 | P29: B1-7BS | Q29: 6 | R29: 1320 | S29: Aquisphaera | T29: 1 | U29: 6
G30: Myxococcota | H30: 413 | I30: 101679 | J30: Dehalococcoidia | K30: 5 | L30: 113 | M30: Bradymonadales | N30: 16 | O30: 1072 | P30: bac2nit3 | Q30: 6 | R30: 1279 | S30: Arachidicoccus | T30: 1 | U30: 4
G31: Nanoarchaeota | H31: 4 | I31: 31 | J31: Deinococci | K31: 29 | L31: 6636 | M31: Brevinematales | N31: 1 | O31: 5 | P31: Bacillaceae | Q31: 0 | R31: 0 | S31: Archangium | T31: 3 | U31: 358
G32: NB1-j | H32: 11 | I32: 2436 | J32: Desulfuromonadia | K32: 38 | L32: 9628 | M32: Bryobacterales | N32: 8 | O32: 1128 | P32: Bacteriovoracaceae | Q32: 61 | R32: 3811 | S32: Arcicella | T32: 27 | U32: 40337
G33: Nitrospirota | H33: 73 | I33: 72691 | J33: Fibrobacteria | K33: 2 | L33: 128 | M33: Burkholderiales | N33: 728 | O33: 768777 | P33: Bacteroidaceae | Q33: 1 | R33: 16 | S33: Arcobacter | T33: 2 | U33: 45
G34: Patescibacteria | H34: 325 | I34: 65135 | J34: Fimbriimonadia | K34: 18 | L34: 1719 | M34: Caedibacterales | N34: 14 | O34: 2029 | P34: Bdellovibrionaceae | Q34: 274 | R34: 26999 | S34: Arcticibacter | T34: 2 | U34: 100
G35: Planctomycetota | H35: 811 | I35: 169196 | J35: Fusobacteriia | K35: 10 | L35: 1166 | M35: Caenarcaniphilales | N35: 5 | O35: 152 | P35: Beggiatoaceae | Q35: 9 | R35: 3339 | S35: Arenimonas | T35: 27 | U35: 10016
G36: Proteobacteria | H36: 3606 | I36: 1860762 | J36: Gammaproteobacteria | K36: 1419 | L36: 1001152 | M36: Caldilineales | N36: 79 | O36: 36220 | P36: Beijerinckiaceae | Q36: 22 | R36: 8672 | S36: Aridibacter | T36: 2 | U36: 211
G37: SAR324 clade(Marine group B) | H37: 41 | I37: 588 | J37: Gemmatimonadetes | K37: 91 | L37: 20818 | M37: Campylobacterales | N37: 8 | O37: 440 | P37: Bernardetiaceae | Q37: 1 | R37: 10 | S37: Armatimonas | T37: 14 | U37: 6737
G38: Spirochaetota | H38: 21 | I38: 2242 | J38: Gracilibacteria | K38: 165 | L38: 55841 | M38: Candidatus Campbellbacteria | N38: 1 | O38: 2 | P38: BIrii41 | Q38: 3 | R38: 30 | S38: Arsenicibacter | T38: 3 | U38: 199
G39: Sumerlaeota | H39: 5 | I39: 411 | J39: Holophagae | K39: 4 | L39: 120 | M39: Candidatus Falkowbacteria | N39: 4 | O39: 136 | P39: Blastocatellaceae | Q39: 61 | R39: 15033 | S39: Asinibacterium | T39: 5 | U39: 2149
G40: Verrucomicrobiota | H40: 591 | I40: 252131 | J40: Hydrogenedentia | K40: 13 | L40: 470 | M40: Candidatus Kaiserbacteria | N40: 1 | O40: 2 | P40: Brevibacteriaceae | Q40: 1 | R40: 16 | S40: Asticcacaulis | T40: 1 | U40: 3
G41: WPS-2 | H41: 16 | I41: 1688 | J41: Iainarchaeia | K41: 2 | L41: 61 | M41: Candidatus Magasanikbacteria | N41: 10 | O41: 282 | P41: Brevinemataceae | Q41: 1 | R41: 5 | S41: Aurantimicrobium | T41: 15 | U41: 10007
J42: Kapabacteria | K42: 67 | L42: 14801 | M42: Candidatus Moranbacteria | N42: 1 | O42: 2 | P42: Bryobacteraceae | Q42: 8 | R42: 1128 | S42: Aurantisolimonas | T42: 2 | U42: 9
J43: KD4-96 | K43: 5 | L43: 65 | M43: Candidatus Nomurabacteria | N43: 30 | O43: 1541 | P43: Burkholderiaceae | Q43: 10 | R43: 977 | S43: Aureispira | T43: 11 | U43: 3981
J44: Kiritimatiellae | K44: 6 | L44: 360 | M44: Candidatus Peregrinibacteria | N44: 12 | O44: 1716 | P44: Caedibacteraceae | Q44: 14 | R44: 2029 | S44: Azohydromonas | T44: 10 | U44: 3820
J45: Leptospirae | K45: 20 | L45: 2237 | M45: Candidatus Peribacteria | N45: 15 | O45: 3637 | P45: Caldilineaceae | Q45: 79 | R45: 36220 | S45: Bacillus | T45: 0 | U45: 0
J46: Lineage IIa | K46: 1 | L46: 8 | M46: Candidatus Yonathbacteria | N46: 4 | O46: 55 | P46: Candidatus Iainarchaeum | Q46: 2 | R46: 61 | S46: Bacteriovorax | T46: 11 | U46: 812
J47: Methanobacteria | K47: 1 | L47: 3 | M47: Caulobacterales | N47: 156 | O47: 52631 | P47: Candidatus Jidaibacter | Q47: 13 | R47: 846 | S47: Bacteroides | T47: 1 | U47: 16
J48: Methanosarcinia | K48: 1 | L48: 10 | M48: CCD24 | N48: 2 | O48: 22 | P48: Caulobacteraceae | Q48: 76 | R48: 36373 | S48: Bauldia | T48: 13 | U48: 447
J49: Myxococcia | K49: 42 | L49: 7008 | M49: CCM19a | N49: 2 | O49: 57 | P49: Cellvibrionaceae | Q49: 11 | R49: 1648 | S49: BD1-7 clade | T49: 4 | U49: 1258
J50: Nanoarchaeia | K50: 4 | L50: 31 | M50: Cellvibrionales | N50: 25 | O50: 4072 | P50: Chitinibacteraceae | Q50: 3 | R50: 560 | S50: Bdellovibrio | T50: 255 | U50: 24563
J51: Negativicutes | K51: 4 | L51: 39 | M51: Chitinivibrionales | N51: 1 | O51: 3 | P51: Chitinimonadaceae | Q51: 7 | R51: 389 | S51: Bergeyella | T51: 4 | U51: 452
J52: Nitrososphaeria | K52: 2 | L52: 174 | M52: Chitinophagales | N52: 876 | O52: 626252 | P52: Chitinivibrionaceae | Q52: 1 | R52: 3 | S52: Bernardetia | T52: 1 | U52: 10
J53: Nitrospiria | K53: 73 | L53: 72691 | M53: Chlamydiales | N53: 98 | O53: 5937 | P53: Chitinophagaceae | Q53: 237 | R53: 110276 | S53: Blastocatella | T53: 32 | U53: 10312
J54: OLB14 | K54: 8 | L54: 1421 | M54: Chloroflexales | N54: 44 | O54: 17563 | P54: Chlamydiaceae | Q54: 1 | R54: 8 | S54: Blastopirellula | T54: 31 | U54: 9837
J55: Oligoflexia | K55: 173 | L55: 6890 | M55: Chloroplast | N55: 20 | O55: 1994 | P55: Chloroflexaceae | Q55: 3 | R55: 33 | S55: Bosea | T55: 9 | U55: 7699
J56: OM190 | K56: 73 | L56: 17481 | M56: Chthoniobacterales | N56: 52 | O56: 19557 | P56: Chromobacteriaceae | Q56: 14 | R56: 14851 | S56: Bradyrhizobium | T56: 3 | U56: 287
J57: Omnitrophia | K57: 2 | L57: 19 | M57: Chthonomonadales | N57: 3 | O57: 95 | P57: Chthoniobacteraceae | Q57: 33 | R57: 17242 | S57: Brevibacterium | T57: 1 | U57: 16
J58: Parcubacteria | K58: 81 | L58: 3938 | M58: Clostridiales | N58: 6 | O58: 135 | P58: Chthonomonadaceae | Q58: 3 | R58: 95 | S58: Brevifollis | T58: 5 | U58: 92
J59: Phycisphaerae | K59: 72 | L59: 3343 | M59: Corynebacteriales | N59: 35 | O59: 7576 | P59: Clostridiaceae | Q59: 6 | R59: 135 | S59: Brevinema | T59: 1 | U59: 5
J60: Pla4 lineage | K60: 1 | L60: 7 | M60: Coxiellales | N60: 35 | O60: 1811 | P60: Comamonadaceae | Q60: 453 | R60: 691655 | S60: Brevundimonas | T60: 45 | U60: 27467
J61: Planctomycetes | K61: 647 | L61: 143850 | M61: Cytophagales | N61: 327 | O61: 307562 | P61: Corynebacteriaceae | Q61: 1 | R61: 30 | S61: Bryobacter | T61: 8 | U61: 1128
J62: Polyangia | K62: 365 | L62: 94352 | M62: Deinococcales | N62: 24 | O62: 4994 | P62: Coxiellaceae | Q62: 35 | R62: 1811 | S62: Bythopirellula | T62: 1 | U62: 89
J63: Rhodothermia | K63: 2 | L63: 1129 | M63: Desulfurococcales | N63: 1 | O63: 2 | P63: Crocinitomicaceae | Q63: 51 | R63: 27484 | S63: Caedibacter | T63: 9 | U63: 1888
J64: Saccharimonadia | K64: 59 | L64: 4766 | M64: Diplorickettsiales | N64: 26 | O64: 642 | P64: Cryomorphaceae | Q64: 2 | R64: 85 | S64: Candidatus Alysiosphaera | T64: 7 | U64: 1570
J65: Sericytochromatia | K65: 10 | L65: 323 | M65: Dongiales | N65: 7 | O65: 2358 | P65: Cyclobacteriaceae | Q65: 12 | R65: 2848 | S65: Candidatus Amoebophilus | T65: 2 | U65: 17
J66: SJA-28 | K66: 2 | L66: 8 | M66: DS-100 | N66: 1 | O66: 15 | P66: Cytophagaceae | Q66: 25 | R66: 3155 | S66: Candidatus Arcanobacter | T66: 2 | U66: 24
J67: Sumerlaeia | K67: 5 | L67: 411 | M67: EC3 | N67: 6 | O67: 74 | P67: D05-2 | Q67: 1 | R67: 17 | S67: Candidatus Berkiella | T67: 6 | U67: 697
J68: Thermoanaerobaculia | K68: 36 | L68: 5898 | M68: Elev-16S-1166 | N68: 2 | O68: 38 | P68: Deinococcaceae | Q68: 20 | R68: 4803 | S68: Candidatus Captivus | T68: 5 | U68: 415
J69: Thermoleophilia | K69: 28 | L69: 2876 | M69: Elsterales | N69: 9 | O69: 570 | P69: Desulfurococcaceae | Q69: 1 | R69: 2 | S69: Candidatus Cryptoprodotis | T69: 1 | U69: 21
J70: Thermoprotei | K70: 1 | L70: 2 | M70: Enterobacterales | N70: 9 | O70: 510 | P70: DEV007 | Q70: 6 | R70: 1231 | S70: Candidatus Fritschea | T70: 5 | U70: 133
J71: TK10 | K71: 2 | L71: 14 | M71: Exiguobacterales | N71: 4 | O71: 1042 | P71: Devosiaceae | Q71: 7 | R71: 2115 | S71: Candidatus Gortzia | T71: 4 | U71: 409
J72: Vampirivibrionia | K72: 31 | L72: 1885 | M72: F9P41300-M23 | N72: 1 | O72: 16 | P72: Diplorickettsiaceae | Q72: 26 | R72: 642 | S72: Candidatus Megaira | T72: 13 | U72: 5238
J73: Verrucomicrobiae | K73: 485 | L73: 245815 | M73: Ferrovibrionales | N73: 9 | O73: 741 | P73: Dongiaceae | Q73: 7 | R73: 2358 | S73: Candidatus Nitrocosmicus | T73: 2 | U73: 174
J74: Vicinamibacteria | K74: 66 | L74: 63562 | M74: FFCH16767 | N74: 1 | O74: 62 | P74: Elsteraceae | Q74: 9 | R74: 570 | S74: Candidatus Obscuribacter | T74: 3 | U74: 618
M75: Fibrobacterales | N75: 2 | O75: 128 | P75: Enterobacteriaceae | Q75: 5 | R75: 189 | S75: Candidatus Odyssella | T75: 1 | U75: 4
M76: Fimbriimonadales | N76: 18 | O76: 1719 | P76: Enterococcaceae | Q76: 0 | R76: 0 | S76: Candidatus Omnitrophus | T76: 2 | U76: 19
M77: Flavobacteriales | N77: 494 | O77: 395268 | P77: env.OPS 17 | Q77: 83 | R77: 34541 | S77: Candidatus Ovatusbacter | T77: 7 | U77: 95
M78: Francisellales | N78: 4 | O78: 46 | P78: Erwiniaceae | Q78: 2 | R78: 57 | S78: Candidatus Paenicardinium | T78: 1 | U78: 10
M79: Frankiales | N79: 12 | O79: 487 | P79: Exiguobacteraceae | Q79: 4 | R79: 1042 | S79: Candidatus Paracaedibacter | T79: 20 | U79: 1501
M80: Fusobacteriales | N80: 10 | O80: 1166 | P80: Ferrovibrionaceae | Q80: 4 | R80: 61 | S80: Candidatus Protochlamydia | T80: 16 | U80: 1467
M81: Ga0077536 | N81: 5 | O81: 178 | P81: Fibrobacteraceae | Q81: 2 | R81: 128 | S81: Candidatus Symbiobacter | T81: 2 | U81: 1346
M82: Gaiellales | N82: 8 | O82: 127 | P82: Fimbriimonadaceae | Q82: 18 | R82: 1719 | S82: Candidatus Thiophysa | T82: 1 | U82: 1014
M83: Gammaproteobacteria Incertae Sedis | N83: 29 | O83: 5292 | P83: Flavobacteriaceae | Q83: 328 | R83: 296671 | S83: Candidatus Trichorickettsia | T83: 2 | U83: 64
M84: Gemmatales | N84: 161 | O84: 31269 | P84: Fodinicurvataceae | Q84: 8 | R84: 842 | S84: Candidatus Xiphinematobacter | T84: 3 | U84: 184
M85: Gemmatimonadales | N85: 91 | O85: 20818 | P85: Fokiniaceae | Q85: 2 | R85: 11 | S85: Candidimonas | T85: 4 | U85: 1126
M86: Haliangiales | N86: 69 | O86: 31268 | P86: Francisellaceae | Q86: 4 | R86: 46 | S86: Castellaniella | T86: 1 | U86: 9
M87: Holophagales | N87: 1 | O87: 2 | P87: Fusibacteraceae | Q87: 1 | R87: 6 | S87: Caulobacter | T87: 9 | U87: 2252
M88: Holosporales | N88: 22 | O88: 4145 | P88: Fusobacteriaceae | Q88: 5 | R88: 1078 | S88: Cellvibrio | T88: 11 | U88: 1648
M89: Hydrogenedentiales | N89: 13 | O89: 470 | P89: Geminicoccaceae | Q89: 7 | R89: 1570 | S89: Cephaloticoccus | T89: 3 | U89: 1251
M90: Iainarchaeales | N90: 2 | O90: 61 | P90: Gemmataceae | Q90: 161 | R90: 31269 | S90: Cerasicoccus | T90: 5 | U90: 83
M91: IMCC26256 | N91: 12 | O91: 367 | P91: Gemmatimonadaceae | Q91: 91 | R91: 20818 | S91: Cereibacter | T91: 2 | U91: 1548
M92: Isosphaerales | N92: 35 | O92: 4258 | P92: Geodermatophilaceae | Q92: 3 | R92: 51 | S92: Cetobacterium | T92: 5 | U92: 1078
M93: JG36-TzT-191 | N93: 5 | O93: 1146 | P93: Haliangiaceae | Q93: 69 | R93: 31268 | S93: Chelatococcus | T93: 5 | U93: 210
M94: JGI 0000069-P22 | N94: 10 | O94: 1245 | P94: Halieaceae | Q94: 6 | R94: 887 | S94: Chiayiivirga | T94: 2 | U94: 322
M95: Kapabacteriales | N95: 67 | O95: 14801 | P95: Holophagaceae | Q95: 1 | R95: 2 | S95: Chitinibacter | T95: 2 | U95: 553
M96: KI89A clade | N96: 9 | O96: 283 | P96: Holosporaceae | Q96: 22 | R96: 4145 | S96: Chitinimonas | T96: 2 | U96: 291
M97: Kiloniellales | N97: 8 | O97: 842 | P97: Hydrogenedensaceae | Q97: 13 | R97: 470 | S97: Chitinivorax | T97: 5 | U97: 98
M98: Kineosporiales | N98: 1 | O98: 22 | P98: Hyphomicrobiaceae | Q98: 54 | R98: 6293 | S98: Chryseobacterium | T98: 55 | U98: 61400
M99: Lachnospirales | N99: 3 | O99: 24 | P99: Hyphomonadaceae | Q99: 75 | R99: 15430 | S99: Chryseolinea | T99: 1 | U99: 825
M100: Lactobacillales | N100: 19 | O100: 855 | P100: Iamiaceae | Q100: 8 | R100: 942 | S100: Chthoniobacter | T100: 33 | U100: 17242
M101: Legionellales | N101: 47 | O101: 1700 | P101: Ilumatobacteraceae | Q101: 22 | R101: 791 | S101: Chthonobacter | T101: 3 | U101: 402
M102: Leptospirales | N102: 20 | O102: 2237 | P102: Inquilinaceae | Q102: 4 | R102: 65 | S102: Chthonomonas | T102: 3 | U102: 95
M103: Methanobacteriales | N103: 1 | O103: 3 | P103: Intrasporangiaceae | Q103: 2 | R103: 56 | S103: CL500-29 marine group | T103: 9 | U103: 382
M104: Methanosarciniales | N104: 1 | O104: 10 | P104: Isosphaeraceae | Q104: 35 | R104: 4258 | S104: Cloacibacterium | T104: 7 | U104: 1738
M105: Methylacidiphilales | N105: 2 | O105: 148 | P105: JG30-KF-CM45 | Q105: 52 | R105: 25663 | S105: Clostridium sensu stricto 1 | T105: 5 | U105: 133
M106: Micavibrionales | N106: 116 | O106: 9261 | P106: KD3-93 | Q106: 8 | R106: 556 | S106: Clostridium sensu stricto 3 | T106: 1 | U106: 2
M107: Micrococcales | N107: 66 | O107: 41997 | P107: Kineosporiaceae | Q107: 1 | R107: 22 | S107: Conexibacter | T107: 2 | U107: 8
M108: Micropepsales | N108: 6 | O108: 1325 | P108: Lachnospiraceae | Q108: 3 | R108: 24 | S108: Coxiella | T108: 35 | U108: 1811
M109: Microtrichales | N109: 66 | O109: 4961 | P109: Lactobacillaceae | Q109: 6 | R109: 269 | S109: Crocinitomix | T109: 12 | U109: 6152
M110: mle1-27 | N110: 32 | O110: 2903 | P110: Legionellaceae | Q110: 47 | R110: 1700 | S110: Curvibacter | T110: 4 | U110: 6542
M111: Myxococcales | N111: 42 | O111: 7008 | P111: Leptospiraceae | Q111: 20 | R111: 2237 | S111: Cutibacterium | T111: 5 | U111: 194
M112: Nannocystales | N112: 55 | O112: 14873 | P112: Leptotrichiaceae | Q112: 5 | R112: 88 | S112: Cytophaga | T112: 21 | U112: 2845
M113: Nitrososphaerales | N113: 2 | O113: 174 | P113: Leuconostocaceae | Q113: 4 | R113: 54 | S113: Dechloromonas | T113: 5 | U113: 573
M114: Nitrospirales | N114: 73 | O114: 72691 | P114: Listeriaceae | Q114: 0 | R114: 0 | S114: Dechlorosoma | T114: 1 | U114: 18
M115: Obscuribacterales | N115: 19 | O115: 1397 | P115: LWQ8 | Q115: 11 | R115: 907 | S115: Deefgea | T115: 1 | U115: 7
M116: Oceanospirillales | N116: 11 | O116: 3184 | P116: Methanobacteriaceae | Q116: 1 | R116: 3 | S116: Defluviimonas | T116: 32 | U116: 21949
M117: Oligoflexales | N117: 50 | O117: 1564 | P117: Methanosarcinaceae | Q117: 1 | R117: 10 | S117: Deinobacterium | T117: 2 | U117: 409
M118: Omnitrophales | N118: 2 | O118: 19 | P118: Methylacidiphilaceae | Q118: 2 | R118: 148 | S118: Deinococcus | T118: 17 | U118: 4175
M119: Opitutales | N119: 47 | O119: 9588 | P119: Methylophilaceae | Q119: 1 | R119: 11 | S119: Delftia | T119: 1 | U119: 155
M120: Paludibaculum | N120: 5 | O120: 161 | P120: Micavibrionaceae | Q120: 15 | R120: 358 | S120: DEV008 | T120: 1 | U120: 16
M121: Paracaedibacterales | N121: 58 | O121: 4930 | P121: Microbacteriaceae | Q121: 61 | R121: 41891 | S121: DEV114 | T121: 21 | U121: 8155
M122: PB19 | N122: 22 | O122: 8556 | P122: Micrococcaceae | Q122: 2 | R122: 34 | S122: Devosia | T122: 2 | U122: 41
M123: Pedosphaerales | N123: 148 | O123: 67365 | P123: Micropepsaceae | Q123: 6 | R123: 1325 | S123: Dokdonella | T123: 6 | U123: 671
M124: PeM15 | N124: 3 | O124: 36 | P124: Microscillaceae | Q124: 56 | R124: 16631 | S124: Dongia | T124: 7 | U124: 2358
M125: Peptostreptococcales-Tissierellales | N125: 11 | O125: 145 | P125: Microtrichaceae | Q125: 36 | R125: 3228 | S125: Dyadobacter | T125: 4 | U125: 152
M126: Phycisphaerales | N126: 47 | O126: 1349 | P126: Mitochondria | Q126: 373 | R126: 35187 | S126: Edaphobaculum | T126: 23 | U126: 4075
M127: Pirellulales | N127: 254 | O127: 59150 | P127: Moraxellaceae | Q127: 56 | R127: 13490 | S127: Ekhidna | T127: 5 | U127: 677
M128: Planctomycetales | N128: 179 | O128: 48626 | P128: Mycobacteriaceae | Q128: 26 | R128: 7176 | S128: Ellin6055 | T128: 10 | U128: 1813
M129: PLTA13 | N129: 2 | O129: 54 | P129: Myxococcaceae | Q129: 42 | R129: 7008 | S129: Ellin6067 | T129: 5 | U129: 443
M130: Polyangiales | N130: 183 | O130: 42277 | P130: Nakamurellaceae | Q130: 9 | R130: 436 | S130: Elstera | T130: 5 | U130: 535
M131: Propionibacteriales | N131: 20 | O131: 1317 | P131: Nannocystaceae | Q131: 55 | R131: 14873 | S131: Emticicia | T131: 61 | U131: 111585
M132: Pseudomonadales | N132: 74 | O132: 17354 | P132: Neisseriaceae | Q132: 35 | R132: 7319 | S132: Enhydrobacter | T132: 11 | U132: 2370
M133: Pyrinomonadales | N133: 6 | O133: 2356 | P133: Nitrincolaceae | Q133: 7 | R133: 2300 | S133: Enhygromyxa | T133: 5 | U133: 1867
M134: R7C24 | N134: 7 | O134: 1954 | P134: Nitrosomonadaceae | Q134: 62 | R134: 14912 | S134: Ensifer | T134: 2 | U134: 103
M135: RBG-13-54-9 | N135: 25 | O135: 52955 | P135: Nitrososphaeraceae | Q135: 2 | R135: 174 | S135: Enterococcus | T135: 0 | U135: 0
M136: Reyranellales | N136: 37 | O136: 12542 | P136: Nitrospiraceae | Q136: 73 | R136: 72691 | S136: Epulopiscium | T136: 1 | U136: 19
M137: Rhizobiales | N137: 425 | O137: 327087 | P137: Nocardiaceae | Q137: 7 | R137: 362 | S137: Escherichia-Shigella | T137: 0 | U137: 0
M138: Rhodobacterales | N138: 215 | O138: 243707 | P138: Nocardioidaceae | Q138: 15 | R138: 1123 | S138: Exiguobacterium | T138: 4 | U138: 1042
M139: Rhodospirillales | N139: 29 | O139: 1181 | P139: NS11-12 marine group | Q139: 75 | R139: 23647 | S139: Ferrovibrio | T139: 4 | U139: 61
M140: Rhodothermales | N140: 2 | O140: 1129 | P140: NS9 marine group | Q140: 41 | R140: 7007 | S140: Ferruginibacter | T140: 26 | U140: 4856
M141: Rickettsiales | N141: 578 | O141: 52811 | P141: Obscuribacteraceae | Q141: 19 | R141: 1397 | S141: FFCH7168 | T141: 3 | U141: 33
M142: S085 | N142: 5 | O142: 113 | P142: Omnitrophaceae | Q142: 2 | R142: 19 | S142: Fimbriiglobus | T142: 56 | U142: 3060
M143: Saccharimonadales | N143: 59 | O143: 4766 | P143: Opitutaceae | Q143: 37 | R143: 9478 | S143: Flavihumibacter | T143: 6 | U143: 573
M144: Salinisphaerales | N144: 1 | O144: 4 | P144: Oxalobacteraceae | Q144: 39 | R144: 14329 | S144: Flavobacterium | T144: 316 | U144: 295317
M145: SBR1031 | N145: 105 | O145: 24472 | P145: Paludibacteraceae | Q145: 1 | R145: 9 | S145: Flectobacillus | T145: 40 | U145: 77111
M146: SM1A07 | N146: 14 | O146: 393 | P146: Paracaedibacteraceae | Q146: 58 | R146: 4930 | S146: Flexibacter | T146: 3 | U146: 431
M147: Solirubrobacterales | N147: 20 | O147: 2749 | P147: Parachlamydiaceae | Q147: 63 | R147: 3836 | S147: Fluviicola | T147: 39 | U147: 21332
M148: Sphingobacteriales | N148: 221 | O148: 65723 | P148: Parvularculaceae | Q148: 5 | R148: 828 | S148: Fluviimonas | T148: 3 | U148: 881
M149: Sphingomonadales | N149: 240 | O149: 127565 | P149: Pedosphaeraceae | Q149: 148 | R149: 67365 | S149: FukuN18 freshwater group | T149: 1 | U149: 28
M150: Staphylococcales | N150: 4 | O150: 98 | P150: Peptoniphilus | Q150: 2 | R150: 9 | S150: Fusibacter | T150: 1 | U150: 6
M151: Steroidobacterales | N151: 17 | O151: 905 | P151: Peptostreptococcaceae | Q151: 5 | R151: 85 | S151: Galbitalea | T151: 7 | U151: 1763
M152: Subgroup 17 | N152: 19 | O152: 5949 | P152: Phaselicystidaceae | Q152: 53 | R152: 14960 | S152: Gemmata | T152: 29 | U152: 1332
M153: Sumerlaeales | N153: 4 | O153: 388 | P153: Phycisphaeraceae | Q153: 47 | R153: 1349 | S153: Gemmatimonas | T153: 39 | U153: 13371
M154: Tepidisphaerales | N154: 25 | O154: 1994 | P154: Pirellulaceae | Q154: 254 | R154: 59150 | S154: Gemmobacter | T154: 21 | U154: 22650
M155: Thermales | N155: 5 | O155: 1642 | P155: Pleomorphomonadaceae | Q155: 6 | R155: 430 | S155: Gordonia | T155: 1 | U155: 36
M156: Thermoanaerobaculales | N156: 36 | O156: 5898 | P156: Polyangiaceae | Q156: 92 | R156: 18712 | S156: Haliangium | T156: 69 | U156: 31268
M157: Thermomicrobiales | N157: 66 | O157: 26490 | P157: Porticoccaceae | Q157: 4 | R157: 279 | S157: Haliscomenobacter | T157: 22 | U157: 90729
M158: Thiotrichales | N158: 10 | O158: 333 | P158: Prevotellaceae | Q158: 3 | R158: 38 | S158: Hirschia | T158: 8 | U158: 4917
M159: Tistrellales | N159: 7 | O159: 1570 | P159: Propionibacteriaceae | Q159: 5 | R159: 194 | S159: Hoeflea | T159: 1 | U159: 12
M160: Vampirovibrionales | N160: 7 | O160: 336 | P160: Pseudohongiellaceae | Q160: 3 | R160: 844 | S160: Hydrogenophaga | T160: 59 | U160: 41045
M161: Veillonellales-Selenomonadales | N161: 3 | O161: 26 | P161: Pseudomonadaceae | Q161: 17 | R161: 3857 | S161: Hyphomicrobium | T161: 29 | U161: 2762
M162: Verrucomicrobiales | N162: 228 | O162: 147901 | P162: Puniceicoccaceae | Q162: 10 | R162: 110 | S162: Hyphomonas | T162: 4 | U162: 60
M163: Vibrionales | N163: 2 | O163: 192 | P163: Pyrinomonadaceae | Q163: 6 | R163: 2356 | S163: Hypnocyclicus | T163: 4 | U163: 84
M164: Vicinamibacterales | N164: 47 | O164: 57613 | P164: Raineyaceae | Q164: 5 | R164: 2061 | S164: Iamia | T164: 8 | U164: 942
M165: WCHB1-41 | N165: 6 | O165: 360 | P165: Reyranellaceae | Q165: 37 | R165: 12542 | S165: Ideonella | T165: 15 | U165: 80543
M166: WD260 | N166: 1 | O166: 36 | P166: Rhizobiaceae | Q166: 133 | R166: 141984 | S166: Ilumatobacter | T166: 4 | U166: 176
M167: Woesearchaeales | N167: 4 | O167: 31 | P167: Rhizobiales Incertae Sedis | Q167: 130 | R167: 35939 | S167: IMCC26134 | T167: 14 | U167: 6338
M168: Xanthomonadales | N168: 181 | O168: 97116 | P168: Rhodanobacteraceae | Q168: 56 | R168: 24243 | S168: IMCC26207 | T168: 6 | U168: 176
P169: Rhodobacteraceae | Q169: 215 | R169: 243707 | S169: Inhella | T169: 1 | U169: 26
P170: Rhodocyclaceae | Q170: 12 | R170: 841 | S170: Inquilinus | T170: 4 | U170: 65
P171: Rhodospirillaceae | Q171: 10 | R171: 753 | S171: Isosphaera | T171: 9 | U171: 1276
P172: Rhodothermaceae | Q172: 2 | R172: 1129 | S172: Izhakiella | T172: 2 | U172: 57
P173: Rickettsiaceae | Q173: 38 | R173: 6360 | S173: JCM 18997 | T173: 1 | U173: 5
P174: Rikenellaceae | Q174: 1 | R174: 3 | S174: JGI 0001001-H03 | T174: 9 | U174: 781
P175: Roseiflexaceae | Q175: 41 | R175: 17530 | S175: KD3-10 | T175: 2 | U175: 27
P176: Rubinisphaeraceae | Q176: 92 | R176: 42250 | S176: Kouleothrix | T176: 27 | U176: 15196
P177: Rubritaleaceae | Q177: 94 | R177: 76054 | S177: Labilithrix | T177: 1 | U177: 7
P178: Saccharimonadaceae | Q178: 8 | R178: 1126 | S178: Lacibacter | T178: 12 | U178: 3838
P179: Sandaracinaceae | Q179: 32 | R179: 8120 | S179: Lacibacterium | T179: 4 | U179: 35
P180: Saprospiraceae | Q180: 425 | R180: 376627 | S180: Lacihabitans | T180: 11 | U180: 3078
P181: Schlesneriaceae | Q181: 12 | R181: 360 | S181: Lactobacillus | T181: 6 | U181: 269
P182: SC-I-84 | Q182: 8 | R182: 725 | S182: Lactococcus | T182: 5 | U182: 426
P183: Selenomonadaceae | Q183: 3 | R183: 26 | S183: Lacunisphaera | T183: 7 | U183: 444
P184: Shewanellaceae | Q184: 4 | R184: 1109 | S184: Larkinella | T184: 1 | U184: 6
P185: Simkaniaceae | Q185: 26 | R185: 1970 | S185: Lautropia | T185: 4 | U185: 431
P186: SM2D12 | Q186: 104 | R186: 7117 | S186: Lawsonella | T186: 1 | U186: 30
P187: Solimonadaceae | Q187: 1 | R187: 4 | S187: Legionella | T187: 44 | U187: 1615
P188: Solirubrobacteraceae | Q188: 3 | R188: 13 | S188: Leptospira | T188: 3 | U188: 142
P189: Sphingobacteriaceae | Q189: 30 | R189: 4400 | S189: Leptothrix | T189: 8 | U189: 9864
P190: Sphingomonadaceae | Q190: 240 | R190: 127565 | S190: Leucobacter | T190: 8 | U190: 3587
P191: Spirosomaceae | Q191: 204 | R191: 265021 | S191: Leuconostoc | T191: 1 | U191: 13
P192: Spongiibacteraceae | Q192: 4 | R192: 1258 | S192: Lewinella | T192: 3 | U192: 1537
P193: Staphylococcaceae | Q193: 4 | R193: 98 | S193: Limnohabitans | T193: 7 | U193: 13158
P194: Steroidobacteraceae | Q194: 17 | R194: 905 | S194: Listeria | T194: 0 | U194: 0
P195: Streptococcaceae | Q195: 9 | R195: 532 | S195: Luteimonas | T195: 24 | U195: 11392
P196: Sulfurovaceae | Q196: 1 | R196: 5 | S196: Luteitalea | T196: 3 | U196: 71
P197: Sumerlaeaceae | Q197: 4 | R197: 388 | S197: Luteolibacter | T197: 90 | U197: 75966
P198: Sutterellaceae | Q198: 12 | R198: 6334 | S198: Lysobacter | T198: 4 | U198: 621
P199: T34 | Q199: 1 | R199: 56 | S199: Malikia | T199: 14 | U199: 16121
P200: Taonella | Q200: 5 | R200: 680 | S200: Maribacter | T200: 4 | U200: 1174
P201: Tepidisphaeraceae | Q201: 19 | R201: 1938 | S201: Marmoricola | T201: 2 | U201: 89
... 174 more rows

Sheet ASV_MiSeq_rps
A1: asv_number | B1: source | C1: mock | D1: sample01 | E1: sample02 | F1: sample03 | G1: sample04 | H1: sample05 | I1: sample06 | J1: sample07 | K1: sample08 | L1: sample09 | M1: sample10 | N1: sample11 | O1: sample12 | P1: sample13 | Q1: sample14 | R1: sample15 | S1: sample16 | T1: sample17 | U1: sample18 | V1: reads | W1: kingdom | X1: phylum | Y1: class | Z1: order | AA1: family | AB1: genus
A2: 1 | B2: sample | C2: 0 | D2: 8986 | E2: 6693 | F2: 6593 | G2: 50910 | H2: 38163 | I2: 33409 | J2: 9267 | K2: 9547 | L2: 8161 | M2: 1120 | N2: 869 | O2: 861 | P2: 0 | Q2: 0 | R2: 0 | S2: 0 | T2: 0 | U2: 0 | V2: =SUM(C2:U2) -> 174579 | W2: Bacteria | X2: Proteobacteria | Y2: Alphaproteobacteria | Z2: Rhizobiales | AA2: Rhizobiaceae | AB2: NA
A3: 2 | B3: sample | C3: 0 | D3: 0 | E3: 3 | F3: 0 | G3: 0 | H3: 0 | I3: 0 | J3: 69 | K3: 124 | L3: 668 | M3: 0 | N3: 0 | O3: 0 | P3: 66410 | Q3: 45 | R3: 36538 | S3: 3279 | T3: 36 | U3: 47 | V3: =SUM(C3:U3) -> 107219 | W3: Bacteria | X3: Proteobacteria | Y3: Gammaproteobacteria | Z3: Aeromonadales | AA3: Aeromonadaceae | AB3: Aeromonas
A4: 3 | B4: sample | C4: 0 | D4: 13349 | E4: 10787 | F4: 11975 | G4: 8498 | H4: 7820 | I4: 7629 | J4: 2880 | K4: 3977 | L4: 2786 | M4: 61 | N4: 59 | O4: 75 | P4: 1837 | Q4: 2390 | R4: 1217 | S4: 2428 | T4: 5718 | U4: 2109 | V4: =SUM(C4:U4) -> 85595 | W4: Bacteria | X4: Proteobacteria | Y4: Gammaproteobacteria | Z4: Burkholderiales | AA4: Comamonadaceae | AB4: Sphaerotilus
A5: 4 | B5: sample | C5: 0 | D5: 20440 | E5: 17917 | F5: 18753 | G5: 4896 | H5: 3987 | I5: 4248 | J5: 1719 | K5: 2099 | L5: 1456 | M5: 636 | N5: 553 | O5: 450 | P5: 327 | Q5: 271 | R5: 111 | S5: 212 | T5: 462 | U5: 137 | V5: =SUM(C5:U5) -> 78674 | W5: Bacteria | X5: Proteobacteria | Y5: Gammaproteobacteria | Z5: Burkholderiales | AA5: Comamonadaceae | AB5: Ideonella
A6: 5 | B6: sample | C6: 0 | D6: 10047 | E6: 9323 | F6: 10153 | G6: 135 | H6: 113 | I6: 504 | J6: 4378 | K6: 6364 | L6: 5430 | M6: 8344 | N6: 7951 | O6: 6658 | P6: 1019 | Q6: 1015 | R6: 767 | S6: 791 | T6: 706 | U6: 737 | V6: =SUM(C6:U6) -> 74435 | W6: Bacteria | X6: Bacteroidota | Y6: Bacteroidia | Z6: Chitinophagales | AA6: Saprospiraceae | AB6: Haliscomenobacter
A7: 6 | B7: sample | C7: 0 | D7: 3724 | E7: 2475 | F7: 2982 | G7: 16387 | H7: 12553 | I7: 11904 | J7: 2239 | K7: 3834 | L7: 2058 | M7: 20 | N7: 18 | O7: 16 | P7: 229 | Q7: 835 | R7: 229 | S7: 170 | T7: 734 | U7: 240 | V7: =SUM(C7:U7) -> 60647 | W7: Bacteria | X7: Bacteroidota | Y7: Bacteroidia | Z7: Flavobacteriales | AA7: Flavobacteriaceae | AB7: Flavobacterium
A8: 7 | B8: sample | C8: 0 | D8: 908 | E8: 1022 | F8: 1077 | G8: 12277 | H8: 11178 | I8: 8569 | J8: 4668 | K8: 5787 | L8: 4373 | M8: 619 | N8: 568 | O8: 452 | P8: 626 | Q8: 556 | R8: 306 | S8: 524 | T8: 1275 | U8: 430 | V8: =SUM(C8:U8) -> 55215 | W8: Bacteria | X8: Bacteroidota | Y8: Bacteroidia | Z8: Cytophagales | AA8: Spirosomaceae | AB8: Emticicia
A9: 8 | B9: sample | C9: 0 | D9: 128 | E9: 116 | F9: 96 | G9: 63 | H9: 47 | I9: 51 | J9: 1254 | K9: 1437 | L9: 1388 | M9: 3743 | N9: 4619 | O9: 4005 | P9: 5072 | Q9: 3743 | R9: 2597 | S9: 9152 | T9: 8161 | U9: 7654 | V9: =SUM(C9:U9) -> 53326 | W9: Bacteria | X9: Nitrospirota | Y9: Nitrospiria | Z9: Nitrospirales | AA9: Nitrospiraceae | AB9: Nitrospira
A10: 9 | B10: sample | C10: 0 | D10: 706 | E10: 582 | F10: 588 | G10: 10828 | H10: 10032 | I10: 10731 | J10: 5356 | K10: 8563 | L10: 4536 | M10: 184 | N10: 117 | O10: 116 | P10: 0 | Q10: 0 | R10: 0 | S10: 0 | T10: 0 | U10: 0 | V10: =SUM(C10:U10) -> 52339 | W10: Bacteria | X10: Proteobacteria | Y10: Gammaproteobacteria | Z10: Burkholderiales | AA10: Comamonadaceae | AB10: Sphaerotilus
A11: 10 | B11: sample | C11: 0 | D11: 0 | E11: 0 | F11: 0 | G11: 0 | H11: 0 | I11: 0 | J11: 50 | K11: 118 | L11: 47 | M11: 8 | N11: 9 | O11: 3 | P11: 13291 | Q11: 10712 | R11: 7922 | S11: 5179 | T11: 3096 | U11: 4654 | V11: =SUM(C11:U11) -> 45089 | W11: Bacteria | X11: Bacteroidota | Y11: Bacteroidia | Z11: Cytophagales | AA11: Spirosomaceae | AB11: Flectobacillus
A12: 11 | B12: sample | C12: 0 | D12: 149 | E12: 204 | F12: 429 | G12: 2795 | H12: 2224 | I12: 1325 | J12: 11295 | K12: 14226 | L12: 11422 | M12: 12 | N12: 23 | O12: 13 | P12: 0 | Q12: 0 | R12: 0 | S12: 0 | T12: 0 | U12: 0 | V12: =SUM(C12:U12) -> 44117 | W12: Bacteria | X12: Bacteroidota | Y12: Bacteroidia | Z12: Flavobacteriales | AA12: Weeksellaceae | AB12: Chryseobacterium
A13: 12 | B13: sample | C13: 0 | D13: 8272 | E13: 7772 | F13: 8992 | G13: 2284 | H13: 3419 | I13: 3451 | J13: 1195 | K13: 1906 | L13: 1098 | M13: 0 | N13: 0 | O13: 0 | P13: 363 | Q13: 353 | R13: 429 | S13: 545 | T13: 1923 | U13: 692 | V13: =SUM(C13:U13) -> 42694 | W13: Bacteria | X13: Proteobacteria | Y13: Gammaproteobacteria | Z13: Burkholderiales | AA13: Comamonadaceae | AB13: Sphaerotilus
A14: 13 | B14: mock | C14: 42020 | D14: 0 | E14: 0 | F14: 0 | G14: 0 | H14: 0 | I14: 0 | J14: 0 | K14: 0 | L14: 0 | M14: 0 | N14: 0 | O14: 0 | P14: 0 | Q14: 0 | R14: 0 | S14: 0 | T14: 0 | U14: 0 | V14: =SUM(C14:U14) -> 42020 | W14: Bacteria | X14: Firmicutes | Y14: Bacilli | Z14: Bacillales | AA14: Bacillaceae | AB14: Bacillus
A15: 14 | B15: sample | C15: 0 | D15: 5943 | E15: 5572 | F15: 5857 | G15: 5517 | H15: 4144 | I15: 4091 | J15: 1574 | K15: 1528 | L15: 1408 | M15: 305 | N15: 274 | O15: 236 | P15: 57 | Q15: 0 | R15: 0 | S15: 48 | T15: 0 | U15: 0 | V15: =SUM(C15:U15) -> 36554 | W15: Bacteria | X15: Proteobacteria | Y15: Alphaproteobacteria | Z15: Rhodobacterales | AA15: Rhodobacteraceae | AB15: Pseudorhodobacter
A16: 15 | B16: sample | C16: 0 | D16: 12030 | E16: 9961 | F16: 11094 | G16: 0 | H16: 0 | I16: 0 | J16: 0 | K16: 0 | L16: 0 | M16: 0 | N16: 0 | O16: 0 | P16: 538 | Q16: 462 | R16: 408 | S16: 421 | T16: 1132 | U16: 359 | V16: =SUM(C16:U16) -> 36405 | W16: Bacteria | X16: Bacteroidota | Y16: Bacteroidia | Z16: Chitinophagales | AA16: Saprospiraceae | AB16: NA
A17: 16 | B17: sample | C17: 0 | D17: 8286 | E17: 5946 | F17: 6029 | G17: 771 | H17: 715 | I17: 2210 | J17: 1298 | K17: 1817 | L17: 1158 | M17: 1165 | N17: 1120 | O17: 1125 | P17: 1390 | Q17: 1018 | R17: 898 | S17: 293 | T17: 412 | U17: 263 | V17: =SUM(C17:U17) -> 35914 | W17: Bacteria | X17: Bacteroidota | Y17: Bacteroidia | Z17: Chitinophagales | AA17: Chitinophagaceae | AB17: Sediminibacterium
A18: 17 | B18: sample | C18: 0 | D18: 0 | E18: 0 | F18: 0 | G18: 4781 | H18: 5519 | I18: 8107 | J18: 4866 | K18: 6909 | L18: 4625 | M18: 55 | N18: 20 | O18: 16 | P18: 0 | Q18: 0 | R18: 0 | S18: 0 | T18: 0 | U18: 0 | V18: =SUM(C18:U18) -> 34898 | W18: Bacteria | X18: Bacteroidota | Y18: Bacteroidia | Z18: Cytophagales | AA18: Spirosomaceae | AB18: Flectobacillus
A19: 18 | B19: sample | C19: 0 | D19: 1575 | E19: 1570 | F19: 1568 | G19: 2838 | H19: 1772 | I19: 1636 | J19: 6147 | K19: 8020 | L19: 5866 | M19: 0 | N19: 0 | O19: 0 | P19: 64 | Q19: 49 | R19: 31 | S19: 105 | T19: 127 | U19: 51 | V19: =SUM(C19:U19) -> 31419 | W19: Bacteria | X19: Bacteroidota | Y19: Bacteroidia | Z19: Flavobacteriales | AA19: Flavobacteriaceae | AB19: Flavobacterium
A20: 19 | B20: sample | C20: 0 | D20: 0 | E20: 0 | F20: 0 | G20: 0 | H20: 0 | I20: 0 | J20: 0 | K20: 0 | L20: 0 | M20: 0 | N20: 0 | O20: 0 | P20: 10339 | Q20: 10340 | R20: 10406 | S20: 101 | T20: 37 | U20: 130 | V20: =SUM(C20:U20) -> 31353 | W20: Bacteria | X20: Bacteroidota | Y20: Bacteroidia | Z20: Chitinophagales | AA20: Saprospiraceae | AB20: NA
A21: 20 | B21: mock | C21: 31019 | D21: 0 | E21: 0 | F21: 0 | G21: 0 | H21: 0 | I21: 0 | J21: 0 | K21: 0 | L21: 0 | M21: 0 | N21: 0 | O21: 0 | P21: 0 | Q21: 0 | R21: 0 | S21: 0 | T21: 0 | U21: 0 | V21: =SUM(C21:U21) -> 31019 | W21: Bacteria | X21: Firmicutes | Y21: Bacilli | Z21: Lactobacillales | AA21: Listeriaceae | AB21: Listeria
A22: 21 | B22: mock | C22: 30529 | D22: 0 | E22: 0 | F22: 0 | G22: 0 | H22: 0 | I22: 0 | J22: 0 | K22: 0 | L22: 0 | M22: 0 | N22: 0 | O22: 0 | P22: 0 | Q22: 0 | R22: 0 | S22: 0 | T22: 0 | U22: 0 | V22: =SUM(C22:U22) -> 30529 | W22: Bacteria | X22: Firmicutes | Y22: Bacilli | Z22: Staphylococcales | AA22: Staphylococcaceae | AB22: Staphylococcus
A23: 22 | B23: sample | C23: 0 | D23: 50 | E23: 41 | F23: 46 | G23: 5184 | H23: 4163 | I23: 4291 | J23: 4959 | K23: 5766 | L23: 4433 | M23: 230 | N23: 201 | O23: 129 | P23: 250 | Q23: 143 | R23: 155 | S23: 140 | T23: 52 | U23: 102 | V23: =SUM(C23:U23) -> 30335 | W23: Bacteria | X23: Bacteroidota | Y23: Bacteroidia | Z23: Cytophagales | AA23: Spirosomaceae | AB23: Emticicia
A24: 23 | B24: sample | C24: 0 | D24: 2251 | E24: 1715 | F24: 1910 | G24: 6289 | H24: 4876 | I24: 5180 | J24: 1022 | K24: 1649 | L24: 1005 | M24: 142 | N24: 117 | O24: 132 | P24: 403 | Q24: 521 | R24: 489 | S24: 636 | T24: 1179 | U24: 524 | V24: =SUM(C24:U24) -> 30040 | W24: Bacteria | X24: Bacteroidota | Y24: Bacteroidia | Z24: Flavobacteriales | AA24: Flavobacteriaceae | AB24: Flavobacterium
A25: 24 | B25: sample | C25: 0 | D25: 1229 | E25: 2164 | F25: 2320 | G25: 129 | H25: 118 | I25: 141 | J25: 1482 | K25: 1735 | L25: 1658 | M25: 3118 | N25: 3140 | O25: 2575 | P25: 1473 | Q25: 1147 | R25: 1103 | S25: 2504 | T25: 1662 | U25: 1997 | V25: =SUM(C25:U25) -> 29695 | W25: Bacteria | X25: Proteobacteria | Y25: Alphaproteobacteria | Z25: Rhodobacterales | AA25: Rhodobacteraceae | AB25: Tabrizicola
A26: 25 | B26: sample | C26: 0 | D26: 1045 | E26: 1419 | F26: 1433 | G26: 37 | H26: 43 | I26: 50 | J26: 2163 | K26: 2423 | L26: 2124 | M26: 5133 | N26: 4927 | O26: 4530 | P26: 157 | Q26: 222 | R26: 65 | S26: 1862 | T26: 420 | U26: 1350 | V26: =SUM(C26:U26) -> 29403 | W26: Bacteria | X26: Bacteroidota | Y26: Bacteroidia | Z26: Chitinophagales | AA26: Saprospiraceae | AB26: NA
A27: 26 | B27: both | C27: 28768 | D27: 0 | E27: 0 | F27: 0 | G27: 0 | H27: 0 | I27: 0 | J27: 0 | K27: 3 | L27: 0 | M27: 0 | N27: 0 | O27: 0 | P27: 0 | Q27: 0 | R27: 0 | S27: 0 | T27: 0 | U27: 0 | V27: =SUM(C27:U27) -> 28771 | W27: Bacteria | X27: Firmicutes | Y27: Bacilli | Z27: Lactobacillales | AA27: Lactobacillaceae | AB27: Lactobacillus
A28: 27 | B28: sample | C28: 0 | D28: 20 | E28: 0 | F28: 0 | G28: 1799 | H28: 1137 | I28: 563 | J28: 7788 | K28: 8382 | L28: 8705 | M28: 0 | N28: 0 | O28: 0 | P28: 0 | Q28: 0 | R28: 0 | S28: 0 | T28: 0 | U28: 0 | V28: =SUM(C28:U28) -> 28394 | W28: Bacteria | X28: Proteobacteria | Y28: Gammaproteobacteria | Z28: Burkholderiales | AA28: Comamonadaceae | AB28: Hydrogenophaga
A29: 28 | B29: sample | C29: 0 | D29: 801 | E29: 1284 | F29: 1463 | G29: 7066 | H29: 6843 | I29: 6967 | J29: 727 | K29: 1141 | L29: 737 | M29: 148 | N29: 172 | O29: 159 | P29: 0 | Q29: 0 | R29: 0 | S29: 0 | T29: 0 | U29: 0 | V29: =SUM(C29:U29) -> 27508 | W29: Bacteria | X29: Bacteroidota | Y29: Bacteroidia | Z29: Chitinophagales | AA29: Saprospiraceae | AB29: NA
A30: 29 | B30: sample | C30: 0 | D30: 365 | E30: 495 | F30: 480 | G30: 0 | H30: 0 | I30: 17 | J30: 50 | K30: 100 | L30: 60 | M30: 168 | N30: 138 | O30: 164 | P30: 4031 | Q30: 3317 | R30: 1449 | S30: 5282 | T30: 5762 | U30: 4165 | V30: =SUM(C30:U30) -> 26043 | W30: Bacteria | X30: Proteobacteria | Y30: Gammaproteobacteria | Z30: Burkholderiales | AA30: Comamonadaceae | AB30: Limnohabitans
A31: 30 | B31: sample | C31: 0 | D31: 48 | E31: 82 | F31: 81 | G31: 1815 | H31: 1117 | I31: 757 | J31: 4221 | K31: 4594 | L31: 4056 | M31: 1722 | N31: 1438 | O31: 1191 | P31: 972 | Q31: 721 | R31: 386 | S31: 1001 | T31: 931 | U31: 651 | V31: =SUM(C31:U31) -> 25784 | W31: Bacteria | X31: Proteobacteria | Y31: Alphaproteobacteria | Z31: Rhodobacterales | AA31: Rhodobacteraceae | AB31: Pseudorhodobacter
A32: 31 | B32: sample | C32: 0 | D32: 97 | E32: 185 | F32: 166 | G32: 44 | H32: 8 | I32: 45 | J32: 1295 | K32: 3102 | L32: 1243 | M32: 7077 | N32: 6297 | O32: 4071 | P32: 80 | Q32: 74 | R32: 37 | S32: 31 | T32: 65 | U32: 34 | V32: =SUM(C32:U32) -> 23951 | W32: Bacteria | X32: Bacteroidota | Y32: Bacteroidia | Z32: Chitinophagales | AA32: 37-13 | AB32: NA
A33: 32 | B33: sample | C33: 0 | D33: 793 | E33: 707 | F33: 709 | G33: 2076 | H33: 1538 | I33: 1400 | J33: 5664 | K33: 5873 | L33: 4777 | M33: 24 | N33: 47 | O33: 26 | P33: 0 | Q33: 0 | R33: 0 | S33: 0 | T33: 0 | U33: 0 | V33: =SUM(C33:U33) -> 23634 | W33: Bacteria | X33: Bacteroidota | Y33: Bacteroidia | Z33: Cytophagales | AA33: Spirosomaceae | AB33: Arcicella
A34: 33 | B34: mock | C34: 23193 | D34: 0 | E34: 0 | F34: 0 | G34: 0 | H34: 0 | I34: 0 | J34: 0 | K34: 0 | L34: 0 | M34: 0 | N34: 0 | O34: 0 | P34: 0 | Q34: 0 | R34: 0 | S34: 0 | T34: 0 | U34: 0 | V34: =SUM(C34:U34) -> 23193 | W34: Bacteria | X34: Proteobacteria | Y34: Gammaproteobacteria | Z34: Enterobacterales | AA34: Enterobacteriaceae | AB34: Salmonella
A35: 34 | B35: sample | C35: 0 | D35: 530 | E35: 347 | F35: 546 | G35: 7306 | H35: 4995 | I35: 4096 | J35: 881 | K35: 995 | L35: 850 | M35: 269 | N35: 207 | O35: 209 | P35: 280 | Q35: 257 | R35: 652 | S35: 222 | T35: 174 | U35: 354 | V35: =SUM(C35:U35) -> 23170 | W35: Bacteria | X35: Proteobacteria | Y35: Alphaproteobacteria | Z35: Sphingomonadales | AA35: Sphingomonadaceae | AB35: Novosphingobium
A36: 35 | B36: mock | C36: 23096 | D36: 0 | E36: 0 | F36: 0 | G36: 0 | H36: 0 | I36: 0 | J36: 0 | K36: 0 | L36: 0 | M36: 0 | N36: 0 | O36: 0 | P36: 0 | Q36: 0 | R36: 0 | S36: 0 | T36: 0 | U36: 0 | V36: =SUM(C36:U36) -> 23096 | W36: Bacteria | X36: Proteobacteria | Y36: Gammaproteobacteria | Z36: Enterobacterales | AA36: Enterobacteriaceae | AB36: Escherichia-Shigella
A37: 36 | B37: sample | C37: 0 | D37: 547 | E37: 525 | F37: 744 | G37: 37 | H37: 28 | I37: 66 | J37: 1929 | K37: 1974 | L37: 1668 | M37: 539 | N37: 452 | O37: 427 | P37: 1949 | Q37: 1186 | R37: 789 | S37: 3843 | T37: 4160 | U37: 2057 | V37: =SUM(C37:U37) -> 22920 | W37: Bacteria | X37: Bacteroidota | Y37: Bacteroidia | Z37: Flavobacteriales | AA37: Flavobacteriaceae | AB37: Flavobacterium
A38: 37 | B38: mock | C38: 22282 | D38: 0 | E38: 0 | F38: 0 | G38: 0 | H38: 0 | I38: 0 | J38: 0 | K38: 0 | L38: 0 | M38: 0 | N38: 0 | O38: 0 | P38: 0 | Q38: 0 | R38: 0 | S38: 0 | T38: 0 | U38: 0 | V38: =SUM(C38:U38) -> 22282 | W38: Bacteria | X38: Firmicutes | Y38: Bacilli | Z38: Lactobacillales | AA38: Enterococcaceae | AB38: Enterococcus
A39: 38 | B39: sample | C39: 0 | D39: 166 | E39: 118 | F39: 125 | G39: 42 | H39: 38 | I39: 43 | J39: 2443 | K39: 2924 | L39: 2443 | M39: 3799 | N39: 3788 | O39: 2983 | P39: 532 | Q39: 466 | R39: 363 | S39: 447 | T39: 704 | U39: 493 | V39: =SUM(C39:U39) -> 21917 | W39: Bacteria | X39: Bacteroidota | Y39: Bacteroidia | Z39: Cytophagales | AA39: Spirosomaceae | AB39: NA
A40: 39 | B40: sample | C40: 0 | D40: 413 | E40: 770 | F40: 1207 | G40: 801 | H40: 912 | I40: 4700 | J40: 1561 | K40: 1575 | L40: 1677 | M40: 769 | N40: 908 | O40: 780 | P40: 783 | Q40: 586 | R40: 577 | S40: 1243 | T40: 1339 | U40: 990 | V40: =SUM(C40:U40) -> 21591 | W40: Bacteria | X40: Proteobacteria | Y40: Alphaproteobacteria | Z40: Rhodobacterales | AA40: Rhodobacteraceae | AB40: Rhodobacter
A41: 40 | B41: sample | C41: 0 | D41: 854 | E41: 961 | F41: 1525 | G41: 375 | H41: 308 | I41: 583 | J41: 4016 | K41: 3897 | L41: 3662 | M41: 915 | N41: 833 | O41: 644 | P41: 536 | Q41: 426 | R41: 326 | S41: 506 | T41: 487 | U41: 376 | V41: =SUM(C41:U41) -> 21230 | W41: Bacteria | X41: Proteobacteria | Y41: Alphaproteobacteria | Z41: Rhodobacterales | AA41: Rhodobacteraceae | AB41: Pseudorhodobacter
A42: 41 | B42: sample | C42: 0 | D42: 2705 | E42: 3715 | F42: 3685 | G42: 563 | H42: 617 | I42: 548 | J42: 333 | K42: 547 | L42: 315 | M42: 1032 | N42: 1026 | O42: 971 | P42: 571 | Q42: 586 | R42: 548 | S42: 618 | T42: 1304 | U42: 499 | V42: =SUM(C42:U42) -> 20183 | W42: Bacteria | X42: Bacteroidota | Y42: Bacteroidia | Z42: Chitinophagales | AA42: Saprospiraceae | AB42: NA
A43: 42 | B43: sample | C43: 0 | D43: 0 | E43: 0 | F43: 0 | G43: 0 | H43: 0 | I43: 0 | J43: 0 | K43: 0 | L43: 0 | M43: 0 | N43: 0 | O43: 0 | P43: 4117 | Q43: 4695 | R43: 3103 | S43: 2574 | T43: 2519 | U43: 2660 | V43: =SUM(C43:U43) -> 19668 | W43: Bacteria | X43: Bacteroidota | Y43: Bacteroidia | Z43: Chitinophagales | AA43: Saprospiraceae | AB43: NA
A44: 43 | B44: sample | C44: 0 | D44: 0 | E44: 0 | F44: 0 | G44: 0 | H44: 0 | I44: 0 | J44: 0 | K44: 0 | L44: 0 | M44: 0 | N44: 0 | O44: 0 | P44: 2539 | Q44: 2176 | R44: 856 | S44: 3642 | T44: 7737 | U44: 2613 | V44: =SUM(C44:U44) -> 19563 | W44: Bacteria | X44: Bacteroidota | Y44: Bacteroidia | Z44: Chitinophagales | AA44: Saprospiraceae | AB44: NA
A45: 44 | B45: sample | C45: 0 | D45: 1856 | E45: 1813 | F45: 2006 | G45: 695 | H45: 594 | I45: 804 | J45: 1461 | K45: 1716 | L45: 1471 | M45: 1403 | N45: 1260 | O45: 1170 | P45: 522 | Q45: 443 | R45: 211 | S45: 629 | T45: 897 | U45: 606 | V45: =SUM(C45:U45) -> 19557 | W45: Bacteria | X45: Proteobacteria | Y45: Alphaproteobacteria | Z45: Sphingomonadales | AA45: Sphingomonadaceae | AB45: Sphingorhabdus
A46: 45 | B46: sample | C46: 0 | D46: 970 | E46: 790 | F46: 1121 | G46: 39 | H46: 72 | I46: 373 | J46: 1360 | K46: 1591 | L46: 1095 | M46: 3184 | N46: 2876 | O46: 2365 | P46: 583 | Q46: 1140 | R46: 1323 | S46: 267 | T46: 51 | U46: 254 | V46: =SUM(C46:U46) -> 19454 | W46: Bacteria | X46: Myxococcota | Y46: Polyangia | Z46: Haliangiales | AA46: Haliangiaceae | AB46: Haliangium
A47: 46 | B47: sample | C47: 0 | D47: 55 | E47: 50 | F47: 67 | G47: 22 | H47: 12 | I47: 19 | J47: 560 | K47: 807 | L47: 674 | M47: 1936 | N47: 1952 | O47: 2271 | P47: 1275 | Q47: 1101 | R47: 706 | S47: 2131 | T47: 2643 | U47: 2300 | V47: =SUM(C47:U47) -> 18581 | W47: Bacteria | X47: Nitrospirota | Y47: Nitrospiria | Z47: Nitrospirales | AA47: Nitrospiraceae | AB47: Nitrospira
A48: 47 | B48: sample | C48: 0 | D48: 83 | E48: 73 | F48: 210 | G48: 778 | H48: 481 | I48: 1715 | J48: 4180 | K48: 4840 | L48: 4049 | M48: 0 | N48: 3 | O48: 5 | P48: 666 | Q48: 360 | R48: 193 | S48: 283 | T48: 197 | U48: 310 | V48: =SUM(C48:U48) -> 18426 | W48: Bacteria | X48: Bacteroidota | Y48: Bacteroidia | Z48: Flavobacteriales | AA48: Crocinitomicaceae | AB48: Fluviicola
A49: 48 | B49: sample | C49: 0 | D49: 1642 | E49: 1572 | F49: 2361 | G49: 22 | H49: 29 | I49: 144 | J49: 26 | K49: 118 | L49: 16 | M49: 140 | N49: 135 | O49: 113 | P49: 1216 | Q49: 1128 | R49: 1505 | S49: 2138 | T49: 4444 | U49: 1335 | V49: =SUM(C49:U49) -> 18084 | W49: Bacteria | X49: Bacteroidota | Y49: Bacteroidia | Z49: Chitinophagales | AA49: Saprospiraceae | AB49: NA
A50: 49 | B50: sample | C50: 0 | D50: 717 | E50: 1101 | F50: 1516 | G50: 3249 | H50: 3586 | I50: 4848 | J50: 742 | K50: 826 | L50: 959 | M50: 7 | N50: 21 | O50: 12 | P50: 0 | Q50: 0 | R50: 0 | S50: 0 | T50: 0 | U50: 0 | V50: =SUM(C50:U50) -> 17584 | W50: Bacteria | X50: Proteobacteria | Y50: Alphaproteobacteria | Z50: Caulobacterales | AA50: Caulobacteraceae | AB50: Brevundimonas
A51: 50 | B51: sample | C51: 0 | D51: 2566 | E51: 1531 | F51: 1870 | G51: 3269 | H51: 2693 | I51: 2588 | J51: 888 | K51: 1113 | L51: 835 | M51: 50 | N51: 59 | O51: 28 | P51: 0 | Q51: 0 | R51: 0 | S51: 0 | T51: 0 | U51: 0 | V51: =SUM(C51:U51) -> 17490 | W51: Bacteria | X51: Bacteroidota | Y51: Bacteroidia | Z51: Cytophagales | AA51: Spirosomaceae | AB51: Emticicia
A52: 51 | B52: sample | C52: 0 | D52: 3167 | E52: 1939 | F52: 2694 | G52: 1860 | H52: 1978 | I52: 2958 | J52: 567 | K52: 770 | L52: 526 | M52: 95 | N52: 89 | O52: 60 | P52: 0 | Q52: 0 | R52: 0 | S52: 0 | T52: 0 | U52: 0 | V52: =SUM(C52:U52) -> 16703 | W52: Bacteria | X52: Bacteroidota | Y52: Bacteroidia | Z52: Chitinophagales | AA52: NA | AB52: NA
A53: 52 | B53: sample | C53: 0 | D53: 383 | E53: 177 | F53: 242 | G53: 604 | H53: 363 | I53: 282 | J53: 2111 | K53: 2323 | L53: 2043 | M53: 2091 | N53: 1837 | O53: 1691 | P53: 776 | Q53: 639 | R53: 426 | S53: 306 | T53: 156 | U53: 253 | V53: =SUM(C53:U53) -> 16703 | W53: Bacteria | X53: Proteobacteria | Y53: Alphaproteobacteria | Z53: Sphingomonadales | AA53: Sphingomonadaceae | AB53: Sphingorhabdus
A54: 53 | B54: sample | C54: 0 | D54: 889 | E54: 1162 | F54: 1210 | G54: 99 | H54: 69 | I54: 85 | J54: 246 | K54: 302 | L54: 300 | M54: 667 | N54: 553 | O54: 464 | P54: 2154 | Q54: 1744 | R54: 1753 | S54: 1814 | T54: 1625 | U54: 1554 | V54: =SUM(C54:U54) -> 16690 | W54: Bacteria | X54: Proteobacteria | Y54: Gammaproteobacteria | Z54: Burkholderiales | AA54: Comamonadaceae | AB54: Leptothrix
A55: 54 | B55: sample | C55: 0 | D55: 96 | E55: 168 | F55: 139 | G55: 1438 | H55: 1563 | I55: 2028 | J55: 3201 | K55: 4341 | L55: 3087 | M55: 79 | N55: 54 | O55: 0 | P55: 50 | Q55: 20 | R55: 0 | S55: 0 | T55: 25 | U55: 26 | V55: =SUM(C55:U55) -> 16315 | W55: Bacteria | X55: Bacteroidota | Y55: Bacteroidia | Z55: Flavobacteriales | AA55: Flavobacteriaceae | AB55: Flavobacterium
A56: 55 | B56: sample | C56: 0 | D56: 0 | E56: 0 | F56: 0 | G56: 0 | H56: 0 | I56: 0 | J56: 0 | K56: 0 | L56: 0 | M56: 0 | N56: 0 | O56: 0 | P56: 4872 | Q56: 3689 | R56: 2599 | S56: 1750 | T56: 1228 | U56: 1735 | V56: =SUM(C56:U56) -> 15873 | W56: Bacteria | X56: Actinobacteriota | Y56: Actinobacteria | Z56: Micrococcales | AA56: Microbacteriaceae | AB56: Aurantimicrobium
A57: 56 | B57: sample | C57: 0 | D57: 400 | E57: 274 | F57: 304 | G57: 21 | H57: 8 | I57: 21 | J57: 54 | K57: 57 | L57: 36 | M57: 65 | N57: 66 | O57: 35 | P57: 3439 | Q57: 3262 | R57: 2788 | S57: 2103 | T57: 1342 | U57: 1439 | V57: =SUM(C57:U57) -> 15714 | W57: Bacteria | X57: Bacteroidota | Y57: Bacteroidia | Z57: Chitinophagales | AA57: Saprospiraceae | AB57: NA
A58: 57 | B58: sample | C58: 0 | D58: 0 | E58: 0 | F58: 0 | G58: 0 | H58: 0 | I58: 0 | J58: 0 | K58: 0 | L58: 0 | M58: 0 | N58: 0 | O58: 0 | P58: 4339 | Q58: 2788 | R58: 2900 | S58: 2006 | T58: 1675 | U58: 1881 | V58: =SUM(C58:U58) -> 15589 | W58: Bacteria | X58: Proteobacteria | Y58: Alphaproteobacteria | Z58: Sphingomonadales | AA58: Sphingomonadaceae | AB58: Sphingobium
A59: 58 | B59: sample | C59: 0 | D59: 2962 | E59: 2861 | F59: 2839 | G59: 732 | H59: 1166 | I59: 1965 | J59: 1126 | K59: 914 | L59: 961 | M59: 0 | N59: 0 | O59: 0 | P59: 18 | Q59: 16 | R59: 0 | S59: 0 | T59: 0 | U59: 0 | V59: =SUM(C59:U59) -> 15560 | W59: Bacteria | X59: Proteobacteria | Y59: Alphaproteobacteria | Z59: Rhizobiales | AA59: Rhizobiaceae | AB59: Shinella
A60: 59 | B60: sample | C60: 0 | D60: 0 | E60: 0 | F60: 0 | G60: 0 | H60: 0 | I60: 0 | J60: 0 | K60: 0 | L60: 0 | M60: 0 | N60: 0 | O60: 0 | P60: 2068 | Q60: 1499 | R60: 1324 | S60: 4615 | T60: 2351 | U60: 3439 | V60: =SUM(C60:U60) -> 15296 | W60: Bacteria | X60: Acidobacteriota | Y60: Vicinamibacteria | Z60: Vicinamibacterales | AA60: Vicinamibacteraceae | AB60: NA
A61: 60 | B61: sample | C61: 0 | D61: 774 | E61: 952 | F61: 1169 | G61: 335 | H61: 325 | I61: 507 | J61: 476 | K61: 648 | L61: 602 | M61: 562 | N61: 496 | O61: 360 | P61: 1250 | Q61: 1244 | R61: 923 | S61: 1734 | T61: 1611 | U61: 1224 | V61: =SUM(C61:U61) -> 15192 | W61: Bacteria | X61: Proteobacteria | Y61: Gammaproteobacteria | Z61: Burkholderiales | AA61: Comamonadaceae | AB61: Rubrivivax
A62: 61 | B62: sample | C62: 0 | D62: 60 | E62: 56 | F62: 68 | G62: 3827 | H62: 3451 | I62: 2878 | J62: 1212 | K62: 2046 | L62: 1144 | M62: 8 | N62: 6 | O62: 0 | P62: 13 | Q62: 9 | R62: 0 | S62: 7 | T62: 10 | U62: 11 | V62: =SUM(C62:U62) -> 14806 | W62: Bacteria | X62: Bacteroidota | Y62: Bacteroidia | Z62: Sphingobacteriales | AA62: env.OPS 17 | AB62: NA
A63: 62 | B63: sample | C63: 0 | D63: 88 | E63: 99 | F63: 99 | G63: 100 | H63: 122 | I63: 265 | J63: 1279 | K63: 1510 | L63: 1318 | M63: 2496 | N63: 2185 | O63: 2028 | P63: 740 | Q63: 540 | R63: 363 | S63: 249 | T63: 477 | U63: 269 | V63: =SUM(C63:U63) -> 14227 | W63: Bacteria | X63: Verrucomicrobiota | Y63: Verrucomicrobiae | Z63: Verrucomicrobiales | AA63: Rubritaleaceae | AB63: Luteolibacter
A64: 63 | B64: sample | C64: 0 | D64: 11 | E64: 50 | F64: 41 | G64: 4838 | H64: 3914 | I64: 3054 | J64: 501 | K64: 824 | L64: 524 | M64: 0 | N64: 8 | O64: 7 | P64: 69 | Q64: 58 | R64: 35 | S64: 40 | T64: 17 | U64: 31 | V64: =SUM(C64:U64) -> 14022 | W64: Bacteria | X64: Proteobacteria | Y64: Gammaproteobacteria | Z64: Burkholderiales | AA64: Chromobacteriaceae | AB64: Vogesella
A65: 64 | B65: sample | C65: 0 | D65: 766 | E65: 689 | F65: 723 | G65: 1207 | H65: 1105 | I65: 1112 | J65: 1295 | K65: 1603 | L65: 1189 | M65: 1108 | N65: 1009 | O65: 727 | P65: 226 | Q65: 174 | R65: 167 | S65: 281 | T65: 278 | U65: 197 | V65: =SUM(C65:U65) -> 13856 | W65: Bacteria | X65: Proteobacteria | Y65: Gammaproteobacteria | Z65: Burkholderiales | AA65: Comamonadaceae | AB65: NA
A66: 65 | B66: sample | C66: 0 | D66: 750 | E66: 457 | F66: 499 | G66: 3316 | H66: 3228 | I66: 2947 | J66: 565 | K66: 997 | L66: 513 | M66: 0 | N66: 0 | O66: 0 | P66: 0 | Q66: 0 | R66: 0 | S66: 0 | T66: 0 | U66: 0 | V66: =SUM(C66:U66) -> 13272 | W66: Bacteria | X66: Bacteroidota | Y66: Bacteroidia | Z66: Flavobacteriales | AA66: Flavobacteriaceae | AB66: Flavobacterium
A67: 66 | B67: sample | C67: 0 | D67: 59 | E67: 55 | F67: 74 | G67: 141 | H67: 111 | I67: 354 | J67: 812 | K67: 2971 | L67: 901 | M67: 3471 | N67: 2128 | O67: 2033 | P67: 0 | Q67: 0 | R67: 0 | S67: 0 | T67: 0 | U67: 0 | V67: =SUM(C67:U67) -> 13110 | W67: Bacteria | X67: Bacteroidota | Y67: Bacteroidia | Z67: Chitinophagales | AA67: NA | AB67: NA
A68: 67 | B68: sample | C68: 0 | D68: 14 | E68: 0 | F68: 0 | G68: 3 | H68: 0 | I68: 6 | J68: 808 | K68: 1020 | L68: 914 | M68: 3483 | N68: 3503 | O68: 3054 | P68: 0 | Q68: 0 | R68: 0 | S68: 0 | T68: 0 | U68: 0 | V68: =SUM(C68:U68) -> 12805 | W68: Bacteria | X68: Planctomycetota | Y68: Planctomycetes | Z68: Gemmatales | AA68: Gemmataceae | AB68: Telmatocola
A69: 68 | B69: sample | C69: 0 | D69: 3170 | E69: 1956 | F69: 2066 | G69: 1982 | H69: 1580 | I69: 1131 | J69: 238 | K69: 327 | L69: 218 | M69: 29 | N69: 35 | O69: 32 | P69: 0 | Q69: 0 | R69: 0 | S69: 0 | T69: 0 | U69: 0 | V69: =SUM(C69:U69) -> 12764 | W69: Bacteria | X69: Patescibacteria | Y69: Gracilibacteria | Z69: NA | AA69: NA | AB69: NA
A70: 69 | B70: sample | C70: 0 | D70: 34 | E70: 58 | F70: 81 | G70: 199 | H70: 135 | I70: 388 | J70: 3449 | K70: 4677 | L70: 3343 | M70: 22 | N70: 27 | O70: 22 | P70: 91 | Q70: 44 | R70: 30 | S70: 31 | T70: 34 | U70: 35 | V70: =SUM(C70:U70) -> 12700 | W70: Bacteria | X70: Bacteroidota | Y70: Bacteroidia | Z70: Flavobacteriales | AA70: Flavobacteriaceae | AB70: Flavobacterium
A71: 70 | B71: sample | C71: 0 | D71: 0 | E71: 0 | F71: 0 | G71: 0 | H71: 0 | I71: 0 | J71: 0 | K71: 0 | L71: 0 | M71: 0 | N71: 0 | O71: 0 | P71: 480 | Q71: 386 | R71: 372 | S71: 3689 | T71: 3431 | U71: 4322 | V71: =SUM(C71:U71) -> 12680 | W71: Bacteria | X71: Nitrospirota | Y71: Nitrospiria | Z71: Nitrospirales | AA71: Nitrospiraceae | AB71: Nitrospira
A72: 71 | B72: mock | C72: 12673 | D72: 0 | E72: 0 | F72: 0 | G72: 0 | H72: 0 | I72: 0 | J72: 0 | K72: 0 | L72: 0 | M72: 0 | N72: 0 | O72: 0 | P72: 0 | Q72: 0 | R72: 0 | S72: 0 | T72: 0 | U72: 0 | V72: =SUM(C72:U72) -> 12673 | W72: Bacteria | X72: Proteobacteria | Y72: Gammaproteobacteria | Z72: Pseudomonadales | AA72: Pseudomonadaceae | AB72: Pseudomonas
A73: 72 | B73: sample | C73: 0 | D73: 0 | E73: 56 | F73: 139 | G73: 1298 | H73: 1072 | I73: 601 | J73: 2868 | K73: 3594 | L73: 2884 | M73: 0 | N73: 0 | O73: 0 | P73: 0 | Q73: 0 | R73: 0 | S73: 0 | T73: 0 | U73: 0 | V73: =SUM(C73:U73) -> 12512 | W73: Bacteria | X73: Bacteroidota | Y73: Bacteroidia | Z73: Flavobacteriales | AA73: Weeksellaceae | AB73: Chryseobacterium
A74: 73 | B74: sample | C74: 0 | D74: 0 | E74: 0 | F74: 0 | G74: 0 | H74: 0 | I74: 0 | J74: 772 | K74: 999 | L74: 950 | M74: 2639 | N74: 3347 | O74: 3757 | P74: 0 | Q74: 0 | R74: 0 | S74: 0 | T74: 0 | U74: 0 | V74: =SUM(C74:U74) -> 12464 | W74: Bacteria | X74: Nitrospirota | Y74: Nitrospiria | Z74: Nitrospirales | AA74: Nitrospiraceae | AB74: Nitrospira
A75: 74 | B75: sample | C75: 0 | D75: 3460 | E75: 2391 | F75: 2503 | G75: 0 | H75: 0 | I75: 0 | J75: 78 | K75: 133 | L75: 113 | M75: 147 | N75: 154 | O75: 171 | P75: 395 | Q75: 570 | R75: 317 | S75: 633 | T75: 806 | U75: 533 | V75: =SUM(C75:U75) -> 12404 | W75: Bacteria | X75: Proteobacteria | Y75: Alphaproteobacteria | Z75: Sphingomonadales | AA75: Sphingomonadaceae | AB75: Rhizorhapis
A76: 75 | B76: sample | C76: 0 | D76: 196 | E76: 233 | F76: 290 | G76: 1337 | H76: 2460 | I76: 5596 | J76: 683 | K76: 692 | L76: 605 | M76: 0 | N76: 0 | O76: 0 | P76: 0 | Q76: 0 | R76: 0 | S76: 0 | T76: 0 | U76: 0 | V76: =SUM(C76:U76) -> 12092 | W76: Bacteria | X76: Proteobacteria | Y76: Alphaproteobacteria | Z76: Rhizobiales | AA76: Rhizobiaceae | AB76: Allorhizobium-Neorhizobium-Pararhizobium-Rhizobium
A77: 76 | B77: sample | C77: 0 | D77: 1907 | E77: 2522 | F77: 2903 | G77: 297 | H77: 259 | I77: 282 | J77: 255 | K77: 325 | L77: 256 | M77: 698 | N77: 606 | O77: 544 | P77: 194 | Q77: 118 | R77: 131 | S77: 296 | T77: 229 | U77: 267 | V77: =SUM(C77:U77) -> 12089 | W77: Bacteria | X77: Proteobacteria | Y77: Gammaproteobacteria | Z77: Burkholderiales | AA77: Comamonadaceae | AB77: Leptothrix
A78: 77 | B78: sample | C78: 0 | D78: 126 | E78: 336 | F78: 264 | G78: 47 | H78: 49 | I78: 99 | J78: 1982 | K78: 2182 | L78: 1903 | M78: 1460 | N78: 1290 | O78: 992 | P78: 229 | Q78: 172 | R78: 165 | S78: 221 | T78: 152 | U78: 157 | V78: =SUM(C78:U78) -> 11826 | W78: Bacteria | X78: Proteobacteria | Y78: Alphaproteobacteria | Z78: Rhodobacterales | AA78: Rhodobacteraceae | AB78: Rhodobacter
A79: 78 | B79: sample | C79: 0 | D79: 2240 | E79: 2477 | F79: 2689 | G79: 151 | H79: 151 | I79: 252 | J79: 407 | K79: 406 | L79: 412 | M79: 265 | N79: 228 | O79: 233 | P79: 372 | Q79: 228 | R79: 216 | S79: 276 | T79: 411 | U79: 256 | V79: =SUM(C79:U79) -> 11670 | W79: Bacteria | X79: Proteobacteria | Y79: Alphaproteobacteria | Z79: Rhodobacterales | AA79: Rhodobacteraceae | AB79: Pseudorhodobacter
A80: 79 | B80: sample | C80: 0 | D80: 611 | E80: 818 | F80: 839 | G80: 50 | H80: 54 | I80: 43 | J80: 495 | K80: 480 | L80: 521 | M80: 1138 | N80: 1306 | O80: 1062 | P80: 685 | Q80: 519 | R80: 417 | S80: 927 | T80: 854 | U80: 630 | V80: =SUM(C80:U80) -> 11449 | W80: Bacteria | X80: Proteobacteria | Y80: Alphaproteobacteria | Z80: Rhodobacterales | AA80: Rhodobacteraceae | AB80: Defluviimonas
A81: 80 | B81: sample | C81: 0 | D81: 1249 | E81: 1087 | F81: 1401 | G81: 578 | H81: 473 | I81: 1179 | J81: 1395 | K81: 1553 | L81: 1541 | M81: 295 | N81: 257 | O81: 238 | P81: 21 | Q81: 54 | R81: 0 | S81: 0 | T81: 0 | U81: 0 | V81: =SUM(C81:U81) -> 11321 | W81: Bacteria | X81: Proteobacteria | Y81: Gammaproteobacteria | Z81: Xanthomonadales | AA81: Xanthomonadaceae | AB81: Pseudoxanthomonas
A82: 81 | B82: sample | C82: 0 | D82: 67 | E82: 78 | F82: 75 | G82: 0 | H82: 0 | I82: 0 | J82: 333 | K82: 363 | L82: 324 | M82: 3692 | N82: 3352 | O82: 2989 | P82: 0 | Q82: 0 | R82: 0 | S82: 0 | T82: 0 | U82: 0 | V82: =SUM(C82:U82) -> 11273 | W82: Bacteria | X82: Bacteroidota | Y82: Bacteroidia | Z82: Chitinophagales | AA82: Saprospiraceae | AB82: NA
A83: 82 | B83: sample | C83: 0 | D83: 411 | E83: 435 | F83: 476 | G83: 7 | H83: 0 | I83: 3 | J83: 691 | K83: 910 | L83: 911 | M83: 2306 | N83: 1996 | O83: 2157 | P83: 106 | Q83: 95 | R83: 82 | S83: 139 | T83: 367 | U83: 136 | V83: =SUM(C83:U83) -> 11228 | W83: Bacteria | X83: Chloroflexi | Y83: Anaerolineae | Z83: RBG-13-54-9 | AA83: NA | AB83: NA
A84: 83 | B84: sample | C84: 0 | D84: 999 | E84: 879 | F84: 1147 | G84: 26 | H84: 19 | I84: 50 | J84: 411 | K84: 439 | L84: 408 | M84: 1077 | N84: 1119 | O84: 1023 | P84: 606 | Q84: 543 | R84: 422 | S84: 665 | T84: 504 | U84: 585 | V84: =SUM(C84:U84) -> 10922 | W84: Bacteria | X84: Verrucomicrobiota | Y84: Verrucomicrobiae | Z84: Verrucomicrobiales | AA84: Rubritaleaceae | AB84: Luteolibacter
A85: 84 | B85: sample | C85: 0 | D85: 0 | E85: 21 | F85: 0 | G85: 0 | H85: 0 | I85: 0 | J85: 182 | K85: 105 | L85: 231 | M85: 2119 | N85: 1769 | O85: 2566 | P85: 285 | Q85: 556 | R85: 251 | S85: 1738 | T85: 602 | U85: 420 | V85: =SUM(C85:U85) -> 10845 | W85: Bacteria | X85: Chloroflexi | Y85: Chloroflexia | Z85: Chloroflexales | AA85: Roseiflexaceae | AB85: Kouleothrix
A86: 85 | B86: sample | C86: 0 | D86: 18 | E86: 24 | F86: 23 | G86: 0 | H86: 0 | I86: 0 | J86: 79 | K86: 211 | L86: 63 | M86: 281 | N86: 902 | O86: 852 | P86: 548 | Q86: 558 | R86: 413 | S86: 2242 | T86: 2618 | U86: 1965 | V86: =SUM(C86:U86) -> 10797 | W86: Bacteria | X86: Acidobacteriota | Y86: Blastocatellia | Z86: 2024-11-01 | AA86: NA | AB86: NA
A87: 86 | B87: sample | C87: 0 | D87: 334 | E87: 273 | F87: 292 | G87: 31 | H87: 34 | I87: 71 | J87: 1181 | K87: 1522 | L87: 1215 | M87: 1515 | N87: 1615 | O87: 1204 | P87: 284 | Q87: 237 | R87: 166 | S87: 253 | T87: 343 | U87: 175 | V87: =SUM(C87:U87) -> 10745 | W87: Bacteria | X87: Bacteroidota | Y87: Bacteroidia | Z87: Cytophagales | AA87: Spirosomaceae | AB87: Runella
A88: 87 | B88: sample | C88: 0 | D88: 0 | E88: 0 | F88: 0 | G88: 0 | H88: 0 | I88: 0 | J88: 2837 | K88: 4939 | L88: 2712 | M88: 0 | N88: 0 | O88: 0 | P88: 0 | Q88: 0 | R88: 0 | S88: 0 | T88: 0 | U88: 0 | V88: =SUM(C88:U88) -> 10488 | W88: Bacteria | X88: Proteobacteria | Y88: Gammaproteobacteria | Z88: Burkholderiales | AA88: Comamonadaceae | AB88: Limnohabitans
A89: 88 | B89: sample | C89: 0 | D89: 655 | E89: 498 | F89: 550 | G89: 7 | H89: 16 | I89: 35 | J89: 52 | K89: 107 | L89: 51 | M89: 237 | N89: 234 | O89: 159 | P89: 2411 | Q89: 1739 | R89: 1252 | S89: 865 | T89: 631 | U89: 871 | V89: =SUM(C89:U89) -> 10370 | W89: Bacteria | X89: Bacteroidota | Y89: Bacteroidia | Z89: Sphingobacteriales | AA89: env.OPS 17 | AB89: NA
A90: 89 | B90: sample | C90: 0 | D90: 15 | E90: 28 | F90: 22 | G90: 0 | H90: 0 | I90: 0 | J90: 466 | K90: 442 | L90: 527 | M90: 1342 | N90: 1385 | O90: 1218 | P90: 1206 | Q90: 656 | R90: 582 | S90: 755 | T90: 736 | U90: 839 | V90: =SUM(C90:U90) -> 10219 | W90: Bacteria | X90: Proteobacteria | Y90: Alphaproteobacteria | Z90: Reyranellales | AA90: Reyranellaceae | AB90: Reyranella
A91: 90 | B91: sample | C91: 0 | D91: 3024 | E91: 2335 | F91: 2600 | G91: 43 | H91: 43 | I91: 60 | J91: 338 | K91: 404 | L91: 300 | M91: 98 | N91: 99 | O91: 65 | P91: 146 | Q91: 115 | R91: 100 | S91: 81 | T91: 102 | U91: 104 | V91: =SUM(C91:U91) -> 10057 | W91: Bacteria | X91: Proteobacteria | Y91: Alphaproteobacteria | Z91: Rhodobacterales | AA91: Rhodobacteraceae | AB91: Gemmobacter
A92: 91 | B92: sample | C92: 0 | D92: 0 | E92: 0 | F92: 0 | G92: 0 | H92: 0 | I92: 0 | J92: 0 | K92: 0 | L92: 0 | M92: 0 | N92: 0 | O92: 0 | P92: 1045 | Q92: 793 | R92: 675 | S92: 2781 | T92: 2252 | U92: 2068 | V92: =SUM(C92:U92) -> 9614 | W92: Bacteria | X92: Verrucomicrobiota | Y92: Verrucomicrobiae | Z92: Pedosphaerales | AA92: Pedosphaeraceae | AB92: NA
A93: 92 | B93: sample | C93: 0 | D93: 661 | E93: 534 | F93: 482 | G93: 1742 | H93: 1567 | I93: 1666 | J93: 683 | K93: 975 | L93: 625 | M93: 261 | N93: 155 | O93: 155 | P93: 0 | Q93: 8 | R93: 0 | S93: 12 | T93: 43 | U93: 0 | V93: =SUM(C93:U93) -> 9569 | W93: Bacteria | X93: Proteobacteria | Y93: Gammaproteobacteria | Z93: Burkholderiales | AA93: Comamonadaceae | AB93: Sphaerotilus
A94: 93 | B94: sample | C94: 0 | D94: 1428 | E94: 2124 | F94: 2277 | G94: 320 | H94: 210 | I94: 234 | J94: 189 | K94: 225 | L94: 194 | M94: 464 | N94: 424 | O94: 379 | P94: 115 | Q94: 97 | R94: 122 | S94: 206 | T94: 154 | U94: 199 | V94: =SUM(C94:U94) -> 9361 | W94: Bacteria | X94: Proteobacteria | Y94: Gammaproteobacteria | Z94: Burkholderiales | AA94: Comamonadaceae | AB94: Leptothrix
A95: 94 | B95: sample | C95: 0 | D95: 527 | E95: 434 | F95: 438 | G95: 443 | H95: 370 | I95: 566 | J95: 674 | K95: 1020 | L95: 688 | M95: 1376 | N95: 1411 | O95: 1235 | P95: 45 | Q95: 24 | R95: 25 | S95: 29 | T95: 16 | U95: 20 | V95: =SUM(C95:U95) -> 9341 | W95: Bacteria | X95: Bacteroidota | Y95: Bacteroidia | Z95: Chitinophagales | AA95: Saprospiraceae | AB95: NA
A96: 95 | B96: sample | C96: 0 | D96: 0 | E96: 0 | F96: 0 | G96: 0 | H96: 0 | I96: 0 | J96: 0 | K96: 0 | L96: 0 | M96: 0 | N96: 0 | O96: 0 | P96: 1270 | Q96: 1151 | R96: 954 | S96: 2327 | T96: 1548 | U96: 2028 | V96: =SUM(C96:U96) -> 9278 | W96: Bacteria | X96: Acidobacteriota | Y96: Blastocatellia | Z96: 2024-11-01 | AA96: NA | AB96: NA
A97: 96 | B97: sample | C97: 0 | D97: 465 | E97: 563 | F97: 536 | G97: 1971 | H97: 1544 | I97: 1227 | J97: 582 | K97: 1170 | L97: 608 | M97: 104 | N97: 121 | O97: 99 | P97: 44 | Q97: 45 | R97: 32 | S97: 26 | T97: 34 | U97: 42 | V97: =SUM(C97:U97) -> 9213 | W97: Bacteria | X97: Bacteroidota | Y97: Bacteroidia | Z97: Flavobacteriales | AA97: Flavobacteriaceae | AB97: Flavobacterium
A98: 97 | B98: sample | C98: 0 | D98: 1169 | E98: 1097 | F98: 931 | G98: 980 | H98: 722 | I98: 1105 | J98: 494 | K98: 568 | L98: 537 | M98: 268 | N98: 203 | O98: 222 | P98: 19 | Q98: 37 | R98: 35 | S98: 96 | T98: 539 | U98: 70 | V98: =SUM(C98:U98) -> 9092 | W98: Bacteria | X98: Proteobacteria | Y98: Gammaproteobacteria | Z98: Burkholderiales | AA98: Comamonadaceae | AB98: Hydrogenophaga
A99: 98 | B99: sample | C99: 0 | D99: 0 | E99: 0 | F99: 0 | G99: 0 | H99: 0 | I99: 0 | J99: 774 | K99: 796 | L99: 652 | M99: 2665 | N99: 2201 | O99: 1921 | P99: 0 | Q99: 0 | R99: 0 | S99: 0 | T99: 0 | U99: 0 | V99: =SUM(C99:U99) -> 9009 | W99: Bacteria | X99: Proteobacteria | Y99: Gammaproteobacteria | Z99: Burkholderiales | AA99: Comamonadaceae | AB99: Hydrogenophaga
A100: 99 | B100: sample | C100: 0 | D100: 0 | E100: 0 | F100: 0 | G100: 0 | H100: 0 | I100: 0 | J100: 0 | K100: 0 | L100: 0 | M100: 0 | N100: 0 | O100: 0 | P100: 99 | Q100: 138 | R100: 75 | S100: 2966 | T100: 3468 | U100: 2054 | V100: =SUM(C100:U100) -> 8800 | W100: Bacteria | X100: Nitrospirota | Y100: Nitrospiria | Z100: Nitrospirales | AA100: Nitrospiraceae | AB100: Nitrospira
A101: 100 | B101: sample | C101: 0 | D101: 187 | E101: 203 | F101: 218 | G101: 79 | H101: 79 | I101: 158 | J101: 1125 | K101: 1355 | L101: 1152 | M101: 1616 | N101: 1326 | O101: 1260 | P101: 0 | Q101: 0 | R101: 0 | S101: 0 | T101: 0 | U101: 0 | V101: =SUM(C101:U101) -> 8758 | W101: Bacteria | X101: Proteobacteria | Y101: Gammaproteobacteria | Z101: Burkholderiales | AA101: Comamonadaceae | AB101: Hydrogenophaga
A102: 101 | B102: sample | C102: 0 | D102: 0 | E102: 0 | F102: 0 | G102: 0 | H102: 0 | I102: 0 | J102: 0 | K102: 0 | L102: 0 | M102: 0 | N102: 0 | O102: 0 | P102: 1001 | Q102: 845 | R102: 643 | S102: 1840 | T102: 2763 | U102: 1634 | V102: =SUM(C102:U102) -> 8726 | W102: Bacteria | X102: Proteobacteria | Y102: Gammaproteobacteria | Z102: Burkholderiales | AA102: Nitrosomonadaceae | AB102: Nitrosomonas
A103: 102 | B103: sample | C103: 0 | D103: 0 | E103: 0 | F103: 0 | G103: 0 | H103: 0 | I103: 0 | J103: 12 | K103: 19 | L103: 21 | M103: 80 | N103: 59 | O103: 89 | P103: 328 | Q103: 211 | R103: 294 | S103: 3172 | T103: 1684 | U103: 2673 | V103: =SUM(C103:U103) -> 8642 | W103: Bacteria | X103: Chloroflexi | Y103: Anaerolineae | Z103: Caldilineales | AA103: Caldilineaceae | AB103: NA
A104: 103 | B104: sample | C104: 0 | D104: 338 | E104: 233 | F104: 369 | G104: 1953 | H104: 1557 | I104: 2052 | J104: 592 | K104: 725 | L104: 586 | M104: 33 | N104: 0 | O104: 0 | P104: 0 | Q104: 0 | R104: 0 | S104: 0 | T104: 0 | U104: 0 | V104: =SUM(C104:U104) -> 8438 | W104: Bacteria | X104: Bacteroidota | Y104: Bacteroidia | Z104: Cytophagales | AA104: Spirosomaceae | AB104: Arcicella
A105: 104 | B105: sample | C105: 0 | D105: 0 | E105: 0 | F105: 0 | G105: 0 | H105: 0 | I105: 0 | J105: 74 | K105: 60 | L105: 107 | M105: 202 | N105: 115 | O105: 258 | P105: 3172 | Q105: 1766 | R105: 804 | S105: 864 | T105: 319 | U105: 686 | V105: =SUM(C105:U105) -> 8427 | W105: Bacteria | X105: Actinobacteriota | Y105: Actinobacteria | Z105: Corynebacteriales | AA105: Mycobacteriaceae | AB105: Mycobacterium
A106: 105 | B106: sample | C106: 0 | D106: 0 | E106: 0 | F106: 28 | G106: 3249 | H106: 1842 | I106: 1185 | J106: 558 | K106: 541 | L106: 569 | M106: 164 | N106: 175 | O106: 115 | P106: 0 | Q106: 0 | R106: 0 | S106: 0 | T106: 0 | U106: 0 | V106: =SUM(C106:U106) -> 8426 | W106: Bacteria | X106: Proteobacteria | Y106: Alphaproteobacteria | Z106: Rhodobacterales | AA106: Rhodobacteraceae | AB106: Pseudorhodobacter
A107: 106 | B107: sample | C107: 0 | D107: 504 | E107: 759 | F107: 808 | G107: 14 | H107: 18 | I107: 31 | J107: 628 | K107: 630 | L107: 729 | M107: 1414 | N107: 1393 | O107: 1304 | P107: 9 | Q107: 0 | R107: 12 | S107: 10 | T107: 9 | U107: 0 | V107: =SUM(C107:U107) -> 8272 | W107: Bacteria | X107: Proteobacteria | Y107: Gammaproteobacteria | Z107: Xanthomonadales | AA107: Xanthomonadaceae | AB107: Thermomonas
A108: 107 | B108: sample | C108: 0 | D108: 1243 | E108: 1583 | F108: 1618 | G108: 187 | H108: 108 | I108: 123 | J108: 215 | K108: 285 | L108: 254 | M108: 804 | N108: 553 | O108: 454 | P108: 154 | Q108: 152 | R108: 110 | S108: 139 | T108: 128 | U108: 125 | V108: =SUM(C108:U108) -> 8235 | W108: Bacteria | X108: Proteobacteria | Y108: Gammaproteobacteria | Z108: Burkholderiales | AA108: Comamonadaceae | AB108: Leptothrix
A109: 108 | B109: sample | C109: 0 | D109: 116 | E109: 69 | F109: 100 | G109: 111 | H109: 82 | I109: 91 | J109: 850 | K109: 901 | L109: 743 | M109: 1512 | N109: 1889 | O109: 1714 | P109: 0 | Q109: 0 | R109: 0 | S109: 0 | T109: 0 | U109: 0 | V109: =SUM(C109:U109) -> 8178 | W109: Bacteria | X109: Planctomycetota | Y109: Planctomycetes | Z109: Pirellulales | AA109: Pirellulaceae | AB109: Pirellula
A110: 109 | B110: sample | C110: 0 | D110: 1193 | E110: 1514 | F110: 1601 | G110: 13 | H110: 7 | I110: 20 | J110: 386 | K110: 440 | L110: 450 | M110: 880 | N110: 836 | O110: 766 | P110: 0 | Q110: 0 | R110: 0 | S110: 0 | T110: 0 | U110: 0 | V110: =SUM(C110:U110) -> 8106 | W110: Bacteria | X110: Bacteroidota | Y110: Bacteroidia | Z110: Cytophagales | AA110: Spirosomaceae | AB110: Rudanella
A111: 110 | B111: sample | C111: 0 | D111: 2675 | E111: 2293 | F111: 2812 | G111: 97 | H111: 32 | I111: 0 | J111: 0 | K111: 0 | L111: 0 | M111: 0 | N111: 0 | O111: 0 | P111: 0 | Q111: 0 | R111: 0 | S111: 0 | T111: 0 | U111: 0 | V111: =SUM(C111:U111) -> 7909 | W111: Bacteria | X111: Proteobacteria | Y111: Gammaproteobacteria | Z111: Burkholderiales | AA111: Comamonadaceae | AB111: NA
A112: 111 | B112: sample | C112: 0 | D112: 133 | E112: 134 | F112: 168 | G112: 28 | H112: 38 | I112: 80 | J112: 879 | K112: 1373 | L112: 741 | M112: 1068 | N112: 992 | O112: 870 | P112: 260 | Q112: 286 | R112: 219 | S112: 142 | T112: 318 | U112: 100 | V112: =SUM(C112:U112) -> 7829 | W112: Bacteria | X112: Proteobacteria | Y112: Gammaproteobacteria | Z112: Burkholderiales | AA112: Oxalobacteraceae | AB112: Undibacterium
A113: 112 | B113: sample | C113: 0 | D113: 69 | E113: 77 | F113: 102 | G113: 631 | H113: 471 | I113: 767 | J113: 431 | K113: 444 | L113: 393 | M113: 268 | N113: 258 | O113: 195 | P113: 658 | Q113: 519 | R113: 401 | S113: 769 | T113: 810 | U113: 499 | V113: =SUM(C113:U113) -> 7762 | W113: Bacteria | X113: Proteobacteria | Y113: Gammaproteobacteria | Z113: Burkholderiales | AA113: Comamonadaceae | AB113: NA
A114: 113 | B114: sample | C114: 0 | D114: 2082 | E114: 1435 | F114: 1885 | G114: 13 | H114: 18 | I114: 96 | J114: 238 | K114: 340 | L114: 234 | M114: 355 | N114: 322 | O114: 275 | P114: 71 | Q114: 54 | R114: 56 | S114: 66 | T114: 90 | U114: 33 | V114: =SUM(C114:U114) -> 7663 | W114: Bacteria | X114: Myxococcota | Y114: Polyangia | Z114: Polyangiales | AA114: Phaselicystidaceae | AB114: Phaselicystis
A115: 114 | B115: sample | C115: 0 | D115: 19 | E115: 0 | F115: 30 | G115: 0 | H115: 28 | I115: 0 | J115: 675 | K115: 732 | L115: 571 | M115: 1522 | N115: 1348 | O115: 1317 | P115: 332 | Q115: 259 | R115: 217 | S115: 190 | T115: 178 | U115: 226 | V115: =SUM(C115:U115) -> 7644 | W115: Bacteria | X115: Proteobacteria | Y115: Gammaproteobacteria | Z115: Burkholderiales | AA115: Comamonadaceae | AB115: NA
A116: 115 | B116: sample | C116: 0 | D116: 0 | E116: 0 | F116: 0 | G116: 0 | H116: 0 | I116: 0 | J116: 14 | K116: 17 | L116: 16 | M116: 46 | N116: 69 | O116: 38 | P116: 1597 | Q116: 1189 | R116: 1335 | S116: 1030 | T116: 1186 | U116: 914 | V116: =SUM(C116:U116) -> 7451 | W116: Bacteria | X116: Verrucomicrobiota | Y116: Verrucomicrobiae | Z116: Pedosphaerales | AA116: Pedosphaeraceae | AB116: SH3-11
A117: 116 | B117: sample | C117: 0 | D117: 0 | E117: 0 | F117: 0 | G117: 908 | H117: 1039 | I117: 2457 | J117: 1051 | K117: 984 | L117: 994 | M117: 0 | N117: 0 | O117: 0 | P117: 0 | Q117: 0 | R117: 0 | S117: 0 | T117: 0 | U117: 0 | V117: =SUM(C117:U117) -> 7433 | W117: Bacteria | X117: Proteobacteria | Y117: Alphaproteobacteria | Z117: Sphingomonadales | AA117: Sphingomonadaceae | AB117: Novosphingobium
A118: 117 | B118: sample | C118: 0 | D118: 0 | E118: 0 | F118: 0 | G118: 25 | H118: 23 | I118: 36 | J118: 286 | K118: 419 | L118: 337 | M118: 594 | N118: 533 | O118: 439 | P118: 1406 | Q118: 997 | R118: 645 | S118: 535 | T118: 654 | U118: 471 | V118: =SUM(C118:U118) -> 7400 | W118: Bacteria | X118: Verrucomicrobiota | Y118: Verrucomicrobiae | Z118: Verrucomicrobiales | AA118: Rubritaleaceae | AB118: Luteolibacter
A119: 118 | B119: sample | C119: 0 | D119: 679 | E119: 591 | F119: 850 | G119: 16 | H119: 9 | I119: 29 | J119: 180 | K119: 251 | L119: 313 | M119: 746 | N119: 1061 | O119: 943 | P119: 101 | Q119: 115 | R119: 91 | S119: 439 | T119: 647 | U119: 292 | V119: =SUM(C119:U119) -> 7353 | W119: Bacteria | X119: Acidobacteriota | Y119: Vicinamibacteria | Z119: Vicinamibacterales | AA119: Vicinamibacteraceae | AB119: NA
A120: 119 | B120: sample | C120: 0 | D120: 0 | E120: 0 | F120: 0 | G120: 0 | H120: 0 | I120: 0 | J120: 325 | K120: 319 | L120: 330 | M120: 1140 | N120: 1181 | O120: 923 | P120: 45 | Q120: 101 | R120: 88 | S120: 924 | T120: 1076 | U120: 893 | V120: =SUM(C120:U120) -> 7345 | W120: Bacteria | X120: Myxococcota | Y120: Polyangia | Z120: Haliangiales | AA120: Haliangiaceae | AB120: Haliangium
A121: 120 | B121: sample | C121: 0 | D121: 90 | E121: 112 | F121: 121 | G121: 68 | H121: 57 | I121: 55 | J121: 559 | K121: 674 | L121: 557 | M121: 1123 | N121: 879 | O121: 934 | P121: 337 | Q121: 312 | R121: 286 | S121: 421 | T121: 318 | U121: 429 | V121: =SUM(C121:U121) -> 7332 | W121: Bacteria | X121: Proteobacteria | Y121: Alphaproteobacteria | Z121: Rhizobiales | AA121: Rhizobiales Incertae Sedis | AB121: NA
A122: 121 | B122: sample | C122: 0 | D122: 0 | E122: 0 | F122: 0 | G122: 0 | H122: 0 | I122: 0 | J122: 0 | K122: 0 | L122: 0 | M122: 0 | N122: 0 | O122: 0 | P122: 1550 | Q122: 1677 | R122: 1767 | S122: 1184 | T122: 137 | U122: 1010 | V122: =SUM(C122:U122) -> 7325 | W122: Bacteria | X122: Myxococcota | Y122: Polyangia | Z122: Polyangiales | AA122: Polyangiaceae | AB122: Polyangium
A123: 122 | B123: sample | C123: 0 | D123: 10 | E123: 0 | F123: 41 | G123: 92 | H123: 85 | I123: 232 | J123: 1739 | K123: 2420 | L123: 1682 | M123: 15 | N123: 10 | O123: 18 | P123: 233 | Q123: 191 | R123: 95 | S123: 100 | T123: 123 | U123: 102 | V123: =SUM(C123:U123) -> 7188 | W123: Bacteria | X123: Bacteroidota | Y123: Bacteroidia | Z123: Flavobacteriales | AA123: Flavobacteriaceae | AB123: Flavobacterium
A124: 123 | B124: sample | C124: 0 | D124: 0 | E124: 0 | F124: 0 | G124: 0 | H124: 0 | I124: 0 | J124: 0 | K124: 0 | L124: 0 | M124: 0 | N124: 0 | O124: 0 | P124: 1484 | Q124: 1198 | R124: 1024 | S124: 1247 | T124: 1178 | U124: 1046 | V124: =SUM(C124:U124) -> 7177 | W124: Bacteria | X124: Planctomycetota | Y124: Planctomycetes | Z124: Planctomycetales | AA124: Rubinisphaeraceae | AB124: NA
A125: 124 | B125: sample | C125: 0 | D125: 1486 | E125: 1134 | F125: 1259 | G125: 47 | H125: 48 | I125: 85 | J125: 268 | K125: 360 | L125: 284 | M125: 259 | N125: 279 | O125: 238 | P125: 196 | Q125: 284 | R125: 133 | S125: 411 | T125: 145 | U125: 206 | V125: =SUM(C125:U125) -> 7122 | W125: Bacteria | X125: Proteobacteria | Y125: Alphaproteobacteria | Z125: Sphingomonadales | AA125: Sphingomonadaceae | AB125: Rhizorhapis
A126: 125 | B126: sample | C126: 0 | D126: 769 | E126: 745 | F126: 724 | G126: 870 | H126: 778 | I126: 998 | J126: 534 | K126: 453 | L126: 483 | M126: 147 | N126: 168 | O126: 182 | P126: 72 | Q126: 60 | R126: 46 | S126: 7 | T126: 35 | U126: 10 | V126: =SUM(C126:U126) -> 7081 | W126: Bacteria | X126: Proteobacteria | Y126: Alphaproteobacteria | Z126: Rhizobiales | AA126: Rhizobiaceae | AB126: Shinella
A127: 126 | B127: sample | C127: 0 | D127: 1168 | E127: 861 | F127: 779 | G127: 25 | H127: 33 | I127: 67 | J127: 1307 | K127: 1141 | L127: 1323 | M127: 52 | N127: 0 | O127: 45 | P127: 53 | Q127: 48 | R127: 46 | S127: 0 | T127: 96 | U127: 0 | V127: =SUM(C127:U127) -> 7044 | W127: Bacteria | X127: Proteobacteria | Y127: Alphaproteobacteria | Z127: Rhodobacterales | AA127: Rhodobacteraceae | AB127: Gemmobacter
A128: 127 | B128: sample | C128: 0 | D128: 46 | E128: 61 | F128: 76 | G128: 11 | H128: 12 | I128: 9 | J128: 174 | K128: 191 | L128: 173 | M128: 850 | N128: 871 | O128: 624 | P128: 455 | Q128: 278 | R128: 238 | S128: 1098 | T128: 786 | U128: 981 | V128: =SUM(C128:U128) -> 6934 | W128: Bacteria | X128: Bacteroidota | Y128: Bacteroidia | Z128: Cytophagales | AA128: Microscillaceae | AB128: NA
A129: 128 | B129: sample | C129: 0 | D129: 14 | E129: 0 | F129: 0 | G129: 69 | H129: 86 | I129: 34 | J129: 840 | K129: 1183 | L129: 957 | M129: 1360 | N129: 1257 | O129: 1017 | P129: 0 | Q129: 0 | R129: 0 | S129: 0 | T129: 0 | U129: 0 | V129: =SUM(C129:U129) -> 6817 | W129: Bacteria | X129: Bacteroidota | Y129: Bacteroidia | Z129: Chitinophagales | AA129: Chitinophagaceae | AB129: NA
A130: 129 | B130: sample | C130: 0 | D130: 0 | E130: 0 | F130: 0 | G130: 0 | H130: 0 | I130: 0 | J130: 257 | K130: 318 | L130: 268 | M130: 866 | N130: 887 | O130: 724 | P130: 875 | Q130: 422 | R130: 890 | S130: 340 | T130: 349 | U130: 520 | V130: =SUM(C130:U130) -> 6716 | W130: Bacteria | X130: Proteobacteria | Y130: Alphaproteobacteria | Z130: Rickettsiales | AA130: Rickettsiaceae | AB130: Candidatus Megaira
A131: 130 | B131: sample | C131: 0 | D131: 16 | E131: 21 | F131: 23 | G131: 0 | H131: 0 | I131: 8 | J131: 682 | K131: 948 | L131: 663 | M131: 634 | N131: 599 | O131: 469 | P131: 510 | Q131: 461 | R131: 275 | S131: 478 | T131: 561 | U131: 351 | V131: =SUM(C131:U131) -> 6699 | W131: Bacteria | X131: Bacteroidota | Y131: Bacteroidia | Z131: Flavobacteriales | AA131: Flavobacteriaceae | AB131: Flavobacterium
A132: 131 | B132: sample | C132: 0 | D132: 183 | E132: 268 | F132: 287 | G132: 27 | H132: 32 | I132: 70 | J132: 711 | K132: 870 | L132: 708 | M132: 1073 | N132: 1005 | O132: 810 | P132: 103 | Q132: 70 | R132: 90 | S132: 101 | T132: 147 | U132: 121 | V132: =SUM(C132:U132) -> 6676 | W132: Bacteria | X132: Bacteroidota | Y132: Bacteroidia | Z132: Cytophagales | AA132: Spirosomaceae | AB132: Runella
A133: 132 | B133: sample | C133: 0 | D133: 2336 | E133: 1425 | F133: 2397 | G133: 0 | H133: 0 | I133: 98 | J133: 135 | K133: 105 | L133: 115 | M133: 0 | N133: 0 | O133: 0 | P133: 0 | Q133: 0 | R133: 0 | S133: 0 | T133: 0 | U133: 0 | V133: =SUM(C133:U133) -> 6611 | W133: Bacteria | X133: Proteobacteria | Y133: Gammaproteobacteria | Z133: Xanthomonadales | AA133: Xanthomonadaceae | AB133: Pseudoxanthomonas
A134: 133 | B134: sample | C134: 0 | D134: 323 | E134: 526 | F134: 578 | G134: 0 | H134: 0 | I134: 0 | J134: 146 | K134: 162 | L134: 139 | M134: 83 | N134: 78 | O134: 70 | P134: 1074 | Q134: 775 | R134: 528 | S134: 536 | T134: 983 | U134: 575 | V134: =SUM(C134:U134) -> 6576 | W134: Bacteria | X134: Proteobacteria | Y134: Alphaproteobacteria | Z134: Rhodobacterales | AA134: Rhodobacteraceae | AB134: Pseudorhodobacter
A135: 134 | B135: sample | C135: 0 | D135: 67 | E135: 83 | F135: 102 | G135: 235 | H135: 160 | I135: 339 | J135: 387 | K135: 546 | L135: 372 | M135: 0 | N135: 0 | O135: 0 | P135: 2617 | Q135: 1003 | R135: 442 | S135: 92 | T135: 70 | U135: 52 | V135: =SUM(C135:U135) -> 6567 | W135: Bacteria | X135: Bacteroidota | Y135: Bacteroidia | Z135: Flavobacteriales | AA135: Flavobacteriaceae | AB135: Flavobacterium
A136: 135 | B136: sample | C136: 0 | D136: 45 | E136: 29 | F136: 28 | G136: 268 | H136: 266 | I136: 501 | J136: 1020 | K136: 1089 | L136: 940 | M136: 728 | N136: 612 | O136: 550 | P136: 107 | Q136: 123 | R136: 58 | S136: 58 | T136: 63 | U136: 47 | V136: =SUM(C136:U136) -> 6532 | W136: Bacteria | X136: Proteobacteria | Y136: Gammaproteobacteria | Z136: Burkholderiales | AA136: Comamonadaceae | AB136: Limnohabitans
A137: 136 | B137: sample | C137: 0 | D137: 7 | E137: 18 | F137: 9 | G137: 3 | H137: 14 | I137: 91 | J137: 308 | K137: 587 | L137: 292 | M137: 774 | N137: 609 | O137: 432 | P137: 722 | Q137: 546 | R137: 601 | S137: 784 | T137: 254 | U137: 373 | V137: =SUM(C137:U137) -> 6424 | W137: Bacteria | X137: Bacteroidota | Y137: Bacteroidia | Z137: Chitinophagales | AA137: NA | AB137: NA
A138: 137 | B138: sample | C138: 0 | D138: 1145 | E138: 1305 | F138: 1591 | G138: 9 | H138: 15 | I138: 15 | J138: 175 | K138: 218 | L138: 169 | M138: 343 | N138: 345 | O138: 293 | P138: 104 | Q138: 100 | R138: 88 | S138: 216 | T138: 173 | U138: 108 | V138: =SUM(C138:U138) -> 6412 | W138: Bacteria | X138: Proteobacteria | Y138: Gammaproteobacteria | Z138: Xanthomonadales | AA138: Rhodanobacteraceae | AB138: NA
A139: 138 | B139: sample | C139: 0 | D139: 658 | E139: 668 | F139: 769 | G139: 438 | H139: 376 | I139: 515 | J139: 409 | K139: 303 | L139: 441 | M139: 88 | N139: 115 | O139: 105 | P139: 335 | Q139: 286 | R139: 155 | S139: 297 | T139: 239 | U139: 192 | V139: =SUM(C139:U139) -> 6389 | W139: Bacteria | X139: Proteobacteria | Y139: Alphaproteobacteria | Z139: Rhizobiales | AA139: Beijerinckiaceae | AB139: Bosea
A140: 139 | B140: sample | C140: 0 | D140: 0 | E140: 0 | F140: 0 | G140: 0 | H140: 0 | I140: 0 | J140: 0 | K140: 0 | L140: 0 | M140: 2 | N140: 0 | O140: 1 | P140: 2581 | Q140: 1839 | R140: 1854 | S140: 64 | T140: 0 | U140: 17 | V140: =SUM(C140:U140) -> 6358 | W140: Bacteria | X140: Proteobacteria | Y140: Gammaproteobacteria | Z140: Burkholderiales | AA140: Alcaligenaceae | AB140: Candidimonas
A141: 140 | B141: sample | C141: 0 | D141: 1155 | E141: 1221 | F141: 1402 | G141: 0 | H141: 0 | I141: 13 | J141: 100 | K141: 113 | L141: 107 | M141: 205 | N141: 208 | O141: 170 | P141: 481 | Q141: 340 | R141: 196 | S141: 196 | T141: 184 | U141: 200 | V141: =SUM(C141:U141) -> 6291 | W141: Bacteria | X141: Bacteroidota | Y141: Bacteroidia | Z141: Chitinophagales | AA141: NA | AB141: NA
A142: 141 | B142: sample | C142: 0 | D142: 2 | E142: 0 | F142: 0 | G142: 0 | H142: 0 | I142: 0 | J142: 0 | K142: 9 | L142: 11 | M142: 10 | N142: 8 | O142: 9 | P142: 960 | Q142: 1044 | R142: 499 | S142: 1481 | T142: 1022 | U142: 1224 | V142: =SUM(C142:U142) -> 6279 | W142: Bacteria | X142: Verrucomicrobiota | Y142: Verrucomicrobiae | Z142: Verrucomicrobiales | AA142: DEV007 | AB142: NA
A143: 142 | B143: sample | C143: 0 | D143: 821 | E143: 551 | F143: 508 | G143: 1078 | H143: 956 | I143: 909 | J143: 203 | K143: 272 | L143: 283 | M143: 101 | N143: 57 | O143: 69 | P143: 105 | Q143: 142 | R143: 62 | S143: 32 | T143: 76 | U143: 27 | V143: =SUM(C143:U143) -> 6252 | W143: Bacteria | X143: Proteobacteria | Y143: Alphaproteobacteria | Z143: Rhizobiales | AA143: Beijerinckiaceae | AB143: NA
A144: 143 | B144: sample | C144: 0 | D144: 0 | E144: 0 | F144: 0 | G144: 0 | H144: 0 | I144: 0 | J144: 0 | K144: 0 | L144: 0 | M144: 0 | N144: 0 | O144: 0 | P144: 944 | Q144: 714 | R144: 787 | S144: 1351 | T144: 847 | U144: 1561 | V144: =SUM(C144:U144) -> 6204 | W144: Bacteria | X144: Proteobacteria | Y144: Alphaproteobacteria | Z144: Sphingomonadales | AA144: Sphingomonadaceae | AB144: Novosphingobium
A145: 144 | B145: sample | C145: 0 | D145: 1812 | E145: 1614 | F145: 1575 | G145: 31 | H145: 26 | I145: 33 | J145: 93 | K145: 114 | L145: 65 | M145: 39 | N145: 28 | O145: 42 | P145: 52 | Q145: 57 | R145: 39 | S145: 101 | T145: 366 | U145: 80 | V145: =SUM(C145:U145) -> 6167 | W145: Bacteria | X145: Bacteroidota | Y145: Bacteroidia | Z145: Chitinophagales | AA145: Saprospiraceae | AB145: NA
A146: 145 | B146: sample | C146: 0 | D146: 39 | E146: 47 | F146: 59 | G146: 0 | H146: 0 | I146: 4 | J146: 225 | K146: 218 | L146: 275 | M146: 556 | N146: 385 | O146: 586 | P146: 554 | Q146: 398 | R146: 369 | S146: 1029 | T146: 524 | U146: 865 | V146: =SUM(C146:U146) -> 6133 | W146: Bacteria | X146: Chloroflexi | Y146: Anaerolineae | Z146: Caldilineales | AA146: Caldilineaceae | AB146: NA
A147: 146 | B147: mock | C147: 6115 | D147: 0 | E147: 0 | F147: 0 | G147: 0 | H147: 0 | I147: 0 | J147: 0 | K147: 0 | L147: 0 | M147: 0 | N147: 0 | O147: 0 | P147: 0 | Q147: 0 | R147: 0 | S147: 0 | T147: 0 | U147: 0 | V147: =SUM(C147:U147) -> 6115 | W147: Bacteria | X147: Firmicutes | Y147: Bacilli | Z147: Staphylococcales | AA147: Staphylococcaceae | AB147: Staphylococcus
A148: 147 | B148: sample | C148: 0 | D148: 1445 | E148: 1093 | F148: 1751 | G148: 177 | H148: 168 | I148: 262 | J148: 234 | K148: 265 | L148: 240 | M148: 190 | N148: 146 | O148: 132 | P148: 0 | Q148: 0 | R148: 0 | S148: 0 | T148: 0 | U148: 0 | V148: =SUM(C148:U148) -> 6103 | W148: Bacteria | X148: Verrucomicrobiota | Y148: Verrucomicrobiae | Z148: Verrucomicrobiales | AA148: Verrucomicrobiaceae | AB148: NA
A149: 148 | B149: sample | C149: 0 | D149: 0 | E149: 0 | F149: 0 | G149: 0 | H149: 0 | I149: 0 | J149: 0 | K149: 0 | L149: 0 | M149: 0 | N149: 0 | O149: 0 | P149: 1619 | Q149: 1106 | R149: 1359 | S149: 887 | T149: 469 | U149: 528 | V149: =SUM(C149:U149) -> 5968 | W149: Bacteria | X149: Bacteroidota | Y149: Kapabacteria | Z149: Kapabacteriales | AA149: NA | AB149: NA
A150: 149 | B150: sample | C150: 0 | D150: 0 | E150: 0 | F150: 0 | G150: 0 | H150: 0 | I150: 0 | J150: 61 | K150: 58 | L150: 108 | M150: 302 | N150: 105 | O150: 370 | P150: 1568 | Q150: 750 | R150: 811 | S150: 786 | T150: 336 | U150: 684 | V150: =SUM(C150:U150) -> 5939 | W150: Bacteria | X150: Chloroflexi | Y150: Chloroflexia | Z150: Thermomicrobiales | AA150: JG30-KF-CM45 | AB150: NA
A151: 150 | B151: sample | C151: 0 | D151: 679 | E151: 642 | F151: 766 | G151: 483 | H151: 494 | I151: 572 | J151: 165 | K151: 244 | L151: 163 | M151: 116 | N151: 98 | O151: 94 | P151: 505 | Q151: 312 | R151: 330 | S151: 109 | T151: 69 | U151: 63 | V151: =SUM(C151:U151) -> 5904 | W151: Bacteria | X151: Bacteroidota | Y151: Bacteroidia | Z151: Chitinophagales | AA151: Chitinophagaceae | AB151: Sediminibacterium
A152: 151 | B152: sample | C152: 0 | D152: 341 | E152: 462 | F152: 910 | G152: 69 | H152: 51 | I152: 226 | J152: 1156 | K152: 1331 | L152: 1113 | M152: 73 | N152: 54 | O152: 50 | P152: 0 | Q152: 0 | R152: 0 | S152: 0 | T152: 0 | U152: 0 | V152: =SUM(C152:U152) -> 5836 | W152: Bacteria | X152: Proteobacteria | Y152: Alphaproteobacteria | Z152: Sphingomonadales | AA152: Sphingomonadaceae | AB152: NA
A153: 152 | B153: sample | C153: 0 | D153: 0 | E153: 0 | F153: 0 | G153: 0 | H153: 0 | I153: 0 | J153: 0 | K153: 0 | L153: 0 | M153: 0 | N153: 0 | O153: 0 | P153: 486 | Q153: 86 | R153: 275 | S153: 1677 | T153: 802 | U153: 2490 | V153: =SUM(C153:U153) -> 5816 | W153: Bacteria | X153: Chloroflexi | Y153: Anaerolineae | Z153: Ardenticatenales | AA153: NA | AB153: NA
A154: 153 | B154: sample | C154: 0 | D154: 666 | E154: 835 | F154: 793 | G154: 63 | H154: 56 | I154: 99 | J154: 186 | K154: 219 | L154: 196 | M154: 356 | N154: 345 | O154: 293 | P154: 266 | Q154: 149 | R154: 120 | S154: 382 | T154: 466 | U154: 309 | V154: =SUM(C154:U154) -> 5799 | W154: Bacteria | X154: Proteobacteria | Y154: Gammaproteobacteria | Z154: Burkholderiales | AA154: Comamonadaceae | AB154: Rhodoferax
A155: 154 | B155: sample | C155: 0 | D155: 0 | E155: 0 | F155: 0 | G155: 0 | H155: 0 | I155: 0 | J155: 0 | K155: 0 | L155: 0 | M155: 0 | N155: 0 | O155: 0 | P155: 1814 | Q155: 1164 | R155: 806 | S155: 623 | T155: 801 | U155: 580 | V155: =SUM(C155:U155) -> 5788 | W155: Bacteria | X155: Verrucomicrobiota | Y155: Verrucomicrobiae | Z155: Verrucomicrobiales | AA155: Rubritaleaceae | AB155: Luteolibacter
A156: 155 | B156: sample | C156: 0 | D156: 0 | E156: 0 | F156: 0 | G156: 0 | H156: 0 | I156: 0 | J156: 0 | K156: 0 | L156: 0 | M156: 0 | N156: 0 | O156: 0 | P156: 1073 | Q156: 824 | R156: 736 | S156: 1156 | T156: 1109 | U156: 887 | V156: =SUM(C156:U156) -> 5785 | W156: Bacteria | X156: Proteobacteria | Y156: Alphaproteobacteria | Z156: Rhodobacterales | AA156: Rhodobacteraceae | AB156: Pseudorhodobacter
A157: 156 | B157: sample | C157: 0 | D157: 24 | E157: 16 | F157: 22 | G157: 26 | H157: 28 | I157: 135 | J157: 16 | K157: 31 | L157: 15 | M157: 59 | N157: 59 | O157: 46 | P157: 1366 | Q157: 869 | R157: 537 | S157: 540 | T157: 1182 | U157: 776 | V157: =SUM(C157:U157) -> 5747 | W157: Bacteria | X157: Verrucomicrobiota | Y157: Verrucomicrobiae | Z157: NA | AA157: NA | AB157: NA
A158: 157 | B158: sample | C158: 0 | D158: 2412 | E158: 2060 | F158: 1140 | G158: 0 | H158: 0 | I158: 0 | J158: 8 | K158: 22 | L158: 0 | M158: 0 | N158: 0 | O158: 0 | P158: 30 | Q158: 26 | R158: 0 | S158: 16 | T158: 10 | U158: 0 | V158: =SUM(C158:U158) -> 5724 | W158: Bacteria | X158: Proteobacteria | Y158: Gammaproteobacteria | Z158: Alteromonadales | AA158: Alteromonadaceae | AB158: Rheinheimera
A159: 158 | B159: sample | C159: 0 | D159: 754 | E159: 869 | F159: 1184 | G159: 7 | H159: 0 | I159: 17 | J159: 218 | K159: 312 | L159: 220 | M159: 470 | N159: 429 | O159: 371 | P159: 129 | Q159: 85 | R159: 76 | S159: 139 | T159: 146 | U159: 79 | V159: =SUM(C159:U159) -> 5505 | W159: Bacteria | X159: Proteobacteria | Y159: Gammaproteobacteria | Z159: Xanthomonadales | AA159: Rhodanobacteraceae | AB159: NA
A160: 159 | B160: sample | C160: 0 | D160: 125 | E160: 120 | F160: 117 | G160: 176 | H160: 94 | I160: 58 | J160: 395 | K160: 331 | L160: 284 | M160: 456 | N160: 544 | O160: 614 | P160: 520 | Q160: 415 | R160: 303 | S160: 395 | T160: 159 | U160: 397 | V160: =SUM(C160:U160) -> 5503 | W160: Bacteria | X160: Proteobacteria | Y160: Alphaproteobacteria | Z160: Rhizobiales | AA160: Rhizobiales Incertae Sedis | AB160: NA
A161: 160 | B161: sample | C161: 0 | D161: 64 | E161: 83 | F161: 64 | G161: 13 | H161: 9 | I161: 34 | J161: 434 | K161: 438 | L161: 436 | M161: 791 | N161: 865 | O161: 725 | P161: 315 | Q161: 209 | R161: 222 | S161: 281 | T161: 256 | U161: 200 | V161: =SUM(C161:U161) -> 5439 | W161: Bacteria | X161: Verrucomicrobiota | Y161: Verrucomicrobiae | Z161: Verrucomicrobiales | AA161: Verrucomicrobiaceae | AB161: NA
A162: 161 | B162: sample | C162: 0 | D162: 54 | E162: 49 | F162: 55 | G162: 0 | H162: 0 | I162: 0 | J162: 163 | K162: 178 | L162: 179 | M162: 1223 | N162: 1145 | O162: 1052 | P162: 90 | Q162: 29 | R162: 36 | S162: 420 | T162: 145 | U162: 580 | V162: =SUM(C162:U162) -> 5398 | W162: Bacteria | X162: Proteobacteria | Y162: Gammaproteobacteria | Z162: Xanthomonadales | AA162: Xanthomonadaceae | AB162: Arenimonas
A163: 162 | B163: sample | C163: 0 | D163: 162 | E163: 219 | F163: 376 | G163: 20 | H163: 18 | I163: 31 | J163: 423 | K163: 438 | L163: 510 | M163: 738 | N163: 883 | O163: 786 | P163: 107 | Q163: 107 | R163: 91 | S163: 162 | T163: 170 | U163: 101 | V163: =SUM(C163:U163) -> 5342 | W163: Bacteria | X163: Proteobacteria | Y163: Alphaproteobacteria | Z163: Rhodobacterales | AA163: Rhodobacteraceae | AB163: Defluviimonas
A164: 163 | B164: sample | C164: 0 | D164: 34 | E164: 34 | F164: 33 | G164: 1756 | H164: 1689 | I164: 985 | J164: 207 | K164: 354 | L164: 208 | M164: 5 | N164: 0 | O164: 4 | P164: 0 | Q164: 0 | R164: 0 | S164: 0 | T164: 0 | U164: 0 | V164: =SUM(C164:U164) -> 5309 | W164: Bacteria | X164: Bacteroidota | Y164: Bacteroidia | Z164: Chitinophagales | AA164: NA | AB164: NA
A165: 164 | B165: sample | C165: 0 | D165: 7 | E165: 10 | F165: 8 | G165: 0 | H165: 0 | I165: 0 | J165: 431 | K165: 446 | L165: 386 | M165: 1422 | N165: 1343 | O165: 1247 | P165: 0 | Q165: 0 | R165: 0 | S165: 0 | T165: 0 | U165: 0 | V165: =SUM(C165:U165) -> 5300 | W165: Bacteria | X165: NA | Y165: NA | Z165: NA | AA165: NA | AB165: NA
A166: 165 | B166: sample | C166: 0 | D166: 749 | E166: 666 | F166: 933 | G166: 0 | H166: 0 | I166: 12 | J166: 83 | K166: 107 | L166: 88 | M166: 504 | N166: 513 | O166: 354 | P166: 6 | Q166: 20 | R166: 34 | S166: 827 | T166: 149 | U166: 254 | V166: =SUM(C166:U166) -> 5299 | W166: Bacteria | X166: Desulfobacterota | Y166: Desulfuromonadia | Z166: PB19 | AA166: NA | AB166: NA
A167: 166 | B167: sample | C167: 0 | D167: 16 | E167: 45 | F167: 54 | G167: 0 | H167: 0 | I167: 0 | J167: 9 | K167: 12 | L167: 7 | M167: 0 | N167: 0 | O167: 6 | P167: 1062 | Q167: 825 | R167: 514 | S167: 923 | T167: 1076 | U167: 737 | V167: =SUM(C167:U167) -> 5286 | W167: Bacteria | X167: Bacteroidota | Y167: Bacteroidia | Z167: Flavobacteriales | AA167: Flavobacteriaceae | AB167: Flavobacterium
A168: 167 | B168: sample | C168: 0 | D168: 63 | E168: 60 | F168: 89 | G168: 23 | H168: 26 | I168: 24 | J168: 219 | K168: 266 | L168: 266 | M168: 985 | N168: 865 | O168: 783 | P168: 307 | Q168: 245 | R168: 248 | S168: 329 | T168: 261 | U168: 219 | V168: =SUM(C168:U168) -> 5278 | W168: Bacteria | X168: Myxococcota | Y168: Polyangia | Z168: Polyangiales | AA168: Sandaracinaceae | AB168: NA
A169: 168 | B169: sample | C169: 0 | D169: 333 | E169: 527 | F169: 1062 | G169: 571 | H169: 763 | I169: 1392 | J169: 172 | K169: 210 | L169: 207 | M169: 0 | N169: 0 | O169: 0 | P169: 0 | Q169: 0 | R169: 0 | S169: 0 | T169: 0 | U169: 0 | V169: =SUM(C169:U169) -> 5237 | W169: Bacteria | X169: Proteobacteria | Y169: Alphaproteobacteria | Z169: Caulobacterales | AA169: Caulobacteraceae | AB169: Brevundimonas
A170: 169 | B170: sample | C170: 0 | D170: 0 | E170: 0 | F170: 0 | G170: 0 | H170: 0 | I170: 0 | J170: 1439 | K170: 1684 | L170: 1670 | M170: 154 | N170: 126 | O170: 116 | P170: 0 | Q170: 0 | R170: 0 | S170: 0 | T170: 0 | U170: 0 | V170: =SUM(C170:U170) -> 5189 | W170: Bacteria | X170: Bacteroidota | Y170: Bacteroidia | Z170: Flavobacteriales | AA170: Flavobacteriaceae | AB170: Flavobacterium
A171: 170 | B171: sample | C171: 0 | D171: 1375 | E171: 1031 | F171: 1876 | G171: 220 | H171: 116 | I171: 85 | J171: 57 | K171: 86 | L171: 87 | M171: 29 | N171: 0 | O171: 0 | P171: 53 | Q171: 92 | R171: 29 | S171: 12 | T171: 0 | U171: 14 | V171: =SUM(C171:U171) -> 5162 | W171: Bacteria | X171: Proteobacteria | Y171: Gammaproteobacteria | Z171: Xanthomonadales | AA171: Xanthomonadaceae | AB171: Pseudoxanthomonas
A172: 171 | B172: mock | C172: 5116 | D172: 0 | E172: 0 | F172: 0 | G172: 0 | H172: 0 | I172: 0 | J172: 0 | K172: 0 | L172: 0 | M172: 0 | N172: 0 | O172: 0 | P172: 0 | Q172: 0 | R172: 0 | S172: 0 | T172: 0 | U172: 0 | V172: =SUM(C172:U172) -> 5116 | W172: Bacteria | X172: Firmicutes | Y172: Bacilli | Z172: Bacillales | AA172: Bacillaceae | AB172: Bacillus
A173: 172 | B173: sample | C173: 0 | D173: 26 | E173: 43 | F173: 36 | G173: 14 | H173: 10 | I173: 23 | J173: 444 | K173: 425 | L173: 376 | M173: 1097 | N173: 1026 | O173: 884 | P173: 100 | Q173: 124 | R173: 71 | S173: 130 | T173: 142 | U173: 144 | V173: =SUM(C173:U173) -> 5115 | W173: Bacteria | X173: Proteobacteria | Y173: Alphaproteobacteria | Z173: Rhodobacterales | AA173: Rhodobacteraceae | AB173: Defluviimonas
A174: 173 | B174: sample | C174: 0 | D174: 0 | E174: 0 | F174: 0 | G174: 0 | H174: 0 | I174: 0 | J174: 0 | K174: 0 | L174: 0 | M174: 0 | N174: 0 | O174: 0 | P174: 798 | Q174: 709 | R174: 432 | S174: 1013 | T174: 1153 | U174: 976 | V174: =SUM(C174:U174) -> 5081 | W174: Bacteria | X174: Nitrospirota | Y174: Nitrospiria | Z174: Nitrospirales | AA174: Nitrospiraceae | AB174: Nitrospira
A175: 174 | B175: sample | C175: 0 | D175: 0 | E175: 0 | F175: 0 | G175: 0 | H175: 0 | I175: 0 | J175: 279 | K175: 335 | L175: 286 | M175: 1448 | N175: 1318 | O175: 1253 | P175: 80 | Q175: 0 | R175: 0 | S175: 0 | T175: 0 | U175: 0 | V175: =SUM(C175:U175) -> 4999 | W175: Bacteria | X175: Bacteroidota | Y175: Bacteroidia | Z175: Flavobacteriales | AA175: Flavobacteriaceae | AB175: Flavobacterium
A176: 175 | B176: sample | C176: 0 | D176: 482 | E176: 1133 | F176: 1838 | G176: 19 | H176: 35 | I176: 82 | J176: 493 | K176: 408 | L176: 468 | M176: 0 | N176: 0 | O176: 0 | P176: 0 | Q176: 0 | R176: 0 | S176: 0 | T176: 0 | U176: 0 | V176: =SUM(C176:U176) -> 4958 | W176: Bacteria | X176: Proteobacteria | Y176: Alphaproteobacteria | Z176: Rhodobacterales | AA176: Rhodobacteraceae | AB176: Paracoccus
A177: 176 | B177: sample | C177: 0 | D177: 463 | E177: 534 | F177: 662 | G177: 74 | H177: 108 | I177: 149 | J177: 157 | K177: 221 | L177: 175 | M177: 399 | N177: 381 | O177: 350 | P177: 249 | Q177: 156 | R177: 171 | S177: 204 | T177: 326 | U177: 159 | V177: =SUM(C177:U177) -> 4938 | W177: Bacteria | X177: Gemmatimonadota | Y177: Gemmatimonadetes | Z177: Gemmatimonadales | AA177: Gemmatimonadaceae | AB177: Gemmatimonas
A178: 177 | B178: sample | C178: 0 | D178: 544 | E178: 526 | F178: 614 | G178: 41 | H178: 75 | I178: 41 | J178: 664 | K178: 706 | L178: 644 | M178: 362 | N178: 290 | O178: 258 | P178: 32 | Q178: 29 | R178: 0 | S178: 26 | T178: 22 | U178: 23 | V178: =SUM(C178:U178) -> 4897 | W178: Bacteria | X178: Proteobacteria | Y178: Gammaproteobacteria | Z178: Burkholderiales | AA178: Comamonadaceae | AB178: Acidovorax
A179: 178 | B179: sample | C179: 0 | D179: 332 | E179: 423 | F179: 402 | G179: 11 | H179: 8 | I179: 27 | J179: 66 | K179: 78 | L179: 54 | M179: 55 | N179: 64 | O179: 59 | P179: 447 | Q179: 377 | R179: 315 | S179: 593 | T179: 1101 | U179: 481 | V179: =SUM(C179:U179) -> 4893 | W179: Bacteria | X179: Proteobacteria | Y179: Gammaproteobacteria | Z179: Burkholderiales | AA179: Sutterellaceae | AB179: AAP99
A180: 179 | B180: sample | C180: 0 | D180: 302 | E180: 216 | F180: 177 | G180: 1001 | H180: 724 | I180: 475 | J180: 566 | K180: 511 | L180: 458 | M180: 55 | N180: 38 | O180: 41 | P180: 63 | Q180: 45 | R180: 39 | S180: 26 | T180: 115 | U180: 30 | V180: =SUM(C180:U180) -> 4882 | W180: Bacteria | X180: Proteobacteria | Y180: Alphaproteobacteria | Z180: Rhizobiales | AA180: Rhizobiaceae | AB180: Allorhizobium-Neorhizobium-Pararhizobium-Rhizobium
A181: 180 | B181: sample | C181: 0 | D181: 0 | E181: 0 | F181: 0 | G181: 0 | H181: 0 | I181: 0 | J181: 0 | K181: 0 | L181: 0 | M181: 0 | N181: 0 | O181: 0 | P181: 1623 | Q181: 828 | R181: 1042 | S181: 821 | T181: 127 | U181: 441 | V181: =SUM(C181:U181) -> 4882 | W181: Bacteria | X181: Proteobacteria | Y181: Gammaproteobacteria | Z181: NA | AA181: NA | AB181: NA
A182: 181 | B182: sample | C182: 0 | D182: 0 | E182: 0 | F182: 0 | G182: 0 | H182: 0 | I182: 0 | J182: 0 | K182: 0 | L182: 0 | M182: 0 | N182: 0 | O182: 0 | P182: 405 | Q182: 215 | R182: 193 | S182: 1536 | T182: 1229 | U182: 1205 | V182: =SUM(C182:U182) -> 4783 | W182: Bacteria | X182: Desulfobacterota | Y182: Desulfuromonadia | Z182: PB19 | AA182: NA | AB182: NA
A183: 182 | B183: sample | C183: 0 | D183: 4 | E183: 0 | F183: 5 | G183: 0 | H183: 3 | I183: 4 | J183: 1135 | K183: 1434 | L183: 1096 | M183: 376 | N183: 308 | O183: 369 | P183: 0 | Q183: 0 | R183: 0 | S183: 0 | T183: 0 | U183: 0 | V183: =SUM(C183:U183) -> 4734 | W183: Bacteria | X183: Proteobacteria | Y183: Gammaproteobacteria | Z183: Xanthomonadales | AA183: Xanthomonadaceae | AB183: Arenimonas
A184: 183 | B184: sample | C184: 0 | D184: 427 | E184: 294 | F184: 333 | G184: 230 | H184: 161 | I184: 148 | J184: 560 | K184: 741 | L184: 526 | M184: 437 | N184: 380 | O184: 339 | P184: 49 | Q184: 12 | R184: 21 | S184: 21 | T184: 0 | U184: 24 | V184: =SUM(C184:U184) -> 4703 | W184: Bacteria | X184: Proteobacteria | Y184: Alphaproteobacteria | Z184: Sphingomonadales | AA184: Sphingomonadaceae | AB184: Rhizorhapis
A185: 184 | B185: sample | C185: 0 | D185: 599 | E185: 483 | F185: 578 | G185: 39 | H185: 39 | I185: 49 | J185: 147 | K185: 171 | L185: 169 | M185: 507 | N185: 436 | O185: 411 | P185: 207 | Q185: 156 | R185: 142 | S185: 237 | T185: 113 | U185: 179 | V185: =SUM(C185:U185) -> 4662 | W185: Bacteria | X185: Proteobacteria | Y185: Alphaproteobacteria | Z185: Caulobacterales | AA185: Hyphomonadaceae | AB185: Hirschia
A186: 185 | B186: sample | C186: 0 | D186: 619 | E186: 525 | F186: 522 | G186: 24 | H186: 23 | I186: 48 | J186: 395 | K186: 260 | L186: 363 | M186: 310 | N186: 336 | O186: 263 | P186: 111 | Q186: 84 | R186: 125 | S186: 236 | T186: 237 | U186: 175 | V186: =SUM(C186:U186) -> 4656 | W186: Bacteria | X186: Proteobacteria | Y186: Alphaproteobacteria | Z186: Rhodobacterales | AA186: Rhodobacteraceae | AB186: Rhodobacter
A187: 186 | B187: sample | C187: 0 | D187: 49 | E187: 56 | F187: 80 | G187: 27 | H187: 35 | I187: 65 | J187: 428 | K187: 498 | L187: 440 | M187: 911 | N187: 772 | O187: 684 | P187: 95 | Q187: 96 | R187: 76 | S187: 66 | T187: 182 | U187: 58 | V187: =SUM(C187:U187) -> 4618 | W187: Bacteria | X187: Verrucomicrobiota | Y187: Verrucomicrobiae | Z187: Verrucomicrobiales | AA187: Rubritaleaceae | AB187: Luteolibacter
A188: 187 | B188: sample | C188: 0 | D188: 0 | E188: 0 | F188: 0 | G188: 0 | H188: 0 | I188: 0 | J188: 0 | K188: 0 | L188: 0 | M188: 0 | N188: 0 | O188: 0 | P188: 709 | Q188: 529 | R188: 392 | S188: 1074 | T188: 1022 | U188: 891 | V188: =SUM(C188:U188) -> 4617 | W188: Bacteria | X188: Proteobacteria | Y188: Gammaproteobacteria | Z188: Burkholderiales | AA188: Comamonadaceae | AB188: Rhodoferax
A189: 188 | B189: sample | C189: 0 | D189: 0 | E189: 0 | F189: 0 | G189: 0 | H189: 0 | I189: 0 | J189: 0 | K189: 0 | L189: 0 | M189: 0 | N189: 0 | O189: 0 | P189: 481 | Q189: 605 | R189: 473 | S189: 1215 | T189: 875 | U189: 931 | V189: =SUM(C189:U189) -> 4580 | W189: Bacteria | X189: Gemmatimonadota | Y189: Gemmatimonadetes | Z189: Gemmatimonadales | AA189: Gemmatimonadaceae | AB189: NA
A190: 189 | B190: sample | C190: 0 | D190: 0 | E190: 0 | F190: 0 | G190: 0 | H190: 0 | I190: 0 | J190: 0 | K190: 0 | L190: 0 | M190: 0 | N190: 0 | O190: 0 | P190: 780 | Q190: 464 | R190: 483 | S190: 1041 | T190: 940 | U190: 841 | V190: =SUM(C190:U190) -> 4549 | W190: Bacteria | X190: Proteobacteria | Y190: Alphaproteobacteria | Z190: Rhodobacterales | AA190: Rhodobacteraceae | AB190: Defluviimonas
A191: 190 | B191: sample | C191: 0 | D191: 0 | E191: 0 | F191: 0 | G191: 32 | H191: 21 | I191: 29 | J191: 1068 | K191: 1450 | L191: 896 | M191: 360 | N191: 301 | O191: 332 | P191: 0 | Q191: 8 | R191: 0 | S191: 0 | T191: 0 | U191: 0 | V191: =SUM(C191:U191) -> 4497 | W191: Bacteria | X191: Patescibacteria | Y191: Gracilibacteria | Z191: JGI 0000069-P22 | AA191: NA | AB191: NA
A192: 191 | B192: sample | C192: 0 | D192: 197 | E192: 209 | F192: 155 | G192: 202 | H192: 129 | I192: 129 | J192: 29 | K192: 46 | L192: 60 | M192: 113 | N192: 114 | O192: 86 | P192: 201 | Q192: 193 | R192: 169 | S192: 1084 | T192: 731 | U192: 604 | V192: =SUM(C192:U192) -> 4451 | W192: Bacteria | X192: Proteobacteria | Y192: Gammaproteobacteria | Z192: Burkholderiales | AA192: Comamonadaceae | AB192: Rubrivivax
A193: 192 | B193: sample | C193: 0 | D193: 216 | E193: 204 | F193: 282 | G193: 0 | H193: 0 | I193: 0 | J193: 0 | K193: 0 | L193: 0 | M193: 0 | N193: 0 | O193: 6 | P193: 768 | Q193: 531 | R193: 501 | S193: 786 | T193: 521 | U193: 617 | V193: =SUM(C193:U193) -> 4432 | W193: Bacteria | X193: Gemmatimonadota | Y193: Gemmatimonadetes | Z193: Gemmatimonadales | AA193: Gemmatimonadaceae | AB193: Gemmatimonas
A194: 193 | B194: sample | C194: 0 | D194: 785 | E194: 991 | F194: 1001 | G194: 56 | H194: 55 | I194: 72 | J194: 0 | K194: 59 | L194: 0 | M194: 0 | N194: 0 | O194: 0 | P194: 289 | Q194: 209 | R194: 186 | S194: 238 | T194: 186 | U194: 238 | V194: =SUM(C194:U194) -> 4365 | W194: Bacteria | X194: Proteobacteria | Y194: Gammaproteobacteria | Z194: Burkholderiales | AA194: Comamonadaceae | AB194: Candidatus Symbiobacter
A195: 194 | B195: sample | C195: 0 | D195: 408 | E195: 328 | F195: 359 | G195: 11 | H195: 0 | I195: 14 | J195: 54 | K195: 32 | L195: 42 | M195: 70 | N195: 82 | O195: 65 | P195: 725 | Q195: 703 | R195: 596 | S195: 353 | T195: 169 | U195: 342 | V195: =SUM(C195:U195) -> 4353 | W195: Bacteria | X195: Planctomycetota | Y195: Planctomycetes | Z195: Pirellulales | AA195: Pirellulaceae | AB195: Pirellula
A196: 195 | B196: sample | C196: 0 | D196: 640 | E196: 930 | F196: 1038 | G196: 85 | H196: 72 | I196: 63 | J196: 130 | K196: 155 | L196: 144 | M196: 403 | N196: 371 | O196: 289 | P196: 0 | Q196: 0 | R196: 0 | S196: 0 | T196: 0 | U196: 0 | V196: =SUM(C196:U196) -> 4320 | W196: Bacteria | X196: Proteobacteria | Y196: Gammaproteobacteria | Z196: Burkholderiales | AA196: Comamonadaceae | AB196: NA
A197: 196 | B197: sample | C197: 0 | D197: 0 | E197: 0 | F197: 0 | G197: 0 | H197: 0 | I197: 0 | J197: 0 | K197: 0 | L197: 0 | M197: 0 | N197: 0 | O197: 0 | P197: 936 | Q197: 751 | R197: 771 | S197: 620 | T197: 688 | U197: 533 | V197: =SUM(C197:U197) -> 4299 | W197: Bacteria | X197: Bacteroidota | Y197: Bacteroidia | Z197: Flavobacteriales | AA197: Flavobacteriaceae | AB197: Flavobacterium
A198: 197 | B198: sample | C198: 0 | D198: 37 | E198: 86 | F198: 75 | G198: 0 | H198: 0 | I198: 6 | J198: 52 | K198: 75 | L198: 28 | M198: 36 | N198: 53 | O198: 41 | P198: 774 | Q198: 519 | R198: 394 | S198: 717 | T198: 623 | U198: 750 | V198: =SUM(C198:U198) -> 4266 | W198: Bacteria | X198: Bacteroidota | Y198: Bacteroidia | Z198: Bacteroidetes VC2.1 Bac22 | AA198: NA | AB198: NA
A199: 198 | B199: sample | C199: 0 | D199: 5 | E199: 0 | F199: 0 | G199: 0 | H199: 0 | I199: 0 | J199: 38 | K199: 47 | L199: 82 | M199: 330 | N199: 227 | O199: 391 | P199: 335 | Q199: 528 | R199: 270 | S199: 819 | T199: 598 | U199: 595 | V199: =SUM(C199:U199) -> 4265 | W199: Bacteria | X199: Chloroflexi | Y199: Anaerolineae | Z199: Caldilineales | AA199: Caldilineaceae | AB199: NA
A200: 199 | B200: sample | C200: 0 | D200: 8 | E200: 0 | F200: 5 | G200: 0 | H200: 0 | I200: 16 | J200: 34 | K200: 42 | L200: 21 | M200: 102 | N200: 60 | O200: 57 | P200: 541 | Q200: 393 | R200: 436 | S200: 795 | T200: 790 | U200: 956 | V200: =SUM(C200:U200) -> 4256 | W200: Bacteria | X200: NA | Y200: NA | Z200: NA | AA200: NA | AB200: NA
... 2050 more rows

Sheet ASV_MiSeq_TaxaAnalysis
B1: asv_counts | C1: read_counts | D1: kingdom_categories | E1: kingdom_counts | F1: kingdom_reads | G1: phylum_categories | H1: phylum_counts | I1: phylum_reads | J1: class_categories | K1: class_counts | L1: class_reads | M1: order_categories | N1: order_counts | O1: order_reads | P1: family_categories | Q1: family_counts | R1: family_reads | S1: genus_categories | T1: genus_counts | U1: genus_reads
A2: sum/total | B2: 6101 | C2: 4445549 | D2: 3 | E2: =SUM(E4:E7) -> 6079 | F2: =SUM(F4:F7) -> 4212881 | G2: 37 | H2: =SUM(H4:H41) -> 6079 | I2: =SUM(I4:I41) -> 4212881 | J2: 79 | K2: =SUM(K4:K83) -> 6079 | L2: =SUM(L4:L83) -> 4212881 | M2: 185 | N2: =SUM(N4:N189) -> 6079 | O2: =SUM(O4:O189) -> 4212881 | P2: 257 | Q2: =SUM(Q4:Q261) -> 6079 | R2: =SUM(R4:R261) -> 4212881 | S2: 470 | T2: =SUM(T4:T474) -> 6079 | U2: =SUM(U4:U474) -> 4212881
A4: mock | B4: 22 | C4: 232668 | D4: NA | E4: 3 | F4: 9 | G4: NA | H4: 50 | I4: 12565 | J4: NA | K4: 147 | L4: 20258 | M4: NA | N4: 452 | O4: 85001 | P4: NA | Q4: 1372 | R4: 352565 | S4: NA | T4: 3071 | U4: 1405465
A5: both | B5: 0 | C5: 0 | D5: Bacteria | E5: 6072 | F5: 4212814 | G5: Abditibacteriota | H5: 2 | I5: 38 | J5: 028H05-P-BN-P5 | K5: 2 | L5: 1587 | M5: 43831 | N5: 2 | O5: 2640 | P5: 37-13 | Q5: 15 | R5: 24955 | S5: [Agitococcus] lubricus group | T5: 14 | U5: 3366
A6: sample | B6: 6079 | C6: 4212881 | D6: Archaea | E6: 2 | F6: 51 | G6: Acidobacteriota | H6: 113 | I6: 73652 | J6: Abditibacteria | K6: 2 | L6: 38 | M6: 45597 | N6: 16 | O6: 21911 | P6: 67-14 | Q6: 16 | R6: 4709 | S6: [Caedibacter] taeniospiralis group | T6: 1 | U6: 21
D7: Eukaryota | E7: 2 | F7: 7 | G7: Actinobacteriota | H7: 177 | I7: 63796 | J7: ABY1 | K7: 13 | L7: 2029 | M7: 0319-6G20 | N7: 138 | O7: 9104 | P7: A0839 | Q7: 8 | R7: 602 | S7: [Ruminococcus] torques group | T7: 1 | U7: 4
G8: Armatimonadota | H8: 17 | I8: 8264 | J8: Acidimicrobiia | K8: 56 | L8: 13567 | M8: Abditibacteriales | N8: 2 | O8: 38 | P8: A4b | Q8: 29 | R8: 3605 | S8: AAP99 | T8: 3 | U8: 4964
G9: Bacteroidota | H9: 1203 | I9: 1394162 | J9: Acidobacteriae | K9: 14 | L9: 2591 | M9: Absconditabacteriales (SR1) | N9: 32 | O9: 10058 | P9: AB1 | Q9: 16 | R9: 574 | S9: Abditibacterium | T9: 2 | U9: 38
G10: Bdellovibrionota | H10: 450 | I10: 48303 | J10: Actinobacteria | K10: 90 | L10: 45218 | M10: Acanthopleuribacterales | N10: 1 | O10: 219 | P10: Abditibacteriaceae | Q10: 2 | R10: 38 | S10: Acanthopleuribacter | T10: 1 | U10: 219
G11: Campilobacterota | H11: 9 | I11: 600 | J11: Alphaproteobacteria | K11: 1180 | L11: 907520 | M11: Acetobacterales | N11: 13 | O11: 1967 | P11: Acanthopleuribacteraceae | Q11: 1 | R11: 219 | S11: Acetobacteroides | T11: 1 | U11: 108
G12: Chloroflexi | H12: 157 | I12: 97099 | J12: Anaerolineae | K12: 80 | L12: 63411 | M12: Acidaminococcales | N12: 3 | O12: 11 | P12: Acetobacteraceae | Q12: 13 | R12: 1967 | S12: Achromobacter | T12: 3 | U12: 495
G13: Crenarchaeota | H13: 1 | I13: 2 | J13: Armatimonadia | K13: 6 | L13: 5455 | M13: Aeromonadales | N13: 21 | O13: 111363 | P13: Acidaminobacteraceae | Q13: 1 | R13: 28 | S13: Acidaminobacter | T13: 1 | U13: 28
G14: Cyanobacteria | H14: 24 | I14: 1423 | J14: Babeliae | K14: 10 | L14: 493 | M14: Alphaproteobacteria Incertae Sedis | N14: 2 | O14: 1119 | P14: Acidaminococcaceae | Q14: 3 | R14: 11 | S14: Acidibacter | T14: 11 | U14: 6821
G15: Deinococcota | H15: 12 | I15: 3362 | J15: Bacilli | K15: 43 | L15: 1864 | M15: Alteromonadales | N15: 18 | O15: 10967 | P15: AEGEAN-169 marine group | Q15: 1 | R15: 48 | S15: Acidovorax | T15: 12 | U15: 13136
G16: Dependentiae | H16: 10 | I16: 493 | J16: bacteriap25 | K16: 3 | L16: 858 | M16: Anaerolineales | N16: 2 | O16: 1818 | P16: Aeromonadaceae | Q16: 17 | R16: 111253 | S16: Acinetobacter | T16: 30 | U16: 5073
G17: Desulfobacterota | H17: 40 | I17: 12568 | J17: Bacteroidia | K17: 1175 | L17: 1372978 | M17: Ardenticatenales | N17: 11 | O17: 13681 | P17: AKYG1722 | Q17: 4 | R17: 360 | S17: Actinobacillus | T17: 1 | U17: 8
G18: Elusimicrobiota | H18: 4 | I18: 70 | J18: BD7-11 | K18: 2 | L18: 157 | M18: Armatimonadales | N18: 6 | O18: 5455 | P18: AKYH767 | Q18: 2 | R18: 169 | S18: Aeromicrobium | T18: 1 | U18: 5
G19: Euryarchaeota | H19: 0 | I19: 0 | J19: Bdellovibrionia | K19: 251 | L19: 36578 | M19: Azospirillales | N19: 9 | O19: 1765 | P19: Alcaligenaceae | Q19: 12 | R19: 8716 | S19: Aeromonas | T19: 17 | U19: 111253
G20: Fibrobacterota | H20: 6 | I20: 605 | J20: Berkelbacteria | K20: 6 | L20: 145 | M20: Babeliales | N20: 10 | O20: 493 | P20: Alteromonadaceae | Q20: 14 | R20: 9635 | S20: Aestuariibius | T20: 1 | U20: 2
G21: Firmicutes | H21: 86 | I21: 2501 | J21: Blastocatellia | K21: 45 | L21: 30969 | M21: Bacillales | N21: 5 | O21: 24 | P21: Amb-16S-1323 | Q21: 3 | R21: 558 | S21: Aetherobacter | T21: 1 | U21: 1838
G22: Fusobacteriota | H22: 8 | I22: 1808 | J22: Brevinematia | K22: 0 | L22: 0 | M22: Bacteriovoracales | N22: 62 | O22: 4473 | P22: Amoebophilaceae | Q22: 6 | R22: 57 | S22: Afipia | T22: 2 | U22: 590
G23: Gemmatimonadota | H23: 38 | I23: 30375 | J23: Campylobacteria | K23: 9 | L23: 600 | M23: Bacteroidales | N23: 30 | O23: 451 | P23: Anaerolineaceae | Q23: 2 | R23: 1818 | S23: Aggregicoccus | T23: 1 | U23: 1
G24: Halobacterota | H24: 0 | I24: 0 | J24: Chitinivibrionia | K24: 0 | L24: 0 | M24: Bacteroidetes VC2.1 Bac22 | N24: 4 | O24: 4284 | P24: Anaplasmataceae | Q24: 1 | R24: 10 | S24: Ahniella | T24: 7 | U24: 4327
G25: Hydrogenedentes | H25: 3 | I25: 279 | J25: Chlamydiae | K25: 121 | L25: 17042 | M25: BD72BR169 | N25: 2 | O25: 49 | P25: Aquaspirillaceae | Q25: 4 | R25: 39 | S25: Alicycliphilus | T25: 2 | U25: 140
G26: Iainarchaeota | H26: 1 | I26: 49 | J26: Chloroflexia | K26: 64 | L26: 32335 | M26: Bdellovibrionales | N26: 189 | O26: 32105 | P26: Arcobacteraceae | Q26: 6 | R26: 579 | S26: Alkanindiges | T26: 1 | U26: 192
G27: Latescibacterota | H27: 3 | I27: 29 | J27: Chthonomonadetes | K27: 2 | L27: 77 | M27: Beggiatoales | N27: 4 | O27: 339 | P27: Ardenticatenaceae | Q27: 5 | R27: 6888 | S27: Allorhizobium-Neorhizobium-Pararhizobium-Rhizobium | T27: 10 | U27: 23117
G28: Margulisbacteria | H28: 4 | I28: 31 | J28: Clostridia | K28: 36 | L28: 603 | M28: Blastocatellales | N28: 25 | O28: 7949 | P28: Armatimonadaceae | Q28: 4 | R28: 5071 | S28: alphaI cluster | T28: 3 | U28: 469
G29: MBNT15 | H29: 7 | I29: 438 | J29: Cyanobacteriia | K29: 4 | L29: 274 | M29: Blfdi19 | N29: 9 | O29: 1986 | P29: Azospirillaceae | Q29: 1 | R29: 13 | S29: Alsobacter | T29: 1 | U29: 10
G30: Myxococcota | H30: 231 | I30: 114106 | J30: Dehalococcoidia | K30: 2 | L30: 133 | M30: Bradymonadales | N30: 11 | O30: 1595 | P30: Azospirillales Incertae Sedis | Q30: 6 | R30: 1637 | S30: Aminobacter | T30: 7 | U30: 513
G31: Nanoarchaeota | H31: 0 | I31: 0 | J31: Deinococci | K31: 12 | L31: 3362 | M31: Bryobacterales | N31: 10 | O31: 2207 | P31: B1-7BS | Q31: 2 | R31: 1387 | S31: Amphiplicatus | T31: 2 | U31: 1063
G32: NB1-j | H32: 4 | I32: 3054 | J32: Desulfovibrionia | K32: 1 | L32: 3 | M32: Burkholderiales | N32: 540 | O32: 678634 | P32: Babeliaceae | Q32: 4 | R32: 40 | S32: Anaerobacillus | T32: 2 | U32: 4
G33: Nitrospirota | H33: 17 | I33: 112205 | J33: Desulfuromonadia | K33: 18 | L33: 11908 | M33: Caedibacterales | N33: 6 | O33: 2693 | P33: bac2nit3 | Q33: 4 | R33: 2271 | S33: Anderseniella | T33: 1 | U33: 5
G34: Patescibacteria | H34: 250 | I34: 52810 | J34: Dojkabacteria | K34: 3 | L34: 172 | M34: Caenarcaniphilales | N34: 3 | O34: 98 | P34: Bacillaceae | Q34: 5 | R34: 24 | S34: Anoxybacillus | T34: 1 | U34: 9
G35: Planctomycetota | H35: 430 | I35: 119066 | J35: Fibrobacteria | K35: 6 | L35: 605 | M35: Caldilineales | N35: 31 | O35: 29867 | P35: Bacteriovoracaceae | Q35: 62 | R35: 4473 | S35: Aquabacterium | T35: 2 | U35: 451
G36: Proteobacteria | H36: 2322 | I36: 1856410 | J36: Fimbriimonadia | K36: 9 | L36: 2732 | M36: Campylobacterales | N36: 9 | O36: 600 | P36: Bacteroidaceae | Q36: 8 | R36: 71 | S36: Aquaspirillum | T36: 1 | U36: 9
G37: SAR324 clade(Marine group B) | H37: 36 | I37: 2245 | J37: Fusobacteriia | K37: 8 | L37: 1808 | M37: Candidatus Azambacteria | N37: 1 | O37: 165 | P37: Bdellovibrionaceae | Q37: 189 | R37: 32105 | S37: Aquicella | T37: 5 | U37: 224
G38: Spirochaetota | H38: 16 | I38: 3583 | J38: Gammaproteobacteria | K38: 1131 | L38: 948754 | M38: Candidatus Campbellbacteria | N38: 13 | O38: 2546 | P38: Beggiatoaceae | Q38: 4 | R38: 339 | S38: Aquincola | T38: 11 | U38: 86
G39: Sumerlaeota | H39: 6 | I39: 370 | J39: Gemmatimonadetes | K39: 38 | L39: 30375 | M39: Candidatus Falkowbacteria | N39: 1 | O39: 121 | P39: Beijerinckiaceae | Q39: 26 | R39: 20579 | S39: Aquisphaera | T39: 1 | U39: 3
G40: Verrucomicrobiota | H40: 333 | I40: 195424 | J40: Gracilibacteria | K40: 79 | L40: 33884 | M40: Candidatus Kaiserbacteria | N40: 9 | O40: 304 | P40: Bernardetiaceae | Q40: 2 | R40: 21 | S40: Archangium | T40: 1 | U40: 412
G41: WPS-2 | H41: 9 | I41: 1096 | J41: Holophagae | K41: 1 | L41: 219 | M41: Candidatus Magasanikbacteria | N41: 11 | O41: 1888 | P41: BIrii41 | Q41: 4 | R41: 68 | S41: Arcicella | T41: 12 | U41: 35667
J42: Hydrogenedentia | K42: 3 | L42: 279 | M42: Candidatus Moranbacteria | N42: 2 | O42: 57 | P42: Blastocatellaceae | Q42: 25 | R42: 7949 | S42: Arcobacter | T42: 2 | U42: 82
J43: Iainarchaeia | K43: 1 | L43: 49 | M43: Candidatus Nomurabacteria | N43: 48 | O43: 7159 | P43: Brevibacteriaceae | Q43: 1 | R43: 21 | S43: Arcticibacter | T43: 1 | U43: 2
J44: JG30-KF-CM66 | K44: 0 | L44: 0 | M44: Candidatus Pacebacteria | N44: 2 | O44: 273 | P44: Bryobacteraceae | Q44: 10 | R44: 2207 | S44: Arenimonas | T44: 11 | U44: 12216
J45: Kapabacteria | K45: 24 | L45: 21142 | M45: Candidatus Peregrinibacteria | N45: 8 | O45: 1777 | P45: Burkholderiaceae | Q45: 11 | R45: 1210 | S45: Aridibacter | T45: 1 | U45: 112
J46: KD4-96 | K46: 3 | L46: 29 | M46: Candidatus Peribacteria | N46: 3 | O46: 1209 | P46: C2U | Q46: 2 | R46: 2242 | S46: Armatimonas | T46: 4 | U46: 5071
J47: Kiritimatiellae | K47: 3 | L47: 967 | M47: Candidatus Uhrbacteria | N47: 1 | O47: 20 | P47: Caedibacteraceae | Q47: 6 | R47: 2693 | S47: Arsenicibacter | T47: 2 | U47: 239
J48: Leptospirae | K48: 14 | L48: 3576 | M48: Candidatus Woesebacteria | N48: 1 | O48: 6 | P48: Caldilineaceae | Q48: 31 | R48: 29867 | S48: Asticcacaulis | T48: 1 | U48: 2
J49: Lineage IIa | K49: 2 | L49: 52 | M49: Candidatus Yonathbacteria | N49: 1 | O49: 15 | P49: Candidatus Iainarchaeum | Q49: 1 | R49: 49 | S49: Atopostipes | T49: 1 | U49: 2
J50: Lineage IIb | K50: 1 | L50: 13 | M50: Candidatus Zambryskibacteria | N50: 1 | O50: 6 | P50: Candidatus Jidaibacter | Q50: 11 | R50: 1112 | S50: Aurantimicrobium | T50: 2 | U50: 15884
J51: Lineage IIc | K51: 1 | L51: 5 | M51: Cardiobacteriales | N51: 1 | O51: 5 | P51: Carnobacteriaceae | Q51: 3 | R51: 13 | S51: Aurantisolimonas | T51: 1 | U51: 2
J52: Methanobacteria | K52: 0 | L52: 0 | M52: Caulobacterales | N52: 82 | O52: 59364 | P52: Caulobacteraceae | Q52: 35 | R52: 39310 | S52: Aureispira | T52: 3 | U52: 2525
J53: Methanosarcinia | K53: 0 | L53: 0 | M53: CCD24 | N53: 1 | O53: 29 | P53: Cellvibrionaceae | Q53: 8 | R53: 2673 | S53: Azohydromonas | T53: 1 | U53: 3
J54: Microgenomatia | K54: 3 | L54: 279 | M54: CCM19a | N54: 1 | O54: 104 | P54: Chitinibacteraceae | Q54: 5 | R54: 672 | S54: Azomonas | T54: 2 | U54: 30
J55: Myxococcia | K55: 18 | L55: 6447 | M55: Cellvibrionales | N55: 13 | O55: 4908 | P55: Chitinimonadaceae | Q55: 3 | R55: 437 | S55: Azospira | T55: 1 | U55: 11
J56: Nanoarchaeia | K56: 0 | L56: 0 | M56: CHAB-XI-27 | N56: 1 | O56: 31 | P56: Chitinophagaceae | Q56: 163 | R56: 106643 | S56: Bacillus | T56: 2 | U56: 11
J57: Negativicutes | K57: 7 | L57: 34 | M57: Chitinophagales | N57: 449 | O57: 585239 | P57: Chlamydiaceae | Q57: 6 | R57: 330 | S57: Bacteriovorax | T57: 11 | U57: 1132
J58: Nitrososphaeria | K58: 1 | L58: 2 | M58: Chlamydiales | N58: 121 | O58: 17042 | P58: Chloroflexaceae | Q58: 1 | R58: 6 | S58: Bacteroides | T58: 8 | U58: 71
J59: Nitrospiria | K59: 17 | L59: 112205 | M59: Chloroflexales | N59: 19 | O59: 14508 | P59: Christensenellaceae | Q59: 1 | R59: 3 | S59: Bauldia | T59: 10 | U59: 1008
J60: OLB14 | K60: 6 | L60: 1178 | M60: Chloroplast | N60: 4 | O60: 274 | P60: Chromobacteriaceae | Q60: 11 | R60: 16075 | S60: BD1-7 clade | T60: 2 | U60: 1004
J61: Oligoflexia | K61: 199 | L61: 11725 | M61: Christensenellales | N61: 1 | O61: 3 | P61: Chthoniobacteraceae | Q61: 9 | R61: 7714 | S61: Bdellovibrio | T61: 181 | U61: 29624
J62: OM190 | K62: 39 | L62: 10229 | M62: Chthoniobacterales | N62: 18 | O62: 9502 | P62: Chthonomonadaceae | Q62: 2 | R62: 77 | S62: Beggiatoa | T62: 2 | U62: 15
J63: Omnitrophia | K63: 5 | L63: 38 | M63: Chthonomonadales | N63: 2 | O63: 77 | P63: Clostridiaceae | Q63: 6 | R63: 278 | S63: Bergeyella | T63: 2 | U63: 522
J64: Parcubacteria | K64: 98 | L64: 12509 | M64: Clostridia UCG-014 | N64: 1 | O64: 4 | P64: Colwelliaceae | Q64: 1 | R64: 7 | S64: Bernardetia | T64: 2 | U64: 21
J65: Phycisphaerae | K65: 47 | L65: 5104 | M65: Clostridiales | N65: 6 | O65: 278 | P65: Comamonadaceae | Q65: 325 | R65: 593587 | S65: Blastocatella | T65: 14 | U65: 5307
J66: Pla3 lineage | K66: 1 | L66: 25 | M66: Corynebacteriales | N66: 32 | O66: 13507 | P66: Coralloluteibacterium | Q66: 3 | R66: 9 | S66: Blastopirellula | T66: 15 | U66: 5743
J67: Pla4 lineage | K67: 1 | L67: 2 | M67: Coxiellales | N67: 32 | O67: 2437 | P67: Corynebacteriaceae | Q67: 2 | R67: 50 | S67: Blautia | T67: 2 | U67: 11
J68: Planctomycetes | K68: 333 | L68: 101935 | M68: Cytophagales | N68: 187 | O68: 311855 | P68: Coxiellaceae | Q68: 32 | R68: 2437 | S68: Bosea | T68: 7 | U68: 8016
J69: Polyangia | K69: 210 | L69: 106801 | M69: Defluviicoccales | N69: 1 | O69: 2 | P69: Criblamydiaceae | Q69: 2 | R69: 66 | S69: Bradyrhizobium | T69: 2 | U69: 401
J70: Rhodothermia | K70: 1 | L70: 11 | M70: Deinococcales | N70: 10 | O70: 2164 | P70: Crocinitomicaceae | Q70: 31 | R70: 27191 | S70: Brevibacterium | T70: 1 | U70: 21
J71: Saccharimonadia | K71: 48 | L71: 3792 | M71: Desulfovibrionales | N71: 1 | O71: 3 | P71: Cryomorphaceae | Q71: 1 | R71: 159 | S71: Brevifollis | T71: 3 | U71: 26
J72: Sericytochromatia | K72: 4 | L72: 174 | M72: Diplorickettsiales | N72: 37 | O72: 1621 | P72: cvE6 | Q72: 4 | R72: 24 | S72: Brevundimonas | T72: 14 | U72: 28918
J73: SJA-28 | K73: 2 | L73: 27 | M73: Dongiales | N73: 5 | O73: 2965 | P73: Cyclobacteriaceae | Q73: 5 | R73: 2421 | S73: Bryobacter | T73: 10 | U73: 2207
J74: Spirochaetia | K74: 2 | L74: 7 | M74: DS-100 | N74: 1 | O74: 4 | P74: Cytophagaceae | Q74: 17 | R74: 3414 | S74: Byssovorax | T74: 1 | U74: 1
J75: Sumerlaeia | K75: 6 | L75: 370 | M75: EC3 | N75: 4 | O75: 586 | P75: D05-2 | Q75: 1 | R75: 177 | S75: Caedibacter | T75: 4 | U75: 2576
J76: Thermoanaerobaculia | K76: 23 | L76: 9125 | M76: Elev-16S-1166 | N76: 2 | O76: 80 | P76: Deinococcaceae | Q76: 9 | R76: 2043 | S76: Caenimonas | T76: 2 | U76: 412
J77: Thermoleophilia | K77: 31 | L77: 5011 | M77: Elev-16S-573 | N77: 1 | O77: 3 | P77: Desulfovibrionaceae | Q77: 1 | R77: 3 | S77: CAG-352 | T77: 1 | U77: 3
J78: Thermoprotei | K78: 0 | L78: 0 | M78: Elsterales | N78: 6 | O78: 1093 | P78: DEV007 | Q78: 4 | R78: 6356 | S78: Candidatus Alysiosphaera | T78: 4 | U78: 2368
J79: TK10 | K79: 2 | L79: 13 | M79: Enterobacterales | N79: 9 | O79: 711 | P79: Devosiaceae | Q79: 12 | R79: 2999 | S79: Candidatus Amoebophilus | T79: 2 | U79: 7
J80: vadinHA49 | K80: 4 | L80: 24 | M80: Entomoplasmatales | N80: 1 | O80: 4 | P80: Diplorickettsiaceae | Q80: 37 | R80: 1621 | S80: Candidatus Arcanobacter | T80: 3 | U80: 102
J81: Vampirivibrionia | K81: 16 | L81: 975 | M81: Erysipelotrichales | N81: 1 | O81: 2 | P81: Dongiaceae | Q81: 5 | R81: 2965 | S81: Candidatus Bacilloplasma | T81: 1 | U81: 22
J82: Verrucomicrobiae | K82: 204 | L82: 177377 | M82: eub62A3 | N82: 1 | O82: 4 | P82: Dysgonomonadaceae | Q82: 2 | R82: 13 | S82: Candidatus Bealeia | T82: 1 | U82: 8
J83: Vicinamibacteria | K83: 30 | L83: 30748 | M83: EV818SWSAP88 | N83: 1 | O83: 17 | P83: Eel-36e1D6 | Q83: 1 | R83: 26 | S83: Candidatus Berkiella | T83: 3 | U83: 734
M84: Exiguobacterales | N84: 3 | O84: 728 | P84: Elsteraceae | Q84: 6 | R84: 1093 | S84: Candidatus Captivus | T84: 4 | U84: 536
M85: F9P41300-M23 | N85: 1 | O85: 30 | P85: Enterobacteriaceae | Q85: 6 | R85: 326 | S85: Candidatus Cryptoprodotis | T85: 2 | U85: 238
M86: Ferrovibrionales | N86: 3 | O86: 961 | P86: Enterococcaceae | Q86: 0 | R86: 0 | S86: Candidatus Endoecteinascidia | T86: 1 | U86: 2
M87: FFCH16767 | N87: 3 | O87: 168 | P87: Entomoplasmatales Incertae Sedis | Q87: 1 | R87: 4 | S87: Candidatus Endonucleariobacter | T87: 1 | U87: 4
M88: Fibrobacterales | N88: 6 | O88: 605 | P88: env.OPS 17 | Q88: 65 | R88: 36461 | S88: Candidatus Fritschea | T88: 5 | U88: 442
M89: Fimbriimonadales | N89: 9 | O89: 2732 | P89: Erysipelotrichaceae | Q89: 1 | R89: 2 | S89: Candidatus Gigarickettsia | T89: 1 | U89: 4
M90: Flavobacteriales | N90: 329 | O90: 396359 | P90: Exiguobacteraceae | Q90: 3 | R90: 728 | S90: Candidatus Gortzia | T90: 1 | U90: 782
M91: Francisellales | N91: 1 | O91: 21 | P91: Ferrovibrionaceae | Q91: 2 | R91: 94 | S91: Candidatus Hepatoplasma | T91: 1 | U91: 4
M92: Frankiales | N92: 6 | O92: 823 | P92: Fibrobacteraceae | Q92: 6 | R92: 605 | S92: Candidatus Megaira | T92: 12 | U92: 8210
M93: Fusobacteriales | N93: 8 | O93: 1808 | P93: Fimbriimonadaceae | Q93: 9 | R93: 2732 | S93: Candidatus Mesochlamydia | T93: 1 | U93: 671
M94: Ga0077536 | N94: 7 | O94: 300 | P94: Finegoldia | Q94: 1 | R94: 14 | S94: Candidatus Metachlamydia | T94: 2 | U94: 169
M95: Gaiellales | N95: 8 | O95: 243 | P95: Flavobacteriaceae | Q95: 235 | R95: 295362 | S95: Candidatus Nitrocosmicus | T95: 1 | U95: 2
M96: Gammaproteobacteria Incertae Sedis | N96: 23 | O96: 7843 | P96: Fodinicurvataceae | Q96: 4 | R96: 1022 | S96: Candidatus Obscuribacter | T96: 1 | U96: 266
M97: Gemmatales | N97: 66 | O97: 21121 | P97: Fokiniaceae | Q97: 1 | R97: 21 | S97: Candidatus Odyssella | T97: 1 | U97: 16
M98: Gemmatimonadales | N98: 38 | O98: 30375 | P98: Francisellaceae | Q98: 1 | R98: 21 | S98: Candidatus Omnitrophus | T98: 4 | U98: 36
M99: Haliangiales | N99: 29 | O99: 35134 | P99: Fusibacteraceae | Q99: 1 | R99: 8 | S99: Candidatus Ovatusbacter | T99: 4 | U99: 207
M100: Holosporales | N100: 17 | O100: 5554 | P100: Fusobacteriaceae | Q100: 5 | R100: 1616 | S100: Candidatus Paenicardinium | T100: 1 | U100: 5
M101: Hungateiclostridiaceae | N101: 1 | O101: 4 | P101: Gaiellaceae | Q101: 2 | R101: 6 | S101: Candidatus Paracaedibacter | T101: 14 | U101: 2580
M102: Hydrogenedentiales | N102: 3 | O102: 279 | P102: Gemellaceae | Q102: 1 | R102: 2 | S102: Candidatus Phaeomarinobacter | T102: 1 | U102: 2
M103: Iainarchaeales | N103: 1 | O103: 49 | P103: Geminicoccaceae | Q103: 4 | R103: 2368 | S103: Candidatus Protochlamydia | T103: 22 | U103: 4098
M104: IMCC26256 | N104: 6 | O104: 569 | P104: Gemmataceae | Q104: 66 | R104: 21121 | S104: Candidatus Symbiobacter | T104: 6 | U104: 6124
M105: Isosphaerales | N105: 18 | O105: 3091 | P105: Gemmatimonadaceae | Q105: 38 | R105: 30375 | S105: Candidatus Xiphinematobacter | T105: 1 | U105: 141
M106: JG36-TzT-191 | N106: 1 | O106: 2 | P106: Gimesiaceae | Q106: 2 | R106: 6 | S106: Candidimonas | T106: 1 | U106: 6358
M107: JGI 0000069-P22 | N107: 17 | O107: 4913 | P107: Haliangiaceae | Q107: 29 | R107: 35134 | S107: Castellaniella | T107: 1 | U107: 23
M108: Kapabacteriales | N108: 24 | O108: 21142 | P108: Halieaceae | Q108: 1 | R108: 1037 | S108: Caulobacter | T108: 5 | U108: 2876
M109: KI89A clade | N109: 7 | O109: 587 | P109: Halomonadaceae | Q109: 2 | R109: 7 | S109: Cellvibrio | T109: 8 | U109: 2673
M110: Kiloniellales | N110: 5 | O110: 1437 | P110: Holosporaceae | Q110: 17 | R110: 5554 | S110: Cephaloticoccus | T110: 1 | U110: 1025
M111: Kineosporiales | N111: 2 | O111: 77 | P111: Hydrogenedensaceae | Q111: 3 | R111: 279 | S111: Cerasicoccus | T111: 1 | U111: 67
M112: Lachnospirales | N112: 10 | O112: 106 | P112: Hydrogenophilaceae | Q112: 1 | R112: 9 | S112: Cereibacter | T112: 3 | U112: 6
M113: Lactobacillales | N113: 25 | O113: 988 | P113: Hyphomicrobiaceae | Q113: 52 | R113: 10664 | S113: Cetobacterium | T113: 5 | U113: 1616
M114: Legionellales | N114: 59 | O114: 2756 | P114: Hyphomonadaceae | Q114: 45 | R114: 18991 | S114: Chelatococcus | T114: 2 | U114: 299
M115: Leptospirales | N115: 14 | O115: 3576 | P115: Iamiaceae | Q115: 7 | R115: 1373 | S115: Chitinibacter | T115: 3 | U115: 628
M116: Methylacidiphilales | N116: 1 | O116: 70 | P116: Ilumatobacteraceae | Q116: 13 | R116: 1666 | S116: Chitinilyticum | T116: 1 | U116: 5
M117: Methylococcales | N117: 2 | O117: 8 | P117: Inquilinaceae | Q117: 2 | R117: 115 | S117: Chitinimonas | T117: 1 | U117: 286
M118: Micavibrionales | N118: 70 | O118: 11114 | P118: Intrasporangiaceae | Q118: 4 | R118: 184 | S118: Chitinivorax | T118: 2 | U118: 151
M119: Micrococcales | N119: 32 | O119: 28814 | P119: Isosphaeraceae | Q119: 18 | R119: 3091 | S119: Chitinophaga | T119: 1 | U119: 12
M120: Micropepsales | N120: 4 | O120: 2131 | P120: JG30-KF-CM45 | Q120: 40 | R120: 17393 | S120: Christensenellaceae R-7 group | T120: 1 | U120: 3
M121: Microtrichales | N121: 43 | O121: 7694 | P121: JI49D030 | Q121: 1 | R121: 2 | S121: Chryseobacterium | T121: 28 | U121: 62262
M122: mle1-27 | N122: 23 | O122: 3281 | P122: JTB215 | Q122: 1 | R122: 4 | S122: Chryseolinea | T122: 2 | U122: 7
M123: Mycoplasmatales | N123: 1 | O123: 22 | P123: KD3-93 | Q123: 5 | R123: 593 | S123: Chthoniobacter | T123: 8 | U123: 7585
M124: Myxococcales | N124: 18 | O124: 6447 | P124: Kineosporiaceae | Q124: 2 | R124: 77 | S124: Chthonobacter | T124: 1 | U124: 749
M125: Nannocystales | N125: 23 | O125: 17286 | P125: Lachnospiraceae | Q125: 10 | R125: 106 | S125: Chthonomonas | T125: 2 | U125: 77
M126: Nitrososphaerales | N126: 1 | O126: 2 | P126: Lactobacillaceae | Q126: 9 | R126: 234 | S126: Citreitalea | T126: 1 | U126: 5
M127: Nitrospirales | N127: 17 | O127: 112205 | P127: Legionellaceae | Q127: 59 | R127: 2756 | S127: Citrobacter | T127: 2 | U127: 188
M128: Obscuribacterales | N128: 8 | O128: 664 | P128: Leptospiraceae | Q128: 14 | R128: 3576 | S128: CL500-29 marine group | T128: 4 | U128: 634
M129: Oceanospirillales | N129: 10 | O129: 3092 | P129: Leptotrichiaceae | Q129: 3 | R129: 192 | S129: CL500-3 | T129: 1 | U129: 6
M130: Oligoflexales | N130: 58 | O130: 2588 | P130: Leuconostocaceae | Q130: 3 | R130: 27 | S130: Cloacibacterium | T130: 3 | U130: 1806
M131: Omnitrophales | N131: 5 | O131: 38 | P131: Listeriaceae | Q131: 0 | R131: 0 | S131: Clostridium sensu stricto 1 | T131: 3 | U131: 263
M132: Opitutales | N132: 28 | O132: 8412 | P132: LWQ8 | Q132: 3 | R132: 684 | S132: Clostridium sensu stricto 12 | T132: 1 | U132: 4
M133: Oscillospirales | N133: 6 | O133: 22 | P133: Methylacidiphilaceae | Q133: 1 | R133: 70 | S133: Clostridium sensu stricto 13 | T133: 2 | U133: 11
M134: Paludibaculum | N134: 1 | O134: 225 | P134: Methylococcaceae | Q134: 1 | R134: 3 | S134: CM1G08 | T134: 1 | U134: 36
M135: Paracaedibacterales | N135: 48 | O135: 8340 | P135: Methyloligellaceae | Q135: 1 | R135: 1011 | S135: Colidextribacter | T135: 1 | U135: 2
M136: Parvibaculales | N136: 1 | O136: 2 | P136: Methylomonadaceae | Q136: 1 | R136: 5 | S136: Comamonas | T136: 6 | U136: 174
M137: Pasteurellales | N137: 2 | O137: 10 | P137: Methylophilaceae | Q137: 1 | R137: 24 | S137: Conexibacter | T137: 3 | U137: 27
M138: PB19 | N138: 7 | O138: 10313 | P138: Micavibrionaceae | Q138: 11 | R138: 630 | S138: Confluentibacter | T138: 1 | U138: 50
M139: Pedosphaerales | N139: 58 | O139: 49874 | P139: Microbacteriaceae | Q139: 24 | R139: 28593 | S139: Corynebacterium | T139: 1 | U139: 2
M140: PeM15 | N140: 2 | O140: 190 | P140: Micrococcaceae | Q140: 2 | R140: 13 | S140: Coxiella | T140: 32 | U140: 2437
M141: Peptostreptococcales-Tissierellales | N141: 11 | O141: 186 | P141: Micropepsaceae | Q141: 4 | R141: 2131 | S141: Crenobacter | T141: 1 | U141: 21
M142: Phycisphaerales | N142: 36 | O142: 3043 | P142: Microscillaceae | Q142: 45 | R142: 20540 | S142: Criblamydia | T142: 1 | U142: 38
M143: Pirellulales | N143: 138 | O143: 40301 | P143: Microtrichaceae | Q143: 22 | R143: 4616 | S143: Crocinitomix | T143: 4 | U143: 4403
M144: Piscirickettsiales | N144: 1 | O144: 2 | P144: Mitochondria | Q144: 60 | R144: 1787 | S144: Curvibacter | T144: 6 | U144: 159
M145: Planctomycetales | N145: 102 | O145: 36863 | P145: Moraxellaceae | Q145: 54 | R145: 9932 | S145: Cutibacterium | T145: 2 | U145: 95
M146: PLTA13 | N146: 2 | O146: 149 | P146: Mycobacteriaceae | Q146: 20 | R146: 12987 | S146: Cytophaga | T146: 17 | U146: 3414
M147: Polyangiales | N147: 118 | O147: 48265 | P147: Mycoplasmataceae | Q147: 1 | R147: 22 | S147: Dechlorobacter | T147: 2 | U147: 19
M148: Propionibacteriales | N148: 15 | O148: 1805 | P148: Myxococcaceae | Q148: 18 | R148: 6447 | S148: Dechloromonas | T148: 11 | U148: 811
M149: Pseudomonadales | N149: 72 | O149: 14294 | P149: Nakamurellaceae | Q149: 4 | R149: 763 | S149: Dechlorosoma | T149: 1 | U149: 15
M150: Pseudonocardiales | N150: 1 | O150: 2 | P150: Nannocystaceae | Q150: 23 | R150: 17286 | S150: Deefgea | T150: 1 | U150: 39
M151: Pyrinomonadales | N151: 2 | O151: 1102 | P151: Neisseriaceae | Q151: 28 | R151: 10970 | S151: Defluviimonas | T151: 11 | U151: 34404
M152: R7C24 | N152: 7 | O152: 2725 | P152: Nitrosomonadaceae | Q152: 34 | R152: 16639 | S152: Deinococcus | T152: 9 | U152: 2043
M153: RBG-13-54-9 | N153: 4 | O153: 11796 | P153: Nitrososphaeraceae | Q153: 1 | R153: 2 | S153: Delftia | T153: 3 | U153: 10
M154: Reyranellales | N154: 18 | O154: 19682 | P154: Nitrospiraceae | Q154: 17 | R154: 112205 | S154: Desulfovibrio | T154: 1 | U154: 3
M155: Rhizobiales | N155: 277 | O155: 324855 | P155: Nocardiaceae | Q155: 9 | R155: 447 | S155: DEV008 | T155: 3 | U155: 27
M156: Rhodobacterales | N156: 126 | O156: 266651 | P156: Nocardioidaceae | Q156: 13 | R156: 1710 | S156: DEV114 | T156: 5 | U156: 5067
M157: Rhodospirillales | N157: 40 | O157: 2477 | P157: NS11-12 marine group | Q157: 37 | R157: 19995 | S157: Devosia | T157: 10 | U157: 2522
M158: Rhodothermales | N158: 1 | O158: 11 | P158: NS9 marine group | Q158: 16 | R158: 8877 | S158: Dialister | T158: 1 | U158: 5
M159: Rickettsiales | N159: 259 | O159: 27085 | P159: Obscuribacteraceae | Q159: 8 | R159: 664 | S159: Diaphorobacter | T159: 1 | U159: 9
M160: S085 | N160: 2 | O160: 133 | P160: Omnitrophaceae | Q160: 4 | R160: 36 | S160: Dinghuibacter | T160: 2 | U160: 22
M161: Saccharimonadales | N161: 48 | O161: 3792 | P161: Opitutaceae | Q161: 23 | R161: 7899 | S161: Dokdonella | T161: 7 | U161: 918
M162: Salinisphaerales | N162: 1 | O162: 5 | P162: Oscillospiraceae | Q162: 2 | R162: 4 | S162: Dongia | T162: 5 | U162: 2965
M163: SBR1031 | N163: 30 | O163: 3609 | P163: Oxalobacteraceae | Q163: 36 | R163: 12773 | S163: DSSD61 | T163: 1 | U163: 10
M164: Silvanigrellales | N164: 3 | O164: 33 | P164: Paludibacteraceae | Q164: 6 | R164: 74 | S164: DSSF69 | T164: 1 | U164: 3
M165: SM1A07 | N165: 9 | O165: 681 | P165: Paracaedibacteraceae | Q165: 48 | R165: 8340 | S165: Duganella | T165: 1 | U165: 4
M166: Solirubrobacterales | N166: 23 | O166: 4768 | P166: Parachlamydiaceae | Q166: 79 | R166: 12409 | S166: Dyadobacter | T166: 4 | U166: 177
M167: Sphingobacteriales | N167: 143 | O167: 67563 | P167: Parvibaculaceae | Q167: 1 | R167: 2 | S167: Dyella | T167: 1 | U167: 7
M168: Sphingomonadales | N168: 131 | O168: 160563 | P168: Parvularculaceae | Q168: 2 | R168: 1063 | S168: Dysgonomonas | T168: 2 | U168: 13
M169: Spirochaetales | N169: 2 | O169: 7 | P169: Pasteurellaceae | Q169: 2 | R169: 10 | S169: Edaphobaculum | T169: 14 | U169: 5491
M170: Staphylococcales | N170: 6 | O170: 89 | P170: Pedosphaeraceae | Q170: 58 | R170: 49874 | S170: Ekhidna | T170: 2 | U170: 1415
M171: Steroidobacterales | N171: 13 | O171: 1504 | P171: Peptoniphilus | Q171: 1 | R171: 3 | S171: Ellin6055 | T171: 3 | U171: 2246
M172: Subgroup 17 | N172: 9 | O172: 2393 | P172: Peptostreptococcaceae | Q172: 6 | R172: 129 | S172: Ellin6067 | T172: 3 | U172: 681
M173: Sumerlaeales | N173: 6 | O173: 370 | P173: Phaselicystidaceae | Q173: 30 | R173: 14634 | S173: Elstera | T173: 5 | U173: 1079
M174: Tepidisphaerales | N174: 11 | O174: 2061 | P174: Phycisphaeraceae | Q174: 36 | R174: 3043 | S174: Empedobacter | T174: 1 | U174: 3
M175: Thermales | N175: 2 | O175: 1198 | P175: Pirellulaceae | Q175: 138 | R175: 40301 | S175: Emticicia | T175: 18 | U175: 104965
M176: Thermicanales | N176: 1 | O176: 7 | P176: Piscirickettsiaceae | Q176: 1 | R176: 2 | S176: Enhydrobacter | T176: 3 | U176: 1009
M177: Thermoanaerobaculales | N177: 23 | O177: 9125 | P177: Pleomorphomonadaceae | Q177: 4 | R177: 847 | S177: Ensifer | T177: 3 | U177: 1667
M178: Thermomicrobiales | N178: 45 | O178: 17827 | P178: Polyangiaceae | Q178: 53 | R178: 19509 | S178: Enterococcus | T178: 0 | U178: 0
M179: Thiotrichales | N179: 4 | O179: 482 | P179: Porticoccaceae | Q179: 2 | R179: 194 | S179: Epulopiscium | T179: 1 | U179: 26
M180: Tistrellales | N180: 4 | O180: 2368 | P180: Prevotellaceae | Q180: 5 | R180: 87 | S180: Erysipelothrix | T180: 1 | U180: 2
M181: UA11 | N181: 1 | O181: 2 | P181: Prolixibacteraceae | Q181: 1 | R181: 8 | S181: Escherichia-Shigella | T181: 0 | U181: 0
M182: Vampirovibrionales | N182: 5 | O182: 213 | P182: Propionibacteriaceae | Q182: 2 | R182: 95 | S182: Estrella | T182: 1 | U182: 28
M183: Veillonellales-Selenomonadales | N183: 4 | O183: 23 | P183: Pseudohongiellaceae | Q183: 3 | R183: 775 | S183: Exiguobacterium | T183: 3 | U183: 728
M184: Verrucomicrobiales | N184: 96 | O184: 103655 | P184: Pseudomonadaceae | Q184: 18 | R184: 4362 | S184: Ferrovibrio | T184: 2 | U184: 94
M185: Vibrionales | N185: 1 | O185: 236 | P185: Pseudonocardiaceae | Q185: 1 | R185: 2 | S185: Ferruginibacter | T185: 21 | U185: 11856
M186: Vicinamibacterales | N186: 21 | O186: 28355 | P186: Puniceicoccaceae | Q186: 3 | R186: 493 | S186: FFCH7168 | T186: 1 | U186: 6
M187: WCHB1-41 | N187: 3 | O187: 967 | P187: Pyrinomonadaceae | Q187: 2 | R187: 1102 | S187: Fimbriiglobus | T187: 25 | U187: 2736
M188: WD260 | N188: 1 | O188: 79 | P188: Raineyaceae | Q188: 2 | R188: 2238 | S188: Flavihumibacter | T188: 6 | U188: 780
M189: Xanthomonadales | N189: 150 | O189: 93318 | P189: Reyranellaceae | Q189: 18 | R189: 19682 | S189: Flavimaricola | T189: 1 | U189: 62
P190: Rhizobiaceae | Q190: 64 | R190: 241490 | S190: Flavobacterium | T190: 228 | U190: 293568
P191: Rhizobiales Incertae Sedis | Q191: 71 | R191: 38747 | S191: Flectobacillus | T191: 16 | U191: 80163
P192: Rhodanobacteraceae | Q192: 43 | R192: 23876 | S192: Flexibacter | T192: 3 | U192: 442
P193: Rhodobacteraceae | Q193: 126 | R193: 266651 | S193: Fluviicola | T193: 24 | U193: 22762
P194: Rhodocyclaceae | Q194: 20 | R194: 923 | S194: Fluviimonas | T194: 2 | U194: 1277
P195: Rhodospirillaceae | Q195: 12 | R195: 1355 | S195: FukuN18 freshwater group | T195: 1 | U195: 35
P196: Rhodothermaceae | Q196: 1 | R196: 11 | S196: Fusibacter | T196: 1 | U196: 8
P197: Rickettsiaceae | Q197: 49 | R197: 9668 | S197: Ga0074140 | T197: 6 | U197: 363
P198: Rikenellaceae | Q198: 2 | R198: 6 | S198: Gaiella | T198: 2 | U198: 6
P199: Roseiflexaceae | Q199: 18 | R199: 14502 | S199: Galbitalea | T199: 5 | U199: 2485
P200: Rubinisphaeraceae | Q200: 31 | R200: 29819 | S200: Gemella | T200: 1 | U200: 2
P201: Rubritaleaceae | Q201: 47 | R201: 61241 | S201: Gemmata | T201: 15 | U201: 1234
... 273 more rows

Sheet ASV_Combo_rps
A1: asv-number | B1: source | C1: mock | D1: sample01 | E1: sample02 | F1: sample20 | G1: sample21 | H1: sample03 | I1: sample04 | J1: sample05 | K1: sample06 | L1: sample07 | M1: sample08 | N1: sample09 | O1: sample10 | P1: sample11 | Q1: sample12 | R1: sample13 | S1: sample14 | T1: sample15 | U1: sample16 | V1: sample17 | W1: sample18 | X1: reads | Y1: Kingdom | Z1: Phylum | AA1: Class | AB1: Order | AC1: Family | AD1: Genus
A2: 1 | B2: sample | C2: 0 | D2: 8985 | E2: 6693 | F2: 0 | G2: 0 | H2: 6595 | I2: 50928 | J2: 38146 | K2: 33277 | L2: 9287 | M2: 9547 | N2: 8160 | O2: 1121 | P2: 870 | Q2: 860 | R2: 0 | S2: 0 | T2: 0 | U2: 0 | V2: 0 | W2: 0 | X2: =SUM(D2:W2) -> 174469 | Y2: Bacteria | Z2: Proteobacteria | AA2: Alphaproteobacteria | AB2: Rhizobiales | AC2: Rhizobiaceae | AD2: NA
A3: 2 | B3: sample | C3: 0 | D3: 0 | E3: 0 | F3: 0 | G3: 0 | H3: 0 | I3: 0 | J3: 0 | K3: 0 | L3: 69 | M3: 124 | N3: 657 | O3: 0 | P3: 0 | Q3: 0 | R3: 66411 | S3: 45 | T3: 36538 | U3: 3282 | V3: 36 | W3: 47 | X3: =SUM(D3:W3) -> 107209 | Y3: Bacteria | Z3: Proteobacteria | AA3: Gammaproteobacteria | AB3: Aeromonadales | AC3: Aeromonadaceae | AD3: Aeromonas
A4: 3 | B4: sample | C4: 0 | D4: 13337 | E4: 10770 | F4: 0 | G4: 0 | H4: 11967 | I4: 8496 | J4: 7787 | K4: 7590 | L4: 2814 | M4: 3973 | N4: 2787 | O4: 60 | P4: 59 | Q4: 75 | R4: 1837 | S4: 2386 | T4: 1219 | U4: 2425 | V4: 5719 | W4: 2109 | X4: 85410 | Y4: Bacteria | Z4: Proteobacteria | AA4: Gammaproteobacteria | AB4: Burkholderiales | AC4: Comamonadaceae | AD4: Sphaerotilus
A5: 4 | B5: sample | C5: 0 | D5: 20461 | E5: 17918 | F5: 0 | G5: 0 | H5: 18775 | I5: 4895 | J5: 3990 | K5: 4247 | L5: 1719 | M5: 2099 | N5: 1455 | O5: 639 | P5: 553 | Q5: 450 | R5: 328 | S5: 270 | T5: 111 | U5: 212 | V5: 462 | W5: 159 | X5: 78743 | Y5: Bacteria | Z5: Proteobacteria | AA5: Gammaproteobacteria | AB5: Burkholderiales | AC5: Comamonadaceae | AD5: Ideonella
A6: 5 | B6: sample | C6: 0 | D6: 10049 | E6: 9324 | F6: 0 | G6: 0 | H6: 10152 | I6: 135 | J6: 115 | K6: 504 | L6: 4386 | M6: 6370 | N6: 5431 | O6: 8346 | P6: 7952 | Q6: 6663 | R6: 1019 | S6: 1015 | T6: 767 | U6: 793 | V6: 706 | W6: 737 | X6: 74464 | Y6: Bacteria | Z6: Bacteroidota | AA6: Bacteroidia | AB6: Chitinophagales | AC6: Saprospiraceae | AD6: Haliscomenobacter
A7: 6 | B7: sample | C7: 0 | D7: 3725 | E7: 2475 | F7: 0 | G7: 0 | H7: 2979 | I7: 16413 | J7: 12559 | K7: 11913 | L7: 2240 | M7: 3846 | N7: 2060 | O7: 20 | P7: 18 | Q7: 16 | R7: 229 | S7: 833 | T7: 229 | U7: 170 | V7: 734 | W7: 240 | X7: 60699 | Y7: Bacteria | Z7: Bacteroidota | AA7: Bacteroidia | AB7: Flavobacteriales | AC7: Flavobacteriaceae | AD7: Flavobacterium
A8: 7 | B8: sample | C8: 0 | D8: 908 | E8: 1022 | F8: 0 | G8: 0 | H8: 1077 | I8: 12338 | J8: 11171 | K8: 8618 | L8: 4696 | M8: 5788 | N8: 4386 | O8: 619 | P8: 568 | Q8: 453 | R8: 626 | S8: 555 | T8: 306 | U8: 524 | V8: 1275 | W8: 431 | X8: 55361 | Y8: Bacteria | Z8: Bacteroidota | AA8: Bacteroidia | AB8: Cytophagales | AC8: Spirosomaceae | AD8: Emticicia
A9: 8 | B9: sample | C9: 0 | D9: 128 | E9: 116 | F9: 0 | G9: 0 | H9: 114 | I9: 63 | J9: 47 | K9: 51 | L9: 1257 | M9: 1435 | N9: 1388 | O9: 3749 | P9: 4637 | Q9: 4007 | R9: 5074 | S9: 3743 | T9: 2597 | U9: 9177 | V9: 8162 | W9: 7658 | X9: 53403 | Y9: Bacteria | Z9: Nitrospirota | AA9: Nitrospiria | AB9: Nitrospirales | AC9: Nitrospiraceae | AD9: Nitrospira
A10: 9 | B10: sample | C10: 0 | D10: 706 | E10: 582 | F10: 0 | G10: 0 | H10: 588 | I10: 10865 | J10: 10021 | K10: 10734 | L10: 5358 | M10: 8562 | N10: 4537 | O10: 184 | P10: 115 | Q10: 116 | R10: 0 | S10: 0 | T10: 0 | U10: 0 | V10: 0 | W10: 0 | X10: 52368 | Y10: Bacteria | Z10: Proteobacteria | AA10: Gammaproteobacteria | AB10: Burkholderiales | AC10: Comamonadaceae | AD10: Sphaerotilus
A11: 10 | B11: sample | C11: 0 | D11: 0 | E11: 0 | F11: 0 | G11: 0 | H11: 0 | I11: 0 | J11: 0 | K11: 0 | L11: 50 | M11: 118 | N11: 47 | O11: 8 | P11: 9 | Q11: 3 | R11: 13293 | S11: 10712 | T11: 7922 | U11: 5184 | V11: 3096 | W11: 4656 | X11: 45098 | Y11: Bacteria | Z11: Bacteroidota | AA11: Bacteroidia | AB11: Cytophagales | AC11: Spirosomaceae | AD11: Flectobacillus
A12: 11 | B12: sample | C12: 0 | D12: 149 | E12: 204 | F12: 0 | G12: 0 | H12: 431 | I12: 2814 | J12: 2232 | K12: 1328 | L12: 11298 | M12: 14264 | N12: 11432 | O12: 12 | P12: 23 | Q12: 13 | R12: 0 | S12: 0 | T12: 0 | U12: 0 | V12: 0 | W12: 0 | X12: 44200 | Y12: Bacteria | Z12: Bacteroidota | AA12: Bacteroidia | AB12: Flavobacteriales | AC12: Weeksellaceae | AD12: Chryseobacterium
A13: 12 | B13: sample | C13: 0 | D13: 8284 | E13: 7785 | F13: 0 | G13: 0 | H13: 9002 | I13: 2285 | J13: 3432 | K13: 3458 | L13: 1197 | M13: 1905 | N13: 1098 | O13: 0 | P13: 0 | Q13: 0 | R13: 363 | S13: 351 | T13: 429 | U13: 544 | V13: 1924 | W13: 692 | X13: 42749 | Y13: Bacteria | Z13: Proteobacteria | AA13: Gammaproteobacteria | AB13: Burkholderiales | AC13: Comamonadaceae | AD13: Sphaerotilus
A14: 13 | B14: mock | C14: 42027 | D14: 0 | E14: 0 | F14: 0 | G14: 0 | H14: 0 | I14: 0 | J14: 0 | K14: 0 | L14: 0 | M14: 0 | N14: 0 | O14: 0 | P14: 0 | Q14: 0 | R14: 0 | S14: 0 | T14: 0 | U14: 0 | V14: 0 | W14: 0 | X14: =SUM(C14:W14) -> 42027 | Y14: Bacteria | Z14: Firmicutes | AA14: Bacilli | AB14: Bacillales | AC14: Bacillaceae | AD14: Bacillus
A15: 14 | B15: sample | C15: 0 | D15: 5950 | E15: 5580 | F15: 0 | G15: 0 | H15: 5870 | I15: 5522 | J15: 4153 | K15: 4098 | L15: 1570 | M15: 1527 | N15: 1404 | O15: 306 | P15: 274 | Q15: 237 | R15: 56 | S15: 0 | T15: 0 | U15: 48 | V15: 0 | W15: 0 | X15: 36595 | Y15: Bacteria | Z15: Proteobacteria | AA15: Alphaproteobacteria | AB15: Rhodobacterales | AC15: Rhodobacteraceae | AD15: Pseudorhodobacter
A16: 15 | B16: sample | C16: 0 | D16: 12108 | E16: 9961 | F16: 0 | G16: 0 | H16: 11094 | I16: 0 | J16: 0 | K16: 0 | L16: 0 | M16: 0 | N16: 0 | O16: 0 | P16: 0 | Q16: 0 | R16: 538 | S16: 462 | T16: 408 | U16: 420 | V16: 1133 | W16: 359 | X16: 36483 | Y16: Bacteria | Z16: Bacteroidota | AA16: Bacteroidia | AB16: Chitinophagales | AC16: Saprospiraceae | AD16: NA
A17: 16 | B17: sample | C17: 0 | D17: 8334 | E17: 5945 | F17: 0 | G17: 0 | H17: 6029 | I17: 771 | J17: 716 | K17: 2211 | L17: 1302 | M17: 1817 | N17: 1161 | O17: 1167 | P17: 1121 | Q17: 1126 | R17: 1390 | S17: 1017 | T17: 900 | U17: 292 | V17: 412 | W17: 264 | X17: 35975 | Y17: Bacteria | Z17: Bacteroidota | AA17: Bacteroidia | AB17: Chitinophagales | AC17: Chitinophagaceae | AD17: Sediminibacterium
A18: 17 | B18: sample | C18: 0 | D18: 0 | E18: 0 | F18: 0 | G18: 0 | H18: 0 | I18: 4781 | J18: 5526 | K18: 8127 | L18: 4873 | M18: 6953 | N18: 4627 | O18: 55 | P18: 20 | Q18: 16 | R18: 0 | S18: 0 | T18: 0 | U18: 0 | V18: 0 | W18: 0 | X18: 34978 | Y18: Bacteria | Z18: Bacteroidota | AA18: Bacteroidia | AB18: Cytophagales | AC18: Spirosomaceae | AD18: Flectobacillus
A19: 18 | B19: sample | C19: 0 | D19: 1379 | E19: 1037 | F19: 909 | G19: 821 | H19: 974 | I19: 9758 | J19: 8353 | K19: 6731 | L19: 1341 | M19: 999 | N19: 1186 | O19: 252 | P19: 178 | Q19: 242 | R19: 0 | S19: 0 | T19: 0 | U19: 0 | V19: 0 | W19: 0 | X19: 34160 | Y19: Bacteria | Z19: Proteobacteria | AA19: Alphaproteobacteria | AB19: Rhizobiales | AC19: NA | AD19: NA
A20: 19 | B20: sample | C20: 0 | D20: 1444 | E20: 979 | F20: 864 | G20: 864 | H20: 937 | I20: 10119 | J20: 7938 | K20: 6474 | L20: 1316 | M20: 1059 | N20: 1250 | O20: 176 | P20: 175 | Q20: 164 | R20: 0 | S20: 0 | T20: 0 | U20: 0 | V20: 0 | W20: 0 | X20: 33759 | Y20: Bacteria | Z20: Proteobacteria | AA20: Alphaproteobacteria | AB20: Rhizobiales | AC20: NA | AD20: NA
A21: 20 | B21: sample | C21: 0 | D21: 4677 | E21: 3224 | F21: 3445 | G21: 3240 | H21: 3614 | I21: 2583 | J21: 2980 | K21: 2745 | L21: 878 | M21: 1103 | N21: 863 | O21: 144 | P21: 124 | Q21: 85 | R21: 255 | S21: 494 | T21: 236 | U21: 306 | V21: 1036 | W21: 500 | X21: 32532 | Y21: Bacteria | Z21: Proteobacteria | AA21: Gammaproteobacteria | AB21: Burkholderiales | AC21: Comamonadaceae | AD21: Sphaerotilus
A22: 21 | B22: sample | C22: 0 | D22: 4917 | E22: 3398 | F22: 3195 | G22: 3089 | H22: 3489 | I22: 2730 | J22: 2930 | K22: 2687 | L22: 889 | M22: 1056 | N22: 895 | O22: 157 | P22: 120 | Q22: 133 | R22: 239 | S22: 487 | T22: 270 | U22: 286 | V22: 942 | W22: 545 | X22: 32454 | Y22: Bacteria | Z22: Proteobacteria | AA22: Gammaproteobacteria | AB22: Burkholderiales | AC22: Comamonadaceae | AD22: Sphaerotilus
A23: 22 | B23: sample | C23: 0 | D23: 1576 | E23: 1571 | F23: 0 | G23: 0 | H23: 1568 | I23: 2838 | J23: 1773 | K23: 1637 | L23: 6149 | M23: 8042 | N23: 5876 | O23: 0 | P23: 0 | Q23: 0 | R23: 64 | S23: 49 | T23: 31 | U23: 105 | V23: 127 | W23: 51 | X23: 31457 | Y23: Bacteria | Z23: Bacteroidota | AA23: Bacteroidia | AB23: Flavobacteriales | AC23: Flavobacteriaceae | AD23: Flavobacterium
A24: 23 | B24: sample | C24: 0 | D24: 0 | E24: 0 | F24: 0 | G24: 0 | H24: 0 | I24: 0 | J24: 0 | K24: 0 | L24: 0 | M24: 0 | N24: 0 | O24: 0 | P24: 0 | Q24: 0 | R24: 10341 | S24: 10340 | T24: 10408 | U24: 101 | V24: 37 | W24: 130 | X24: 31357 | Y24: Bacteria | Z24: Bacteroidota | AA24: Bacteroidia | AB24: Chitinophagales | AC24: Saprospiraceae | AD24: NA
A25: 24 | B25: mock | C25: 31114 | D25: 0 | E25: 0 | F25: 0 | G25: 0 | H25: 0 | I25: 0 | J25: 0 | K25: 0 | L25: 0 | M25: 0 | N25: 0 | O25: 0 | P25: 0 | Q25: 0 | R25: 0 | S25: 0 | T25: 0 | U25: 0 | V25: 0 | W25: 0 | X25: 31114 | Y25: Bacteria | Z25: Firmicutes | AA25: Bacilli | AB25: Lactobacillales | AC25: Listeriaceae | AD25: Listeria
A26: 25 | B26: mock | C26: 30539 | D26: 0 | E26: 0 | F26: 0 | G26: 0 | H26: 0 | I26: 0 | J26: 0 | K26: 0 | L26: 0 | M26: 0 | N26: 0 | O26: 0 | P26: 0 | Q26: 0 | R26: 0 | S26: 0 | T26: 0 | U26: 0 | V26: 0 | W26: 0 | X26: 30539 | Y26: Bacteria | Z26: Firmicutes | AA26: Bacilli | AB26: Staphylococcales | AC26: Staphylococcaceae | AD26: Staphylococcus
A27: 26 | B27: sample | C27: 0 | D27: 50 | E27: 41 | F27: 0 | G27: 0 | H27: 46 | I27: 5195 | J27: 4177 | K27: 4293 | L27: 5007 | M27: 5780 | N27: 4467 | O27: 230 | P27: 201 | Q27: 129 | R27: 250 | S27: 143 | T27: 154 | U27: 140 | V27: 52 | W27: 102 | X27: =SUM(D27:W27) -> 30457 | Y27: Bacteria | Z27: Bacteroidota | AA27: Bacteroidia | AB27: Cytophagales | AC27: Spirosomaceae | AD27: Emticicia
A28: 27 | B28: sample | C28: 0 | D28: 2251 | E28: 1714 | F28: 0 | G28: 0 | H28: 1911 | I28: 6246 | J28: 4879 | K28: 5067 | L28: 1022 | M28: 1649 | N28: 1006 | O28: 142 | P28: 117 | Q28: 132 | R28: 403 | S28: 521 | T28: 489 | U28: 636 | V28: 1179 | W28: 524 | X28: 29888 | Y28: Bacteria | Z28: Bacteroidota | AA28: Bacteroidia | AB28: Flavobacteriales | AC28: Flavobacteriaceae | AD28: Flavobacterium
A29: 28 | B29: sample | C29: 0 | D29: 1234 | E29: 2163 | F29: 0 | G29: 0 | H29: 2327 | I29: 128 | J29: 117 | K29: 141 | L29: 1483 | M29: 1736 | N29: 1659 | O29: 3120 | P29: 3145 | Q29: 2575 | R29: 1473 | S29: 1147 | T29: 1103 | U29: 2504 | V29: 1659 | W29: 1996 | X29: 29710 | Y29: Bacteria | Z29: Proteobacteria | AA29: Alphaproteobacteria | AB29: Rhodobacterales | AC29: Rhodobacteraceae | AD29: Tabrizicola
A30: 29 | B30: sample | C30: 0 | D30: 1045 | E30: 1419 | F30: 0 | G30: 0 | H30: 1433 | I30: 38 | J30: 43 | K30: 50 | L30: 2200 | M30: 2423 | N30: 2126 | O30: 5172 | P30: 4949 | Q30: 4574 | R30: 157 | S30: 222 | T30: 65 | U30: 1862 | V30: 420 | W30: 1350 | X30: 29548 | Y30: Bacteria | Z30: Bacteroidota | AA30: Bacteroidia | AB30: Chitinophagales | AC30: Saprospiraceae | AD30: NA
A31: 30 | B31: both | C31: 28769 | D31: 0 | E31: 0 | F31: 0 | G31: 0 | H31: 0 | I31: 0 | J31: 0 | K31: 0 | L31: 0 | M31: 3 | N31: 0 | O31: 0 | P31: 0 | Q31: 0 | R31: 0 | S31: 0 | T31: 0 | U31: 0 | V31: 0 | W31: 0 | X31: 28772 | Y31: Bacteria | Z31: Firmicutes | AA31: Bacilli | AB31: Lactobacillales | AC31: Lactobacillaceae | AD31: Lactobacillus
A32: 31 | B32: sample | C32: 0 | D32: 20 | E32: 0 | F32: 0 | G32: 0 | H32: 0 | I32: 1800 | J32: 1139 | K32: 563 | L32: 7786 | M32: 8384 | N32: 8703 | O32: 0 | P32: 0 | Q32: 0 | R32: 0 | S32: 0 | T32: 0 | U32: 0 | V32: 0 | W32: 0 | X32: =SUM(D32:W32) -> 28395 | Y32: Bacteria | Z32: Proteobacteria | AA32: Gammaproteobacteria | AB32: Burkholderiales | AC32: Comamonadaceae | AD32: Hydrogenophaga
A33: 32 | B33: sample | C33: 0 | D33: 804 | E33: 1284 | F33: 0 | G33: 0 | H33: 1463 | I33: 7047 | J33: 6819 | K33: 7036 | L33: 728 | M33: 1141 | N33: 737 | O33: 148 | P33: 172 | Q33: 159 | R33: 0 | S33: 0 | T33: 0 | U33: 0 | V33: 0 | W33: 0 | X33: 27538 | Y33: Bacteria | Z33: Bacteroidota | AA33: Bacteroidia | AB33: Chitinophagales | AC33: Saprospiraceae | AD33: NA
A34: 33 | B34: sample | C34: 0 | D34: 364 | E34: 494 | F34: 0 | G34: 0 | H34: 480 | I34: 0 | J34: 0 | K34: 17 | L34: 50 | M34: 99 | N34: 60 | O34: 173 | P34: 138 | Q34: 164 | R34: 4031 | S34: 3316 | T34: 1449 | U34: 5285 | V34: 5756 | W34: 4169 | X34: 26045 | Y34: Bacteria | Z34: Proteobacteria | AA34: Gammaproteobacteria | AB34: Burkholderiales | AC34: Comamonadaceae | AD34: Limnohabitans
A35: 34 | B35: sample | C35: 0 | D35: 48 | E35: 82 | F35: 0 | G35: 0 | H35: 80 | I35: 1809 | J35: 1115 | K35: 756 | L35: 4235 | M35: 4598 | N35: 4067 | O35: 1725 | P35: 1442 | Q35: 1192 | R35: 972 | S35: 721 | T35: 386 | U35: 1003 | V35: 933 | W35: 651 | X35: 25815 | Y35: Bacteria | Z35: Proteobacteria | AA35: Alphaproteobacteria | AB35: Rhodobacterales | AC35: Rhodobacteraceae | AD35: Pseudorhodobacter
A36: 35 | B36: sample | C36: 0 | D36: 97 | E36: 185 | F36: 0 | G36: 0 | H36: 166 | I36: 44 | J36: 8 | K36: 45 | L36: 1295 | M36: 3103 | N36: 1244 | O36: 7082 | P36: 6299 | Q36: 4075 | R36: 80 | S36: 74 | T36: 37 | U36: 30 | V36: 64 | W36: 34 | X36: 23962 | Y36: Bacteria | Z36: Bacteroidota | AA36: Bacteroidia | AB36: Chitinophagales | AC36: 37-13 | AD36: NA
A37: 36 | B37: sample | C37: 0 | D37: 793 | E37: 709 | F37: 0 | G37: 0 | H37: 708 | I37: 2079 | J37: 1539 | K37: 1399 | L37: 5662 | M37: 5874 | N37: 4782 | O37: 24 | P37: 47 | Q37: 0 | R37: 0 | S37: 0 | T37: 0 | U37: 0 | V37: 0 | W37: 0 | X37: 23616 | Y37: Bacteria | Z37: Bacteroidota | AA37: Bacteroidia | AB37: Cytophagales | AC37: Spirosomaceae | AD37: Arcicella
A38: 37 | B38: mock | C38: 23212 | D38: 0 | E38: 0 | F38: 0 | G38: 0 | H38: 0 | I38: 0 | J38: 0 | K38: 0 | L38: 0 | M38: 0 | N38: 0 | O38: 0 | P38: 0 | Q38: 0 | R38: 0 | S38: 0 | T38: 0 | U38: 0 | V38: 0 | W38: 0 | X38: 23212 | Y38: Bacteria | Z38: Proteobacteria | AA38: Gammaproteobacteria | AB38: Enterobacterales | AC38: Enterobacteriaceae | AD38: Salmonella
A39: 38 | B39: sample | C39: 0 | D39: 530 | E39: 347 | F39: 0 | G39: 0 | H39: 546 | I39: 7310 | J39: 4999 | K39: 4098 | L39: 883 | M39: 995 | N39: 851 | O39: 271 | P39: 201 | Q39: 209 | R39: 279 | S39: 257 | T39: 652 | U39: 222 | V39: 174 | W39: 355 | X39: =SUM(D39:W39) -> 23179 | Y39: Bacteria | Z39: Proteobacteria | AA39: Alphaproteobacteria | AB39: Sphingomonadales | AC39: Sphingomonadaceae | AD39: Novosphingobium
A40: 39 | B40: mock | C40: 23134 | D40: 0 | E40: 0 | F40: 0 | G40: 0 | H40: 0 | I40: 0 | J40: 0 | K40: 0 | L40: 0 | M40: 0 | N40: 0 | O40: 0 | P40: 0 | Q40: 0 | R40: 0 | S40: 0 | T40: 0 | U40: 0 | V40: 0 | W40: 0 | X40: 23134 | Y40: Bacteria | Z40: Proteobacteria | AA40: Gammaproteobacteria | AB40: Enterobacterales | AC40: Enterobacteriaceae | AD40: Escherichia-Shigella
A41: 40 | B41: sample | C41: 0 | D41: 547 | E41: 525 | F41: 0 | G41: 0 | H41: 744 | I41: 37 | J41: 28 | K41: 66 | L41: 1931 | M41: 1975 | N41: 1668 | O41: 539 | P41: 452 | Q41: 427 | R41: 1952 | S41: 1186 | T41: 789 | U41: 3841 | V41: 4162 | W41: 2051 | X41: =SUM(D41:W41) -> 22920 | Y41: Bacteria | Z41: Bacteroidota | AA41: Bacteroidia | AB41: Flavobacteriales | AC41: Flavobacteriaceae | AD41: Flavobacterium
A42: 41 | B42: mock | C42: 22336 | D42: 0 | E42: 0 | F42: 0 | G42: 0 | H42: 0 | I42: 0 | J42: 0 | K42: 0 | L42: 0 | M42: 0 | N42: 0 | O42: 0 | P42: 0 | Q42: 0 | R42: 0 | S42: 0 | T42: 0 | U42: 0 | V42: 0 | W42: 0 | X42: 22336 | Y42: Bacteria | Z42: Firmicutes | AA42: Bacilli | AB42: Lactobacillales | AC42: Enterococcaceae | AD42: Enterococcus
A43: 42 | B43: sample | C43: 0 | D43: 167 | E43: 118 | F43: 0 | G43: 0 | H43: 125 | I43: 42 | J43: 38 | K43: 43 | L43: 2444 | M43: 2924 | N43: 2444 | O43: 3800 | P43: 3788 | Q43: 2984 | R43: 532 | S43: 466 | T43: 363 | U43: 447 | V43: 704 | W43: 493 | X43: =SUM(D43:W43) -> 21922 | Y43: Bacteria | Z43: Bacteroidota | AA43: Bacteroidia | AB43: Cytophagales | AC43: Spirosomaceae | AD43: NA
A44: 43 | B44: sample | C44: 0 | D44: 410 | E44: 769 | F44: 0 | G44: 0 | H44: 1205 | I44: 801 | J44: 911 | K44: 4730 | L44: 1560 | M44: 1575 | N44: 1675 | O44: 770 | P44: 909 | Q44: 779 | R44: 782 | S44: 586 | T44: 577 | U44: 1242 | V44: 1338 | W44: 992 | X44: 21611 | Y44: Bacteria | Z44: Proteobacteria | AA44: Alphaproteobacteria | AB44: Rhodobacterales | AC44: Rhodobacteraceae | AD44: Rhodobacter
A45: 44 | B45: sample | C45: 0 | D45: 849 | E45: 954 | F45: 0 | G45: 0 | H45: 1511 | I45: 370 | J45: 300 | K45: 577 | L45: 4021 | M45: 3899 | N45: 3671 | O45: 914 | P45: 834 | Q45: 646 | R45: 537 | S45: 426 | T45: 324 | U45: 506 | V45: 518 | W45: 376 | X45: 21233 | Y45: Bacteria | Z45: Proteobacteria | AA45: Alphaproteobacteria | AB45: Rhodobacterales | AC45: Rhodobacteraceae | AD45: Pseudorhodobacter
A46: 45 | B46: sample | C46: 0 | D46: 3910 | E46: 2935 | F46: 2718 | G46: 2628 | H46: 3040 | I46: 1124 | J46: 967 | K46: 955 | L46: 316 | M46: 301 | N46: 271 | O46: 136 | P46: 168 | Q46: 187 | R46: 168 | S46: 222 | T46: 50 | U46: 63 | V46: 187 | W46: 71 | X46: 20417 | Y46: Bacteria | Z46: Proteobacteria | AA46: Gammaproteobacteria | AB46: Burkholderiales | AC46: Comamonadaceae | AD46: Ideonella
A47: 46 | B47: sample | C47: 0 | D47: 4171 | E47: 2999 | F47: 2631 | G47: 2465 | H47: 2945 | I47: 1098 | J47: 929 | K47: 903 | L47: 309 | M47: 292 | N47: 283 | O47: 191 | P47: 211 | Q47: 240 | R47: 0 | S47: 207 | T47: 126 | U47: 70 | V47: 99 | W47: 106 | X47: 20275 | Y47: Bacteria | Z47: Proteobacteria | AA47: Gammaproteobacteria | AB47: Burkholderiales | AC47: Comamonadaceae | AD47: NA
A48: 47 | B48: sample | C48: 0 | D48: 2705 | E48: 3714 | F48: 0 | G48: 0 | H48: 3693 | I48: 563 | J48: 617 | K48: 548 | L48: 333 | M48: 547 | N48: 315 | O48: 1031 | P48: 1026 | Q48: 971 | R48: 571 | S48: 586 | T48: 548 | U48: 619 | V48: 1304 | W48: 498 | X48: 20189 | Y48: Bacteria | Z48: Bacteroidota | AA48: Bacteroidia | AB48: Chitinophagales | AC48: Saprospiraceae | AD48: NA
A49: 48 | B49: sample | C49: 0 | D49: 0 | E49: 0 | F49: 0 | G49: 0 | H49: 0 | I49: 0 | J49: 0 | K49: 0 | L49: 0 | M49: 0 | N49: 0 | O49: 0 | P49: 0 | Q49: 0 | R49: 4116 | S49: 4695 | T49: 3104 | U49: 2575 | V49: 2520 | W49: 2662 | X49: 19672 | Y49: Bacteria | Z49: Bacteroidota | AA49: Bacteroidia | AB49: Chitinophagales | AC49: Saprospiraceae | AD49: NA
A50: 49 | B50: sample | C50: 0 | D50: 0 | E50: 0 | F50: 0 | G50: 0 | H50: 0 | I50: 0 | J50: 0 | K50: 0 | L50: 0 | M50: 0 | N50: 0 | O50: 0 | P50: 0 | Q50: 0 | R50: 2540 | S50: 2176 | T50: 856 | U50: 3664 | V50: 7738 | W50: 2616 | X50: 19590 | Y50: Bacteria | Z50: Bacteroidota | AA50: Bacteroidia | AB50: Chitinophagales | AC50: Saprospiraceae | AD50: NA
A51: 50 | B51: sample | C51: 0 | D51: 1856 | E51: 1812 | F51: 0 | G51: 0 | H51: 2006 | I51: 695 | J51: 594 | K51: 805 | L51: 1462 | M51: 1716 | N51: 1471 | O51: 1403 | P51: 1260 | Q51: 1173 | R51: 521 | S51: 442 | T51: 211 | U51: 628 | V51: 897 | W51: 606 | X51: 19558 | Y51: Bacteria | Z51: Proteobacteria | AA51: Alphaproteobacteria | AB51: Sphingomonadales | AC51: Sphingomonadaceae | AD51: Sphingorhabdus
A52: 51 | B52: sample | C52: 0 | D52: 970 | E52: 790 | F52: 0 | G52: 0 | H52: 1120 | I52: 39 | J52: 72 | K52: 373 | L52: 1360 | M52: 1594 | N52: 1096 | O52: 3189 | P52: 2883 | Q52: 2369 | R52: 583 | S52: 1140 | T52: 1322 | U52: 267 | V52: 51 | W52: 254 | X52: 19472 | Y52: Bacteria | Z52: Myxococcota | AA52: Polyangia | AB52: Haliangiales | AC52: Haliangiaceae | AD52: Haliangium
A53: 52 | B53: sample | C53: 0 | D53: 55 | E53: 50 | F53: 0 | G53: 0 | H53: 67 | I53: 22 | J53: 12 | K53: 19 | L53: 561 | M53: 807 | N53: 674 | O53: 1938 | P53: 1953 | Q53: 2272 | R53: 1275 | S53: 1100 | T53: 706 | U53: 2135 | V53: 2643 | W53: 2300 | X53: 18589 | Y53: Bacteria | Z53: Nitrospirota | AA53: Nitrospiria | AB53: Nitrospirales | AC53: Nitrospiraceae | AD53: Nitrospira
A54: 53 | B54: sample | C54: 0 | D54: 83 | E54: 73 | F54: 0 | G54: 0 | H54: 210 | I54: 778 | J54: 481 | K54: 1716 | L54: 4180 | M54: 4843 | N54: 4049 | O54: 0 | P54: 3 | Q54: 5 | R54: 666 | S54: 361 | T54: 193 | U54: 283 | V54: 197 | W54: 310 | X54: 18431 | Y54: Bacteria | Z54: Bacteroidota | AA54: Bacteroidia | AB54: Flavobacteriales | AC54: Crocinitomicaceae | AD54: Fluviicola
A55: 54 | B55: sample | C55: 0 | D55: 1643 | E55: 1573 | F55: 0 | G55: 0 | H55: 2360 | I55: 22 | J55: 29 | K55: 145 | L55: 26 | M55: 119 | N55: 16 | O55: 140 | P55: 136 | Q55: 113 | R55: 1216 | S55: 1127 | T55: 1504 | U55: 2139 | V55: 4446 | W55: 1335 | X55: 18089 | Y55: Bacteria | Z55: Bacteroidota | AA55: Bacteroidia | AB55: Chitinophagales | AC55: Saprospiraceae | AD55: NA
A56: 55 | B56: sample | C56: 0 | D56: 829 | E56: 501 | F56: 426 | G56: 401 | H56: 595 | I56: 4656 | J56: 4275 | K56: 3515 | L56: 662 | M56: 824 | N56: 617 | O56: 0 | P56: 0 | Q56: 0 | R56: 110 | S56: 233 | T56: 0 | U56: 101 | V56: 157 | W56: 124 | X56: 18026 | Y56: Bacteria | Z56: Bacteroidota | AA56: Bacteroidia | AB56: Flavobacteriales | AC56: Flavobacteriaceae | AD56: Flavobacterium
A57: 56 | B57: sample | C57: 0 | D57: 843 | E57: 559 | F57: 425 | G57: 405 | H57: 567 | I57: 4376 | J57: 4139 | K57: 3726 | L57: 628 | M57: 792 | N57: 647 | O57: 0 | P57: 0 | Q57: 0 | R57: 0 | S57: 139 | T57: 213 | U57: 0 | V57: 149 | W57: 68 | X57: 17676 | Y57: Bacteria | Z57: Bacteroidota | AA57: Bacteroidia | AB57: Flavobacteriales | AC57: Flavobacteriaceae | AD57: Flavobacterium
A58: 57 | B58: sample | C58: 0 | D58: 716 | E58: 1101 | F58: 0 | G58: 0 | H58: 1516 | I58: 3249 | J58: 3587 | K58: 4850 | L58: 741 | M58: 827 | N58: 959 | O58: 7 | P58: 21 | Q58: 12 | R58: 0 | S58: 0 | T58: 0 | U58: 0 | V58: 0 | W58: 0 | X58: 17586 | Y58: Bacteria | Z58: Proteobacteria | AA58: Alphaproteobacteria | AB58: Caulobacterales | AC58: Caulobacteraceae | AD58: Brevundimonas
A59: 58 | B59: sample | C59: 0 | D59: 2566 | E59: 1531 | F59: 0 | G59: 0 | H59: 1871 | I59: 3272 | J59: 2695 | K59: 2590 | L59: 888 | M59: 1113 | N59: 835 | O59: 50 | P59: 59 | Q59: 28 | R59: 0 | S59: 0 | T59: 0 | U59: 0 | V59: 0 | W59: 0 | X59: 17498 | Y59: Bacteria | Z59: Bacteroidota | AA59: Bacteroidia | AB59: Cytophagales | AC59: Spirosomaceae | AD59: Emticicia
A60: 59 | B60: sample | C60: 0 | D60: 3166 | E60: 1938 | F60: 0 | G60: 0 | H60: 2695 | I60: 1861 | J60: 1981 | K60: 2963 | L60: 568 | M60: 770 | N60: 526 | O60: 95 | P60: 89 | Q60: 60 | R60: 0 | S60: 0 | T60: 0 | U60: 0 | V60: 0 | W60: 0 | X60: 16712 | Y60: Bacteria | Z60: Bacteroidota | AA60: Bacteroidia | AB60: Chitinophagales | AC60: NA | AD60: NA
A61: 60 | B61: sample | C61: 0 | D61: 384 | E61: 177 | F61: 0 | G61: 0 | H61: 242 | I61: 603 | J61: 365 | K61: 282 | L61: 2115 | M61: 2323 | N61: 2043 | O61: 2092 | P61: 1837 | Q61: 1692 | R61: 775 | S61: 639 | T61: 426 | U61: 306 | V61: 156 | W61: 253 | X61: 16710 | Y61: Bacteria | Z61: Proteobacteria | AA61: Alphaproteobacteria | AB61: Sphingomonadales | AC61: Sphingomonadaceae | AD61: Sphingorhabdus
A62: 61 | B62: sample | C62: 0 | D62: 890 | E62: 1162 | F62: 0 | G62: 0 | H62: 1210 | I62: 85 | J62: 69 | K62: 86 | L62: 247 | M62: 302 | N62: 301 | O62: 644 | P62: 554 | Q62: 465 | R62: 2154 | S62: 1744 | T62: 1753 | U62: 1815 | V62: 1628 | W62: 1558 | X62: 16667 | Y62: Bacteria | Z62: Proteobacteria | AA62: Gammaproteobacteria | AB62: Burkholderiales | AC62: Comamonadaceae | AD62: Leptothrix
A63: 62 | B63: sample | C63: 0 | D63: 96 | E63: 168 | F63: 0 | G63: 0 | H63: 139 | I63: 1440 | J63: 1562 | K63: 2030 | L63: 3218 | M63: 4343 | N63: 3092 | O63: 79 | P63: 54 | Q63: 0 | R63: 50 | S63: 20 | T63: 0 | U63: 0 | V63: 25 | W63: 26 | X63: 16342 | Y63: Bacteria | Z63: Bacteroidota | AA63: Bacteroidia | AB63: Flavobacteriales | AC63: Flavobacteriaceae | AD63: Flavobacterium
A64: 63 | B64: sample | C64: 0 | D64: 1682 | E64: 1606 | F64: 1366 | G64: 1285 | H64: 1555 | I64: 0 | J64: 184 | K64: 221 | L64: 792 | M64: 778 | N64: 981 | O64: 1492 | P64: 1567 | Q64: 1129 | R64: 144 | S64: 235 | T64: 222 | U64: 209 | V64: 254 | W64: 221 | X64: 15923 | Y64: Bacteria | Z64: Bacteroidota | AA64: Bacteroidia | AB64: Chitinophagales | AC64: Saprospiraceae | AD64: Haliscomenobacter
A65: 64 | B65: sample | C65: 0 | D65: 0 | E65: 0 | F65: 0 | G65: 0 | H65: 0 | I65: 0 | J65: 0 | K65: 0 | L65: 0 | M65: 0 | N65: 0 | O65: 0 | P65: 0 | Q65: 0 | R65: 4872 | S65: 3688 | T65: 2599 | U65: 1750 | V65: 1229 | W65: 1735 | X65: 15873 | Y65: Bacteria | Z65: Actinobacteriota | AA65: Actinobacteria | AB65: Micrococcales | AC65: Microbacteriaceae | AD65: Aurantimicrobium
A66: 65 | B66: sample | C66: 0 | D66: 400 | E66: 274 | F66: 0 | G66: 0 | H66: 304 | I66: 21 | J66: 8 | K66: 21 | L66: 54 | M66: 57 | N66: 36 | O66: 65 | P66: 66 | Q66: 35 | R66: 3439 | S66: 3261 | T66: 2787 | U66: 2103 | V66: 1342 | W66: 1439 | X66: 15712 | Y66: Bacteria | Z66: Bacteroidota | AA66: Bacteroidia | AB66: Chitinophagales | AC66: Saprospiraceae | AD66: NA
A67: 66 | B67: sample | C67: 0 | D67: 0 | E67: 0 | F67: 0 | G67: 0 | H67: 0 | I67: 0 | J67: 0 | K67: 0 | L67: 0 | M67: 0 | N67: 0 | O67: 0 | P67: 0 | Q67: 0 | R67: 4339 | S67: 2789 | T67: 2900 | U67: 2008 | V67: 1675 | W67: 1884 | X67: 15595 | Y67: Bacteria | Z67: Proteobacteria | AA67: Alphaproteobacteria | AB67: Sphingomonadales | AC67: Sphingomonadaceae | AD67: Sphingobium
A68: 67 | B68: sample | C68: 0 | D68: 2964 | E68: 2861 | F68: 0 | G68: 0 | H68: 2839 | I68: 732 | J68: 1168 | K68: 1965 | L68: 1127 | M68: 921 | N68: 966 | O68: 0 | P68: 0 | Q68: 0 | R68: 18 | S68: 16 | T68: 0 | U68: 0 | V68: 0 | W68: 0 | X68: 15577 | Y68: Bacteria | Z68: Proteobacteria | AA68: Alphaproteobacteria | AB68: Rhizobiales | AC68: Rhizobiaceae | AD68: Shinella
A69: 68 | B69: sample | C69: 0 | D69: 1691 | E69: 1658 | F69: 1373 | G69: 1311 | H69: 1547 | I69: 133 | J69: 0 | K69: 128 | L69: 749 | M69: 789 | N69: 955 | O69: 1468 | P69: 1507 | Q69: 1124 | R69: 129 | S69: 214 | T69: 186 | U69: 157 | V69: 131 | W69: 228 | X69: 15478 | Y69: Bacteria | Z69: Bacteroidota | AA69: Bacteroidia | AB69: Chitinophagales | AC69: Saprospiraceae | AD69: Haliscomenobacter
A70: 69 | B70: sample | C70: 0 | D70: 0 | E70: 0 | F70: 0 | G70: 0 | H70: 0 | I70: 0 | J70: 0 | K70: 0 | L70: 0 | M70: 0 | N70: 0 | O70: 0 | P70: 0 | Q70: 0 | R70: 2068 | S70: 1499 | T70: 1325 | U70: 4618 | V70: 2351 | W70: 3445 | X70: 15306 | Y70: Bacteria | Z70: Acidobacteriota | AA70: Vicinamibacteria | AB70: Vicinamibacterales | AC70: Vicinamibacteraceae | AD70: NA
A71: 70 | B71: sample | C71: 0 | D71: 775 | E71: 952 | F71: 0 | G71: 0 | H71: 1169 | I71: 335 | J71: 326 | K71: 507 | L71: 476 | M71: 648 | N71: 603 | O71: 562 | P71: 496 | Q71: 360 | R71: 1250 | S71: 1244 | T71: 923 | U71: 1735 | V71: 1610 | W71: 1225 | X71: 15196 | Y71: Bacteria | Z71: Proteobacteria | AA71: Gammaproteobacteria | AB71: Burkholderiales | AC71: Comamonadaceae | AD71: Rubrivivax
A72: 71 | B72: sample | C72: 0 | D72: 60 | E72: 56 | F72: 0 | G72: 0 | H72: 68 | I72: 3877 | J72: 3503 | K72: 2905 | L72: 1212 | M72: 2049 | N72: 1143 | O72: 8 | P72: 6 | Q72: 0 | R72: 13 | S72: 9 | T72: 0 | U72: 7 | V72: 10 | W72: 11 | X72: 14937 | Y72: Bacteria | Z72: Bacteroidota | AA72: Bacteroidia | AB72: Sphingobacteriales | AC72: env.OPS 17 | AD72: NA
A73: 72 | B73: sample | C73: 0 | D73: 613 | E73: 466 | F73: 385 | G73: 397 | H73: 437 | I73: 4254 | J73: 3346 | K73: 2881 | L73: 576 | M73: 480 | N73: 562 | O73: 141 | P73: 75 | Q73: 80 | R73: 0 | S73: 0 | T73: 0 | U73: 0 | V73: 0 | W73: 0 | X73: 14693 | Y73: Bacteria | Z73: Proteobacteria | AA73: Alphaproteobacteria | AB73: Rhizobiales | AC73: Rhizobiaceae | AD73: NA
A74: 73 | B74: sample | C74: 0 | D74: 88 | E74: 99 | F74: 0 | G74: 0 | H74: 98 | I74: 100 | J74: 122 | K74: 265 | L74: 1280 | M74: 1509 | N74: 1318 | O74: 2497 | P74: 2188 | Q74: 2031 | R74: 740 | S74: 541 | T74: 363 | U74: 249 | V74: 477 | W74: 271 | X74: 14236 | Y74: Bacteria | Z74: Verrucomicrobiota | AA74: Verrucomicrobiae | AB74: Verrucomicrobiales | AC74: Rubritaleaceae | AD74: Luteolibacter
A75: 74 | B75: sample | C75: 0 | D75: 1983 | E75: 1453 | F75: 1421 | G75: 1444 | H75: 1563 | I75: 1160 | J75: 1227 | K75: 1162 | L75: 395 | M75: 461 | N75: 389 | O75: 0 | P75: 0 | Q75: 0 | R75: 178 | S75: 268 | T75: 150 | U75: 163 | V75: 424 | W75: 250 | X75: 14091 | Y75: Bacteria | Z75: Proteobacteria | AA75: Gammaproteobacteria | AB75: Burkholderiales | AC75: Comamonadaceae | AD75: Sphaerotilus
A76: 75 | B76: sample | C76: 0 | D76: 11 | E76: 50 | F76: 0 | G76: 0 | H76: 40 | I76: 4838 | J76: 3915 | K76: 3063 | L76: 501 | M76: 824 | N76: 523 | O76: 0 | P76: 8 | Q76: 7 | R76: 69 | S76: 58 | T76: 35 | U76: 40 | V76: 17 | W76: 31 | X76: 14030 | Y76: Bacteria | Z76: Proteobacteria | AA76: Gammaproteobacteria | AB76: Burkholderiales | AC76: Chromobacteriaceae | AD76: Vogesella
A77: 76 | B77: sample | C77: 0 | D77: 766 | E77: 689 | F77: 0 | G77: 0 | H77: 723 | I77: 1207 | J77: 1105 | K77: 1112 | L77: 1294 | M77: 1603 | N77: 1189 | O77: 1108 | P77: 1010 | Q77: 727 | R77: 226 | S77: 174 | T77: 167 | U77: 281 | V77: 278 | W77: 196 | X77: 13855 | Y77: Bacteria | Z77: Proteobacteria | AA77: Gammaproteobacteria | AB77: Burkholderiales | AC77: Comamonadaceae | AD77: NA
A78: 77 | B78: sample | C78: 0 | D78: 578 | E78: 403 | F78: 398 | G78: 394 | H78: 406 | I78: 3763 | J78: 3131 | K78: 2600 | L78: 543 | M78: 448 | N78: 476 | O78: 66 | P78: 45 | Q78: 60 | R78: 0 | S78: 0 | T78: 0 | U78: 0 | V78: 0 | W78: 0 | X78: 13311 | Y78: Bacteria | Z78: Proteobacteria | AA78: Alphaproteobacteria | AB78: Rhizobiales | AC78: NA | AD78: NA
A79: 78 | B79: sample | C79: 0 | D79: 750 | E79: 457 | F79: 0 | G79: 0 | H79: 501 | I79: 3326 | J79: 3231 | K79: 2967 | L79: 565 | M79: 996 | N79: 512 | O79: 0 | P79: 0 | Q79: 0 | R79: 0 | S79: 0 | T79: 0 | U79: 0 | V79: 0 | W79: 0 | X79: 13305 | Y79: Bacteria | Z79: Bacteroidota | AA79: Bacteroidia | AB79: Flavobacteriales | AC79: Flavobacteriaceae | AD79: Flavobacterium
A80: 79 | B80: sample | C80: 0 | D80: 59 | E80: 55 | F80: 0 | G80: 0 | H80: 74 | I80: 141 | J80: 111 | K80: 354 | L80: 812 | M80: 2971 | N80: 901 | O80: 3471 | P80: 2128 | Q80: 2034 | R80: 0 | S80: 0 | T80: 0 | U80: 0 | V80: 0 | W80: 0 | X80: 13111 | Y80: Bacteria | Z80: Bacteroidota | AA80: Bacteroidia | AB80: Chitinophagales | AC80: NA | AD80: NA
A81: 80 | B81: sample | C81: 0 | D81: 14 | E81: 0 | F81: 0 | G81: 0 | H81: 0 | I81: 3 | J81: 0 | K81: 6 | L81: 808 | M81: 1020 | N81: 915 | O81: 3484 | P81: 3505 | Q81: 3056 | R81: 0 | S81: 0 | T81: 0 | U81: 0 | V81: 0 | W81: 0 | X81: 12811 | Y81: Bacteria | Z81: Planctomycetota | AA81: Planctomycetes | AB81: Gemmatales | AC81: Gemmataceae | AD81: Telmatocola
A82: 81 | B82: sample | C82: 0 | D82: 3181 | E82: 1955 | F82: 0 | G82: 0 | H82: 2067 | I82: 1982 | J82: 1580 | K82: 1132 | L82: 238 | M82: 327 | N82: 218 | O82: 29 | P82: 35 | Q82: 32 | R82: 0 | S82: 0 | T82: 0 | U82: 0 | V82: 0 | W82: 0 | X82: 12776 | Y82: Bacteria | Z82: Patescibacteria | AA82: Gracilibacteria | AB82: NA | AC82: NA | AD82: NA
A83: 82 | B83: sample | C83: 0 | D83: 39 | E83: 58 | F83: 0 | G83: 0 | H83: 81 | I83: 199 | J83: 135 | K83: 389 | L83: 3451 | M83: 4678 | N83: 3343 | O83: 22 | P83: 31 | Q83: 22 | R83: 91 | S83: 44 | T83: 30 | U83: 31 | V83: 34 | W83: 35 | X83: 12713 | Y83: Bacteria | Z83: Bacteroidota | AA83: Bacteroidia | AB83: Flavobacteriales | AC83: Flavobacteriaceae | AD83: Flavobacterium
A84: 83 | B84: sample | C84: 0 | D84: 505 | E84: 395 | F84: 346 | G84: 322 | H84: 346 | I84: 3690 | J84: 2999 | K84: 2556 | L84: 491 | M84: 385 | N84: 447 | O84: 58 | P84: 143 | Q84: 0 | R84: 0 | S84: 0 | T84: 0 | U84: 0 | V84: 0 | W84: 0 | X84: 12683 | Y84: Bacteria | Z84: Proteobacteria | AA84: Alphaproteobacteria | AB84: Rhizobiales | AC84: Rhizobiaceae | AD84: NA
A85: 84 | B85: sample | C85: 0 | D85: 0 | E85: 0 | F85: 0 | G85: 0 | H85: 0 | I85: 0 | J85: 0 | K85: 0 | L85: 0 | M85: 0 | N85: 0 | O85: 0 | P85: 0 | Q85: 0 | R85: 479 | S85: 386 | T85: 373 | U85: 3690 | V85: 3430 | W85: 4325 | X85: 12683 | Y85: Bacteria | Z85: Nitrospirota | AA85: Nitrospiria | AB85: Nitrospirales | AC85: Nitrospiraceae | AD85: Nitrospira
A86: 85 | B86: sample | C86: 0 | D86: 1855 | E86: 1271 | F86: 1371 | G86: 1323 | H86: 1356 | I86: 1003 | J86: 1166 | K86: 1024 | L86: 358 | M86: 459 | N86: 334 | O86: 0 | P86: 0 | Q86: 0 | R86: 95 | S86: 234 | T86: 115 | U86: 120 | V86: 390 | W86: 208 | X86: 12682 | Y86: Bacteria | Z86: Proteobacteria | AA86: Gammaproteobacteria | AB86: Burkholderiales | AC86: Comamonadaceae | AD86: Sphaerotilus
A87: 86 | B87: mock | C87: 12673 | D87: 0 | E87: 0 | F87: 0 | G87: 0 | H87: 0 | I87: 0 | J87: 0 | K87: 0 | L87: 0 | M87: 0 | N87: 0 | O87: 0 | P87: 0 | Q87: 0 | R87: 0 | S87: 0 | T87: 0 | U87: 0 | V87: 0 | W87: 0 | X87: =SUM(C87:W87) -> 12673 | Y87: Bacteria | Z87: Proteobacteria | AA87: Gammaproteobacteria | AB87: Pseudomonadales | AC87: Pseudomonadaceae | AD87: Pseudomonas
A88: 87 | B88: sample | C88: 0 | D88: 537 | E88: 414 | F88: 336 | G88: 335 | H88: 360 | I88: 3512 | J88: 2936 | K88: 2431 | L88: 501 | M88: 410 | N88: 487 | O88: 78 | P88: 85 | Q88: 136 | R88: 0 | S88: 0 | T88: 0 | U88: 0 | V88: 0 | W88: 0 | X88: =SUM(D88:W88) -> 12558 | Y88: Bacteria | Z88: Proteobacteria | AA88: Alphaproteobacteria | AB88: Rhizobiales | AC88: Rhizobiaceae | AD88: NA
A89: 88 | B89: sample | C89: 0 | D89: 1710 | E89: 1266 | F89: 1220 | G89: 1208 | H89: 1325 | I89: 1056 | J89: 1151 | K89: 1074 | L89: 352 | M89: 388 | N89: 348 | O89: 0 | P89: 0 | Q89: 0 | R89: 221 | S89: 288 | T89: 183 | U89: 232 | V89: 360 | W89: 171 | X89: 12553 | Y89: Bacteria | Z89: Proteobacteria | AA89: Gammaproteobacteria | AB89: Burkholderiales | AC89: Comamonadaceae | AD89: Sphaerotilus
A90: 89 | B90: sample | C90: 0 | D90: 0 | E90: 0 | F90: 0 | G90: 0 | H90: 0 | I90: 0 | J90: 0 | K90: 0 | L90: 772 | M90: 998 | N90: 948 | O90: 2642 | P90: 3351 | Q90: 3762 | R90: 0 | S90: 0 | T90: 0 | U90: 0 | V90: 0 | W90: 0 | X90: 12473 | Y90: Bacteria | Z90: Nitrospirota | AA90: Nitrospiria | AB90: Nitrospirales | AC90: Nitrospiraceae | AD90: Nitrospira
A91: 90 | B91: sample | C91: 0 | D91: 0 | E91: 56 | F91: 0 | G91: 0 | H91: 137 | I91: 1285 | J91: 1069 | K91: 600 | L91: 2862 | M91: 3572 | N91: 2877 | O91: 0 | P91: 0 | Q91: 0 | R91: 0 | S91: 0 | T91: 0 | U91: 0 | V91: 0 | W91: 0 | X91: 12458 | Y91: Bacteria | Z91: Bacteroidota | AA91: Bacteroidia | AB91: Flavobacteriales | AC91: Weeksellaceae | AD91: Chryseobacterium
A92: 91 | B92: sample | C92: 0 | D92: 3462 | E92: 2391 | F92: 0 | G92: 0 | H92: 2502 | I92: 0 | J92: 0 | K92: 0 | L92: 78 | M92: 133 | N92: 113 | O92: 147 | P92: 154 | Q92: 171 | R92: 395 | S92: 569 | T92: 317 | U92: 633 | V92: 806 | W92: 533 | X92: 12404 | Y92: Bacteria | Z92: Proteobacteria | AA92: Alphaproteobacteria | AB92: Sphingomonadales | AC92: Sphingomonadaceae | AD92: Rhizorhapis
A93: 92 | B93: sample | C93: 0 | D93: 1771 | E93: 1234 | F93: 1270 | G93: 1227 | H93: 1357 | I93: 1015 | J93: 1115 | K93: 976 | L93: 317 | M93: 398 | N93: 339 | O93: 0 | P93: 0 | Q93: 0 | R93: 113 | S93: 247 | T93: 121 | U93: 165 | V93: 393 | W93: 226 | X93: 12284 | Y93: Bacteria | Z93: Proteobacteria | AA93: Gammaproteobacteria | AB93: Burkholderiales | AC93: Comamonadaceae | AD93: Sphaerotilus
A94: 93 | B94: sample | C94: 0 | D94: 18 | E94: 0 | F94: 0 | G94: 0 | H94: 0 | I94: 0 | J94: 0 | K94: 0 | L94: 242 | M94: 240 | N94: 253 | O94: 73 | P94: 47 | Q94: 0 | R94: 5660 | S94: 186 | T94: 4974 | U94: 310 | V94: 84 | W94: 191 | X94: 12278 | Y94: Bacteria | Z94: Proteobacteria | AA94: Gammaproteobacteria | AB94: Aeromonadales | AC94: Aeromonadaceae | AD94: Aeromonas
A95: 94 | B95: sample | C95: 0 | D95: 0 | E95: 0 | F95: 17 | G95: 0 | H95: 0 | I95: 0 | J95: 0 | K95: 0 | L95: 181 | M95: 158 | N95: 230 | O95: 0 | P95: 0 | Q95: 0 | R95: 5886 | S95: 89 | T95: 5305 | U95: 297 | V95: 0 | W95: 0 | X95: 12163 | Y95: Bacteria | Z95: Proteobacteria | AA95: Gammaproteobacteria | AB95: Aeromonadales | AC95: Aeromonadaceae | AD95: Aeromonas
A96: 95 | B96: sample | C96: 0 | D96: 196 | E96: 233 | F96: 0 | G96: 0 | H96: 290 | I96: 1337 | J96: 2461 | K96: 5596 | L96: 685 | M96: 696 | N96: 604 | O96: 0 | P96: 0 | Q96: 0 | R96: 0 | S96: 0 | T96: 0 | U96: 0 | V96: 0 | W96: 0 | X96: 12098 | Y96: Bacteria | Z96: Proteobacteria | AA96: Alphaproteobacteria | AB96: Rhizobiales | AC96: Rhizobiaceae | AD96: Allorhizobium-Neorhizobium-Pararhizobium-Rhizobium
A97: 96 | B97: sample | C97: 0 | D97: 1908 | E97: 2522 | F97: 0 | G97: 0 | H97: 2899 | I97: 297 | J97: 259 | K97: 282 | L97: 256 | M97: 325 | N97: 256 | O97: 699 | P97: 606 | Q97: 544 | R97: 194 | S97: 118 | T97: 131 | U97: 297 | V97: 229 | W97: 267 | X97: 12089 | Y97: Bacteria | Z97: Proteobacteria | AA97: Gammaproteobacteria | AB97: Burkholderiales | AC97: Comamonadaceae | AD97: Leptothrix
A98: 97 | B98: sample | C98: 0 | D98: 126 | E98: 336 | F98: 0 | G98: 0 | H98: 265 | I98: 47 | J98: 50 | K98: 99 | L98: 1981 | M98: 2183 | N98: 1903 | O98: 1459 | P98: 1287 | Q98: 994 | R98: 230 | S98: 172 | T98: 165 | U98: 221 | V98: 155 | W98: 157 | X98: 11830 | Y98: Bacteria | Z98: Proteobacteria | AA98: Alphaproteobacteria | AB98: Rhodobacterales | AC98: Rhodobacteraceae | AD98: Rhodobacter
A99: 98 | B99: sample | C99: 0 | D99: 2246 | E99: 2477 | F99: 0 | G99: 0 | H99: 2690 | I99: 155 | J99: 151 | K99: 252 | L99: 407 | M99: 406 | N99: 412 | O99: 266 | P99: 228 | Q99: 233 | R99: 372 | S99: 227 | T99: 216 | U99: 276 | V99: 411 | W99: 256 | X99: 11681 | Y99: Bacteria | Z99: Proteobacteria | AA99: Alphaproteobacteria | AB99: Rhodobacterales | AC99: Rhodobacteraceae | AD99: Pseudorhodobacter
A100: 99 | B100: sample | C100: 0 | D100: 193 | E100: 197 | F100: 237 | G100: 219 | H100: 250 | I100: 2454 | J100: 2207 | K100: 2338 | L100: 1076 | M100: 1320 | N100: 907 | O100: 103 | P100: 0 | Q100: 123 | R100: 0 | S100: 0 | T100: 0 | U100: 0 | V100: 0 | W100: 0 | X100: 11624 | Y100: Bacteria | Z100: Proteobacteria | AA100: Gammaproteobacteria | AB100: Burkholderiales | AC100: Comamonadaceae | AD100: Sphaerotilus
A101: 100 | B101: sample | C101: 0 | D101: 225 | E101: 201 | F101: 239 | G101: 163 | H101: 189 | I101: 2402 | J101: 2606 | K101: 1653 | L101: 743 | M101: 726 | N101: 736 | O101: 254 | P101: 168 | Q101: 177 | R101: 195 | S101: 244 | T101: 158 | U101: 178 | V101: 169 | W101: 196 | X101: 11622 | Y101: Bacteria | Z101: Bacteroidota | AA101: Bacteroidia | AB101: Cytophagales | AC101: Spirosomaceae | AD101: Emticicia
A102: 101 | B102: sample | C102: 0 | D102: 611 | E102: 818 | F102: 0 | G102: 0 | H102: 839 | I102: 54 | J102: 54 | K102: 43 | L102: 495 | M102: 481 | N102: 521 | O102: 1138 | P102: 1308 | Q102: 1063 | R102: 685 | S102: 519 | T102: 417 | U102: 927 | V102: 854 | W102: 631 | X102: 11458 | Y102: Bacteria | Z102: Proteobacteria | AA102: Alphaproteobacteria | AB102: Rhodobacterales | AC102: Rhodobacteraceae | AD102: Defluviimonas
A103: 102 | B103: mock | C103: 11439 | D103: 0 | E103: 0 | F103: 0 | G103: 0 | H103: 0 | I103: 0 | J103: 0 | K103: 0 | L103: 0 | M103: 0 | N103: 0 | O103: 0 | P103: 0 | Q103: 0 | R103: 0 | S103: 0 | T103: 0 | U103: 0 | V103: 0 | W103: 0 | X103: 11439 | Y103: Bacteria | Z103: Firmicutes | AA103: Bacilli | AB103: Bacillales | AC103: Bacillaceae | AD103: Bacillus
A104: 103 | B104: sample | C104: 0 | D104: 1249 | E104: 1085 | F104: 0 | G104: 0 | H104: 1402 | I104: 577 | J104: 473 | K104: 1179 | L104: 1395 | M104: 1554 | N104: 1541 | O104: 295 | P104: 257 | Q104: 238 | R104: 21 | S104: 54 | T104: 0 | U104: 0 | V104: 0 | W104: 0 | X104: =SUM(D104:W104) -> 11320 | Y104: Bacteria | Z104: Proteobacteria | AA104: Gammaproteobacteria | AB104: Xanthomonadales | AC104: Xanthomonadaceae | AD104: Pseudoxanthomonas
A105: 104 | B105: sample | C105: 0 | D105: 67 | E105: 78 | F105: 0 | G105: 0 | H105: 75 | I105: 0 | J105: 0 | K105: 0 | L105: 333 | M105: 363 | N105: 324 | O105: 3695 | P105: 3354 | Q105: 2990 | R105: 0 | S105: 0 | T105: 0 | U105: 0 | V105: 0 | W105: 0 | X105: 11279 | Y105: Bacteria | Z105: Bacteroidota | AA105: Bacteroidia | AB105: Chitinophagales | AC105: Saprospiraceae | AD105: NA
A106: 105 | B106: sample | C106: 0 | D106: 411 | E106: 435 | F106: 0 | G106: 0 | H106: 476 | I106: 7 | J106: 0 | K106: 3 | L106: 691 | M106: 910 | N106: 913 | O106: 2306 | P106: 1996 | Q106: 2162 | R106: 106 | S106: 95 | T106: 82 | U106: 139 | V106: 367 | W106: 136 | X106: 11235 | Y106: Bacteria | Z106: Chloroflexi | AA106: Anaerolineae | AB106: RBG-13-54-9 | AC106: NA | AD106: NA
A107: 106 | B107: sample | C107: 0 | D107: 154 | E107: 160 | F107: 117 | G107: 159 | H107: 222 | I107: 2255 | J107: 2261 | K107: 2244 | L107: 1041 | M107: 1256 | N107: 953 | O107: 77 | P107: 147 | Q107: 0 | R107: 0 | S107: 0 | T107: 0 | U107: 0 | V107: 0 | W107: 0 | X107: 11046 | Y107: Bacteria | Z107: Proteobacteria | AA107: Gammaproteobacteria | AB107: Burkholderiales | AC107: Comamonadaceae | AD107: NA
A108: 107 | B108: sample | C108: 0 | D108: 157 | E108: 210 | F108: 190 | G108: 142 | H108: 178 | I108: 2518 | J108: 2504 | K108: 1684 | L108: 748 | M108: 716 | N108: 701 | O108: 122 | P108: 111 | Q108: 140 | R108: 87 | S108: 218 | T108: 120 | U108: 88 | V108: 163 | W108: 180 | X108: 10977 | Y108: Bacteria | Z108: Bacteroidota | AA108: Bacteroidia | AB108: Cytophagales | AC108: Spirosomaceae | AD108: Emticicia
A109: 108 | B109: sample | C109: 0 | D109: 999 | E109: 879 | F109: 0 | G109: 0 | H109: 1146 | I109: 26 | J109: 20 | K109: 50 | L109: 412 | M109: 439 | N109: 408 | O109: 1077 | P109: 1120 | Q109: 1025 | R109: 606 | S109: 542 | T109: 422 | U109: 665 | V109: 504 | W109: 585 | X109: 10925 | Y109: Bacteria | Z109: Verrucomicrobiota | AA109: Verrucomicrobiae | AB109: Verrucomicrobiales | AC109: Rubritaleaceae | AD109: Luteolibacter
A110: 109 | B110: sample | C110: 0 | D110: 0 | E110: 21 | F110: 0 | G110: 0 | H110: 0 | I110: 0 | J110: 0 | K110: 0 | L110: 182 | M110: 105 | N110: 231 | O110: 2121 | P110: 1769 | Q110: 2567 | R110: 285 | S110: 556 | T110: 251 | U110: 1738 | V110: 602 | W110: 420 | X110: 10848 | Y110: Bacteria | Z110: Chloroflexi | AA110: Chloroflexia | AB110: Chloroflexales | AC110: Roseiflexaceae | AD110: Kouleothrix
A111: 110 | B111: sample | C111: 0 | D111: 18 | E111: 24 | F111: 0 | G111: 0 | H111: 23 | I111: 0 | J111: 0 | K111: 0 | L111: 79 | M111: 211 | N111: 63 | O111: 281 | P111: 902 | Q111: 853 | R111: 548 | S111: 558 | T111: 413 | U111: 2244 | V111: 2618 | W111: 1969 | X111: 10804 | Y111: Bacteria | Z111: Acidobacteriota | AA111: Blastocatellia | AB111: 2024-11-01 | AC111: NA | AD111: NA
A112: 111 | B112: sample | C112: 0 | D112: 453 | E112: 316 | F112: 300 | G112: 283 | H112: 296 | I112: 3109 | J112: 2535 | K112: 2080 | L112: 466 | M112: 323 | N112: 384 | O112: 0 | P112: 95 | Q112: 126 | R112: 0 | S112: 0 | T112: 0 | U112: 0 | V112: 0 | W112: 0 | X112: 10766 | Y112: Bacteria | Z112: Proteobacteria | AA112: Alphaproteobacteria | AB112: Rhizobiales | AC112: Rhizobiaceae | AD112: NA
A113: 112 | B113: sample | C113: 0 | D113: 333 | E113: 273 | F113: 0 | G113: 0 | H113: 292 | I113: 31 | J113: 34 | K113: 71 | L113: 1182 | M113: 1525 | N113: 1217 | O113: 1517 | P113: 1615 | Q113: 1204 | R113: 284 | S113: 238 | T113: 166 | U113: 253 | V113: 343 | W113: 176 | X113: 10754 | Y113: Bacteria | Z113: Bacteroidota | AA113: Bacteroidia | AB113: Cytophagales | AC113: Spirosomaceae | AD113: Runella
A114: 113 | B114: sample | C114: 0 | D114: 0 | E114: 0 | F114: 0 | G114: 0 | H114: 0 | I114: 0 | J114: 0 | K114: 0 | L114: 2838 | M114: 4943 | N114: 2710 | O114: 0 | P114: 0 | Q114: 0 | R114: 0 | S114: 0 | T114: 0 | U114: 0 | V114: 0 | W114: 0 | X114: 10491 | Y114: Bacteria | Z114: Proteobacteria | AA114: Gammaproteobacteria | AB114: Burkholderiales | AC114: Comamonadaceae | AD114: Limnohabitans
A115: 114 | B115: sample | C115: 0 | D115: 655 | E115: 499 | F115: 0 | G115: 0 | H115: 550 | I115: 7 | J115: 16 | K115: 35 | L115: 52 | M115: 107 | N115: 51 | O115: 237 | P115: 234 | Q115: 159 | R115: 2411 | S115: 1739 | T115: 1252 | U115: 865 | V115: 631 | W115: 871 | X115: 10371 | Y115: Bacteria | Z115: Bacteroidota | AA115: Bacteroidia | AB115: Sphingobacteriales | AC115: env.OPS 17 | AD115: NA
A116: 115 | B116: mock | C116: 10365 | D116: 0 | E116: 0 | F116: 0 | G116: 0 | H116: 0 | I116: 0 | J116: 0 | K116: 0 | L116: 0 | M116: 0 | N116: 0 | O116: 0 | P116: 0 | Q116: 0 | R116: 0 | S116: 0 | T116: 0 | U116: 0 | V116: 0 | W116: 0 | X116: 10365 | Y116: Bacteria | Z116: Firmicutes | AA116: Bacilli | AB116: Bacillales | AC116: Bacillaceae | AD116: Bacillus
A117: 116 | B117: sample | C117: 0 | D117: 15 | E117: 28 | F117: 0 | G117: 0 | H117: 22 | I117: 0 | J117: 0 | K117: 0 | L117: 465 | M117: 442 | N117: 529 | O117: 1344 | P117: 1389 | Q117: 1221 | R117: 1206 | S117: 656 | T117: 582 | U117: 758 | V117: 735 | W117: 839 | X117: =SUM(D117:W117) -> 10231 | Y117: Bacteria | Z117: Proteobacteria | AA117: Alphaproteobacteria | AB117: Reyranellales | AC117: Reyranellaceae | AD117: Reyranella
A118: 117 | B118: sample | C118: 0 | D118: 1539 | E118: 970 | F118: 1084 | G118: 1040 | H118: 1130 | I118: 778 | J118: 979 | K118: 817 | L118: 284 | M118: 317 | N118: 312 | O118: 0 | P118: 0 | Q118: 0 | R118: 102 | S118: 119 | T118: 103 | U118: 149 | V118: 291 | W118: 163 | X118: 10177 | Y118: Bacteria | Z118: Proteobacteria | AA118: Gammaproteobacteria | AB118: Burkholderiales | AC118: Comamonadaceae | AD118: Sphaerotilus
A119: 118 | B119: sample | C119: 0 | D119: 3024 | E119: 2334 | F119: 0 | G119: 0 | H119: 2600 | I119: 43 | J119: 43 | K119: 60 | L119: 337 | M119: 404 | N119: 302 | O119: 99 | P119: 99 | Q119: 64 | R119: 145 | S119: 115 | T119: 100 | U119: 81 | V119: 102 | W119: 104 | X119: 10056 | Y119: Bacteria | Z119: Proteobacteria | AA119: Alphaproteobacteria | AB119: Rhodobacterales | AC119: Rhodobacteraceae | AD119: Gemmobacter
A120: 119 | B120: sample | C120: 0 | D120: 0 | E120: 159 | F120: 154 | G120: 160 | H120: 240 | I120: 938 | J120: 833 | K120: 426 | L120: 2401 | M120: 2372 | N120: 2277 | O120: 0 | P120: 16 | Q120: 0 | R120: 0 | S120: 0 | T120: 0 | U120: 0 | V120: 0 | W120: 0 | X120: 9976 | Y120: Bacteria | Z120: Bacteroidota | AA120: Bacteroidia | AB120: Flavobacteriales | AC120: Weeksellaceae | AD120: Chryseobacterium
A121: 120 | B121: sample | C121: 0 | D121: 147 | E121: 84 | F121: 87 | G121: 81 | H121: 161 | I121: 937 | J121: 834 | K121: 416 | L121: 2304 | M121: 2304 | N121: 2469 | O121: 0 | P121: 0 | Q121: 0 | R121: 0 | S121: 0 | T121: 0 | U121: 0 | V121: 0 | W121: 0 | X121: 9824 | Y121: Bacteria | Z121: Bacteroidota | AA121: Bacteroidia | AB121: Flavobacteriales | AC121: Weeksellaceae | AD121: Chryseobacterium
A122: 121 | B122: sample | C122: 0 | D122: 292 | E122: 372 | F122: 346 | G122: 334 | H122: 311 | I122: 0 | J122: 0 | K122: 0 | L122: 533 | M122: 440 | N122: 628 | O122: 1750 | P122: 1552 | Q122: 1775 | R122: 240 | S122: 207 | T122: 192 | U122: 182 | V122: 300 | W122: 164 | X122: 9618 | Y122: Bacteria | Z122: Chloroflexi | AA122: Anaerolineae | AB122: RBG-13-54-9 | AC122: NA | AD122: NA
A123: 122 | B123: sample | C123: 0 | D123: 0 | E123: 0 | F123: 0 | G123: 0 | H123: 0 | I123: 0 | J123: 0 | K123: 0 | L123: 0 | M123: 0 | N123: 0 | O123: 0 | P123: 0 | Q123: 0 | R123: 1045 | S123: 793 | T123: 675 | U123: 2783 | V123: 2253 | W123: 2068 | X123: 9617 | Y123: Bacteria | Z123: Verrucomicrobiota | AA123: Verrucomicrobiae | AB123: Pedosphaerales | AC123: Pedosphaeraceae | AD123: NA
A124: 123 | B124: sample | C124: 0 | D124: 403 | E124: 312 | F124: 231 | G124: 249 | H124: 267 | I124: 2881 | J124: 2271 | K124: 1937 | L124: 364 | M124: 312 | N124: 314 | O124: 0 | P124: 49 | Q124: 0 | R124: 0 | S124: 0 | T124: 0 | U124: 0 | V124: 0 | W124: 0 | X124: 9590 | Y124: Bacteria | Z124: Proteobacteria | AA124: Alphaproteobacteria | AB124: Rhizobiales | AC124: NA | AD124: NA
A125: 124 | B125: sample | C125: 0 | D125: 661 | E125: 534 | F125: 0 | G125: 0 | H125: 483 | I125: 1737 | J125: 1570 | K125: 1666 | L125: 683 | M125: 973 | N125: 625 | O125: 258 | P125: 155 | Q125: 155 | R125: 0 | S125: 8 | T125: 0 | U125: 12 | V125: 43 | W125: 0 | X125: 9563 | Y125: Bacteria | Z125: Proteobacteria | AA125: Gammaproteobacteria | AB125: Burkholderiales | AC125: Comamonadaceae | AD125: Sphaerotilus
A126: 125 | B126: sample | C126: 0 | D126: 278 | E126: 373 | F126: 360 | G126: 344 | H126: 309 | I126: 29 | J126: 35 | K126: 43 | L126: 468 | M126: 485 | N126: 682 | O126: 1687 | P126: 1489 | Q126: 1771 | R126: 182 | S126: 143 | T126: 161 | U126: 168 | V126: 304 | W126: 192 | X126: 9503 | Y126: Bacteria | Z126: Chloroflexi | AA126: Anaerolineae | AB126: RBG-13-54-9 | AC126: NA | AD126: NA
A127: 126 | B127: sample | C127: 0 | D127: 1429 | E127: 2127 | F127: 0 | G127: 0 | H127: 2281 | I127: 320 | J127: 210 | K127: 234 | L127: 189 | M127: 225 | N127: 194 | O127: 464 | P127: 424 | Q127: 381 | R127: 115 | S127: 97 | T127: 122 | U127: 206 | V127: 154 | W127: 200 | X127: 9372 | Y127: Bacteria | Z127: Proteobacteria | AA127: Gammaproteobacteria | AB127: Burkholderiales | AC127: Comamonadaceae | AD127: Leptothrix
A128: 127 | B128: sample | C128: 0 | D128: 527 | E128: 434 | F128: 0 | G128: 0 | H128: 438 | I128: 443 | J128: 370 | K128: 566 | L128: 674 | M128: 1020 | N128: 688 | O128: 1376 | P128: 1412 | Q128: 1237 | R128: 45 | S128: 24 | T128: 25 | U128: 29 | V128: 16 | W128: 20 | X128: 9344 | Y128: Bacteria | Z128: Bacteroidota | AA128: Bacteroidia | AB128: Chitinophagales | AC128: Saprospiraceae | AD128: NA
A129: 128 | B129: sample | C129: 0 | D129: 336 | E129: 270 | F129: 311 | G129: 321 | H129: 320 | I129: 0 | J129: 55 | K129: 0 | L129: 207 | M129: 153 | N129: 218 | O129: 374 | P129: 479 | Q129: 535 | R129: 458 | S129: 671 | T129: 592 | U129: 1076 | V129: 1345 | W129: 1581 | X129: 9302 | Y129: Bacteria | Z129: Acidobacteriota | AA129: Vicinamibacteria | AB129: Vicinamibacterales | AC129: Vicinamibacteraceae | AD129: NA
A130: 129 | B130: sample | C130: 0 | D130: 0 | E130: 0 | F130: 0 | G130: 0 | H130: 0 | I130: 0 | J130: 0 | K130: 0 | L130: 0 | M130: 0 | N130: 0 | O130: 0 | P130: 0 | Q130: 0 | R130: 1270 | S130: 1151 | T130: 954 | U130: 2332 | V130: 1548 | W130: 2029 | X130: 9284 | Y130: Bacteria | Z130: Acidobacteriota | AA130: Blastocatellia | AB130: 2024-11-01 | AC130: NA | AD130: NA
A131: 130 | B131: sample | C131: 0 | D131: 466 | E131: 563 | F131: 0 | G131: 0 | H131: 536 | I131: 1971 | J131: 1550 | K131: 1229 | L131: 582 | M131: 1169 | N131: 608 | O131: 104 | P131: 121 | Q131: 99 | R131: 44 | S131: 45 | T131: 32 | U131: 26 | V131: 34 | W131: 42 | X131: 9221 | Y131: Bacteria | Z131: Bacteroidota | AA131: Bacteroidia | AB131: Flavobacteriales | AC131: Flavobacteriaceae | AD131: Flavobacterium
A132: 131 | B132: sample | C132: 0 | D132: 1306 | E132: 882 | F132: 900 | G132: 924 | H132: 990 | I132: 729 | J132: 862 | K132: 803 | L132: 244 | M132: 323 | N132: 272 | O132: 0 | P132: 0 | Q132: 0 | R132: 104 | S132: 199 | T132: 74 | U132: 124 | V132: 271 | W132: 160 | X132: 9167 | Y132: Bacteria | Z132: Proteobacteria | AA132: Gammaproteobacteria | AB132: Burkholderiales | AC132: Comamonadaceae | AD132: Sphaerotilus
A133: 132 | B133: sample | C133: 0 | D133: 1169 | E133: 1102 | F133: 0 | G133: 0 | H133: 932 | I133: 981 | J133: 723 | K133: 1107 | L133: 494 | M133: 568 | N133: 537 | O133: 268 | P133: 203 | Q133: 222 | R133: 19 | S133: 37 | T133: 35 | U133: 96 | V133: 540 | W133: 70 | X133: 9103 | Y133: Bacteria | Z133: Proteobacteria | AA133: Gammaproteobacteria | AB133: Burkholderiales | AC133: Comamonadaceae | AD133: Hydrogenophaga
A134: 133 | B134: sample | C134: 0 | D134: 1996 | E134: 1776 | F134: 1381 | G134: 1275 | H134: 1596 | I134: 0 | J134: 0 | K134: 0 | L134: 0 | M134: 0 | N134: 0 | O134: 0 | P134: 0 | Q134: 0 | R134: 167 | S134: 143 | T134: 157 | U134: 171 | V134: 204 | W134: 163 | X134: 9029 | Y134: Bacteria | Z134: Bacteroidota | AA134: Bacteroidia | AB134: Chitinophagales | AC134: Saprospiraceae | AD134: NA
A135: 134 | B135: sample | C135: 0 | D135: 0 | E135: 0 | F135: 0 | G135: 0 | H135: 0 | I135: 0 | J135: 0 | K135: 0 | L135: 773 | M135: 796 | N135: 649 | O135: 2665 | P135: 2201 | Q135: 1921 | R135: 0 | S135: 0 | T135: 0 | U135: 0 | V135: 0 | W135: 0 | X135: 9005 | Y135: Bacteria | Z135: Proteobacteria | AA135: Gammaproteobacteria | AB135: Burkholderiales | AC135: Comamonadaceae | AD135: Hydrogenophaga
A136: 135 | B136: sample | C136: 0 | D136: 279 | E136: 274 | F136: 268 | G136: 281 | H136: 301 | I136: 72 | J136: 0 | K136: 0 | L136: 171 | M136: 144 | N136: 155 | O136: 363 | P136: 459 | Q136: 495 | R136: 452 | S136: 650 | T136: 595 | U136: 1230 | V136: 1228 | W136: 1479 | X136: 8896 | Y136: Bacteria | Z136: Acidobacteriota | AA136: Vicinamibacteria | AB136: Vicinamibacterales | AC136: Vicinamibacteraceae | AD136: NA
A137: 136 | B137: sample | C137: 0 | D137: 888 | E137: 767 | F137: 668 | G137: 695 | H137: 840 | I137: 1544 | J137: 1292 | K137: 1021 | L137: 267 | M137: 197 | N137: 255 | O137: 199 | P137: 111 | Q137: 76 | R137: 0 | S137: 0 | T137: 0 | U137: 0 | V137: 0 | W137: 0 | X137: 8820 | Y137: Bacteria | Z137: Proteobacteria | AA137: Alphaproteobacteria | AB137: Rhodobacterales | AC137: Rhodobacteraceae | AD137: Pseudorhodobacter
A138: 137 | B138: sample | C138: 0 | D138: 0 | E138: 0 | F138: 0 | G138: 0 | H138: 0 | I138: 0 | J138: 0 | K138: 0 | L138: 0 | M138: 0 | N138: 0 | O138: 0 | P138: 0 | Q138: 0 | R138: 99 | S138: 138 | T138: 75 | U138: 2962 | V138: 3468 | W138: 2053 | X138: 8795 | Y138: Bacteria | Z138: Nitrospirota | AA138: Nitrospiria | AB138: Nitrospirales | AC138: Nitrospiraceae | AD138: Nitrospira
A139: 138 | B139: sample | C139: 0 | D139: 924 | E139: 708 | F139: 778 | G139: 711 | H139: 889 | I139: 1469 | J139: 1307 | K139: 923 | L139: 276 | M139: 221 | N139: 259 | O139: 139 | P139: 88 | Q139: 87 | R139: 0 | S139: 0 | T139: 0 | U139: 0 | V139: 0 | W139: 0 | X139: 8779 | Y139: Bacteria | Z139: Proteobacteria | AA139: Alphaproteobacteria | AB139: Rhodobacterales | AC139: Rhodobacteraceae | AD139: Pseudorhodobacter
A140: 139 | B140: sample | C140: 0 | D140: 187 | E140: 203 | F140: 0 | G140: 0 | H140: 217 | I140: 79 | J140: 78 | K140: 158 | L140: 1125 | M140: 1355 | N140: 1149 | O140: 1615 | P140: 1325 | Q140: 1261 | R140: 0 | S140: 0 | T140: 0 | U140: 0 | V140: 0 | W140: 0 | X140: 8752 | Y140: Bacteria | Z140: Proteobacteria | AA140: Gammaproteobacteria | AB140: Burkholderiales | AC140: Comamonadaceae | AD140: Hydrogenophaga
A141: 140 | B141: sample | C141: 0 | D141: 0 | E141: 0 | F141: 0 | G141: 0 | H141: 0 | I141: 0 | J141: 0 | K141: 0 | L141: 0 | M141: 0 | N141: 0 | O141: 0 | P141: 0 | Q141: 0 | R141: 1001 | S141: 845 | T141: 643 | U141: 1840 | V141: 2763 | W141: 1635 | X141: 8727 | Y141: Bacteria | Z141: Proteobacteria | AA141: Gammaproteobacteria | AB141: Burkholderiales | AC141: Nitrosomonadaceae | AD141: Nitrosomonas
A142: 141 | B142: sample | C142: 0 | D142: 0 | E142: 0 | F142: 0 | G142: 0 | H142: 0 | I142: 0 | J142: 0 | K142: 0 | L142: 12 | M142: 19 | N142: 21 | O142: 80 | P142: 59 | Q142: 89 | R142: 328 | S142: 211 | T142: 294 | U142: 3174 | V142: 1682 | W142: 2674 | X142: 8643 | Y142: Bacteria | Z142: Chloroflexi | AA142: Anaerolineae | AB142: Caldilineales | AC142: Caldilineaceae | AD142: NA
A143: 142 | B143: sample | C143: 0 | D143: 1525 | E143: 1006 | F143: 777 | G143: 813 | H143: 971 | I143: 229 | J143: 193 | K143: 550 | L143: 256 | M143: 270 | N143: 232 | O143: 304 | P143: 250 | Q143: 192 | R143: 161 | S143: 169 | T143: 197 | U143: 209 | V143: 130 | W143: 165 | X143: 8599 | Y143: Bacteria | Z143: Bacteroidota | AA143: Bacteroidia | AB143: Chitinophagales | AC143: Chitinophagaceae | AD143: Sediminibacterium
A144: 143 | B144: sample | C144: 0 | D144: 1813 | E144: 1241 | F144: 1185 | G144: 1151 | H144: 1326 | I144: 479 | J144: 393 | K144: 361 | L144: 164 | M144: 155 | N144: 159 | O144: 70 | P144: 67 | Q144: 0 | R144: 0 | S144: 0 | T144: 0 | U144: 0 | V144: 0 | W144: 0 | X144: 8564 | Y144: Bacteria | Z144: Proteobacteria | AA144: Gammaproteobacteria | AB144: Burkholderiales | AC144: Comamonadaceae | AD144: Ideonella
A145: 144 | B145: sample | C145: 0 | D145: 1895 | E145: 1683 | F145: 1486 | G145: 1417 | H145: 1630 | I145: 0 | J145: 0 | K145: 0 | L145: 0 | M145: 0 | N145: 0 | O145: 0 | P145: 0 | Q145: 0 | R145: 0 | S145: 144 | T145: 51 | U145: 0 | V145: 124 | W145: 67 | X145: 8497 | Y145: Bacteria | Z145: Bacteroidota | AA145: Bacteroidia | AB145: Chitinophagales | AC145: Saprospiraceae | AD145: NA
A146: 145 | B146: sample | C146: 0 | D146: 338 | E146: 232 | F146: 0 | G146: 0 | H146: 370 | I146: 1953 | J146: 1559 | K146: 2055 | L146: 592 | M146: 724 | N146: 584 | O146: 33 | P146: 0 | Q146: 26 | R146: 0 | S146: 0 | T146: 0 | U146: 0 | V146: 0 | W146: 0 | X146: 8466 | Y146: Bacteria | Z146: Bacteroidota | AA146: Bacteroidia | AB146: Cytophagales | AC146: Spirosomaceae | AD146: Arcicella
A147: 146 | B147: sample | C147: 0 | D147: 1484 | E147: 1039 | F147: 940 | G147: 897 | H147: 999 | I147: 209 | J147: 180 | K147: 597 | L147: 271 | M147: 292 | N147: 236 | O147: 260 | P147: 252 | Q147: 209 | R147: 195 | S147: 156 | T147: 140 | U147: 0 | V147: 96 | W147: 0 | X147: 8452 | Y147: Bacteria | Z147: Bacteroidota | AA147: Bacteroidia | AB147: Chitinophagales | AC147: Chitinophagaceae | AD147: Sediminibacterium
A148: 147 | B148: sample | C148: 0 | D148: 0 | E148: 0 | F148: 0 | G148: 0 | H148: 28 | I148: 3254 | J148: 1850 | K148: 1184 | L148: 558 | M148: 538 | N148: 569 | O148: 163 | P148: 174 | Q148: 115 | R148: 0 | S148: 0 | T148: 0 | U148: 0 | V148: 0 | W148: 0 | X148: 8433 | Y148: Bacteria | Z148: Proteobacteria | AA148: Alphaproteobacteria | AB148: Rhodobacterales | AC148: Rhodobacteraceae | AD148: Pseudorhodobacter
A149: 148 | B149: sample | C149: 0 | D149: 0 | E149: 0 | F149: 0 | G149: 0 | H149: 0 | I149: 0 | J149: 0 | K149: 0 | L149: 74 | M149: 60 | N149: 106 | O149: 202 | P149: 115 | Q149: 259 | R149: 3172 | S149: 1767 | T149: 804 | U149: 864 | V149: 319 | W149: 686 | X149: 8428 | Y149: Bacteria | Z149: Actinobacteriota | AA149: Actinobacteria | AB149: Corynebacteriales | AC149: Mycobacteriaceae | AD149: Mycobacterium
A150: 149 | B150: sample | C150: 0 | D150: 505 | E150: 760 | F150: 0 | G150: 0 | H150: 809 | I150: 14 | J150: 18 | K150: 31 | L150: 628 | M150: 630 | N150: 729 | O150: 1410 | P150: 1391 | Q150: 1301 | R150: 9 | S150: 0 | T150: 9 | U150: 10 | V150: 9 | W150: 0 | X150: 8263 | Y150: Bacteria | Z150: Proteobacteria | AA150: Gammaproteobacteria | AB150: Xanthomonadales | AC150: Xanthomonadaceae | AD150: Thermomonas
A151: 150 | B151: sample | C151: 0 | D151: 1243 | E151: 1585 | F151: 0 | G151: 0 | H151: 1618 | I151: 187 | J151: 108 | K151: 123 | L151: 215 | M151: 285 | N151: 254 | O151: 804 | P151: 553 | Q151: 454 | R151: 155 | S151: 152 | T151: 110 | U151: 139 | V151: 128 | W151: 125 | X151: 8238 | Y151: Bacteria | Z151: Proteobacteria | AA151: Gammaproteobacteria | AB151: Burkholderiales | AC151: Comamonadaceae | AD151: Leptothrix
A152: 151 | B152: sample | C152: 0 | D152: 116 | E152: 69 | F152: 0 | G152: 0 | H152: 100 | I152: 111 | J152: 82 | K152: 91 | L152: 850 | M152: 901 | N152: 744 | O152: 1512 | P152: 1890 | Q152: 1715 | R152: 0 | S152: 0 | T152: 0 | U152: 0 | V152: 0 | W152: 0 | X152: 8181 | Y152: Bacteria | Z152: Planctomycetota | AA152: Planctomycetes | AB152: Pirellulales | AC152: Pirellulaceae | AD152: Pirellula
A153: 152 | B153: sample | C153: 0 | D153: 1193 | E153: 1514 | F153: 0 | G153: 0 | H153: 1602 | I153: 13 | J153: 7 | K153: 20 | L153: 386 | M153: 440 | N153: 450 | O153: 880 | P153: 836 | Q153: 767 | R153: 0 | S153: 0 | T153: 0 | U153: 0 | V153: 0 | W153: 0 | X153: 8108 | Y153: Bacteria | Z153: Bacteroidota | AA153: Bacteroidia | AB153: Cytophagales | AC153: Spirosomaceae | AD153: Rudanella
A154: 153 | B154: sample | C154: 0 | D154: 2674 | E154: 2293 | F154: 0 | G154: 0 | H154: 2812 | I154: 97 | J154: 32 | K154: 0 | L154: 0 | M154: 0 | N154: 0 | O154: 0 | P154: 0 | Q154: 0 | R154: 0 | S154: 0 | T154: 0 | U154: 0 | V154: 0 | W154: 0 | X154: 7908 | Y154: Bacteria | Z154: Proteobacteria | AA154: Gammaproteobacteria | AB154: Burkholderiales | AC154: Comamonadaceae | AD154: NA
A155: 154 | B155: mock | C155: 7858 | D155: 0 | E155: 0 | F155: 0 | G155: 0 | H155: 0 | I155: 0 | J155: 0 | K155: 0 | L155: 0 | M155: 0 | N155: 0 | O155: 0 | P155: 0 | Q155: 0 | R155: 0 | S155: 0 | T155: 0 | U155: 0 | V155: 0 | W155: 0 | X155: =SUM(C155:W155) -> 7858 | Y155: Bacteria | Z155: Firmicutes | AA155: Bacilli | AB155: Lactobacillales | AC155: Lactobacillaceae | AD155: Lactobacillus
A156: 155 | B156: sample | C156: 0 | D156: 134 | E156: 134 | F156: 0 | G156: 0 | H156: 169 | I156: 28 | J156: 40 | K156: 80 | L156: 879 | M156: 1374 | N156: 740 | O156: 1067 | P156: 992 | Q156: 871 | R156: 260 | S156: 286 | T156: 219 | U156: 142 | V156: 320 | W156: 100 | X156: =SUM(D156:W156) -> 7835 | Y156: Bacteria | Z156: Proteobacteria | AA156: Gammaproteobacteria | AB156: Burkholderiales | AC156: Oxalobacteraceae | AD156: Undibacterium
A157: 156 | B157: sample | C157: 0 | D157: 367 | E157: 236 | F157: 259 | G157: 233 | H157: 247 | I157: 2221 | J157: 1838 | K157: 1543 | L157: 294 | M157: 256 | N157: 287 | O157: 46 | P157: 0 | Q157: 0 | R157: 0 | S157: 0 | T157: 0 | U157: 0 | V157: 0 | W157: 0 | X157: 7827 | Y157: Bacteria | Z157: Proteobacteria | AA157: Alphaproteobacteria | AB157: Rhizobiales | AC157: NA | AD157: NA
A158: 157 | B158: sample | C158: 0 | D158: 69 | E158: 77 | F158: 0 | G158: 0 | H158: 101 | I158: 631 | J158: 471 | K158: 766 | L158: 428 | M158: 443 | N158: 394 | O158: 269 | P158: 258 | Q158: 195 | R158: 657 | S158: 518 | T158: 400 | U158: 775 | V158: 811 | W158: 501 | X158: 7764 | Y158: Bacteria | Z158: Proteobacteria | AA158: Gammaproteobacteria | AB158: Burkholderiales | AC158: Comamonadaceae | AD158: NA
A159: 158 | B159: sample | C159: 0 | D159: 1601 | E159: 1157 | F159: 1144 | G159: 1088 | H159: 1182 | I159: 422 | J159: 376 | K159: 372 | L159: 106 | M159: 112 | N159: 119 | O159: 38 | P159: 0 | Q159: 0 | R159: 0 | S159: 0 | T159: 41 | U159: 0 | V159: 0 | W159: 0 | X159: 7758 | Y159: Bacteria | Z159: Proteobacteria | AA159: Gammaproteobacteria | AB159: Burkholderiales | AC159: Comamonadaceae | AD159: Ideonella
A160: 159 | B160: sample | C160: 0 | D160: 2083 | E160: 1437 | F160: 0 | G160: 0 | H160: 1885 | I160: 13 | J160: 18 | K160: 96 | L160: 238 | M160: 340 | N160: 234 | O160: 357 | P160: 322 | Q160: 275 | R160: 71 | S160: 54 | T160: 56 | U160: 66 | V160: 90 | W160: 33 | X160: 7668 | Y160: Bacteria | Z160: Myxococcota | AA160: Polyangia | AB160: Polyangiales | AC160: Phaselicystidaceae | AD160: Phaselicystis
A161: 160 | B161: sample | C161: 0 | D161: 19 | E161: 0 | F161: 0 | G161: 0 | H161: 30 | I161: 0 | J161: 28 | K161: 0 | L161: 675 | M161: 731 | N161: 572 | O161: 1523 | P161: 1349 | Q161: 1317 | R161: 332 | S161: 258 | T161: 217 | U161: 190 | V161: 178 | W161: 226 | X161: 7645 | Y161: Bacteria | Z161: Proteobacteria | AA161: Gammaproteobacteria | AB161: Burkholderiales | AC161: Comamonadaceae | AD161: NA
A162: 161 | B162: sample | C162: 0 | D162: 176 | E162: 188 | F162: 223 | G162: 152 | H162: 242 | I162: 449 | J162: 296 | K162: 262 | L162: 949 | M162: 951 | N162: 1075 | O162: 383 | P162: 377 | Q162: 302 | R162: 214 | S162: 225 | T162: 312 | U162: 332 | V162: 242 | W162: 261 | X162: 7611 | Y162: Bacteria | Z162: Proteobacteria | AA162: Alphaproteobacteria | AB162: Rhodobacterales | AC162: Rhodobacteraceae | AD162: Pseudorhodobacter
A163: 162 | B163: sample | C163: 0 | D163: 1081 | E163: 761 | F163: 796 | G163: 812 | H163: 834 | I163: 624 | J163: 709 | K163: 639 | L163: 221 | M163: 249 | N163: 212 | O163: 0 | P163: 0 | Q163: 0 | R163: 0 | S163: 108 | T163: 77 | U163: 82 | V163: 230 | W163: 111 | X163: 7546 | Y163: Bacteria | Z163: Proteobacteria | AA163: Gammaproteobacteria | AB163: Burkholderiales | AC163: Comamonadaceae | AD163: Sphaerotilus
A164: 163 | B164: sample | C164: 0 | D164: 1491 | E164: 1131 | F164: 998 | G164: 943 | H164: 1119 | I164: 396 | J164: 370 | K164: 345 | L164: 179 | M164: 158 | N164: 210 | O164: 0 | P164: 86 | Q164: 0 | R164: 37 | S164: 0 | T164: 0 | U164: 0 | V164: 72 | W164: 0 | X164: 7535 | Y164: Bacteria | Z164: Proteobacteria | AA164: Gammaproteobacteria | AB164: Burkholderiales | AC164: Comamonadaceae | AD164: Ideonella
A165: 164 | B165: sample | C165: 0 | D165: 1522 | E165: 1127 | F165: 1102 | G165: 961 | H165: 1137 | I165: 410 | J165: 326 | K165: 335 | L165: 124 | M165: 155 | N165: 171 | O165: 112 | P165: 0 | Q165: 0 | R165: 0 | S165: 0 | T165: 0 | U165: 0 | V165: 0 | W165: 0 | X165: 7482 | Y165: Bacteria | Z165: Proteobacteria | AA165: Gammaproteobacteria | AB165: Burkholderiales | AC165: Comamonadaceae | AD165: Ideonella
A166: 165 | B166: sample | C166: 0 | D166: 0 | E166: 0 | F166: 0 | G166: 0 | H166: 0 | I166: 911 | J166: 1039 | K166: 2457 | L166: 1053 | M166: 986 | N166: 994 | O166: 0 | P166: 0 | Q166: 0 | R166: 0 | S166: 0 | T166: 0 | U166: 0 | V166: 0 | W166: 0 | X166: 7440 | Y166: Bacteria | Z166: Proteobacteria | AA166: Alphaproteobacteria | AB166: Sphingomonadales | AC166: Sphingomonadaceae | AD166: Novosphingobium
A167: 166 | B167: mock | C167: 7434 | D167: 0 | E167: 0 | F167: 0 | G167: 0 | H167: 0 | I167: 0 | J167: 0 | K167: 0 | L167: 0 | M167: 0 | N167: 0 | O167: 0 | P167: 0 | Q167: 0 | R167: 0 | S167: 0 | T167: 0 | U167: 0 | V167: 0 | W167: 0 | X167: 7434 | Y167: Bacteria | Z167: Firmicutes | AA167: Bacilli | AB167: Lactobacillales | AC167: Lactobacillaceae | AD167: Lactobacillus
A168: 167 | B168: sample | C168: 0 | D168: 0 | E168: 0 | F168: 0 | G168: 0 | H168: 0 | I168: 0 | J168: 0 | K168: 0 | L168: 0 | M168: 17 | N168: 0 | O168: 46 | P168: 69 | Q168: 38 | R168: 1597 | S168: 1189 | T168: 1334 | U168: 1030 | V168: 1187 | W168: 915 | X168: =SUM(D168:W168) -> 7422 | Y168: Bacteria | Z168: Verrucomicrobiota | AA168: Verrucomicrobiae | AB168: Pedosphaerales | AC168: Pedosphaeraceae | AD168: SH3-11
A169: 168 | B169: sample | C169: 0 | D169: 0 | E169: 0 | F169: 0 | G169: 0 | H169: 0 | I169: 25 | J169: 23 | K169: 36 | L169: 285 | M169: 418 | N169: 337 | O169: 592 | P169: 533 | Q169: 437 | R169: 1410 | S169: 996 | T169: 645 | U169: 535 | V169: 656 | W169: 471 | X169: 7399 | Y169: Bacteria | Z169: Verrucomicrobiota | AA169: Verrucomicrobiae | AB169: Verrucomicrobiales | AC169: Rubritaleaceae | AD169: Luteolibacter
A170: 169 | B170: sample | C170: 0 | D170: 130 | E170: 153 | F170: 193 | G170: 137 | H170: 209 | I170: 382 | J170: 269 | K170: 228 | L170: 1104 | M170: 1005 | N170: 1068 | O170: 405 | P170: 345 | Q170: 317 | R170: 189 | S170: 303 | T170: 220 | U170: 343 | V170: 200 | W170: 174 | X170: 7374 | Y170: Bacteria | Z170: Proteobacteria | AA170: Alphaproteobacteria | AB170: Rhodobacterales | AC170: Rhodobacteraceae | AD170: Pseudorhodobacter
A171: 170 | B171: sample | C171: 0 | D171: 679 | E171: 591 | F171: 0 | G171: 0 | H171: 850 | I171: 16 | J171: 9 | K171: 29 | L171: 180 | M171: 251 | N171: 313 | O171: 746 | P171: 1063 | Q171: 944 | R171: 101 | S171: 115 | T171: 91 | U171: 439 | V171: 647 | W171: 293 | X171: 7357 | Y171: Bacteria | Z171: Acidobacteriota | AA171: Vicinamibacteria | AB171: Vicinamibacterales | AC171: Vicinamibacteraceae | AD171: NA
A172: 171 | B172: sample | C172: 0 | D172: 0 | E172: 0 | F172: 0 | G172: 0 | H172: 0 | I172: 0 | J172: 0 | K172: 0 | L172: 326 | M172: 319 | N172: 332 | O172: 1140 | P172: 1179 | Q172: 925 | R172: 45 | S172: 101 | T172: 88 | U172: 926 | V172: 1076 | W172: 894 | X172: 7351 | Y172: Bacteria | Z172: Myxococcota | AA172: Polyangia | AB172: Haliangiales | AC172: Haliangiaceae | AD172: Haliangium
A173: 172 | B173: sample | C173: 0 | D173: 90 | E173: 112 | F173: 0 | G173: 0 | H173: 121 | I173: 68 | J173: 57 | K173: 55 | L173: 559 | M173: 674 | N173: 557 | O173: 1126 | P173: 880 | Q173: 935 | R173: 337 | S173: 312 | T173: 286 | U173: 421 | V173: 318 | W173: 429 | X173: 7337 | Y173: Bacteria | Z173: Proteobacteria | AA173: Alphaproteobacteria | AB173: Rhizobiales | AC173: Rhizobiales Incertae Sedis | AD173: NA
A174: 173 | B174: sample | C174: 0 | D174: 368 | E174: 214 | F174: 187 | G174: 159 | H174: 270 | I174: 1917 | J174: 1772 | K174: 1488 | L174: 282 | M174: 381 | N174: 242 | O174: 0 | P174: 0 | Q174: 0 | R174: 0 | S174: 55 | T174: 0 | U174: 0 | V174: 0 | W174: 0 | X174: 7335 | Y174: Bacteria | Z174: Bacteroidota | AA174: Bacteroidia | AB174: Flavobacteriales | AC174: Flavobacteriaceae | AD174: Flavobacterium
A175: 174 | B175: sample | C175: 0 | D175: 0 | E175: 0 | F175: 0 | G175: 0 | H175: 0 | I175: 0 | J175: 0 | K175: 0 | L175: 0 | M175: 0 | N175: 0 | O175: 0 | P175: 0 | Q175: 0 | R175: 1550 | S175: 1677 | T175: 1768 | U175: 1185 | V175: 137 | W175: 1011 | X175: 7328 | Y175: Bacteria | Z175: Myxococcota | AA175: Polyangia | AB175: Polyangiales | AC175: Polyangiaceae | AD175: Polyangium
A176: 175 | B176: sample | C176: 0 | D176: 360 | E176: 280 | F176: 237 | G176: 260 | H176: 294 | I176: 1467 | J176: 1268 | K176: 1121 | L176: 223 | M176: 290 | N176: 247 | O176: 153 | P176: 156 | Q176: 0 | R176: 0 | S176: 188 | T176: 196 | U176: 153 | V176: 183 | W176: 178 | X176: 7254 | Y176: Bacteria | Z176: Bacteroidota | AA176: Bacteroidia | AB176: Flavobacteriales | AC176: Flavobacteriaceae | AD176: Flavobacterium
A177: 176 | B177: sample | C177: 0 | D177: 0 | E177: 0 | F177: 0 | G177: 0 | H177: 0 | I177: 1126 | J177: 1354 | K177: 1763 | L177: 980 | M177: 995 | N177: 960 | O177: 0 | P177: 0 | Q177: 19 | R177: 0 | S177: 0 | T177: 0 | U177: 0 | V177: 0 | W177: 0 | X177: 7197 | Y177: Bacteria | Z177: Bacteroidota | AA177: Bacteroidia | AB177: Cytophagales | AC177: Spirosomaceae | AD177: Flectobacillus
A178: 177 | B178: sample | C178: 0 | D178: 0 | E178: 0 | F178: 0 | G178: 0 | H178: 0 | I178: 0 | J178: 0 | K178: 0 | L178: 0 | M178: 0 | N178: 0 | O178: 0 | P178: 0 | Q178: 0 | R178: 1485 | S178: 1198 | T178: 1024 | U178: 1251 | V178: 1180 | W178: 1047 | X178: 7185 | Y178: Bacteria | Z178: Planctomycetota | AA178: Planctomycetes | AB178: Planctomycetales | AC178: Rubinisphaeraceae | AD178: NA
A179: 178 | B179: sample | C179: 0 | D179: 0 | E179: 0 | F179: 0 | G179: 0 | H179: 41 | I179: 92 | J179: 85 | K179: 232 | L179: 1739 | M179: 2419 | N179: 1684 | O179: 15 | P179: 0 | Q179: 18 | R179: 233 | S179: 191 | T179: 95 | U179: 100 | V179: 123 | W179: 102 | X179: 7169 | Y179: Bacteria | Z179: Bacteroidota | AA179: Bacteroidia | AB179: Flavobacteriales | AC179: Flavobacteriaceae | AD179: Flavobacterium
A180: 179 | B180: sample | C180: 0 | D180: 1487 | E180: 1137 | F180: 0 | G180: 0 | H180: 1258 | I180: 47 | J180: 48 | K180: 85 | L180: 267 | M180: 360 | N180: 286 | O180: 259 | P180: 279 | Q180: 241 | R180: 196 | S180: 284 | T180: 134 | U180: 411 | V180: 145 | W180: 206 | X180: 7130 | Y180: Bacteria | Z180: Proteobacteria | AA180: Alphaproteobacteria | AB180: Sphingomonadales | AC180: Sphingomonadaceae | AD180: Rhizorhapis
A181: 180 | B181: sample | C181: 0 | D181: 769 | E181: 746 | F181: 0 | G181: 0 | H181: 724 | I181: 869 | J181: 781 | K181: 997 | L181: 540 | M181: 453 | N181: 486 | O181: 147 | P181: 169 | Q181: 183 | R181: 72 | S181: 60 | T181: 47 | U181: 7 | V181: 35 | W181: 10 | X181: 7095 | Y181: Bacteria | Z181: Proteobacteria | AA181: Alphaproteobacteria | AB181: Rhizobiales | AC181: Rhizobiaceae | AD181: Shinella
A182: 181 | B182: sample | C182: 0 | D182: 0 | E182: 0 | F182: 0 | G182: 0 | H182: 0 | I182: 1055 | J182: 1275 | K182: 1782 | L182: 948 | M182: 983 | N182: 895 | O182: 67 | P182: 46 | Q182: 0 | R182: 0 | S182: 0 | T182: 0 | U182: 0 | V182: 0 | W182: 0 | X182: 7051 | Y182: Bacteria | Z182: Bacteroidota | AA182: Bacteroidia | AB182: Cytophagales | AC182: Spirosomaceae | AD182: Flectobacillus
A183: 182 | B183: sample | C183: 0 | D183: 305 | E183: 213 | F183: 155 | G183: 167 | H183: 240 | I183: 1797 | J183: 1762 | K183: 1386 | L183: 261 | M183: 301 | N183: 236 | O183: 0 | P183: 0 | Q183: 0 | R183: 0 | S183: 83 | T183: 0 | U183: 0 | V183: 75 | W183: 0 | X183: 6981 | Y183: Bacteria | Z183: Bacteroidota | AA183: Bacteroidia | AB183: Flavobacteriales | AC183: Flavobacteriaceae | AD183: Flavobacterium
A184: 183 | B184: sample | C184: 0 | D184: 1169 | E184: 859 | F184: 0 | G184: 0 | H184: 779 | I184: 0 | J184: 33 | K184: 67 | L184: 1305 | M184: 1140 | N184: 1322 | O184: 50 | P184: 0 | Q184: 0 | R184: 53 | S184: 48 | T184: 46 | U184: 0 | V184: 95 | W184: 0 | X184: 6966 | Y184: Bacteria | Z184: Proteobacteria | AA184: Alphaproteobacteria | AB184: Rhodobacterales | AC184: Rhodobacteraceae | AD184: Gemmobacter
A185: 184 | B185: sample | C185: 0 | D185: 227 | E185: 405 | F185: 409 | G185: 413 | H185: 411 | I185: 75 | J185: 131 | K185: 104 | L185: 464 | M185: 421 | N185: 545 | O185: 700 | P185: 699 | Q185: 559 | R185: 232 | S185: 185 | T185: 215 | U185: 236 | V185: 207 | W185: 327 | X185: 6965 | Y185: Bacteria | Z185: Proteobacteria | AA185: Alphaproteobacteria | AB185: Rhodobacterales | AC185: Rhodobacteraceae | AD185: Tabrizicola
A186: 185 | B186: mock | C186: 6964 | D186: 0 | E186: 0 | F186: 0 | G186: 0 | H186: 0 | I186: 0 | J186: 0 | K186: 0 | L186: 0 | M186: 0 | N186: 0 | O186: 0 | P186: 0 | Q186: 0 | R186: 0 | S186: 0 | T186: 0 | U186: 0 | V186: 0 | W186: 0 | X186: 6964 | Y186: Bacteria | Z186: Firmicutes | AA186: Bacilli | AB186: Staphylococcales | AC186: Staphylococcaceae | AD186: Staphylococcus
A187: 186 | B187: sample | C187: 0 | D187: 46 | E187: 61 | F187: 0 | G187: 0 | H187: 76 | I187: 11 | J187: 12 | K187: 9 | L187: 174 | M187: 193 | N187: 173 | O187: 850 | P187: 872 | Q187: 625 | R187: 455 | S187: 278 | T187: 238 | U187: 1100 | V187: 788 | W187: 980 | X187: =SUM(D187:W187) -> 6941 | Y187: Bacteria | Z187: Bacteroidota | AA187: Bacteroidia | AB187: Cytophagales | AC187: Microscillaceae | AD187: NA
A188: 187 | B188: mock | C188: 6880 | D188: 0 | E188: 0 | F188: 0 | G188: 0 | H188: 0 | I188: 0 | J188: 0 | K188: 0 | L188: 0 | M188: 0 | N188: 0 | O188: 0 | P188: 0 | Q188: 0 | R188: 0 | S188: 0 | T188: 0 | U188: 0 | V188: 0 | W188: 0 | X188: 6880 | Y188: Bacteria | Z188: Firmicutes | AA188: Bacilli | AB188: Staphylococcales | AC188: Staphylococcaceae | AD188: Staphylococcus
A189: 188 | B189: sample | C189: 0 | D189: 14 | E189: 0 | F189: 0 | G189: 0 | H189: 0 | I189: 69 | J189: 86 | K189: 34 | L189: 840 | M189: 1183 | N189: 957 | O189: 1361 | P189: 1257 | Q189: 1018 | R189: 0 | S189: 0 | T189: 0 | U189: 0 | V189: 0 | W189: 0 | X189: =SUM(D189:W189) -> 6819 | Y189: Bacteria | Z189: Bacteroidota | AA189: Bacteroidia | AB189: Chitinophagales | AC189: Chitinophagaceae | AD189: NA
A190: 189 | B190: sample | C190: 0 | D190: 178 | E190: 367 | F190: 354 | G190: 366 | H190: 379 | I190: 147 | J190: 110 | K190: 137 | L190: 409 | M190: 456 | N190: 542 | O190: 613 | P190: 667 | Q190: 545 | R190: 276 | S190: 242 | T190: 283 | U190: 240 | V190: 229 | W190: 278 | X190: 6818 | Y190: Bacteria | Z190: Proteobacteria | AA190: Alphaproteobacteria | AB190: Rhodobacterales | AC190: Rhodobacteraceae | AD190: Tabrizicola
A191: 190 | B191: sample | C191: 0 | D191: 204 | E191: 215 | F191: 214 | G191: 229 | H191: 219 | I191: 1007 | J191: 834 | K191: 817 | L191: 1144 | M191: 895 | N191: 964 | O191: 0 | P191: 65 | Q191: 0 | R191: 0 | S191: 0 | T191: 0 | U191: 0 | V191: 0 | W191: 0 | X191: 6807 | Y191: Bacteria | Z191: Bacteroidota | AA191: Bacteroidia | AB191: Cytophagales | AC191: Spirosomaceae | AD191: Arcicella
A192: 191 | B192: sample | C192: 0 | D192: 0 | E192: 0 | F192: 0 | G192: 0 | H192: 0 | I192: 0 | J192: 0 | K192: 0 | L192: 257 | M192: 318 | N192: 270 | O192: 867 | P192: 886 | Q192: 726 | R192: 875 | S192: 422 | T192: 890 | U192: 340 | V192: 349 | W192: 523 | X192: 6723 | Y192: Bacteria | Z192: Proteobacteria | AA192: Alphaproteobacteria | AB192: Rickettsiales | AC192: Rickettsiaceae | AD192: Candidatus Megaira
A193: 192 | B193: mock | C193: 6721 | D193: 0 | E193: 0 | F193: 0 | G193: 0 | H193: 0 | I193: 0 | J193: 0 | K193: 0 | L193: 0 | M193: 0 | N193: 0 | O193: 0 | P193: 0 | Q193: 0 | R193: 0 | S193: 0 | T193: 0 | U193: 0 | V193: 0 | W193: 0 | X193: =SUM(C193:W193) -> 6721 | Y193: Bacteria | Z193: Firmicutes | AA193: Bacilli | AB193: Lactobacillales | AC193: Listeriaceae | AD193: Listeria
A194: 193 | B194: sample | C194: 0 | D194: 16 | E194: 21 | F194: 0 | G194: 0 | H194: 23 | I194: 0 | J194: 0 | K194: 8 | L194: 682 | M194: 949 | N194: 662 | O194: 634 | P194: 599 | Q194: 470 | R194: 510 | S194: 461 | T194: 275 | U194: 482 | V194: 560 | W194: 351 | X194: =SUM(D194:W194) -> 6703 | Y194: Bacteria | Z194: Bacteroidota | AA194: Bacteroidia | AB194: Flavobacteriales | AC194: Flavobacteriaceae | AD194: Flavobacterium
A195: 194 | B195: sample | C195: 0 | D195: 183 | E195: 268 | F195: 0 | G195: 0 | H195: 287 | I195: 27 | J195: 32 | K195: 70 | L195: 711 | M195: 872 | N195: 708 | O195: 1074 | P195: 1005 | Q195: 810 | R195: 103 | S195: 70 | T195: 90 | U195: 100 | V195: 147 | W195: 121 | X195: 6678 | Y195: Bacteria | Z195: Bacteroidota | AA195: Bacteroidia | AB195: Cytophagales | AC195: Spirosomaceae | AD195: Runella
A196: 195 | B196: sample | C196: 0 | D196: 651 | E196: 775 | F196: 700 | G196: 621 | H196: 913 | I196: 268 | J196: 220 | K196: 214 | L196: 255 | M196: 144 | N196: 236 | O196: 226 | P196: 199 | Q196: 194 | R196: 177 | S196: 181 | T196: 106 | U196: 171 | V196: 205 | W196: 214 | X196: 6670 | Y196: Bacteria | Z196: Proteobacteria | AA196: Gammaproteobacteria | AB196: Burkholderiales | AC196: Comamonadaceae | AD196: Leptothrix
A197: 196 | B197: sample | C197: 0 | D197: 373 | E197: 283 | F197: 260 | G197: 257 | H197: 259 | I197: 1384 | J197: 1293 | K197: 1173 | L197: 227 | M197: 249 | N197: 208 | O197: 0 | P197: 0 | Q197: 0 | R197: 146 | S197: 79 | T197: 162 | U197: 145 | V197: 90 | W197: 67 | X197: 6655 | Y197: Bacteria | Z197: Bacteroidota | AA197: Bacteroidia | AB197: Flavobacteriales | AC197: Flavobacteriaceae | AD197: Flavobacterium
A198: 197 | B198: sample | C198: 0 | D198: 758 | E198: 714 | F198: 608 | G198: 601 | H198: 739 | I198: 0 | J198: 0 | K198: 0 | L198: 363 | M198: 315 | N198: 373 | O198: 641 | P198: 691 | Q198: 482 | R198: 75 | S198: 121 | T198: 55 | U198: 0 | V198: 0 | W198: 108 | X198: 6644 | Y198: Bacteria | Z198: Bacteroidota | AA198: Bacteroidia | AB198: Chitinophagales | AC198: Saprospiraceae | AD198: Haliscomenobacter
